{"text_format":"1","workbook":"xlsx","n_sheets":78,"sheets":["modList00","modList02","Инструкция","Лог обновления","Титульный","Территории","Перечень тарифов","Форма 1.0.1 | Т-ТЭ | >=25МВт","Форма 4.2.1 | Т-ТЭ | >=25МВт","Форма 1.0.1 | Т-ТЭ | ТСО","Форма 4.2.1 | Т-ТЭ | ТСО","Форма 1.0.1 | Т-ТЭ | потр","Форма 4.2.1 | Т-ТЭ | потр","Форма 1.0.1 | Т-ТЭ | предел","Форма 4.2.1 | Т-ТЭ | предел","Форма 1.0.1 | Т-ТЭ | индикат","Форма 4.2.1 | Т-ТЭ | индикат","Форма 1.0.1 | Резерв мощности","Форма 4.2.1 | Резерв мощности","Форма 1.0.1 | Т-ТН","Форма 4.2.2 | Т-ТН","Форма 1.0.1 | Т-передача ТЭ","Форма 4.2.2 | Т-передача ТЭ","Форма 1.0.1 | Т-передача ТН","Форма 4.2.2 | Т-передача ТН","Форма 1.0.1 | Т-гор.вода","Форма 4.2.3 | Т-гор.вода","Форма 1.0.1 | Т-подкл","Форма 4.2.4 | Т-подкл","Форма 1.0.1 | Т-подкл(инд)","Форма 4.2.5 | Т-подкл(инд)","Форма 1.0.1 | Форма 4.7","Форма 4.7","Форма 1.0.1 | Форма 4.8","Форма 4.8","Форма 1.0.2","Сведения об изменении","Комментарии","Проверка","et_union_hor","TEHSHEET","modListTempFilter","modCheckCyan","REESTR_LINK","REESTR_DS","modHTTP","modfrmRezimChoose","modSheetMain","REESTR_VT","REESTR_VED","modfrmReestrObj","AllSheetsInThisWorkbook","et_union_vert","modInstruction","modRegion","modReestr","modfrmReestr","modUpdTemplMain","REESTR_ORG","modClassifierValidate","modProv","modHyp","modServiceModule","modList01","modList03","REESTR_MO_FILTER","REESTR_MO","modInfo","modList05","modList06","modList07","modList11","modList12","modfrmDateChoose","modComm","modThisWorkbook","modfrmReestrMR","modfrmCheckUpdates"],"not_rendered":{"charts":0,"images":20,"macros":1,"external_links":0,"defined_names":830,"comments":0,"pivot_tables":0},"unopened":[],"bounds":{"document_bytes":16777216,"sheet_cells":100000,"rows_first":2000,"rows_last":500,"rows_between":2000,"halvings":0,"cell_chars":16384,"cell_head_chars":4096},"cells_cut":0,"cells_raw":0,"read":"whole","date_system":"1900"}

{"sheet":"modList00","index":0,"n_rows":0,"n_cols":0,"rows_kept":0,"cut":false,"hidden":true,"merged":[]}

{"sheet":"modList02","index":1,"n_rows":0,"n_cols":0,"rows_kept":0,"cut":false,"hidden":true,"merged":[]}

{"sheet":"Инструкция","index":2,"n_rows":102,"n_cols":27,"rows_kept":102,"cut":false,"hidden":false,"merged":[[59,7,59,23],[81,7,81,23],[45,4,56,23],[69,4,69,19],[59,4,59,6],[58,7,58,23],[58,4,58,6],[70,4,70,19],[60,7,60,23],[101,5,101,23],[99,5,99,18],[81,4,81,6],[97,4,97,23],[80,4,80,20],[83,7,83,23],[1,1,1,6],[2,1,2,2],[6,4,18,23],[22,15,22,22],[57,4,57,20],[4,1,4,24],[40,4,44,23],[20,5,20,12],[20,15,20,23],[21,15,21,23],[34,4,38,23],[21,5,21,12],[39,4,39,23]]}
[null,null,null,null,null,null,null,null,null,null,null,null,null,null,null,null,null,null,null,null,null,null,null,null,null,null," (требуется обновление)"]
[null,{"$f":"\"Код отчёта: \" & GetCode()","v":"Код отчёта: FAS.JKH.OPEN.INFO.PRICE.WARM"}]
[null,{"$f":"\"Версия \" & GetVersion()","v":"Версия 1.0.2"}]
[]
[null,"Информация, подлежащая раскрытию организациями сферы теплоснабжения (цены и тарифы)"]
[]
[null,null,null,null,"• На рабочем месте должен быть установлен MS Office 2007 SP3, 2010, 2013, 2016 с полной версией MS Excel\n\n• Макросы во время работы должны быть включены (!)\n\n• Для корректной работы отчёта требуется выбрать низкий уровень безопасности\n(В меню MS Excel 2007/2010/2013/2016: Параметры Excel | Центр управления безопасностью | Параметры центра управления безопасностью | Параметры макросов | Включить все макросы | ОК)\n\n• Если Вы работаете в табличном процессоре MS Excel 2007 и выше, то можете использовать для работы формат XLSB (Двоичная книга Excel). При работе в формате XLSB заметно быстрее происходит сохранение файла, а также уменьшается размер по сравнению с форматами XLS и XLSM\n\n• Не рекомендуется снимать защиту с листов и каким-либо образом модифицировать защищаемые формулы и расчётные поля, в противном случае, отчёт будет отклонён системой\n\n• При сохранении не следует выбирать формат XLSX (Книга Excel), так как в указанном формате макросы, необходимые для работы отчёта, безвозвратно удаляются"]
[]
[]
[]
[]
[]
[]
[]
[]
[]
[]
[]
[]
[]
[null,null,null,null,"A"," - необязательные для заполнения",null,null,null,null,null,null,null,null,"A"," - с формулами и константами"]
[null,null,null,null,"A"," - обязательные для заполнения",null,null,null,null,null,null,null,null,"A"," - с выбором значений по двойному клику"]
[]
[]
[]
[]
[]
[]
[]
[]
[]
[]
[]
[]
[null,null,null,null,"Если в предложенном Вам списке необходимая организация, МР/МО отсутствуют, обновите реестры с помощью кнопок\n\nВ результате синхронизации с базой данных список организаций (МР/МО) будет заменён актуальным (механизм синхронизации требует подключения к сети Интернет и основан на использовании протокола HTTPS (TCP порт 443))\n\nЕсли после обновления Вам не удалось найти необходимую организацию в списке, обратитесь к ответственному за поддержание реестра Вашего региона."]
[]
[]
[]
[]
[]
[]
[]
[]
[]
[]
[null,null,null,null,"• При сохранении шаблона осуществляется проверка корректности данных, в том числе на наличие значений в ячейках, обязательных для заполнения\n\n• Если какая-то ячейка не удовлетворяет условию проверки, на лист «Проверка» добавляется гиперссылка на данную ячейку и указывается причина ошибки\n\n• В колонке «Статус» для каждого сообщения возможны 2 значения: ошибка и предупреждение\n\n• При наличии сообщений со статусом «Ошибка» шаблон будет отклонён системой и не будет загружен в хранилище данных, сообщения со статусом «Предупреждение» носят информационный характер, и такой шаблон будет принят системой"]
[]
[]
[]
[]
[]
[]
[]
[]
[]
[]
[]
[null,null,null,null,"Обратиться за помощью в службу технической поддержки"]
[]
[]
[]
[]
[]
[]
[]
[]
[]
[]
[]
[null,null,null,null,"Инструкция по загрузке сопроводительных материалов"]
[null,null,null,null,"Инструкция по работе с отчетной формой"]
[]
[]
[]
[]
[]
[]
[]
[]
[]
[null,null,null,null,"Обратиться за помощью в службу технической поддержки"]
[]
[]
[]
[]
[]
[]
[]
[]
[]
[]
[]
[]
[]
[]
[]
[]
[null,null,null,null,"При наличии подключения к Интернет, можно автоматически проверять наличие доступных обновлений. Выберите способ оповещения о наличии обновлений для отчёта:"]
[]
[null,null,null,null,null,"проверять доступные обновления (рекомендуется)",null,null,null,null,null,null,null,null,null,null,null,null,null,null,null,null,null,null,null,null,"y"]
[]
[null,null,null,null,null,"никогда не проверять наличие обновлений (не рекомендуется)"]

{"sheet":"Лог обновления","index":3,"n_rows":36,"n_cols":3,"rows_kept":36,"cut":false,"hidden":true,"merged":[]}
["Дата/Время","Сообщение","Статус"]
["2019-01-30T11:31:12","Проверка доступных обновлений...","Информация"]
["2019-01-30T11:31:13","Доступно обновление до версии 1.0.1","Информация"]
["2019-01-30T11:31:13","Описание изменений: Версия 1.0.1\n1. Исправление логики работы листа 'Перечень тарифов' в части добавления территорий для тарифа на теплоноситель.","Информация"]
["2019-01-30T11:31:13","Размер файла обновления: 386560 байт","Информация"]
["2019-01-30T11:31:14","Подготовка к обновлению...","Информация"]
["2019-01-30T11:31:17","Сохранение файла резервной копии: D:\\Рабочий стол\\формы РИ ЖКХ\\!+ Шаблоны РИ ЖКХ  актуально\\PRICE\\+FAS.JKH.OPEN.INFO.PRICE\\+ обновления до v 1.0.1\\1111.BKP.xlsb","Информация"]
["2019-01-30T11:31:18","Резервная копия создана: D:\\Рабочий стол\\формы РИ ЖКХ\\!+ Шаблоны РИ ЖКХ  актуально\\PRICE\\+FAS.JKH.OPEN.INFO.PRICE\\+ обновления до v 1.0.1\\1111.BKP.xlsb","Информация"]
["2019-01-30T11:31:18","Создание книги для установки обновлений...","Информация"]
["2019-01-30T11:31:19","Файл обновления загружен: D:\\Рабочий стол\\формы РИ ЖКХ\\!+ Шаблоны РИ ЖКХ  актуально\\PRICE\\+FAS.JKH.OPEN.INFO.PRICE\\+ обновления до v 1.0.1\\UPDATE.FAS.JKH.OPEN.INFO.PRICE.WARM.TO.1.0.1.21.xls","Информация"]
["2019-01-30T11:32:22","Проверка доступных обновлений...","Информация"]
["2019-01-30T11:32:24","Нет доступных обновлений для отчёта с кодом FAS.JKH.OPEN.INFO.PRICE.WARM!","Информация"]
["2019-12-23T11:40:20","Проверка доступных обновлений...","Информация"]
["2019-12-23T11:40:21","Доступно обновление до версии 1.0.2","Информация"]
["2019-12-23T11:40:21","Описание изменений: Версия 1.0.2\n1. Корректировка значения группы потребителей \"население\" на \"население и приравненные категории\"\n\nВерсия 1.0.1\n1. Исправление логики работы листа 'Перечень тарифов' в части добавления территорий для тарифа на теплоноситель.","Информация"]
["2019-12-23T11:40:22","Размер файла обновления: 386560 байт","Информация"]
["2019-12-23T11:40:31","Подготовка к обновлению...","Информация"]
["2019-12-23T11:40:45","Сохранение файла резервной копии: C:\\Users\\galieva\\Downloads\\12222.BKP.xlsb","Информация"]
["2019-12-23T11:40:46","Резервная копия создана: C:\\Users\\galieva\\Downloads\\12222.BKP.xlsb","Информация"]
["2019-12-23T11:40:46","Создание книги для установки обновлений...","Информация"]
["2019-12-23T11:40:48","Файл обновления загружен: C:\\Users\\galieva\\Downloads\\UPDATE.FAS.JKH.OPEN.INFO.PRICE.WARM.TO.1.0.2.67.xls","Информация"]
["2019-12-23T11:40:52","Обновление завершилось удачно! Шаблон FAS.JKH.OPEN.INFO.PRICE.WARM (v1.0.1).xlsb сохранен под именем 'FAS.JKH.OPEN.INFO.PRICE.WARM (v1.0.2).xlsb'","Информация"]
["2019-12-23T13:46:51","Проверка доступных обновлений...","Информация"]
["2019-12-23T13:46:53","Нет доступных обновлений для отчёта с кодом FAS.JKH.OPEN.INFO.PRICE.WARM!","Информация"]
["2019-12-23T13:48:02","Проверка доступных обновлений...","Информация"]
["2019-12-23T13:48:03","Нет доступных обновлений для отчёта с кодом FAS.JKH.OPEN.INFO.PRICE.WARM!","Информация"]
["2019-12-23T14:07:35","Проверка доступных обновлений...","Информация"]
["2019-12-23T14:07:36","Нет доступных обновлений для отчёта с кодом FAS.JKH.OPEN.INFO.PRICE.WARM!","Информация"]
["2019-12-26T13:16:49","Проверка доступных обновлений...","Информация"]
["2019-12-26T13:16:50","Нет доступных обновлений для отчёта с кодом FAS.JKH.OPEN.INFO.PRICE.WARM!","Информация"]
["2019-12-26T14:14:55","Проверка доступных обновлений...","Информация"]
["2019-12-26T14:14:56","Нет доступных обновлений для отчёта с кодом FAS.JKH.OPEN.INFO.PRICE.WARM!","Информация"]
["2019-12-26T14:06:55","Проверка доступных обновлений...","Информация"]
["2019-12-26T14:07:05","Нет доступных обновлений для отчёта с кодом FAS.JKH.OPEN.INFO.PRICE.WARM!","Информация"]
["2019-12-30T16:48:07","Проверка доступных обновлений...","Информация"]
["2019-12-30T16:48:09","Нет доступных обновлений для отчёта с кодом FAS.JKH.OPEN.INFO.PRICE.WARM!","Информация"]

{"sheet":"Титульный","index":4,"n_rows":46,"n_cols":6,"rows_kept":46,"cut":false,"hidden":false,"merged":[[4,4,4,5],[53,4,53,8]]}
[null,null,null,null,null,30814015]
[null,null,null,null,{"$f":"\"Код шаблона: \" & GetCode()","v":"Код шаблона: FAS.JKH.OPEN.INFO.PRICE.WARM"}]
[null,null,null,null,{"$f":"\"Версия \" & GetVersion()","v":"Версия 1.0.2"}]
[]
[null,null,null,null,"Информация, подлежащая раскрытию организациями сферы теплоснабжения (цены и тарифы)"]
[]
[null,null,null,null,"Субъект РФ","Республика Татарстан"]
[]
[null,null,null,null,"Отсутствует Интернет в границах территории МО, где организация осуществляет регулируемые виды деятельности","нет"]
[]
[null,null,null,null,"Начало периода регулирования","01.01.2020"]
[null,null,null,null,"Окончание периода регулирования","31.12.2020"]
[]
[null,null,null,null,"Тип отчета","первичное раскрытие информации"]
[null,null,null,null,"Дата внесения изменений в информацию, подлежащую раскрытию","23.12.2019"]
[null,null,null,null,"Дата периода регулирования, с которой вводятся изменения в тарифы"]
[null,null,null,null,null,"Первичное установление тарифов"]
[null,null,null,null,"Наименование органа регулирования, принявшего решение об утверждении тарифов","Государственный комитет Республики Татарстан по тарифам"]
[null,null,null,null,"Дата документа об утверждении тарифов","13.12.2019"]
[null,null,null,null,"Номер документа об утверждении тарифов","№5-116/тэ"]
[null,null,null,null,"Источник официального опубликования решения","Официальный сайт правовой информации Министерства юстиции РТ:  http//pravo.tatarstan.ru (регистрационный №6359 от 20.12.2019 г.)"]
[null,null,null,null,null,"Изменение тарифов"]
[null,null,null,null,"Наименование органа регулирования, принявшего решение об изменении тарифов"]
[null,null,null,null,"Дата принятия решения об изменении тарифов"]
[null,null,null,null,"Номер принятия решения об изменении тарифов"]
[null,null,null,null,"Источник официального опубликования решения"]
[]
[null,null,null,null,"Является ли данное юридическое лицо подразделением (филиалом) другой организации","нет"]
[null,null,null,null,"Наименование организации","ООО \"Интеграция\""]
[null,null,null,null,"Наименование филиала"]
[null,null,null,null,"ИНН","1658191691"]
[null,null,null,null,"КПП","165801001"]
[]
[null,null,null,null,"Тип теплоснабжающей организации","Регулируемая организация"]
[]
[null,null,null,null,"Режим налогообложения","общий"]
[]
[null,null,null,null,"Организация осуществляет подключение (технологическое присоединение) к системе теплоснабжения","да"]
[]
[null,null,null,null,"Почтовый адрес регулируемой организации","420095, г.Казань, ул.Восстания, 100"]
[null,null,null,null,"Фамилия, имя, отчество руководителя","Евсеев Алексей Александрович"]
[null,null,null,null,null,"Ответственный за заполнение формы"]
[null,null,null,null,"Фамилия, имя, отчество","Галиева Рамзия Гареевна"]
[null,null,null,null,"Должность","экономист"]
[null,null,null,null,"Контактный телефон","8 (987) 288-53-17"]
[null,null,null,null,"E-mail","galieva@integration-kzn.ru"]

{"sheet":"Территории","index":5,"n_rows":15,"n_cols":18,"rows_kept":15,"cut":false,"hidden":false,"merged":[[8,5,8,6],[8,8,8,9],[9,5,9,6],[9,8,9,9],[3,3,3,7],[5,3,5,4],[5,5,5,6],[7,3,7,4],[7,8,7,11],[7,5,7,7],[12,7,13,7],[11,2,13,2],[11,3,13,3],[11,4,13,4],[12,5,13,5],[12,6,13,6]]}
[null,null,null,null,null,null,null,null,null,null,"МО","ОКТМО","МР"]
[]
[]
[null,null,null,"Перечень муниципальных районов и муниципальных образований (территорий действия тарифа)"]
[]
[null,null,null,null,null,"да"]
[]
[null,null,null,"Территория действия тарифа",null,"Муниципальный район",null,null,"Муниципальное образование"]
[null,null,null,"№ п/п","Наименование","№ п/п",null,"Наименование","№ п/п",null,"Наименование","ОКТМО"]
[null,null,null,"1","2","3",null,"4","5",null,"6","7"]
[null,null,null,0,null,null,null,null,null,null,null,null,"размерженный МР",null,null,"флаг используемости территории на листе Перечень тарифов","копия территорий","МР (ОКТМО)"]
[null,"auto",null,1,"Город Казань, Город Казань (92701000);",null,0,null,null,"0",null,null,{"$f":"mergeValue(H12)","v":0},null,null,{"$f":"IF(ISERROR(MATCH(Q12,MODesc,0)),\"n\",\"y\")","v":"n"},"Город Казань, Город Казань (92701000);",{"$f":"K12&\"(\"&L12&\")\"","v":"()"}]
[null,"auto",null,null,null,null,1,"Город Казань",null,"0",null,null,{"$f":"mergeValue(H13)","v":"Город Казань"},null,null,null,null,{"$f":"K13&\"(\"&L13&\")\"","v":"()"}]
[null,"auto",null,null,null,null,null,null,null,1,"Город Казань","92701000",{"$f":"mergeValue(H14)","v":"Город Казань"},null,null,null,null,{"$f":"K14&\" (\"&L14&\")\"","v":"Город Казань (92701000)"}]
[null,"man",null,null,null,null,null,null,null,null,null,null,null,null,null,null,"Добавить территорию действия тарифа"]

{"sheet":"Перечень тарифов","index":6,"n_rows":40,"n_cols":23,"rows_kept":40,"cut":false,"hidden":false,"merged":[[4,3,4,9],[16,3,17,3],[16,4,17,4],[12,4,12,5],[8,6,8,9],[5,3,5,9],[7,4,7,5],[8,4,8,5],[9,4,9,5],[6,4,6,5],[16,5,17,5],[11,4,11,5],[10,4,10,5],[6,6,6,9],[16,6,17,6],[16,7,17,8],[7,6,7,9],[16,9,17,9],[18,7,18,8],[18,11,18,12],[35,4,35,22],[18,15,18,16],[16,22,17,22],[16,14,16,17],[16,10,16,13],[18,19,18,20],[16,18,16,21],[17,19,17,20],[17,11,17,12],[17,15,17,16],[20,8,23,8],[20,9,23,9],[37,4,37,22],[38,4,38,22],[39,4,39,22],[31,4,31,22],[32,4,32,22],[33,4,33,22],[34,4,34,22],[20,3,24,3],[20,4,24,4],[20,5,24,5],[20,6,24,6],[20,7,23,7],[20,15,21,15],[20,16,21,16],[20,17,21,17],[20,18,21,18],[20,10,23,10],[20,11,22,11],[20,12,22,12],[20,13,22,13],[20,14,22,14]]}
[]
[]
[]
[]
[null,null,null,"Перечень тарифов и технологически не связанных между собой систем теплоснабжения, в отношении которых предлагаются различные тарифы в сфере теплоснабжения и горячего водоснабжения с использованием открытых систем теплоснабжения (информация раскрывается отдельно по каждой системе теплоснабжения)"]
[]
[]
[]
[]
[]
[null,null,null,null,"Тариф на горячую воду предлагается с (!) разбивкой по поставщикам",null,"нет"]
[null,null,null,null,"Тариф на горячую воду предлагается без (!) разбивки на компоненты",null,"нет"]
[]
[]
[]
[]
[null,null,null,"№ п/п","Вид тарифа","Вид деятельности","Наличие двухставочного тарифа","№ п/п",null,"Наименование тарифа","Дифференциация по\n МО (территориям)",null,null,null,"Дифференциация по \nцентрализованным системам теплоснабжения",null,null,null,"Дифференциация по источникам тепловой энергии",null,null,null,"Примечание"]
[null,null,null,null,null,null,null,null,null,null,"да/нет","№ п/п",null,"Описание","да/нет","№ п/п",null,"Описание","да/нет","№ п/п",null,"Наименование"]
[null,null,null,"1","2","3","4","5",null,"6","7","8",null,"9","10","11",null,"12","11","12",null,"13","14"]
[null,null,null,0]
[6,null,null,1,"Тарифы на услуги по передаче тепловой энергии","Передача. Тепловая энергия","нет",null,1,"Услуги по передаче тепловой энергии","нет",null,"1",null,"нет",null,"1",null,"нет",null,"1"]
[]
[]
[]
[]
[]
[]
[]
[]
[]
[]
[null,null,null,null,"Информация о регулируемых ценах (тарифах) на товары (услуги) единой теплоснабжающей организации в ценовых зонах теплоснабжения включает сведения:"]
[null,null,null,null,"- о предельном уровне цены на тепловую энергию (мощность), поставляемую потребителям, об индикативном предельном уровне цены на тепловую энергию (мощность) и о графике поэтапного равномерного доведения предельного уровня цены на тепловую энергию (мощность) (при наличии), определяемых в соответствии с Правилами определения в ценовых зонах теплоснабжения предельного уровня цены на тепловую энергию (мощность), включая правила индексации предельного уровня цены на тепловую энергию (мощность), утвержденными ПП РФ от 15 декабря 2017 г. № 1562 \"Об определении в ценовых зонах теплоснабжения предельного уровня цены на тепловую энергию (мощность), включая индексацию предельного уровня цены на тепловую энергию (мощность), и технико-экономических параметров работы котельных и тепловых сетей, используемых для расчета предельного уровня цены на тепловую энергию (мощность)\";"]
[null,null,null,null,"- о тарифах на теплоноситель в виде воды, поставляемый единой теплоснабжающей организацией потребителям и теплоснабжающими организациями другим теплоснабжающим организациям с использованием открытых систем теплоснабжения (горячего водоснабжения), за исключением случая, предусмотренного пунктом 6 части 1 статьи 23.4 ФЗ \"О теплоснабжении\";"]
[null,null,null,null,"- о тарифах на горячую воду, поставляемую единой теплоснабжающей организацией потребителям с использованием открытых систем теплоснабжения (горячего водоснабжения), установленных в виде формулы двухкомпонентного тарифа с использованием компонента на теплоноситель и компонента на тепловую энергию, в том числе о числовых значениях компонентов указанного тарифа;"]
[null,null,null,null,"- о плате за подключение (технологическое присоединение) к системе теплоснабжения, применяемой в случае, установленном частью 9 статьи 23.4 ФЗ \"О теплоснабжении\"."]
[]
[null,null,null,null,"Информация о регулируемых ценах (тарифах) на товары (услуги) теплоснабжающей организации и теплосетевой организации в ценовых зонах теплоснабжения включает сведения:"]
[null,null,null,null,"- о тарифах на теплоноситель в виде воды, поставляемый другим теплоснабжающим организациям с использованием открытых систем теплоснабжения (горячего водоснабжения), за исключением случая, предусмотренного пунктом 6 части 1 статьи 23.4 ФЗ \"О теплоснабжении\";"]
[null,null,null,null,"- о тарифах на товары (услуги) в сфере теплоснабжения в случаях, указанных в частях 12.1 - 12.4 статьи 10 ФЗ \"О теплоснабжении\""]

{"sheet":"Форма 1.0.1 | Т-ТЭ | >=25МВт","index":7,"n_rows":19,"n_cols":10,"rows_kept":19,"cut":false,"hidden":true,"merged":[[18,6,18,7],[1,5,1,7],[3,5,3,7],[3,8,4,8],[7,0,15,0],[10,1,14,1],[11,2,13,2],[12,8,13,8]]}
["1"]
[null,null,null,null,null,"Форма 1.0.1 Основные параметры раскрываемой информации 1"]
[]
[null,null,null,null,null,"Параметры формы",null,null,"Описание параметров формы"]
[null,null,null,null,null,"№ п/п","Наименование параметра","Информация"]
[null,null,null,null,null,"1",2,3,4,4]
[null,null,null,null,null,1,"Дата заполнения/внесения изменений",{"$f":"IF(dateCh=\"\",\"\",dateCh)","v":"23.12.2019"},"Указывается календарная дата первичного заполнения или внесения изменений в форму в виде «ДД.ММ.ГГГГ»."]
[1,null,null,null,null,{"$f":"\"2.\" &mergeValue(A8)","v":"2.1"},"Наименование централизованной системы коммунальной инфраструктуры",null,"Указывается наименование централизованной системы холодного водоснабжения/горячего водоснабжения/водоотведения/теплоснабжения, к которой относится размещаемая информация.\nВ случае наличия нескольких централизованных систем коммунальной инфраструктуры, информация по каждой из них указывается в отдельной строке."]
[null,null,null,null,null,{"$f":"\"3.\" &mergeValue(A9)","v":"3.1"},"Наименование регулируемого вида деятельности",null,"Указывается наименование вида регулируемой деятельности."]
[null,null,null,null,null,{"$f":"\"4.\"&mergeValue(A10)","v":"4.1"},"Территория оказания услуги по регулируемому виду деятельности","x"]
[null,1,null,null,null,{"$f":"\"4.\"&mergeValue(A11) &\".\"&mergeValue(B11)","v":"4.1.1"},"Субъект Российской Федерации",{"$f":"IF(region_name=\"\",\"\",region_name)","v":"Республика Татарстан"},"Указывается наименование субъекта Российской Федерации"]
[null,null,1,null,null,{"$f":"\"4.\"&mergeValue(A12) &\".\"&mergeValue(B12)&\".\"&mergeValue(C12)","v":"4.1.1.1"},"муниципальный район",null,"Указывается наименование муниципального района, на территории которого организация оказывает услуги по регулируемому виду деятельности."]
[null,null,null,1,null,{"$f":"\"4.\"&mergeValue(A13) &\".\"&mergeValue(B13)&\".\"&mergeValue(C13)&\".\"&mergeValue(D13)","v":"4.1.1.1.1"},"муниципальное образование",null,"Указывается наименование и код муниципального района, муниципального образования в соответствии с Общероссийским классификатором территорий муниципальных образований (далее - ОКТМО), входящего в муниципальный район, на территории которого организация оказывает услуги по регулируемому виду деятельности.\nВ случае оказания услуг по регулируемому виду деятельности на территории нескольких муниципальных районов (муниципальных образований) данные по каждому их них указываются в отдельной строке."]
[null,null,null,null,null,null,"Добавить МО"]
[null,null,null,null,null,null,"Добавить МР"]
[null,null,null,null,null,null,"Добавить территорию"]
[null,null,null,null,null,null,"Добавить ЦС"]
[]
[null,null,null,null,null,null,"  1 Информация размещается при раскрытии информации по каждой из форм."]

{"sheet":"Форма 4.2.1 | Т-ТЭ | >=25МВт","index":8,"n_rows":34,"n_cols":26,"rows_kept":34,"cut":false,"hidden":true,"merged":[[21,8,26,8],[22,9,25,9],[17,0,30,0],[17,14,17,21],[18,1,29,1],[18,14,18,21],[19,2,28,2],[19,14,19,21],[20,3,27,3],[20,14,20,21],[21,4,26,4],[21,14,21,21],[22,5,25,5],[22,14,22,21],[23,17,24,17],[23,18,24,18],[14,17,14,19],[13,20,15,20],[23,19,24,19],[23,20,24,20],[4,11,4,19],[10,11,10,12],[16,18,16,19],[33,12,33,22],[23,22,25,22],[6,14,6,19],[7,14,7,19],[8,14,8,19],[9,14,9,19],[11,14,11,20],[12,22,15,22],[15,18,15,19],[13,21,15,21],[12,11,12,21],[13,11,15,11],[13,12,15,12],[13,14,13,19],[14,15,14,16],[14,14,15,14]]}
[]
[]
[]
[]
[null,null,null,null,null,null,null,null,null,null,null,"Форма 4.2.1 Информация о величинах тарифов на тепловую энергию, поддержанию резервной тепловой мощности1"]
[]
[null,null,null,null,null,null,null,null,null,null,null,null,"Наименование органа регулирования, принявшего решение об утверждении тарифов",null,{"$f":"IF(NameOrPr_ch=\"\",IF(NameOrPr=\"\",\"\",NameOrPr),NameOrPr_ch)","v":"Государственный комитет Республики Татарстан по тарифам"}]
[null,null,null,null,null,null,null,null,null,null,null,null,"Дата документа об утверждении тарифов",null,{"$f":"IF(datePr_ch=\"\",IF(datePr=\"\",\"\",datePr),datePr_ch)","v":"13.12.2019"}]
[null,null,null,null,null,null,null,null,null,null,null,null,"Номер документа об утверждении тарифов",null,{"$f":"IF(numberPr_ch=\"\",IF(numberPr=\"\",\"\",numberPr),numberPr_ch)","v":"№5-116/тэ"}]
[null,null,null,null,null,null,null,null,null,null,null,null,"Источник официального опубликования решения",null,{"$f":"IF(IstPub_ch=\"\",IF(IstPub=\"\",\"\",IstPub),IstPub_ch)","v":"Официальный сайт правовой информации Министерства юстиции РТ:  http//pravo.tatarstan.ru (регистрационный №6359 от 20.12.2019 г.)"}]
[null,null,null,null,null,null,null,null,null,null,null,null,null,null,null,null,null,null,null,null,"dp"]
[]
[null,null,null,null,null,null,null,null,null,null,null,"Параметры формы",null,null,null,null,null,null,null,null,null,null,"Описание параметров формы"]
[null,null,null,null,null,null,null,null,null,null,null,"№ п/п","Параметр дифференциации тарифа",null,"Период действия тарифа",null,null,null,null,null,"Наличие других периодов действия тарифа","Добавить период"]
[null,null,null,null,null,null,null,null,null,null,null,null,null,null,"Одноставочный тариф, руб./Гкал","Двухставочный тариф",null,"Период действия"]
[null,null,null,null,null,null,null,null,null,null,null,null,null,null,null,"ставка за тепловую  энергию, руб./Гкал","ставка за содержание тепловой мощности, тыс.руб./Гкал/ч/мес","дата начала","дата окончания"]
[null,null,null,null,null,null,null,null,null,null,1,"1","2",{"$f":"OFFSET(N17,0,-1)","v":"2"},{"$f":"OFFSET(O17,0,-1)+1","v":3},{"$f":"OFFSET(P17,0,-1)+1","v":4},{"$f":"OFFSET(Q17,0,-1)+1","v":5},{"$f":"OFFSET(R17,0,-1)+1","v":6},{"$f":"OFFSET(S17,0,-1)+1","v":7},null,{"$f":"OFFSET(U17,0,-2)+1","v":8},{"$f":"OFFSET(V17,0,-1)","v":8},{"$f":"OFFSET(W17,0,-1)+1","v":9}]
[1,null,null,null,null,null,null,null,null,null,null,{"$f":"mergeValue(A18)","v":1},"Наименование тарифа",null,null,null,null,null,null,null,null,null,"Указывается наименование тарифа в случае утверждения нескольких тарифов.\nВ случае наличия нескольких тарифов информация по ним указывается в отдельных строках.",null,null,{"$f":"IF(M18=\"\",\"\",M18 )","v":"Наименование тарифа"}]
[null,1,null,null,null,null,null,null,null,null,null,{"$f":"mergeValue(A19) &\".\"& mergeValue(B19)","v":"1.1"},"Территория действия тарифа",null,null,null,null,null,null,null,null,null,"Указывается наименование территории действия тарифа при наличии дифференциации тарифа по территориальному признаку.\nВ случае дифференциации тарифов по территориальному признаку информация по ним указывается в отдельных строках.",null,null,"Территория действия тарифа"]
[null,null,1,null,null,null,null,null,null,null,null,{"$f":"mergeValue(A20) &\".\"& mergeValue(B20)&\".\"& mergeValue(C20)","v":"1.1.1"},"Наименование системы теплоснабжения ",null,null,null,null,null,null,null,null,null,"Указывается наименование системы теплоснабжения при наличии дифференциации тарифа по системам теплоснабжения.\nВ случае дифференциации тарифов по системам теплоснабжения информация по ним указывается в отдельных строках.",null,null,"Наименование системы теплоснабжения "]
[null,null,null,1,null,null,null,null,null,null,null,{"$f":"mergeValue(A21) &\".\"& mergeValue(B21)&\".\"& mergeValue(C21)&\".\"& mergeValue(D21)","v":"1.1.1.1"},"Источник тепловой энергии  ",null,null,null,null,null,null,null,null,null,"Указывается наименование источника тепловой энергии\nВ случае дифференциации тарифов по источникам тепловой энергии информация по ним указывается в отдельных строках.",null,null,"Источник тепловой энергии  "]
[null,null,null,null,1,null,null,1,1,null,null,{"$f":"mergeValue(A22) &\".\"& mergeValue(B22)&\".\"& mergeValue(C22)&\".\"& mergeValue(D22)&\".\"& mergeValue(E22)","v":"1.1.1.1.1"},"Схема подключения теплопотребляющей установки к коллектору источника тепловой энергии",null,null,null,null,null,null,null,null,null,"Указывается схема подключения теплопотребляющей установки к коллектору источника тепловой энергии только для тарифов на тепловую энергию и за услуги по поддержанию резервной мощности \nЗначение выбирается из перечня:\n• без дифференциации;\n• к коллектору источника тепловой энергии;\n• к тепловой сети без дополнительного преобразования на тепловых пунктах, эксплуатируемых теплоснабжающей организацией;\n• к тепловой сети после тепловых пунктов (на тепловых пунктах), эксплуатируемых теплоснабжающей организацией.\nВ случае дифференциации тарифов по схемам подключения теплопотребляющей установки к коллектору источника тепловой энергии информация по ним указывается в отдельных строках.",null,null,"Схема подключения теплопотребляющей установки к коллектору источника тепловой энергии"]
[null,null,null,null,null,1,null,null,null,1,null,{"$f":"mergeValue(A23) &\".\"& mergeValue(B23)&\".\"& mergeValue(C23)&\".\"& mergeValue(D23)&\".\"& mergeValue(E23)&\".\"& mergeValue(F23)","v":"1.1.1.1.1.1"},"Группа потребителей",null,null,null,null,null,null,null,null,null,"Указывается группа потребителей при наличии дифференциации тарифа по группам потребителей.\nЗначение выбирается из перечня:\n• организации-перепродавцы;\n• бюджетные организации;\n• население;\n• прочие;\n• без дифференциации.\nВ случае дифференциации тарифов группам потребителей информация по ним указывается в отдельных строках.",null,null,"Группа потребителей"]
[null,null,null,null,null,null,1,null,null,null,1,{"$f":"mergeValue(A24) &\".\"& mergeValue(B24)&\".\"& mergeValue(C24)&\".\"& mergeValue(D24)&\".\"& mergeValue(E24)&\".\"& mergeValue(F24)&\".\"& mergeValue(G24)","v":"1.1.1.1.1.1.1"},null,null,null,null,null,null,"да",null,"нет",null,"В колонке «Параметр дифференциации тарифов» указывается вид теплоносителя.\nЗначение выбирается из перечня:\n• вода;\n• пар;\n• отборный пар, 1.2-2.5 кг/см2;\n• отборный пар, 2.5-7 кг/см2;\n• отборный пар, 7-13 кг/см2;\n• отборный пар, > 13 кг/см2;\n• острый и редуцированный пар;\n• горячая вода в системе централизованного теплоснабжения на отопление;\n• горячая вода в системе централизованного теплоснабжения на горячее водоснабжение;\n• прочее.\nПри утверждении двухставочного тарифа колонка «Одноставочный тариф» не заполняется.\nПри утверждении одноставочного тарифа колонки в блоке «Двухставочный тариф» не заполняются.\nДаты начала и окончания действия тарифов указываются в виде «ДД.ММ.ГГГГ».\nВ случае отсутствия даты окончания действия тарифа в колонке «Дата окончания» указывается «Нет».\nВ случае дифференциации тарифов по периодам действия тарифа информация по ним указывается в отдельных колонках.\nВ случае дифференциации тарифов по видам теплоносителя информация по ним указывается в отдельных строках.",{"$f":"strCheckDate(O25:V25)","v":""},null,""]
[null,null,null,null,null,null,null,null,null,null,null,null,null,null,null,null,{"$f":"R24 & \"-\" & T24","v":"-"},null,null,null,null,null,null,null,null,""]
[null,null,null,null,null,null,null,null,null,null,null,null,"Добавить вид теплоносителя (параметры теплоносителя)",null,null,null,null,null,null,null,null,null,null,null,null,"Добавить вид теплоносителя (параметры теплоносителя)"]
[null,null,null,null,null,null,null,null,null,null,null,null,"Добавить группу потребителей",null,null,null,null,null,null,null,null,null,null,null,null,"Добавить группу потребителей"]
[null,null,null,null,null,null,null,null,null,null,null,null,"Добавить схему подключения",null,null,null,null,null,null,null,null,null,null,null,null,"Добавить схему подключения"]
[null,null,null,null,null,null,null,null,null,null,null,null,"Добавить источник тепловой энергии",null,null,null,null,null,null,null,null,null,null,null,null,"Добавить источник тепловой энергии"]
[null,null,null,null,null,null,null,null,null,null,null,null,"Добавить наименование системы теплоснабжения",null,null,null,null,null,null,null,null,null,null,null,null,"Добавить наименование системы теплоснабжения"]
[null,null,null,null,null,null,null,null,null,null,null,null,"Добавить территорию действия тарифа",null,null,null,null,null,null,null,null,null,null,null,null,"Добавить территорию действия тарифа"]
[null,null,null,null,null,null,null,null,null,null,null,null,"Добавить наименование тарифа"]
[]
[null,null,null,null,null,null,null,null,null,null,null,1,"Для каждого вида тарифа в сфере теплоснабжения форма заполняется отдельно. При размещении информации по данной форме дополнительно указываются: наименование органа регулирования тарифов, принявшего решение об утверждении тарифа, дата и номер документа об утверждении тарифа, источник официального опубликования решения.\nПо данной форме раскрывается в том числе информация о предельном уровне цены на тепловую энергию (мощность), поставляемую потребителям, об индикативном предельном уровне цены на тепловую энергию (мощность) единой теплоснабжающей организации. В этом случае дополнительно раскрывается информация о графике поэтапного равномерного доведения предельного уровня цены на тепловую энергию (мощность) (при наличии).\nРаскрывается в том числе информация о тарифах на товары (услуги) в сфере теплоснабжения в случаях, указанных в частях 12.1 - 12.4 статьи 10 Федерального закона от 27.07.2010 № 190-ФЗ «О теплоснабжении» (Собрание законодательства Российской Федерации, 2010, № 31, ст. 4159; 2011, № 23, ст. 3263; 2012, № 53, ст. 7616; 2013, № 19, ст. 2330; 2014, № 30, ст. 4218; № 49, ст. 6913; 2015, № 48, ст. 6723; 2017, № 31, ст. 4828; 2018, № 31, ст. 4861) (далее – Федеральный закон № 190-ФЗ), теплоснабжающей организации, теплосетевой организации в ценовых зонах теплоснабжения.\n"]

{"sheet":"Форма 1.0.1 | Т-ТЭ | ТСО","index":9,"n_rows":19,"n_cols":10,"rows_kept":19,"cut":false,"hidden":true,"merged":[[18,6,18,7],[1,5,1,7],[3,5,3,7],[3,8,4,8],[7,0,15,0],[11,2,13,2],[12,8,13,8],[10,1,14,1]]}
["2"]
[null,null,null,null,null,"Форма 1.0.1 Основные параметры раскрываемой информации 1"]
[]
[null,null,null,null,null,"Параметры формы",null,null,"Описание параметров формы"]
[null,null,null,null,null,"№ п/п","Наименование параметра","Информация"]
[null,null,null,null,null,"1",2,3,4,4]
[null,null,null,null,null,1,"Дата заполнения/внесения изменений",{"$f":"IF(dateCh=\"\",\"\",dateCh)","v":"23.12.2019"},"Указывается календарная дата первичного заполнения или внесения изменений в форму в виде «ДД.ММ.ГГГГ»."]
[1,null,null,null,null,{"$f":"\"2.\" &mergeValue(A8)","v":"2.1"},"Наименование централизованной системы коммунальной инфраструктуры",null,"Указывается наименование централизованной системы холодного водоснабжения/горячего водоснабжения/водоотведения/теплоснабжения, к которой относится размещаемая информация.\nВ случае наличия нескольких централизованных систем коммунальной инфраструктуры, информация по каждой из них указывается в отдельной строке."]
[null,null,null,null,null,{"$f":"\"3.\" &mergeValue(A9)","v":"3.1"},"Наименование регулируемого вида деятельности",null,"Указывается наименование вида регулируемой деятельности."]
[null,null,null,null,null,{"$f":"\"4.\"&mergeValue(A10)","v":"4.1"},"Территория оказания услуги по регулируемому виду деятельности","x"]
[null,1,null,null,null,{"$f":"\"4.\"&mergeValue(A11) &\".\"&mergeValue(B11)","v":"4.1.1"},"Субъект Российской Федерации",{"$f":"IF(region_name=\"\",\"\",region_name)","v":"Республика Татарстан"},"Указывается наименование субъекта Российской Федерации"]
[null,null,1,null,null,{"$f":"\"4.\"&mergeValue(A12) &\".\"&mergeValue(B12)&\".\"&mergeValue(C12)","v":"4.1.1.1"},"муниципальный район",null,"Указывается наименование муниципального района, на территории которого организация оказывает услуги по регулируемому виду деятельности."]
[null,null,null,1,null,{"$f":"\"4.\"&mergeValue(A13) &\".\"&mergeValue(B13)&\".\"&mergeValue(C13)&\".\"&mergeValue(D13)","v":"4.1.1.1.1"},"муниципальное образование",null,"Указывается наименование и код муниципального района, муниципального образования в соответствии с Общероссийским классификатором территорий муниципальных образований (далее - ОКТМО), входящего в муниципальный район, на территории которого организация оказывает услуги по регулируемому виду деятельности.\nВ случае оказания услуг по регулируемому виду деятельности на территории нескольких муниципальных районов (муниципальных образований) данные по каждому их них указываются в отдельной строке."]
[null,null,null,null,null,null,"Добавить МО"]
[null,null,null,null,null,null,"Добавить МР"]
[null,null,null,null,null,null,"Добавить территорию"]
[null,null,null,null,null,null,"Добавить ЦС"]
[]
[null,null,null,null,null,null,"  1 Информация размещается при раскрытии информации по каждой из форм."]

{"sheet":"Форма 4.2.1 | Т-ТЭ | ТСО","index":10,"n_rows":34,"n_cols":26,"rows_kept":34,"cut":false,"hidden":true,"merged":[[21,8,26,8],[22,9,25,9],[17,0,30,0],[17,14,17,21],[18,1,29,1],[18,14,18,21],[19,2,28,2],[23,20,24,20],[19,14,19,21],[20,3,27,3],[20,14,20,21],[21,4,26,4],[21,14,21,21],[22,5,25,5],[22,14,22,21],[23,17,24,17],[4,11,4,19],[8,14,8,19],[9,14,9,19],[10,11,10,12],[11,14,11,20],[6,14,6,19],[7,14,7,19],[33,12,33,22],[12,11,12,21],[13,11,15,11],[13,12,15,12],[13,14,13,19],[13,20,15,20],[13,21,15,21],[14,14,15,14],[12,22,15,22],[15,18,15,19],[14,15,14,16],[14,17,14,19],[16,18,16,19],[23,22,25,22],[23,18,24,18],[23,19,24,19]]}
[]
[]
[]
[]
[null,null,null,null,null,null,null,null,null,null,null,"Форма 4.2.1 Информация о величинах тарифов на тепловую энергию, поддержанию резервной тепловой мощности1"]
[]
[null,null,null,null,null,null,null,null,null,null,null,null,"Наименование органа регулирования, принявшего решение об утверждении тарифов",null,{"$f":"IF(NameOrPr_ch=\"\",IF(NameOrPr=\"\",\"\",NameOrPr),NameOrPr_ch)","v":"Государственный комитет Республики Татарстан по тарифам"}]
[null,null,null,null,null,null,null,null,null,null,null,null,"Дата документа об утверждении тарифов",null,{"$f":"IF(datePr_ch=\"\",IF(datePr=\"\",\"\",datePr),datePr_ch)","v":"13.12.2019"}]
[null,null,null,null,null,null,null,null,null,null,null,null,"Номер документа об утверждении тарифов",null,{"$f":"IF(numberPr_ch=\"\",IF(numberPr=\"\",\"\",numberPr),numberPr_ch)","v":"№5-116/тэ"}]
[null,null,null,null,null,null,null,null,null,null,null,null,"Источник официального опубликования решения",null,{"$f":"IF(IstPub_ch=\"\",IF(IstPub=\"\",\"\",IstPub),IstPub_ch)","v":"Официальный сайт правовой информации Министерства юстиции РТ:  http//pravo.tatarstan.ru (регистрационный №6359 от 20.12.2019 г.)"}]
[null,null,null,null,null,null,null,null,null,null,null,null,null,null,null,null,null,null,null,null,"dp"]
[]
[null,null,null,null,null,null,null,null,null,null,null,"Параметры формы",null,null,null,null,null,null,null,null,null,null,"Описание параметров формы"]
[null,null,null,null,null,null,null,null,null,null,null,"№ п/п","Параметр дифференциации тарифа",null,"Период действия тарифа",null,null,null,null,null,"Наличие других периодов действия тарифа","Добавить период"]
[null,null,null,null,null,null,null,null,null,null,null,null,null,null,"Одноставочный тариф, руб./Гкал","Двухставочный тариф",null,"Период действия"]
[null,null,null,null,null,null,null,null,null,null,null,null,null,null,null,"ставка за тепловую  энергию, руб./Гкал","ставка за содержание тепловой мощности, тыс.руб./Гкал/ч/мес","дата начала","дата окончания"]
[null,null,null,null,null,null,null,null,null,null,1,"1","2",{"$f":"OFFSET(N17,0,-1)","v":"2"},{"$f":"OFFSET(O17,0,-1)+1","v":3},{"$f":"OFFSET(P17,0,-1)+1","v":4},{"$f":"OFFSET(Q17,0,-1)+1","v":5},{"$f":"OFFSET(R17,0,-1)+1","v":6},{"$f":"OFFSET(S17,0,-1)+1","v":7},null,{"$f":"OFFSET(U17,0,-2)+1","v":8},{"$f":"OFFSET(V17,0,-1)","v":8},{"$f":"OFFSET(W17,0,-1)+1","v":9}]
[1,null,null,null,null,null,null,null,null,null,null,{"$f":"mergeValue(A18)","v":1},"Наименование тарифа",null,null,null,null,null,null,null,null,null,"Указывается наименование тарифа в случае утверждения нескольких тарифов.\nВ случае наличия нескольких тарифов информация по ним указывается в отдельных строках.",null,null,{"$f":"IF(M18=\"\",\"\",M18 )","v":"Наименование тарифа"}]
[null,1,null,null,null,null,null,null,null,null,null,{"$f":"mergeValue(A19) &\".\"& mergeValue(B19)","v":"1.1"},"Территория действия тарифа",null,null,null,null,null,null,null,null,null,"Указывается наименование территории действия тарифа при наличии дифференциации тарифа по территориальному признаку.\nВ случае дифференциации тарифов по территориальному признаку информация по ним указывается в отдельных строках.",null,null,"Территория действия тарифа"]
[null,null,1,null,null,null,null,null,null,null,null,{"$f":"mergeValue(A20) &\".\"& mergeValue(B20)&\".\"& mergeValue(C20)","v":"1.1.1"},"Наименование системы теплоснабжения ",null,null,null,null,null,null,null,null,null,"Указывается наименование системы теплоснабжения при наличии дифференциации тарифа по системам теплоснабжения.\nВ случае дифференциации тарифов по системам теплоснабжения информация по ним указывается в отдельных строках.",null,null,"Наименование системы теплоснабжения "]
[null,null,null,1,null,null,null,null,null,null,null,{"$f":"mergeValue(A21) &\".\"& mergeValue(B21)&\".\"& mergeValue(C21)&\".\"& mergeValue(D21)","v":"1.1.1.1"},"Источник тепловой энергии  ",null,null,null,null,null,null,null,null,null,"Указывается наименование источника тепловой энергии\nВ случае дифференциации тарифов по источникам тепловой энергии информация по ним указывается в отдельных строках.",null,null,"Источник тепловой энергии  "]
[null,null,null,null,1,null,null,1,1,null,null,{"$f":"mergeValue(A22) &\".\"& mergeValue(B22)&\".\"& mergeValue(C22)&\".\"& mergeValue(D22)&\".\"& mergeValue(E22)","v":"1.1.1.1.1"},"Схема подключения теплопотребляющей установки к коллектору источника тепловой энергии",null,null,null,null,null,null,null,null,null,"Указывается схема подключения теплопотребляющей установки к коллектору источника тепловой энергии только для тарифов на тепловую энергию и за услуги по поддержанию резервной мощности \nЗначение выбирается из перечня:\n• без дифференциации;\n• к коллектору источника тепловой энергии;\n• к тепловой сети без дополнительного преобразования на тепловых пунктах, эксплуатируемых теплоснабжающей организацией;\n• к тепловой сети после тепловых пунктов (на тепловых пунктах), эксплуатируемых теплоснабжающей организацией.\nВ случае дифференциации тарифов по схемам подключения теплопотребляющей установки к коллектору источника тепловой энергии информация по ним указывается в отдельных строках.",null,null,"Схема подключения теплопотребляющей установки к коллектору источника тепловой энергии"]
[null,null,null,null,null,1,null,null,null,1,null,{"$f":"mergeValue(A23) &\".\"& mergeValue(B23)&\".\"& mergeValue(C23)&\".\"& mergeValue(D23)&\".\"& mergeValue(E23)&\".\"& mergeValue(F23)","v":"1.1.1.1.1.1"},"Группа потребителей",null,null,null,null,null,null,null,null,null,"Указывается группа потребителей при наличии дифференциации тарифа по группам потребителей.\nЗначение выбирается из перечня:\n• организации-перепродавцы;\n• бюджетные организации;\n• население;\n• прочие;\n• без дифференциации.\nВ случае дифференциации тарифов группам потребителей информация по ним указывается в отдельных строках.",null,null,"Группа потребителей"]
[null,null,null,null,null,null,1,null,null,null,1,{"$f":"mergeValue(A24) &\".\"& mergeValue(B24)&\".\"& mergeValue(C24)&\".\"& mergeValue(D24)&\".\"& mergeValue(E24)&\".\"& mergeValue(F24)&\".\"& mergeValue(G24)","v":"1.1.1.1.1.1.1"},null,null,null,null,null,null,"да",null,"нет",null,"В колонке «Параметр дифференциации тарифов» указывается вид теплоносителя.\nЗначение выбирается из перечня:\n• вода;\n• пар;\n• отборный пар, 1.2-2.5 кг/см2;\n• отборный пар, 2.5-7 кг/см2;\n• отборный пар, 7-13 кг/см2;\n• отборный пар, > 13 кг/см2;\n• острый и редуцированный пар;\n• горячая вода в системе централизованного теплоснабжения на отопление;\n• горячая вода в системе централизованного теплоснабжения на горячее водоснабжение;\n• прочее.\nПри утверждении двухставочного тарифа колонка «Одноставочный тариф» не заполняется.\nПри утверждении одноставочного тарифа колонки в блоке «Двухставочный тариф» не заполняются.\nДаты начала и окончания действия тарифов указываются в виде «ДД.ММ.ГГГГ».\nВ случае отсутствия даты окончания действия тарифа в колонке «Дата окончания» указывается «Нет».\nВ случае дифференциации тарифов по периодам действия тарифа информация по ним указывается в отдельных колонках.\nВ случае дифференциации тарифов по видам теплоносителя информация по ним указывается в отдельных строках.",{"$f":"strCheckDate(O25:V25)","v":""},null,""]
[null,null,null,null,null,null,null,null,null,null,null,null,null,null,null,null,{"$f":"R24 & \"-\" & T24","v":"-"},null,null,null,null,null,null,null,null,""]
[null,null,null,null,null,null,null,null,null,null,null,null,"Добавить вид теплоносителя (параметры теплоносителя)",null,null,null,null,null,null,null,null,null,null,null,null,"Добавить вид теплоносителя (параметры теплоносителя)"]
[null,null,null,null,null,null,null,null,null,null,null,null,"Добавить группу потребителей",null,null,null,null,null,null,null,null,null,null,null,null,"Добавить группу потребителей"]
[null,null,null,null,null,null,null,null,null,null,null,null,"Добавить схему подключения",null,null,null,null,null,null,null,null,null,null,null,null,"Добавить схему подключения"]
[null,null,null,null,null,null,null,null,null,null,null,null,"Добавить источник тепловой энергии",null,null,null,null,null,null,null,null,null,null,null,null,"Добавить источник тепловой энергии"]
[null,null,null,null,null,null,null,null,null,null,null,null,"Добавить наименование системы теплоснабжения",null,null,null,null,null,null,null,null,null,null,null,null,"Добавить наименование системы теплоснабжения"]
[null,null,null,null,null,null,null,null,null,null,null,null,"Добавить территорию действия тарифа",null,null,null,null,null,null,null,null,null,null,null,null,"Добавить территорию действия тарифа"]
[null,null,null,null,null,null,null,null,null,null,null,null,"Добавить наименование тарифа"]
[]
[null,null,null,null,null,null,null,null,null,null,null,1,"Для каждого вида тарифа в сфере теплоснабжения форма заполняется отдельно. При размещении информации по данной форме дополнительно указываются: наименование органа регулирования тарифов, принявшего решение об утверждении тарифа, дата и номер документа об утверждении тарифа, источник официального опубликования решения.\nПо данной форме раскрывается в том числе информация о предельном уровне цены на тепловую энергию (мощность), поставляемую потребителям, об индикативном предельном уровне цены на тепловую энергию (мощность) единой теплоснабжающей организации. В этом случае дополнительно раскрывается информация о графике поэтапного равномерного доведения предельного уровня цены на тепловую энергию (мощность) (при наличии).\nРаскрывается в том числе информация о тарифах на товары (услуги) в сфере теплоснабжения в случаях, указанных в частях 12.1 - 12.4 статьи 10 Федерального закона от 27.07.2010 № 190-ФЗ «О теплоснабжении» (Собрание законодательства Российской Федерации, 2010, № 31, ст. 4159; 2011, № 23, ст. 3263; 2012, № 53, ст. 7616; 2013, № 19, ст. 2330; 2014, № 30, ст. 4218; № 49, ст. 6913; 2015, № 48, ст. 6723; 2017, № 31, ст. 4828; 2018, № 31, ст. 4861) (далее – Федеральный закон № 190-ФЗ), теплоснабжающей организации, теплосетевой организации в ценовых зонах теплоснабжения.\n"]

{"sheet":"Форма 1.0.1 | Т-ТЭ | потр","index":11,"n_rows":19,"n_cols":10,"rows_kept":19,"cut":false,"hidden":true,"merged":[[18,6,18,7],[1,5,1,7],[3,5,3,7],[3,8,4,8],[7,0,15,0],[10,1,14,1],[11,2,13,2],[12,8,13,8]]}
["2"]
[null,null,null,null,null,"Форма 1.0.1 Основные параметры раскрываемой информации 1"]
[]
[null,null,null,null,null,"Параметры формы",null,null,"Описание параметров формы"]
[null,null,null,null,null,"№ п/п","Наименование параметра","Информация"]
[null,null,null,null,null,"1",2,3,4,4]
[null,null,null,null,null,1,"Дата заполнения/внесения изменений",{"$f":"IF(dateCh=\"\",\"\",dateCh)","v":"23.12.2019"},"Указывается календарная дата первичного заполнения или внесения изменений в форму в виде «ДД.ММ.ГГГГ»."]
[1,null,null,null,null,{"$f":"\"2.\" &mergeValue(A8)","v":"2.1"},"Наименование централизованной системы коммунальной инфраструктуры",null,"Указывается наименование централизованной системы холодного водоснабжения/горячего водоснабжения/водоотведения/теплоснабжения, к которой относится размещаемая информация.\nВ случае наличия нескольких централизованных систем коммунальной инфраструктуры, информация по каждой из них указывается в отдельной строке."]
[null,null,null,null,null,{"$f":"\"3.\" &mergeValue(A9)","v":"3.1"},"Наименование регулируемого вида деятельности",null,"Указывается наименование вида регулируемой деятельности."]
[null,null,null,null,null,{"$f":"\"4.\"&mergeValue(A10)","v":"4.1"},"Территория оказания услуги по регулируемому виду деятельности","x"]
[null,1,null,null,null,{"$f":"\"4.\"&mergeValue(A11) &\".\"&mergeValue(B11)","v":"4.1.1"},"Субъект Российской Федерации",{"$f":"IF(region_name=\"\",\"\",region_name)","v":"Республика Татарстан"},"Указывается наименование субъекта Российской Федерации"]
[null,null,1,null,null,{"$f":"\"4.\"&mergeValue(A12) &\".\"&mergeValue(B12)&\".\"&mergeValue(C12)","v":"4.1.1.1"},"муниципальный район",null,"Указывается наименование муниципального района, на территории которого организация оказывает услуги по регулируемому виду деятельности."]
[null,null,null,1,null,{"$f":"\"4.\"&mergeValue(A13) &\".\"&mergeValue(B13)&\".\"&mergeValue(C13)&\".\"&mergeValue(D13)","v":"4.1.1.1.1"},"муниципальное образование",null,"Указывается наименование и код муниципального района, муниципального образования в соответствии с Общероссийским классификатором территорий муниципальных образований (далее - ОКТМО), входящего в муниципальный район, на территории которого организация оказывает услуги по регулируемому виду деятельности.\nВ случае оказания услуг по регулируемому виду деятельности на территории нескольких муниципальных районов (муниципальных образований) данные по каждому их них указываются в отдельной строке."]
[null,null,null,null,null,null,"Добавить МО"]
[null,null,null,null,null,null,"Добавить МР"]
[null,null,null,null,null,null,"Добавить территорию"]
[null,null,null,null,null,null,"Добавить ЦС"]
[]
[null,null,null,null,null,null,"  1 Информация размещается при раскрытии информации по каждой из форм."]

{"sheet":"Форма 4.2.1 | Т-ТЭ | потр","index":12,"n_rows":34,"n_cols":26,"rows_kept":34,"cut":false,"hidden":true,"merged":[[10,11,10,12],[4,11,4,19],[6,14,6,19],[7,14,7,19],[8,14,8,19],[9,14,9,19],[11,14,11,20],[12,11,12,21],[12,22,15,22],[13,11,15,11],[13,12,15,12],[13,14,13,19],[13,20,15,20],[13,21,15,21],[14,14,15,14],[14,15,14,16],[14,17,14,19],[15,18,15,19],[16,18,16,19],[17,0,30,0],[17,14,17,21],[18,1,29,1],[18,14,18,21],[19,2,28,2],[19,14,19,21],[20,3,27,3],[23,20,24,20],[23,22,25,22],[33,12,33,22],[20,14,20,21],[21,4,26,4],[21,8,26,8],[21,14,21,21],[22,5,25,5],[22,9,25,9],[22,14,22,21],[23,17,24,17],[23,18,24,18],[23,19,24,19]]}
[]
[]
[]
[]
[null,null,null,null,null,null,null,null,null,null,null,"Форма 4.2.1 Информация о величинах тарифов на тепловую энергию, поддержанию резервной тепловой мощности1"]
[]
[null,null,null,null,null,null,null,null,null,null,null,null,"Наименование органа регулирования, принявшего решение об утверждении тарифов",null,{"$f":"IF(NameOrPr_ch=\"\",IF(NameOrPr=\"\",\"\",NameOrPr),NameOrPr_ch)","v":"Государственный комитет Республики Татарстан по тарифам"}]
[null,null,null,null,null,null,null,null,null,null,null,null,"Дата документа об утверждении тарифов",null,{"$f":"IF(datePr_ch=\"\",IF(datePr=\"\",\"\",datePr),datePr_ch)","v":"13.12.2019"}]
[null,null,null,null,null,null,null,null,null,null,null,null,"Номер документа об утверждении тарифов",null,{"$f":"IF(numberPr_ch=\"\",IF(numberPr=\"\",\"\",numberPr),numberPr_ch)","v":"№5-116/тэ"}]
[null,null,null,null,null,null,null,null,null,null,null,null,"Источник официального опубликования решения",null,{"$f":"IF(IstPub_ch=\"\",IF(IstPub=\"\",\"\",IstPub),IstPub_ch)","v":"Официальный сайт правовой информации Министерства юстиции РТ:  http//pravo.tatarstan.ru (регистрационный №6359 от 20.12.2019 г.)"}]
[null,null,null,null,null,null,null,null,null,null,null,null,null,null,null,null,null,null,null,null,"dp"]
[]
[null,null,null,null,null,null,null,null,null,null,null,"Параметры формы",null,null,null,null,null,null,null,null,null,null,"Описание параметров формы"]
[null,null,null,null,null,null,null,null,null,null,null,"№ п/п","Параметр дифференциации тарифа",null,"Период действия тарифа",null,null,null,null,null,"Наличие других периодов действия тарифа","Добавить период"]
[null,null,null,null,null,null,null,null,null,null,null,null,null,null,"Одноставочный тариф, руб./Гкал","Двухставочный тариф",null,"Период действия"]
[null,null,null,null,null,null,null,null,null,null,null,null,null,null,null,"ставка за тепловую  энергию, руб./Гкал","ставка за содержание тепловой мощности, тыс.руб./Гкал/ч/мес","дата начала","дата окончания"]
[null,null,null,null,null,null,null,null,null,null,1,"1","2",{"$f":"OFFSET(N17,0,-1)","v":"2"},{"$f":"OFFSET(O17,0,-1)+1","v":3},{"$f":"OFFSET(P17,0,-1)+1","v":4},{"$f":"OFFSET(Q17,0,-1)+1","v":5},{"$f":"OFFSET(R17,0,-1)+1","v":6},{"$f":"OFFSET(S17,0,-1)+1","v":7},null,{"$f":"OFFSET(U17,0,-2)+1","v":8},{"$f":"OFFSET(V17,0,-1)","v":8},{"$f":"OFFSET(W17,0,-1)+1","v":9}]
[1,null,null,null,null,null,null,null,null,null,null,{"$f":"mergeValue(A18)","v":1},"Наименование тарифа",null,null,null,null,null,null,null,null,null,"Указывается наименование тарифа в случае утверждения нескольких тарифов.\nВ случае наличия нескольких тарифов информация по ним указывается в отдельных строках.",null,null,{"$f":"IF(M18=\"\",\"\",M18 )","v":"Наименование тарифа"}]
[null,1,null,null,null,null,null,null,null,null,null,{"$f":"mergeValue(A19) &\".\"& mergeValue(B19)","v":"1.1"},"Территория действия тарифа",null,null,null,null,null,null,null,null,null,"Указывается наименование территории действия тарифа при наличии дифференциации тарифа по территориальному признаку.\nВ случае дифференциации тарифов по территориальному признаку информация по ним указывается в отдельных строках.",null,null,"Территория действия тарифа"]
[null,null,1,null,null,null,null,null,null,null,null,{"$f":"mergeValue(A20) &\".\"& mergeValue(B20)&\".\"& mergeValue(C20)","v":"1.1.1"},"Наименование системы теплоснабжения ",null,null,null,null,null,null,null,null,null,"Указывается наименование системы теплоснабжения при наличии дифференциации тарифа по системам теплоснабжения.\nВ случае дифференциации тарифов по системам теплоснабжения информация по ним указывается в отдельных строках.",null,null,"Наименование системы теплоснабжения "]
[null,null,null,1,null,null,null,null,null,null,null,{"$f":"mergeValue(A21) &\".\"& mergeValue(B21)&\".\"& mergeValue(C21)&\".\"& mergeValue(D21)","v":"1.1.1.1"},"Источник тепловой энергии  ",null,null,null,null,null,null,null,null,null,"Указывается наименование источника тепловой энергии\nВ случае дифференциации тарифов по источникам тепловой энергии информация по ним указывается в отдельных строках.",null,null,"Источник тепловой энергии  "]
[null,null,null,null,1,null,null,1,1,null,null,{"$f":"mergeValue(A22) &\".\"& mergeValue(B22)&\".\"& mergeValue(C22)&\".\"& mergeValue(D22)&\".\"& mergeValue(E22)","v":"1.1.1.1.1"},"Схема подключения теплопотребляющей установки к коллектору источника тепловой энергии",null,null,null,null,null,null,null,null,null,"Указывается схема подключения теплопотребляющей установки к коллектору источника тепловой энергии только для тарифов на тепловую энергию и за услуги по поддержанию резервной мощности \nЗначение выбирается из перечня:\n• без дифференциации;\n• к коллектору источника тепловой энергии;\n• к тепловой сети без дополнительного преобразования на тепловых пунктах, эксплуатируемых теплоснабжающей организацией;\n• к тепловой сети после тепловых пунктов (на тепловых пунктах), эксплуатируемых теплоснабжающей организацией.\nВ случае дифференциации тарифов по схемам подключения теплопотребляющей установки к коллектору источника тепловой энергии информация по ним указывается в отдельных строках.",null,null,"Схема подключения теплопотребляющей установки к коллектору источника тепловой энергии"]
[null,null,null,null,null,1,null,null,null,1,null,{"$f":"mergeValue(A23) &\".\"& mergeValue(B23)&\".\"& mergeValue(C23)&\".\"& mergeValue(D23)&\".\"& mergeValue(E23)&\".\"& mergeValue(F23)","v":"1.1.1.1.1.1"},"Группа потребителей",null,null,null,null,null,null,null,null,null,"Указывается группа потребителей при наличии дифференциации тарифа по группам потребителей.\nЗначение выбирается из перечня:\n• организации-перепродавцы;\n• бюджетные организации;\n• население;\n• прочие;\n• без дифференциации.\nВ случае дифференциации тарифов группам потребителей информация по ним указывается в отдельных строках.",null,null,"Группа потребителей"]
[null,null,null,null,null,null,1,null,null,null,1,{"$f":"mergeValue(A24) &\".\"& mergeValue(B24)&\".\"& mergeValue(C24)&\".\"& mergeValue(D24)&\".\"& mergeValue(E24)&\".\"& mergeValue(F24)&\".\"& mergeValue(G24)","v":"1.1.1.1.1.1.1"},null,null,null,null,null,null,"да",null,"нет",null,"В колонке «Параметр дифференциации тарифов» указывается вид теплоносителя.\nЗначение выбирается из перечня:\n• вода;\n• пар;\n• отборный пар, 1.2-2.5 кг/см2;\n• отборный пар, 2.5-7 кг/см2;\n• отборный пар, 7-13 кг/см2;\n• отборный пар, > 13 кг/см2;\n• острый и редуцированный пар;\n• горячая вода в системе централизованного теплоснабжения на отопление;\n• горячая вода в системе централизованного теплоснабжения на горячее водоснабжение;\n• прочее.\nПри утверждении двухставочного тарифа колонка «Одноставочный тариф» не заполняется.\nПри утверждении одноставочного тарифа колонки в блоке «Двухставочный тариф» не заполняются.\nДаты начала и окончания действия тарифов указываются в виде «ДД.ММ.ГГГГ».\nВ случае отсутствия даты окончания действия тарифа в колонке «Дата окончания» указывается «Нет».\nВ случае дифференциации тарифов по периодам действия тарифа информация по ним указывается в отдельных колонках.\nВ случае дифференциации тарифов по видам теплоносителя информация по ним указывается в отдельных строках.",{"$f":"strCheckDate(O25:V25)","v":""},null,""]
[null,null,null,null,null,null,null,null,null,null,null,null,null,null,null,null,{"$f":"R24 & \"-\" & T24","v":"-"},null,null,null,null,null,null,null,null,""]
[null,null,null,null,null,null,null,null,null,null,null,null,"Добавить вид теплоносителя (параметры теплоносителя)",null,null,null,null,null,null,null,null,null,null,null,null,"Добавить вид теплоносителя (параметры теплоносителя)"]
[null,null,null,null,null,null,null,null,null,null,null,null,"Добавить группу потребителей",null,null,null,null,null,null,null,null,null,null,null,null,"Добавить группу потребителей"]
[null,null,null,null,null,null,null,null,null,null,null,null,"Добавить схему подключения",null,null,null,null,null,null,null,null,null,null,null,null,"Добавить схему подключения"]
[null,null,null,null,null,null,null,null,null,null,null,null,"Добавить источник тепловой энергии",null,null,null,null,null,null,null,null,null,null,null,null,"Добавить источник тепловой энергии"]
[null,null,null,null,null,null,null,null,null,null,null,null,"Добавить наименование системы теплоснабжения",null,null,null,null,null,null,null,null,null,null,null,null,"Добавить наименование системы теплоснабжения"]
[null,null,null,null,null,null,null,null,null,null,null,null,"Добавить территорию действия тарифа",null,null,null,null,null,null,null,null,null,null,null,null,"Добавить территорию действия тарифа"]
[null,null,null,null,null,null,null,null,null,null,null,null,"Добавить наименование тарифа"]
[]
[null,null,null,null,null,null,null,null,null,null,null,1,"Для каждого вида тарифа в сфере теплоснабжения форма заполняется отдельно. При размещении информации по данной форме дополнительно указываются: наименование органа регулирования тарифов, принявшего решение об утверждении тарифа, дата и номер документа об утверждении тарифа, источник официального опубликования решения.\nПо данной форме раскрывается в том числе информация о предельном уровне цены на тепловую энергию (мощность), поставляемую потребителям, об индикативном предельном уровне цены на тепловую энергию (мощность) единой теплоснабжающей организации. В этом случае дополнительно раскрывается информация о графике поэтапного равномерного доведения предельного уровня цены на тепловую энергию (мощность) (при наличии).\nРаскрывается в том числе информация о тарифах на товары (услуги) в сфере теплоснабжения в случаях, указанных в частях 12.1 - 12.4 статьи 10 Федерального закона от 27.07.2010 № 190-ФЗ «О теплоснабжении» (Собрание законодательства Российской Федерации, 2010, № 31, ст. 4159; 2011, № 23, ст. 3263; 2012, № 53, ст. 7616; 2013, № 19, ст. 2330; 2014, № 30, ст. 4218; № 49, ст. 6913; 2015, № 48, ст. 6723; 2017, № 31, ст. 4828; 2018, № 31, ст. 4861) (далее – Федеральный закон № 190-ФЗ), теплоснабжающей организации, теплосетевой организации в ценовых зонах теплоснабжения.\n"]

{"sheet":"Форма 1.0.1 | Т-ТЭ | предел","index":13,"n_rows":19,"n_cols":10,"rows_kept":19,"cut":false,"hidden":true,"merged":[[18,6,18,7],[1,5,1,7],[3,5,3,7],[3,8,4,8],[7,0,15,0],[10,1,14,1],[11,2,13,2],[12,8,13,8]]}
["3"]
[null,null,null,null,null,"Форма 1.0.1 Основные параметры раскрываемой информации 1"]
[]
[null,null,null,null,null,"Параметры формы",null,null,"Описание параметров формы"]
[null,null,null,null,null,"№ п/п","Наименование параметра","Информация"]
[null,null,null,null,null,"1",2,3,4,4]
[null,null,null,null,null,1,"Дата заполнения/внесения изменений",{"$f":"IF(dateCh=\"\",\"\",dateCh)","v":"23.12.2019"},"Указывается календарная дата первичного заполнения или внесения изменений в форму в виде «ДД.ММ.ГГГГ»."]
[1,null,null,null,null,{"$f":"\"2.\" &mergeValue(A8)","v":"2.1"},"Наименование централизованной системы коммунальной инфраструктуры",null,"Указывается наименование централизованной системы холодного водоснабжения/горячего водоснабжения/водоотведения/теплоснабжения, к которой относится размещаемая информация.\nВ случае наличия нескольких централизованных систем коммунальной инфраструктуры, информация по каждой из них указывается в отдельной строке."]
[null,null,null,null,null,{"$f":"\"3.\" &mergeValue(A9)","v":"3.1"},"Наименование регулируемого вида деятельности",null,"Указывается наименование вида регулируемой деятельности."]
[null,null,null,null,null,{"$f":"\"4.\"&mergeValue(A10)","v":"4.1"},"Территория оказания услуги по регулируемому виду деятельности","x"]
[null,1,null,null,null,{"$f":"\"4.\"&mergeValue(A11) &\".\"&mergeValue(B11)","v":"4.1.1"},"Субъект Российской Федерации",{"$f":"IF(region_name=\"\",\"\",region_name)","v":"Республика Татарстан"},"Указывается наименование субъекта Российской Федерации"]
[null,null,1,null,null,{"$f":"\"4.\"&mergeValue(A12) &\".\"&mergeValue(B12)&\".\"&mergeValue(C12)","v":"4.1.1.1"},"муниципальный район",null,"Указывается наименование муниципального района, на территории которого организация оказывает услуги по регулируемому виду деятельности."]
[null,null,null,1,null,{"$f":"\"4.\"&mergeValue(A13) &\".\"&mergeValue(B13)&\".\"&mergeValue(C13)&\".\"&mergeValue(D13)","v":"4.1.1.1.1"},"муниципальное образование",null,"Указывается наименование и код муниципального района, муниципального образования в соответствии с Общероссийским классификатором территорий муниципальных образований (далее - ОКТМО), входящего в муниципальный район, на территории которого организация оказывает услуги по регулируемому виду деятельности.\nВ случае оказания услуг по регулируемому виду деятельности на территории нескольких муниципальных районов (муниципальных образований) данные по каждому их них указываются в отдельной строке."]
[null,null,null,null,null,null,"Добавить МО"]
[null,null,null,null,null,null,"Добавить МР"]
[null,null,null,null,null,null,"Добавить территорию"]
[null,null,null,null,null,null,"Добавить ЦС"]
[]
[null,null,null,null,null,null,"  1 Информация размещается при раскрытии информации по каждой из форм."]

{"sheet":"Форма 4.2.1 | Т-ТЭ | предел","index":14,"n_rows":36,"n_cols":26,"rows_kept":36,"cut":false,"hidden":true,"merged":[[23,8,28,8],[24,9,27,9],[19,0,32,0],[19,14,19,21],[20,1,31,1],[20,14,20,21],[21,2,30,2],[25,20,26,20],[21,14,21,21],[22,3,29,3],[22,14,22,21],[23,4,28,4],[23,14,23,21],[24,5,27,5],[24,14,24,21],[25,17,26,17],[25,18,26,18],[25,19,26,19],[4,11,4,19],[10,14,10,19],[11,14,11,19],[12,11,12,12],[13,14,13,20],[6,14,6,15],[25,22,27,22],[8,14,8,19],[9,14,9,19],[35,12,35,22],[18,18,18,19],[14,11,14,21],[15,11,17,11],[15,12,17,12],[15,14,15,19],[15,20,17,20],[16,14,17,14],[16,15,16,16],[14,22,17,22],[17,18,17,19],[15,21,17,21],[16,17,16,19]]}
[]
[]
[]
[]
[null,null,null,null,null,null,null,null,null,null,null,"Форма 4.2.1 Информация о величинах тарифов на тепловую энергию, поддержанию резервной тепловой мощности1"]
[]
[null,null,null,null,null,null,null,null,null,null,null,null,"Опубликовать индикативный предельный уровень цен на тепловую энергию (мощность)",null,"нет"]
[]
[null,null,null,null,null,null,null,null,null,null,null,null,"Наименование органа регулирования, принявшего решение об утверждении тарифов",null,{"$f":"IF(NameOrPr_ch=\"\",IF(NameOrPr=\"\",\"\",NameOrPr),NameOrPr_ch)","v":"Государственный комитет Республики Татарстан по тарифам"}]
[null,null,null,null,null,null,null,null,null,null,null,null,"Дата документа об утверждении тарифов",null,{"$f":"IF(datePr_ch=\"\",IF(datePr=\"\",\"\",datePr),datePr_ch)","v":"13.12.2019"}]
[null,null,null,null,null,null,null,null,null,null,null,null,"Номер документа об утверждении тарифов",null,{"$f":"IF(numberPr_ch=\"\",IF(numberPr=\"\",\"\",numberPr),numberPr_ch)","v":"№5-116/тэ"}]
[null,null,null,null,null,null,null,null,null,null,null,null,"Источник официального опубликования решения",null,{"$f":"IF(IstPub_ch=\"\",IF(IstPub=\"\",\"\",IstPub),IstPub_ch)","v":"Официальный сайт правовой информации Министерства юстиции РТ:  http//pravo.tatarstan.ru (регистрационный №6359 от 20.12.2019 г.)"}]
[null,null,null,null,null,null,null,null,null,null,null,null,null,null,null,null,null,null,null,null,"dp"]
[]
[null,null,null,null,null,null,null,null,null,null,null,"Параметры формы",null,null,null,null,null,null,null,null,null,null,"Описание параметров формы"]
[null,null,null,null,null,null,null,null,null,null,null,"№ п/п","Параметр дифференциации тарифа",null,"Период действия тарифа",null,null,null,null,null,"Наличие других периодов действия тарифа","Добавить период"]
[null,null,null,null,null,null,null,null,null,null,null,null,null,null,"Одноставочный тариф, руб./Гкал","Двухставочный тариф",null,"Период действия"]
[null,null,null,null,null,null,null,null,null,null,null,null,null,null,null,"ставка за тепловую  энергию, руб./Гкал","ставка за содержание тепловой мощности, тыс.руб./Гкал/ч/мес","дата начала","дата окончания"]
[null,null,null,null,null,null,null,null,null,null,1,"1","2",{"$f":"OFFSET(N19,0,-1)","v":"2"},{"$f":"OFFSET(O19,0,-1)+1","v":3},{"$f":"OFFSET(P19,0,-1)+1","v":4},{"$f":"OFFSET(Q19,0,-1)+1","v":5},{"$f":"OFFSET(R19,0,-1)+1","v":6},{"$f":"OFFSET(S19,0,-1)+1","v":7},null,{"$f":"OFFSET(U19,0,-2)+1","v":8},{"$f":"OFFSET(V19,0,-1)","v":8},{"$f":"OFFSET(W19,0,-1)+1","v":9}]
[1,null,null,null,null,null,null,null,null,null,null,{"$f":"mergeValue(A20)","v":1},"Наименование тарифа",null,null,null,null,null,null,null,null,null,"Указывается наименование тарифа в случае утверждения нескольких тарифов.\nВ случае наличия нескольких тарифов информация по ним указывается в отдельных строках.",null,null,{"$f":"IF(M20=\"\",\"\",M20 )","v":"Наименование тарифа"}]
[null,1,null,null,null,null,null,null,null,null,null,{"$f":"mergeValue(A21) &\".\"& mergeValue(B21)","v":"1.1"},"Территория действия тарифа",null,null,null,null,null,null,null,null,null,"Указывается наименование территории действия тарифа при наличии дифференциации тарифа по территориальному признаку.\nВ случае дифференциации тарифов по территориальному признаку информация по ним указывается в отдельных строках.",null,null,"Территория действия тарифа"]
[null,null,1,null,null,null,null,null,null,null,null,{"$f":"mergeValue(A22) &\".\"& mergeValue(B22)&\".\"& mergeValue(C22)","v":"1.1.1"},"Наименование системы теплоснабжения ",null,null,null,null,null,null,null,null,null,"Указывается наименование системы теплоснабжения при наличии дифференциации тарифа по системам теплоснабжения.\nВ случае дифференциации тарифов по системам теплоснабжения информация по ним указывается в отдельных строках.",null,null,"Наименование системы теплоснабжения "]
[null,null,null,1,null,null,null,null,null,null,null,{"$f":"mergeValue(A23) &\".\"& mergeValue(B23)&\".\"& mergeValue(C23)&\".\"& mergeValue(D23)","v":"1.1.1.1"},"Источник тепловой энергии  ",null,null,null,null,null,null,null,null,null,"Указывается наименование источника тепловой энергии\nВ случае дифференциации тарифов по источникам тепловой энергии информация по ним указывается в отдельных строках.",null,null,"Источник тепловой энергии  "]
[null,null,null,null,1,null,null,1,1,null,null,{"$f":"mergeValue(A24) &\".\"& mergeValue(B24)&\".\"& mergeValue(C24)&\".\"& mergeValue(D24)&\".\"& mergeValue(E24)","v":"1.1.1.1.1"},"Схема подключения теплопотребляющей установки к коллектору источника тепловой энергии",null,null,null,null,null,null,null,null,null,"Указывается схема подключения теплопотребляющей установки к коллектору источника тепловой энергии только для тарифов на тепловую энергию и за услуги по поддержанию резервной мощности \nЗначение выбирается из перечня:\n• без дифференциации;\n• к коллектору источника тепловой энергии;\n• к тепловой сети без дополнительного преобразования на тепловых пунктах, эксплуатируемых теплоснабжающей организацией;\n• к тепловой сети после тепловых пунктов (на тепловых пунктах), эксплуатируемых теплоснабжающей организацией.\nВ случае дифференциации тарифов по схемам подключения теплопотребляющей установки к коллектору источника тепловой энергии информация по ним указывается в отдельных строках.",null,null,"Схема подключения теплопотребляющей установки к коллектору источника тепловой энергии"]
[null,null,null,null,null,1,null,null,null,1,null,{"$f":"mergeValue(A25) &\".\"& mergeValue(B25)&\".\"& mergeValue(C25)&\".\"& mergeValue(D25)&\".\"& mergeValue(E25)&\".\"& mergeValue(F25)","v":"1.1.1.1.1.1"},"Группа потребителей",null,null,null,null,null,null,null,null,null,"Указывается группа потребителей при наличии дифференциации тарифа по группам потребителей.\nЗначение выбирается из перечня:\n• организации-перепродавцы;\n• бюджетные организации;\n• население;\n• прочие;\n• без дифференциации.\nВ случае дифференциации тарифов группам потребителей информация по ним указывается в отдельных строках.",null,null,"Группа потребителей"]
[null,null,null,null,null,null,1,null,null,null,1,{"$f":"mergeValue(A26) &\".\"& mergeValue(B26)&\".\"& mergeValue(C26)&\".\"& mergeValue(D26)&\".\"& mergeValue(E26)&\".\"& mergeValue(F26)&\".\"& mergeValue(G26)","v":"1.1.1.1.1.1.1"},null,null,null,null,null,null,"да",null,"нет",null,"В колонке «Параметр дифференциации тарифов» указывается вид теплоносителя.\nЗначение выбирается из перечня:\n• вода;\n• пар;\n• отборный пар, 1.2-2.5 кг/см2;\n• отборный пар, 2.5-7 кг/см2;\n• отборный пар, 7-13 кг/см2;\n• отборный пар, > 13 кг/см2;\n• острый и редуцированный пар;\n• горячая вода в системе централизованного теплоснабжения на отопление;\n• горячая вода в системе централизованного теплоснабжения на горячее водоснабжение;\n• прочее.\nПри утверждении двухставочного тарифа колонка «Одноставочный тариф» не заполняется.\nПри утверждении одноставочного тарифа колонки в блоке «Двухставочный тариф» не заполняются.\nДаты начала и окончания действия тарифов указываются в виде «ДД.ММ.ГГГГ».\nВ случае отсутствия даты окончания действия тарифа в колонке «Дата окончания» указывается «Нет».\nВ случае дифференциации тарифов по периодам действия тарифа информация по ним указывается в отдельных колонках.\nВ случае дифференциации тарифов по видам теплоносителя информация по ним указывается в отдельных строках.",{"$f":"strCheckDate(O27:V27)","v":""},null,""]
[null,null,null,null,null,null,null,null,null,null,null,null,null,null,null,null,{"$f":"R26 & \"-\" & T26","v":"-"},null,null,null,null,null,null,null,null,""]
[null,null,null,null,null,null,null,null,null,null,null,null,"Добавить вид теплоносителя (параметры теплоносителя)",null,null,null,null,null,null,null,null,null,null,null,null,"Добавить вид теплоносителя (параметры теплоносителя)"]
[null,null,null,null,null,null,null,null,null,null,null,null,"Добавить группу потребителей",null,null,null,null,null,null,null,null,null,null,null,null,"Добавить группу потребителей"]
[null,null,null,null,null,null,null,null,null,null,null,null,"Добавить схему подключения",null,null,null,null,null,null,null,null,null,null,null,null,"Добавить схему подключения"]
[null,null,null,null,null,null,null,null,null,null,null,null,"Добавить источник тепловой энергии",null,null,null,null,null,null,null,null,null,null,null,null,"Добавить источник тепловой энергии"]
[null,null,null,null,null,null,null,null,null,null,null,null,"Добавить наименование системы теплоснабжения",null,null,null,null,null,null,null,null,null,null,null,null,"Добавить наименование системы теплоснабжения"]
[null,null,null,null,null,null,null,null,null,null,null,null,"Добавить территорию действия тарифа",null,null,null,null,null,null,null,null,null,null,null,null,"Добавить территорию действия тарифа"]
[null,null,null,null,null,null,null,null,null,null,null,null,"Добавить наименование тарифа"]
[]
[null,null,null,null,null,null,null,null,null,null,null,1,"Для каждого вида тарифа в сфере теплоснабжения форма заполняется отдельно. При размещении информации по данной форме дополнительно указываются: наименование органа регулирования тарифов, принявшего решение об утверждении тарифа, дата и номер документа об утверждении тарифа, источник официального опубликования решения.\nПо данной форме раскрывается в том числе информация о предельном уровне цены на тепловую энергию (мощность), поставляемую потребителям, об индикативном предельном уровне цены на тепловую энергию (мощность) единой теплоснабжающей организации. В этом случае дополнительно раскрывается информация о графике поэтапного равномерного доведения предельного уровня цены на тепловую энергию (мощность) (при наличии).\nРаскрывается в том числе информация о тарифах на товары (услуги) в сфере теплоснабжения в случаях, указанных в частях 12.1 - 12.4 статьи 10 Федерального закона от 27.07.2010 № 190-ФЗ «О теплоснабжении» (Собрание законодательства Российской Федерации, 2010, № 31, ст. 4159; 2011, № 23, ст. 3263; 2012, № 53, ст. 7616; 2013, № 19, ст. 2330; 2014, № 30, ст. 4218; № 49, ст. 6913; 2015, № 48, ст. 6723; 2017, № 31, ст. 4828; 2018, № 31, ст. 4861) (далее – Федеральный закон № 190-ФЗ), теплоснабжающей организации, теплосетевой организации в ценовых зонах теплоснабжения.\n"]

{"sheet":"Форма 1.0.1 | Т-ТЭ | индикат","index":15,"n_rows":19,"n_cols":10,"rows_kept":19,"cut":false,"hidden":true,"merged":[[18,6,18,7],[1,5,1,7],[3,5,3,7],[3,8,4,8],[7,0,15,0],[10,1,14,1],[11,2,13,2],[12,8,13,8]]}
["3"]
[null,null,null,null,null,"Форма 1.0.1 Основные параметры раскрываемой информации 1"]
[]
[null,null,null,null,null,"Параметры формы",null,null,"Описание параметров формы"]
[null,null,null,null,null,"№ п/п","Наименование параметра","Информация"]
[null,null,null,null,null,"1",2,3,4,4]
[null,null,null,null,null,1,"Дата заполнения/внесения изменений",{"$f":"IF(dateCh=\"\",\"\",dateCh)","v":"23.12.2019"},"Указывается календарная дата первичного заполнения или внесения изменений в форму в виде «ДД.ММ.ГГГГ»."]
[1,null,null,null,null,{"$f":"\"2.\" &mergeValue(A8)","v":"2.1"},"Наименование централизованной системы коммунальной инфраструктуры",null,"Указывается наименование централизованной системы холодного водоснабжения/горячего водоснабжения/водоотведения/теплоснабжения, к которой относится размещаемая информация.\nВ случае наличия нескольких централизованных систем коммунальной инфраструктуры, информация по каждой из них указывается в отдельной строке."]
[null,null,null,null,null,{"$f":"\"3.\" &mergeValue(A9)","v":"3.1"},"Наименование регулируемого вида деятельности",null,"Указывается наименование вида регулируемой деятельности."]
[null,null,null,null,null,{"$f":"\"4.\"&mergeValue(A10)","v":"4.1"},"Территория оказания услуги по регулируемому виду деятельности","x"]
[null,1,null,null,null,{"$f":"\"4.\"&mergeValue(A11) &\".\"&mergeValue(B11)","v":"4.1.1"},"Субъект Российской Федерации",{"$f":"IF(region_name=\"\",\"\",region_name)","v":"Республика Татарстан"},"Указывается наименование субъекта Российской Федерации"]
[null,null,1,null,null,{"$f":"\"4.\"&mergeValue(A12) &\".\"&mergeValue(B12)&\".\"&mergeValue(C12)","v":"4.1.1.1"},"муниципальный район",null,"Указывается наименование муниципального района, на территории которого организация оказывает услуги по регулируемому виду деятельности."]
[null,null,null,1,null,{"$f":"\"4.\"&mergeValue(A13) &\".\"&mergeValue(B13)&\".\"&mergeValue(C13)&\".\"&mergeValue(D13)","v":"4.1.1.1.1"},"муниципальное образование",null,"Указывается наименование и код муниципального района, муниципального образования в соответствии с Общероссийским классификатором территорий муниципальных образований (далее - ОКТМО), входящего в муниципальный район, на территории которого организация оказывает услуги по регулируемому виду деятельности.\nВ случае оказания услуг по регулируемому виду деятельности на территории нескольких муниципальных районов (муниципальных образований) данные по каждому их них указываются в отдельной строке."]
[null,null,null,null,null,null,"Добавить МО"]
[null,null,null,null,null,null,"Добавить МР"]
[null,null,null,null,null,null,"Добавить территорию"]
[null,null,null,null,null,null,"Добавить ЦС"]
[]
[null,null,null,null,null,null,"  1 Информация размещается при раскрытии информации по каждой из форм."]

{"sheet":"Форма 4.2.1 | Т-ТЭ | индикат","index":16,"n_rows":36,"n_cols":26,"rows_kept":36,"cut":false,"hidden":true,"merged":[[12,11,12,12],[4,11,4,19],[8,14,8,19],[9,14,9,19],[10,14,10,19],[11,14,11,19],[17,18,17,19],[13,14,13,20],[14,11,14,21],[14,22,17,22],[15,11,17,11],[15,12,17,12],[15,14,15,19],[15,20,17,20],[19,0,32,0],[19,14,19,21],[20,1,31,1],[20,14,20,21],[21,2,30,2],[21,14,21,21],[22,3,29,3],[22,14,22,21],[23,8,28,8],[24,9,27,9],[25,22,27,22],[35,12,35,22],[6,14,6,19],[23,4,28,4],[23,14,23,21],[24,5,27,5],[24,14,24,21],[25,17,26,17],[25,18,26,18],[25,19,26,19],[25,20,26,20],[18,18,18,19],[15,21,17,21],[16,14,17,14],[16,15,16,16],[16,17,16,19]]}
[]
[]
[]
[]
[null,null,null,null,null,null,null,null,null,null,null,"Форма 4.2.1 Информация о величинах тарифов на тепловую энергию, поддержанию резервной тепловой мощности1"]
[]
[null,null,null,null,null,null,null,null,null,null,null,null,"График поэтапного равномерного доведения предельного уровня цены на тепловую энергию (мощность)"]
[]
[null,null,null,null,null,null,null,null,null,null,null,null,"Наименование органа регулирования, принявшего решение об утверждении тарифов",null,{"$f":"IF(NameOrPr_ch=\"\",IF(NameOrPr=\"\",\"\",NameOrPr),NameOrPr_ch)","v":"Государственный комитет Республики Татарстан по тарифам"}]
[null,null,null,null,null,null,null,null,null,null,null,null,"Дата документа об утверждении тарифов",null,{"$f":"IF(datePr_ch=\"\",IF(datePr=\"\",\"\",datePr),datePr_ch)","v":"13.12.2019"}]
[null,null,null,null,null,null,null,null,null,null,null,null,"Номер документа об утверждении тарифов",null,{"$f":"IF(numberPr_ch=\"\",IF(numberPr=\"\",\"\",numberPr),numberPr_ch)","v":"№5-116/тэ"}]
[null,null,null,null,null,null,null,null,null,null,null,null,"Источник официального опубликования решения",null,{"$f":"IF(IstPub_ch=\"\",IF(IstPub=\"\",\"\",IstPub),IstPub_ch)","v":"Официальный сайт правовой информации Министерства юстиции РТ:  http//pravo.tatarstan.ru (регистрационный №6359 от 20.12.2019 г.)"}]
[null,null,null,null,null,null,null,null,null,null,null,null,null,null,null,null,null,null,null,null,"dp"]
[]
[null,null,null,null,null,null,null,null,null,null,null,"Параметры формы",null,null,null,null,null,null,null,null,null,null,"Описание параметров формы"]
[null,null,null,null,null,null,null,null,null,null,null,"№ п/п","Параметр дифференциации тарифа",null,"Период действия тарифа",null,null,null,null,null,"Наличие других периодов действия тарифа","Добавить период"]
[null,null,null,null,null,null,null,null,null,null,null,null,null,null,"Одноставочный тариф, руб./Гкал","Двухставочный тариф",null,"Период действия"]
[null,null,null,null,null,null,null,null,null,null,null,null,null,null,null,"ставка за тепловую  энергию, руб./Гкал","ставка за содержание тепловой мощности, тыс.руб./Гкал/ч/мес","дата начала","дата окончания"]
[null,null,null,null,null,null,null,null,null,null,1,"1","2",{"$f":"OFFSET(N19,0,-1)","v":"2"},{"$f":"OFFSET(O19,0,-1)+1","v":3},{"$f":"OFFSET(P19,0,-1)+1","v":4},{"$f":"OFFSET(Q19,0,-1)+1","v":5},{"$f":"OFFSET(R19,0,-1)+1","v":6},{"$f":"OFFSET(S19,0,-1)+1","v":7},null,{"$f":"OFFSET(U19,0,-2)+1","v":8},{"$f":"OFFSET(V19,0,-1)","v":8},{"$f":"OFFSET(W19,0,-1)+1","v":9}]
[1,null,null,null,null,null,null,null,null,null,null,{"$f":"mergeValue(A20)","v":1},"Наименование тарифа",null,null,null,null,null,null,null,null,null,"Указывается наименование тарифа в случае утверждения нескольких тарифов.\nВ случае наличия нескольких тарифов информация по ним указывается в отдельных строках.",null,null,{"$f":"IF(M20=\"\",\"\",M20 )","v":"Наименование тарифа"}]
[null,1,null,null,null,null,null,null,null,null,null,{"$f":"mergeValue(A21) &\".\"& mergeValue(B21)","v":"1.1"},"Территория действия тарифа",null,null,null,null,null,null,null,null,null,"Указывается наименование территории действия тарифа при наличии дифференциации тарифа по территориальному признаку.\nВ случае дифференциации тарифов по территориальному признаку информация по ним указывается в отдельных строках.",null,null,"Территория действия тарифа"]
[null,null,1,null,null,null,null,null,null,null,null,{"$f":"mergeValue(A22) &\".\"& mergeValue(B22)&\".\"& mergeValue(C22)","v":"1.1.1"},"Наименование системы теплоснабжения ",null,null,null,null,null,null,null,null,null,"Указывается наименование системы теплоснабжения при наличии дифференциации тарифа по системам теплоснабжения.\nВ случае дифференциации тарифов по системам теплоснабжения информация по ним указывается в отдельных строках.",null,null,"Наименование системы теплоснабжения "]
[null,null,null,1,null,null,null,null,null,null,null,{"$f":"mergeValue(A23) &\".\"& mergeValue(B23)&\".\"& mergeValue(C23)&\".\"& mergeValue(D23)","v":"1.1.1.1"},"Источник тепловой энергии  ",null,null,null,null,null,null,null,null,null,"Указывается наименование источника тепловой энергии\nВ случае дифференциации тарифов по источникам тепловой энергии информация по ним указывается в отдельных строках.",null,null,"Источник тепловой энергии  "]
[null,null,null,null,1,null,null,1,1,null,null,{"$f":"mergeValue(A24) &\".\"& mergeValue(B24)&\".\"& mergeValue(C24)&\".\"& mergeValue(D24)&\".\"& mergeValue(E24)","v":"1.1.1.1.1"},"Схема подключения теплопотребляющей установки к коллектору источника тепловой энергии",null,null,null,null,null,null,null,null,null,"Указывается схема подключения теплопотребляющей установки к коллектору источника тепловой энергии только для тарифов на тепловую энергию и за услуги по поддержанию резервной мощности \nЗначение выбирается из перечня:\n• без дифференциации;\n• к коллектору источника тепловой энергии;\n• к тепловой сети без дополнительного преобразования на тепловых пунктах, эксплуатируемых теплоснабжающей организацией;\n• к тепловой сети после тепловых пунктов (на тепловых пунктах), эксплуатируемых теплоснабжающей организацией.\nВ случае дифференциации тарифов по схемам подключения теплопотребляющей установки к коллектору источника тепловой энергии информация по ним указывается в отдельных строках.",null,null,"Схема подключения теплопотребляющей установки к коллектору источника тепловой энергии"]
[null,null,null,null,null,1,null,null,null,1,null,{"$f":"mergeValue(A25) &\".\"& mergeValue(B25)&\".\"& mergeValue(C25)&\".\"& mergeValue(D25)&\".\"& mergeValue(E25)&\".\"& mergeValue(F25)","v":"1.1.1.1.1.1"},"Группа потребителей",null,null,null,null,null,null,null,null,null,"Указывается группа потребителей при наличии дифференциации тарифа по группам потребителей.\nЗначение выбирается из перечня:\n• организации-перепродавцы;\n• бюджетные организации;\n• население;\n• прочие;\n• без дифференциации.\nВ случае дифференциации тарифов группам потребителей информация по ним указывается в отдельных строках.",null,null,"Группа потребителей"]
[null,null,null,null,null,null,1,null,null,null,1,{"$f":"mergeValue(A26) &\".\"& mergeValue(B26)&\".\"& mergeValue(C26)&\".\"& mergeValue(D26)&\".\"& mergeValue(E26)&\".\"& mergeValue(F26)&\".\"& mergeValue(G26)","v":"1.1.1.1.1.1.1"},null,null,null,null,null,null,"да",null,"нет",null,"В колонке «Параметр дифференциации тарифов» указывается вид теплоносителя.\nЗначение выбирается из перечня:\n• вода;\n• пар;\n• отборный пар, 1.2-2.5 кг/см2;\n• отборный пар, 2.5-7 кг/см2;\n• отборный пар, 7-13 кг/см2;\n• отборный пар, > 13 кг/см2;\n• острый и редуцированный пар;\n• горячая вода в системе централизованного теплоснабжения на отопление;\n• горячая вода в системе централизованного теплоснабжения на горячее водоснабжение;\n• прочее.\nПри утверждении двухставочного тарифа колонка «Одноставочный тариф» не заполняется.\nПри утверждении одноставочного тарифа колонки в блоке «Двухставочный тариф» не заполняются.\nДаты начала и окончания действия тарифов указываются в виде «ДД.ММ.ГГГГ».\nВ случае отсутствия даты окончания действия тарифа в колонке «Дата окончания» указывается «Нет».\nВ случае дифференциации тарифов по периодам действия тарифа информация по ним указывается в отдельных колонках.\nВ случае дифференциации тарифов по видам теплоносителя информация по ним указывается в отдельных строках.",{"$f":"strCheckDate(O27:V27)","v":""},null,""]
[null,null,null,null,null,null,null,null,null,null,null,null,null,null,null,null,{"$f":"R26 & \"-\" & T26","v":"-"},null,null,null,null,null,null,null,null,""]
[null,null,null,null,null,null,null,null,null,null,null,null,"Добавить вид теплоносителя (параметры теплоносителя)",null,null,null,null,null,null,null,null,null,null,null,null,"Добавить вид теплоносителя (параметры теплоносителя)"]
[null,null,null,null,null,null,null,null,null,null,null,null,"Добавить группу потребителей",null,null,null,null,null,null,null,null,null,null,null,null,"Добавить группу потребителей"]
[null,null,null,null,null,null,null,null,null,null,null,null,"Добавить схему подключения",null,null,null,null,null,null,null,null,null,null,null,null,"Добавить схему подключения"]
[null,null,null,null,null,null,null,null,null,null,null,null,"Добавить источник тепловой энергии",null,null,null,null,null,null,null,null,null,null,null,null,"Добавить источник тепловой энергии"]
[null,null,null,null,null,null,null,null,null,null,null,null,"Добавить наименование системы теплоснабжения",null,null,null,null,null,null,null,null,null,null,null,null,"Добавить наименование системы теплоснабжения"]
[null,null,null,null,null,null,null,null,null,null,null,null,"Добавить территорию действия тарифа",null,null,null,null,null,null,null,null,null,null,null,null,"Добавить территорию действия тарифа"]
[null,null,null,null,null,null,null,null,null,null,null,null,"Добавить наименование тарифа"]
[]
[null,null,null,null,null,null,null,null,null,null,null,1,"Для каждого вида тарифа в сфере теплоснабжения форма заполняется отдельно. При размещении информации по данной форме дополнительно указываются: наименование органа регулирования тарифов, принявшего решение об утверждении тарифа, дата и номер документа об утверждении тарифа, источник официального опубликования решения.\nПо данной форме раскрывается в том числе информация о предельном уровне цены на тепловую энергию (мощность), поставляемую потребителям, об индикативном предельном уровне цены на тепловую энергию (мощность) единой теплоснабжающей организации. В этом случае дополнительно раскрывается информация о графике поэтапного равномерного доведения предельного уровня цены на тепловую энергию (мощность) (при наличии).\nРаскрывается в том числе информация о тарифах на товары (услуги) в сфере теплоснабжения в случаях, указанных в частях 12.1 - 12.4 статьи 10 Федерального закона от 27.07.2010 № 190-ФЗ «О теплоснабжении» (Собрание законодательства Российской Федерации, 2010, № 31, ст. 4159; 2011, № 23, ст. 3263; 2012, № 53, ст. 7616; 2013, № 19, ст. 2330; 2014, № 30, ст. 4218; № 49, ст. 6913; 2015, № 48, ст. 6723; 2017, № 31, ст. 4828; 2018, № 31, ст. 4861) (далее – Федеральный закон № 190-ФЗ), теплоснабжающей организации, теплосетевой организации в ценовых зонах теплоснабжения.\n"]

{"sheet":"Форма 1.0.1 | Резерв мощности","index":17,"n_rows":19,"n_cols":10,"rows_kept":19,"cut":false,"hidden":true,"merged":[[18,6,18,7],[1,5,1,7],[3,5,3,7],[3,8,4,8],[7,0,15,0],[10,1,14,1],[11,2,13,2],[12,8,13,8]]}
["8"]
[null,null,null,null,null,"Форма 1.0.1 Основные параметры раскрываемой информации 1"]
[]
[null,null,null,null,null,"Параметры формы",null,null,"Описание параметров формы"]
[null,null,null,null,null,"№ п/п","Наименование параметра","Информация"]
[null,null,null,null,null,"1",2,3,4,4]
[null,null,null,null,null,1,"Дата заполнения/внесения изменений",{"$f":"IF(dateCh=\"\",\"\",dateCh)","v":"23.12.2019"},"Указывается календарная дата первичного заполнения или внесения изменений в форму в виде «ДД.ММ.ГГГГ»."]
[1,null,null,null,null,{"$f":"\"2.\" &mergeValue(A8)","v":"2.1"},"Наименование централизованной системы коммунальной инфраструктуры",null,"Указывается наименование централизованной системы холодного водоснабжения/горячего водоснабжения/водоотведения/теплоснабжения, к которой относится размещаемая информация.\nВ случае наличия нескольких централизованных систем коммунальной инфраструктуры, информация по каждой из них указывается в отдельной строке."]
[null,null,null,null,null,{"$f":"\"3.\" &mergeValue(A9)","v":"3.1"},"Наименование регулируемого вида деятельности",null,"Указывается наименование вида регулируемой деятельности."]
[null,null,null,null,null,{"$f":"\"4.\"&mergeValue(A10)","v":"4.1"},"Территория оказания услуги по регулируемому виду деятельности","x"]
[null,1,null,null,null,{"$f":"\"4.\"&mergeValue(A11) &\".\"&mergeValue(B11)","v":"4.1.1"},"Субъект Российской Федерации",{"$f":"IF(region_name=\"\",\"\",region_name)","v":"Республика Татарстан"},"Указывается наименование субъекта Российской Федерации"]
[null,null,1,null,null,{"$f":"\"4.\"&mergeValue(A12) &\".\"&mergeValue(B12)&\".\"&mergeValue(C12)","v":"4.1.1.1"},"муниципальный район",null,"Указывается наименование муниципального района, на территории которого организация оказывает услуги по регулируемому виду деятельности."]
[null,null,null,1,null,{"$f":"\"4.\"&mergeValue(A13) &\".\"&mergeValue(B13)&\".\"&mergeValue(C13)&\".\"&mergeValue(D13)","v":"4.1.1.1.1"},"муниципальное образование",null,"Указывается наименование и код муниципального района, муниципального образования в соответствии с Общероссийским классификатором территорий муниципальных образований (далее - ОКТМО), входящего в муниципальный район, на территории которого организация оказывает услуги по регулируемому виду деятельности.\nВ случае оказания услуг по регулируемому виду деятельности на территории нескольких муниципальных районов (муниципальных образований) данные по каждому их них указываются в отдельной строке."]
[null,null,null,null,null,null,"Добавить МО"]
[null,null,null,null,null,null,"Добавить МР"]
[null,null,null,null,null,null,"Добавить территорию"]
[null,null,null,null,null,null,"Добавить ЦС"]
[]
[null,null,null,null,null,null,"  1 Информация размещается при раскрытии информации по каждой из форм."]

{"sheet":"Форма 4.2.1 | Резерв мощности","index":18,"n_rows":34,"n_cols":27,"rows_kept":34,"cut":false,"hidden":true,"merged":[[4,11,4,19],[8,14,8,19],[9,14,9,19],[12,22,15,22],[15,18,15,19],[13,21,15,21],[12,11,12,21],[13,11,15,11],[13,12,15,12],[13,20,15,20],[13,14,13,19],[6,14,6,19],[7,14,7,19],[14,14,15,14],[14,17,14,19],[11,14,11,20],[17,0,30,0],[17,14,17,21],[18,1,29,1],[18,14,18,21],[19,2,28,2],[19,14,19,21],[20,3,27,3],[20,14,20,21],[21,4,26,4],[21,8,26,8],[21,14,21,21],[22,5,25,5],[22,9,25,9],[22,14,22,21],[23,17,24,17],[23,18,24,18],[23,19,24,19],[23,20,24,20],[33,12,33,22],[23,22,25,22],[16,18,16,19]]}
[]
[]
[]
[]
[null,null,null,null,null,null,null,null,null,null,null,"Форма 4.2.1 Информация о величинах тарифов на тепловую энергию, поддержанию резервной тепловой мощности1"]
[]
[null,null,null,null,null,null,null,null,null,null,null,null,"Наименование органа регулирования, принявшего решение об утверждении тарифов",null,{"$f":"IF(NameOrPr_ch=\"\",IF(NameOrPr=\"\",\"\",NameOrPr),NameOrPr_ch)","v":"Государственный комитет Республики Татарстан по тарифам"}]
[null,null,null,null,null,null,null,null,null,null,null,null,"Дата документа об утверждении тарифов",null,{"$f":"IF(datePr_ch=\"\",IF(datePr=\"\",\"\",datePr),datePr_ch)","v":"13.12.2019"}]
[null,null,null,null,null,null,null,null,null,null,null,null,"Номер документа об утверждении тарифов",null,{"$f":"IF(numberPr_ch=\"\",IF(numberPr=\"\",\"\",numberPr),numberPr_ch)","v":"№5-116/тэ"}]
[null,null,null,null,null,null,null,null,null,null,null,null,"Источник официального опубликования решения",null,{"$f":"IF(IstPub_ch=\"\",IF(IstPub=\"\",\"\",IstPub),IstPub_ch)","v":"Официальный сайт правовой информации Министерства юстиции РТ:  http//pravo.tatarstan.ru (регистрационный №6359 от 20.12.2019 г.)"}]
[null,null,null,null,null,null,null,null,null,null,null,null,null,null,null,null,null,null,null,null,"dp"]
[null,null,null,null,null,null,null,"1"]
[null,null,null,null,null,null,null,null,null,null,null,"Параметры формы",null,null,null,null,null,null,null,null,null,null,"Описание параметров формы"]
[null,null,null,null,null,null,null,null,null,null,null,"№ п/п","Параметр дифференциации тарифа",null,"Период действия тарифа",null,null,null,null,null,"Наличие других периодов действия тарифа","Добавить период"]
[null,null,null,null,null,null,null,null,null,null,null,null,null,null,"Ставка за содержание тепловой мощности, тыс. руб./Гкал/ч/мес.",null,null,"Период действия"]
[null,null,null,null,null,null,null,null,null,null,null,null,null,null,null,null,null,"дата начала","дата окончания"]
[null,null,null,null,null,null,null,null,null,null,1,"1","2","2",{"$f":"OFFSET(O17,0,-1)+1","v":3},{"$f":"OFFSET(P17,0,-1)","v":3},{"$f":"OFFSET(Q17,0,-1)","v":3},{"$f":"OFFSET(R17,0,-1)+1","v":4},{"$f":"OFFSET(S17,0,-1)+1","v":5},null,{"$f":"OFFSET(U17,0,-2)+1","v":6},{"$f":"OFFSET(V17,0,-1)","v":6},{"$f":"OFFSET(W17,0,-1)+1","v":7}]
[1,null,null,null,null,null,null,null,null,null,null,{"$f":"mergeValue(A18)","v":1},"Наименование тарифа",null,null,null,null,null,null,null,null,null,"Указывается наименование тарифа в случае утверждения нескольких тарифов.\nВ случае наличия нескольких тарифов информация по ним указывается в отдельных строках."]
[null,1,null,null,null,null,null,null,null,null,null,{"$f":"mergeValue(A19) &\".\"& mergeValue(B19)","v":"1.1"},"Территория действия тарифа",null,null,null,null,null,null,null,null,null,"Указывается наименование территории действия тарифа при наличии дифференциации тарифа по территориальному признаку.\nВ случае дифференциации тарифов по территориальному признаку информация по ним указывается в отдельных строках."]
[null,null,1,null,null,null,null,null,null,null,null,{"$f":"mergeValue(A20) &\".\"& mergeValue(B20)&\".\"& mergeValue(C20)","v":"1.1.1"},"Наименование системы теплоснабжения ",null,null,null,null,null,null,null,null,null,"Указывается наименование системы теплоснабжения при наличии дифференциации тарифа по системам теплоснабжения.\nВ случае дифференциации тарифов по системам теплоснабжения информация по ним указывается в отдельных строках."]
[null,null,null,1,null,null,null,null,null,null,null,{"$f":"mergeValue(A21) &\".\"& mergeValue(B21)&\".\"& mergeValue(C21)&\".\"& mergeValue(D21)","v":"1.1.1.1"},"Источник тепловой энергии  ",null,null,null,null,null,null,null,null,null,"Указывается наименование источника тепловой энергии\nВ случае дифференциации тарифов по источникам тепловой энергии информация по ним указывается в отдельных строках."]
[null,null,null,null,1,null,null,1,1,null,null,{"$f":"mergeValue(A22) &\".\"& mergeValue(B22)&\".\"& mergeValue(C22)&\".\"& mergeValue(D22)&\".\"& mergeValue(E22)","v":"1.1.1.1.1"},"Схема подключения теплопотребляющей установки к коллектору источника тепловой энергии",null,null,null,null,null,null,null,null,null,"Указывается схема подключения теплопотребляющей установки к коллектору источника тепловой энергии только для тарифов на тепловую энергию и за услуги по поддержанию резервной мощности \nЗначение выбирается из перечня:\n• без дифференциации;\n• к коллектору источника тепловой энергии;\n• к тепловой сети без дополнительного преобразования на тепловых пунктах, эксплуатируемых теплоснабжающей организацией;\n• к тепловой сети после тепловых пунктов (на тепловых пунктах), эксплуатируемых теплоснабжающей организацией.\nВ случае дифференциации тарифов по схемам подключения теплопотребляющей установки к коллектору источника тепловой энергии информация по ним указывается в отдельных строках."]
[null,null,null,null,null,1,null,null,null,1,null,{"$f":"mergeValue(A23) &\".\"& mergeValue(B23)&\".\"& mergeValue(C23)&\".\"& mergeValue(D23)&\".\"& mergeValue(E23)&\".\"& mergeValue(F23)","v":"1.1.1.1.1.1"},"Группа потребителей",null,null,null,null,null,null,null,null,null,"Указывается группа потребителей при наличии дифференциации тарифа по группам потребителей.\nЗначение выбирается из перечня:\n• организации-перепродавцы;\n• бюджетные организации;\n• население;\n• прочие;\n• без дифференциации.\nВ случае дифференциации тарифов группам потребителей информация по ним указывается в отдельных строках.",null,{"$f":"strCheckUnique(Z23:Z26)","v":""},null,{"$f":"IF(O23=\"\",\"\",O23 & \":_\")","v":""}]
[null,null,null,null,null,null,1,null,null,null,1,{"$f":"mergeValue(A24) &\".\"& mergeValue(B24)&\".\"& mergeValue(C24)&\".\"& mergeValue(D24)&\".\"& mergeValue(E24)&\".\"& mergeValue(F24)&\".\"& mergeValue(G24)","v":"1.1.1.1.1.1.1"},null,null,null,null,null,null,"да",null,"нет",null,"В колонке «Параметр дифференциации тарифов» указывается вид теплоносителя.\nЗначение выбирается из перечня:\n• вода;\n• пар;\n• отборный пар, 1.2-2.5 кг/см2;\n• отборный пар, 2.5-7 кг/см2;\n• отборный пар, 7-13 кг/см2;\n• отборный пар, > 13 кг/см2;\n• острый и редуцированный пар;\n• горячая вода в системе централизованного теплоснабжения на отопление;\n• горячая вода в системе централизованного теплоснабжения на горячее водоснабжение;\n• прочее.\nДаты начала и окончания действия тарифов указываются в виде «ДД.ММ.ГГГГ».\nВ случае отсутствия даты окончания действия тарифа в колонке «Дата окончания» указывается «Нет».\nИнформация в колонке «Ставка за содержание тепловой мощности, тыс. руб./Гкал/ч/мес.» указывается только для тарифа по поддержанию резервной мощности. \nВ случае дифференциации тарифов по периодам действия тарифа информация по ним указывается в отдельных колонках.\nВ случае дифференциации тарифов по видам теплоносителя информация по ним указывается в отдельных строках.",{"$f":"strCheckDate(O25:V25)","v":""},null,{"$f":"IF(M24=\"\",\"\",M24 )","v":""}]
[null,null,null,null,null,null,null,null,null,null,null,null,null,null,null,null,{"$f":"R24 & \"-\" & T24","v":"-"}]
[null,null,null,null,null,null,null,null,null,null,null,null,"Добавить вид теплоносителя (параметры теплоносителя)"]
[null,null,null,null,null,null,null,null,null,null,null,null,"Добавить группу потребителей"]
[null,null,null,null,null,null,null,null,null,null,null,null,"Добавить схему подключения"]
[null,null,null,null,null,null,null,null,null,null,null,null,"Добавить источник тепловой энергии"]
[null,null,null,null,null,null,null,null,null,null,null,null,"Добавить наименование системы теплоснабжения"]
[null,null,null,null,null,null,null,null,null,null,null,null,"Добавить территорию действия тарифа"]
[null,null,null,null,null,null,null,null,null,null,null,null,"Добавить наименование тарифа"]
[]
[null,null,null,null,null,null,null,null,null,null,null,1,"Для каждого вида тарифа в сфере теплоснабжения форма заполняется отдельно. При размещении информации по данной форме дополнительно указываются: наименование органа регулирования тарифов, принявшего решение об утверждении тарифа, дата и номер документа об утверждении тарифа, источник официального опубликования решения.\nПо данной форме раскрывается в том числе информация о предельном уровне цены на тепловую энергию (мощность), поставляемую потребителям, об индикативном предельном уровне цены на тепловую энергию (мощность) единой теплоснабжающей организации. В этом случае дополнительно раскрывается информация о графике поэтапного равномерного доведения предельного уровня цены на тепловую энергию (мощность) (при наличии).\nРаскрывается в том числе информация о тарифах на товары (услуги) в сфере теплоснабжения в случаях, указанных в частях 12.1 - 12.4 статьи 10 Федерального закона от 27.07.2010 № 190-ФЗ «О теплоснабжении» (Собрание законодательства Российской Федерации, 2010, № 31, ст. 4159; 2011, № 23, ст. 3263; 2012, № 53, ст. 7616; 2013, № 19, ст. 2330; 2014, № 30, ст. 4218; № 49, ст. 6913; 2015, № 48, ст. 6723; 2017, № 31, ст. 4828; 2018, № 31, ст. 4861) (далее – Федеральный закон № 190-ФЗ), теплоснабжающей организации, теплосетевой организации в ценовых зонах теплоснабжения.\n"]

{"sheet":"Форма 1.0.1 | Т-ТН","index":19,"n_rows":19,"n_cols":10,"rows_kept":19,"cut":false,"hidden":true,"merged":[[18,6,18,7],[1,5,1,7],[3,5,3,7],[3,8,4,8],[7,0,15,0],[10,1,14,1],[11,2,13,2],[12,8,13,8]]}
["4"]
[null,null,null,null,null,"Форма 1.0.1 Основные параметры раскрываемой информации 1"]
[]
[null,null,null,null,null,"Параметры формы",null,null,"Описание параметров формы"]
[null,null,null,null,null,"№ п/п","Наименование параметра","Информация"]
[null,null,null,null,null,"1",2,3,4,4]
[null,null,null,null,null,1,"Дата заполнения/внесения изменений",{"$f":"IF(dateCh=\"\",\"\",dateCh)","v":"23.12.2019"},"Указывается календарная дата первичного заполнения или внесения изменений в форму в виде «ДД.ММ.ГГГГ»."]
[1,null,null,null,null,{"$f":"\"2.\" &mergeValue(A8)","v":"2.1"},"Наименование централизованной системы коммунальной инфраструктуры",null,"Указывается наименование централизованной системы холодного водоснабжения/горячего водоснабжения/водоотведения/теплоснабжения, к которой относится размещаемая информация.\nВ случае наличия нескольких централизованных систем коммунальной инфраструктуры, информация по каждой из них указывается в отдельной строке."]
[null,null,null,null,null,{"$f":"\"3.\" &mergeValue(A9)","v":"3.1"},"Наименование регулируемого вида деятельности",null,"Указывается наименование вида регулируемой деятельности."]
[null,null,null,null,null,{"$f":"\"4.\"&mergeValue(A10)","v":"4.1"},"Территория оказания услуги по регулируемому виду деятельности","x"]
[null,1,null,null,null,{"$f":"\"4.\"&mergeValue(A11) &\".\"&mergeValue(B11)","v":"4.1.1"},"Субъект Российской Федерации",{"$f":"IF(region_name=\"\",\"\",region_name)","v":"Республика Татарстан"},"Указывается наименование субъекта Российской Федерации"]
[null,null,1,null,null,{"$f":"\"4.\"&mergeValue(A12) &\".\"&mergeValue(B12)&\".\"&mergeValue(C12)","v":"4.1.1.1"},"муниципальный район",null,"Указывается наименование муниципального района, на территории которого организация оказывает услуги по регулируемому виду деятельности."]
[null,null,null,1,null,{"$f":"\"4.\"&mergeValue(A13) &\".\"&mergeValue(B13)&\".\"&mergeValue(C13)&\".\"&mergeValue(D13)","v":"4.1.1.1.1"},"муниципальное образование",null,"Указывается наименование и код муниципального района, муниципального образования в соответствии с Общероссийским классификатором территорий муниципальных образований (далее - ОКТМО), входящего в муниципальный район, на территории которого организация оказывает услуги по регулируемому виду деятельности.\nВ случае оказания услуг по регулируемому виду деятельности на территории нескольких муниципальных районов (муниципальных образований) данные по каждому их них указываются в отдельной строке."]
[null,null,null,null,null,null,"Добавить МО"]
[null,null,null,null,null,null,"Добавить МР"]
[null,null,null,null,null,null,"Добавить территорию"]
[null,null,null,null,null,null,"Добавить ЦС"]
[]
[null,null,null,null,null,null,"  1 Информация размещается при раскрытии информации по каждой из форм."]

{"sheet":"Форма 4.2.2 | Т-ТН","index":20,"n_rows":34,"n_cols":26,"rows_kept":34,"cut":false,"hidden":true,"merged":[[17,0,30,0],[17,14,17,21],[18,1,29,1],[18,14,18,21],[19,2,28,2],[23,20,24,20],[19,14,19,21],[20,3,27,3],[20,14,20,21],[21,4,26,4],[22,5,25,5],[22,9,25,9],[22,14,22,21],[23,17,24,17],[23,18,24,18],[11,14,11,20],[14,14,15,14],[14,15,14,16],[15,18,15,19],[20,8,27,8],[4,11,4,19],[6,14,6,19],[7,14,7,19],[10,11,10,12],[10,14,10,19],[8,14,8,19],[9,14,9,19],[23,22,25,22],[14,17,14,19],[13,14,13,19],[33,12,33,22],[13,20,15,20],[13,21,15,21],[12,22,15,22],[12,11,12,21],[13,11,15,11],[13,12,15,12],[16,18,16,19],[23,19,24,19]]}
[]
[]
[]
[]
[null,null,null,null,null,null,null,null,null,null,null,"Форма 4.2.2 Информация о величинах тарифов на теплоноситель, передачу тепловой энергии, теплоносителя1"]
[]
[null,null,null,null,null,null,null,null,null,null,null,null,"Наименование органа регулирования, принявшего решение об утверждении тарифов",null,{"$f":"IF(NameOrPr_ch=\"\",IF(NameOrPr=\"\",\"\",NameOrPr),NameOrPr_ch)","v":"Государственный комитет Республики Татарстан по тарифам"}]
[null,null,null,null,null,null,null,null,null,null,null,null,"Дата документа об утверждении тарифов",null,{"$f":"IF(datePr_ch=\"\",IF(datePr=\"\",\"\",datePr),datePr_ch)","v":"13.12.2019"}]
[null,null,null,null,null,null,null,null,null,null,null,null,"Номер документа об утверждении тарифов",null,{"$f":"IF(numberPr_ch=\"\",IF(numberPr=\"\",\"\",numberPr),numberPr_ch)","v":"№5-116/тэ"}]
[null,null,null,null,null,null,null,null,null,null,null,null,"Источник официального опубликования решения",null,{"$f":"IF(IstPub_ch=\"\",IF(IstPub=\"\",\"\",IstPub),IstPub_ch)","v":"Официальный сайт правовой информации Министерства юстиции РТ:  http//pravo.tatarstan.ru (регистрационный №6359 от 20.12.2019 г.)"}]
[null,null,null,null,null,null,null,null,null,null,null,null,null,null,null,null,null,null,null,null,"dp"]
[]
[null,null,null,null,null,null,null,null,null,null,null,"Параметры формы",null,null,null,null,null,null,null,null,null,null,"Описание параметров формы"]
[null,null,null,null,null,null,null,null,null,null,null,"№ п/п","Параметр дифференциации тарифа",null,"Период действия тарифа",null,null,null,null,null,"Наличие других периодов действия тарифа","Добавить период"]
[null,null,null,null,null,null,null,null,null,null,null,null,null,null,"Одноставочный тариф, руб./куб.м",null,null,"Период действия"]
[null,null,null,null,null,null,null,null,null,null,null,null,null,null,null,null,null,"дата начала","дата окончания"]
[null,null,null,null,null,null,null,null,null,null,1,"1","2","2",{"$f":"OFFSET(O17,0,-1)+1","v":3},{"$f":"OFFSET(P17,0,-1)","v":3},{"$f":"OFFSET(Q17,0,-1)","v":3},{"$f":"OFFSET(R17,0,-1)+1","v":4},{"$f":"OFFSET(S17,0,-1)+1","v":5},null,{"$f":"OFFSET(U17,0,-2)+1","v":6},{"$f":"OFFSET(V17,0,-1)","v":6},{"$f":"OFFSET(W17,0,-1)+1","v":7}]
[1,null,null,null,null,null,null,null,null,null,1,{"$f":"mergeValue(A18)","v":1},"Наименование тарифа",null,null,null,null,null,null,null,null,null,"Указывается наименование тарифа в случае нескольких тарифов.\nВ случае наличия нескольких тарифов информация по ним указывается в отдельных строках."]
[null,1,null,null,null,null,null,null,null,null,1,{"$f":"mergeValue(A19) &\".\"& mergeValue(B19)","v":"1.1"},"Территория действия тарифа",null,null,null,null,null,null,null,null,null,"Указывается наименование территории действия тарифа при наличии дифференциации тарифа по территориальному признаку.\nВ случае дифференциации тарифов по территориальному признаку информация по ним указывается в отдельных строках."]
[null,null,1,null,null,null,null,null,null,null,1,{"$f":"mergeValue(A20) &\".\"& mergeValue(B20)&\".\"& mergeValue(C20)","v":"1.1.1"},"Наименование системы теплоснабжения ",null,null,null,null,null,null,null,null,null,"Указывается наименование системы теплоснабжения при наличии дифференциации тарифа по системам теплоснабжения.\nВ случае дифференциации тарифов по системам теплоснабжения информация по ним указывается в отдельных строках."]
[null,null,null,1,null,null,null,null,1,null,1,{"$f":"mergeValue(A21) &\".\"& mergeValue(B21)&\".\"& mergeValue(C21)&\".\"& mergeValue(D21)","v":"1.1.1.1"},"Источник тепловой энергии  ",null,null,null,null,null,null,null,null,null,"Указывается наименование источника тепловой энергии\nВ случае дифференциации тарифов по источникам тепловой энергии информация по ним указывается в отдельных строках."]
[null,null,null,null,1,null,null,null,null,null,1]
[null,null,null,null,null,1,null,null,null,null,1,{"$f":"mergeValue(A23) &\".\"& mergeValue(B23)&\".\"& mergeValue(C23)&\".\"& mergeValue(D23)&\".\"&  mergeValue(F23)","v":"1.1.1.1.1"},"Группа потребителей",null,null,null,null,null,null,null,null,null,"Указывается группа потребителей при наличии дифференциации тарифа по группам потребителей.\nЗначение выбирается из перечня:\n• Организации-перепродавцы;\n• Бюджетные организации;\n• Население;\n• Прочие;\n• Без дифференциации.\nВ случае дифференциации тарифов группам потребителей информация по ним указывается в отдельных строках.",null,{"$f":"strCheckUnique(Z23:Z26)","v":""}]
[null,null,null,null,null,null,1,null,null,null,null,{"$f":"mergeValue(A24) &\".\"& mergeValue(B24)&\".\"& mergeValue(C24)&\".\"& mergeValue(D24)&\".\"&  mergeValue(F24)&\".\"&  mergeValue(G24)","v":"1.1.1.1.1.1"},null,null,null,null,null,null,"да",null,"нет",null,"В колонке «Параметр дифференциации тарифов» указывается вид теплоносителя.\nЗначение выбирается из перечня:\n• вода;\n• пар;\n• отборный пар, 1.2-2.5 кг/см2;\n• отборный пар, 2.5-7 кг/см2;\n• отборный пар, 7-13 кг/см2;\n• отборный пар, > 13 кг/см2;\n• острый и редуцированный пар;\n• горячая вода в системе централизованного теплоснабжения на отопление;\n• горячая вода в системе централизованного теплоснабжения на горячее водоснабжение;\n• прочее.\nПри утверждении двухставочного тарифа тариф колонка «Одноставочный тариф» не заполняется.\nПри подаче утверждении одноставочного тарифа колонки в блоке «Двухставочный тариф» не заполняются.\nИнформация в колонке «Двухставочный тариф» не указывается для тарифа на теплоноситель.\nДаты начала и окончания действия тарифов указываются в виде «ДД.ММ.ГГГГ».\nВ случае отсутствия даты окончания действия тарифа в колонке «Дата окончания» указывается «Нет».\nВ случае дифференциации тарифов по видам теплоносителя информация по ним указывается в отдельных строках.",{"$f":"strCheckDate(O25:V25)","v":""},null,{"$f":"IF(M24=\"\",\"\",M24 )","v":""}]
[null,null,null,null,null,null,null,null,null,null,1,null,null,null,null,null,{"$f":"R24 & \"-\" & T24","v":"-"}]
[null,null,null,null,null,null,null,null,null,null,1,null,"Добавить вид теплоносителя (параметры теплоносителя)"]
[null,null,null,null,null,null,null,null,null,null,null,null,"Добавить группу потребителей"]
[]
[null,null,null,null,null,null,null,null,null,null,1,null,"Добавить источник тепловой энергии"]
[null,null,null,null,null,null,null,null,null,null,1,null,"Добавить наименование системы теплоснабжения"]
[null,null,null,null,null,null,null,null,null,null,1,null,"Добавить территорию действия тарифа"]
[null,null,null,null,null,null,null,null,null,null,null,null,"Добавить наименование тарифа"]
[]
[null,null,null,null,null,null,null,null,null,null,null,1,"Для каждого вида тарифа в сфере теплоснабжения форма заполняется отдельно. При размещении информации по данной форме дополнительно указывается дата подачи заявления об утверждении тарифа и его номер. При размещении информации по данной форме дополнительно указываются: наименование органа регулирования тарифов, принявшего решение об утверждении тарифа, дата и номер документа об утверждении тарифа, источник официального опубликования решения.\n\nПо данной форме раскрывается в том числе информация о тарифах на теплоноситель в виде воды, поставляемый единой теплоснабжающей организацией потребителям и теплоснабжающими организациями другим теплоснабжающим организациям с использованием открытых систем теплоснабжения (горячего водоснабжения), за исключением случая, предусмотренного пунктом 6 части 1 статьи 23.4 Федерального закона № 190-ФЗ.\n\nПо данной форме раскрывается в том числе информация о тарифах на теплоноситель в виде воды, поставляемый теплоснабжающей организаций, теплосетевой организацией в ценовых зонах теплоснабжения другим теплоснабжающим организациям с использованием открытых систем теплоснабжения (горячего водоснабжения), за исключением случая, предусмотренного пунктом 6 части 1 статьи 23.4 Федерального закона № 190-ФЗ."]

{"sheet":"Форма 1.0.1 | Т-передача ТЭ","index":21,"n_rows":15,"n_cols":10,"rows_kept":15,"cut":false,"hidden":false,"merged":[[14,6,14,7],[1,5,1,7],[3,5,3,7],[3,8,4,8],[7,0,12,0],[10,1,12,1],[11,2,12,2]]}
["6"]
[null,null,null,null,null,"Форма 1.0.1 Основные параметры раскрываемой информации 1"]
[]
[null,null,null,null,null,"Параметры формы",null,null,"Описание параметров формы"]
[null,null,null,null,null,"№ п/п","Наименование параметра","Информация"]
[null,null,null,null,null,"1",2,3,4,4]
[null,null,null,null,null,1,"Дата заполнения/внесения изменений",{"$f":"IF(dateCh=\"\",\"\",dateCh)","v":"23.12.2019"},"Указывается календарная дата первичного заполнения или внесения изменений в форму в виде «ДД.ММ.ГГГГ»."]
[1,null,null,null,null,{"$f":"\"2.\" &mergeValue(A8)","v":"2.1"},"Наименование централизованной системы коммунальной инфраструктуры",{"$f":"IF('Перечень тарифов'!R21=\"\",\"наименование отсутствует\",\"\" & 'Перечень тарифов'!R21 & \"\")","v":"наименование отсутствует"},"Указывается наименование централизованной системы холодного водоснабжения/горячего водоснабжения/водоотведения/теплоснабжения, к которой относится размещаемая информация.\nВ случае наличия нескольких централизованных систем коммунальной инфраструктуры, информация по каждой из них указывается в отдельной строке."]
[null,null,null,null,null,{"$f":"\"3.\" &mergeValue(A9)","v":"3.1"},"Наименование регулируемого вида деятельности",{"$f":"IF('Перечень тарифов'!F21=\"\",\"наименование отсутствует\",\"\" & 'Перечень тарифов'!F21 & \"\")","v":"Передача. Тепловая энергия"},"Указывается наименование вида регулируемой деятельности."]
[null,null,null,null,null,{"$f":"\"4.\"&mergeValue(A10)","v":"4.1"},"Территория оказания услуги по регулируемому виду деятельности","x"]
[null,1,null,null,null,{"$f":"\"4.\"&mergeValue(A11) &\".\"&mergeValue(B11)","v":"4.1.1"},"Субъект Российской Федерации",{"$f":"IF(region_name=\"\",\"\",region_name)","v":"Республика Татарстан"},"Указывается наименование субъекта Российской Федерации"]
[null,null,1,null,null,{"$f":"\"4.\"&mergeValue(A12) &\".\"&mergeValue(B12)&\".\"&mergeValue(C12)","v":"4.1.1.1"},"муниципальный район",{"$f":"IF(Территории!H13=\"\",\"\",\"\" & Территории!H13 & \"\")","v":"Город Казань"},"Указывается наименование муниципального района, на территории которого организация оказывает услуги по регулируемому виду деятельности."]
[null,null,null,1,null,{"$f":"\"4.\"&mergeValue(A13) &\".\"&mergeValue(B13)&\".\"&mergeValue(C13)&\".\"&mergeValue(D13)","v":"4.1.1.1.1"},"муниципальное образование",{"$f":"IF(Территории!R14=\"\",\"\",\"\" & Территории!R14 & \"\")","v":"Город Казань (92701000)"},"Указывается наименование и код муниципального района, муниципального образования в соответствии с Общероссийским классификатором территорий муниципальных образований (далее - ОКТМО), входящего в муниципальный район, на территории которого организация оказывает услуги по регулируемому виду деятельности.\nВ случае оказания услуг по регулируемому виду деятельности на территории нескольких муниципальных районов (муниципальных образований) данные по каждому их них указываются в отдельной строке."]
[]
[null,null,null,null,null,null,"  1 Информация размещается при раскрытии информации по каждой из форм."]

{"sheet":"Форма 4.2.2 | Т-передача ТЭ","index":22,"n_rows":30,"n_cols":33,"rows_kept":30,"cut":false,"hidden":false,"merged":[[17,0,27,0],[17,14,17,28],[18,1,27,1],[18,14,18,28],[19,2,27,2],[23,19,24,19],[23,20,24,20],[19,14,19,28],[20,3,27,3],[20,14,20,28],[21,4,26,4],[21,8,26,8],[22,5,25,5],[22,9,25,9],[10,21,10,26],[11,21,11,27],[13,27,15,27],[23,26,24,26],[23,27,24,27],[10,11,10,12],[10,14,10,19],[11,14,11,20],[15,18,15,19],[23,18,24,18],[4,11,4,19],[8,14,8,19],[9,14,9,19],[6,14,6,19],[7,14,7,19],[12,11,12,28],[13,11,15,11],[13,12,15,12],[13,14,13,19],[13,20,15,20],[13,28,15,28],[14,14,15,14],[14,15,14,16],[14,17,14,19],[13,21,13,26],[14,21,15,21],[14,22,14,23],[14,24,14,26],[15,25,15,26],[29,12,29,29],[23,29,25,29],[16,18,16,19],[12,29,15,29],[16,25,16,26],[23,24,24,24],[22,14,22,28],[23,17,24,17],[23,25,24,25]]}
[]
[]
[]
[]
[null,null,null,null,null,null,null,null,null,null,null,"Форма 4.2.2 Информация о величинах тарифов на теплоноситель, передачу тепловой энергии, теплоносителя1"]
[]
[null,null,null,null,null,null,null,null,null,null,null,null,"Наименование органа регулирования, принявшего решение об утверждении тарифов",null,{"$f":"IF(NameOrPr_ch=\"\",IF(NameOrPr=\"\",\"\",NameOrPr),NameOrPr_ch)","v":"Государственный комитет Республики Татарстан по тарифам"}]
[null,null,null,null,null,null,null,null,null,null,null,null,"Дата документа об утверждении тарифов",null,{"$f":"IF(datePr_ch=\"\",IF(datePr=\"\",\"\",datePr),datePr_ch)","v":"13.12.2019"}]
[null,null,null,null,null,null,null,null,null,null,null,null,"Номер документа об утверждении тарифов",null,{"$f":"IF(numberPr_ch=\"\",IF(numberPr=\"\",\"\",numberPr),numberPr_ch)","v":"№5-116/тэ"}]
[null,null,null,null,null,null,null,null,null,null,null,null,"Источник официального опубликования решения",null,{"$f":"IF(IstPub_ch=\"\",IF(IstPub=\"\",\"\",IstPub),IstPub_ch)","v":"Официальный сайт правовой информации Министерства юстиции РТ:  http//pravo.tatarstan.ru (регистрационный №6359 от 20.12.2019 г.)"}]
[null,null,null,null,null,null,null,null,null,null,null,null,null,null,null,null,null,null,null,null,"dp",null,null,null,null,null,null,"dp"]
[null,null,null,null,null,null,null,null,null,null,null,null,null,null,null,null,null,null,null,null,null,"О"]
[null,null,null,null,null,null,null,null,null,null,null,"Параметры формы",null,null,null,null,null,null,null,null,null,null,null,null,null,null,null,null,null,"Описание параметров формы"]
[null,null,null,null,null,null,null,null,null,null,null,"№ п/п","Параметр дифференциации тарифа",null,"Период действия тарифа",null,null,null,null,null,"Наличие других периодов действия тарифа","Период действия тарифа",null,null,null,null,null,"Наличие других периодов действия тарифа","Добавить период"]
[null,null,null,null,null,null,null,null,null,null,null,null,null,null,"Одноставочный тариф, руб./Гкал","Двухставочный тариф",null,"Период действия",null,null,null,"Одноставочный тариф, руб./Гкал","Двухставочный тариф",null,"Период действия"]
[null,null,null,null,null,null,null,null,null,null,null,null,null,null,null,"ставка за тепловую энергию, руб./Гкал","ставка за содержание тепловой мощности, тыс. руб./Гкал/ч/мес.","дата начала","дата окончания",null,null,null,"ставка за тепловую энергию, руб./Гкал","ставка за содержание тепловой мощности, тыс. руб./Гкал/ч/мес.","дата начала","дата окончания"]
[null,null,null,null,null,null,null,null,null,null,1,"1","2","2",{"$f":"OFFSET(O17,0,-1)+1","v":3},{"$f":"OFFSET(P17,0,-1)+1","v":4},{"$f":"OFFSET(Q17,0,-1)+1","v":5},{"$f":"OFFSET(R17,0,-1)+1","v":6},{"$f":"OFFSET(S17,0,-1)+1","v":7},null,{"$f":"OFFSET(U17,0,-2)+1","v":8},{"$f":"OFFSET(V17,0,-1)+1","v":9},{"$f":"OFFSET(W17,0,-1)+1","v":10},{"$f":"OFFSET(X17,0,-1)+1","v":11},{"$f":"OFFSET(Y17,0,-1)+1","v":12},{"$f":"OFFSET(Z17,0,-1)+1","v":13},null,{"$f":"OFFSET(AB17,0,-2)+1","v":14},{"$f":"OFFSET(AC17,0,-1)","v":14},{"$f":"OFFSET(AD17,0,-1)+1","v":15}]
[1,null,null,null,null,null,null,null,null,null,null,{"$f":"mergeValue(A18)","v":1},"Наименование тарифа",null,{"$f":"IF('Перечень тарифов'!J21=\"\",\"\",\"\" & 'Перечень тарифов'!J21 & \"\")","v":"Услуги по передаче тепловой энергии"},null,null,null,null,null,null,null,null,null,null,null,null,null,null,"Указывается наименование тарифа в случае нескольких тарифов.\nВ случае наличия нескольких тарифов информация по ним указывается в отдельных строках."]
[null,1,null,null,null,null,null,null,null,null,null,{"$f":"mergeValue(A19) &\".\"& mergeValue(B19)","v":"1.1"}]
[null,null,1,null,null,null,null,null,null,null,null,{"$f":"mergeValue(A20) &\".\"& mergeValue(B20)&\".\"& mergeValue(C20)","v":"1.1.1"}]
[null,null,null,1,null,null,null,null,null,null,null,{"$f":"mergeValue(A21) &\".\"& mergeValue(B21)&\".\"& mergeValue(C21)&\".\"& mergeValue(D21)","v":"1.1.1.1"}]
[null,null,null,null,1,null,null,1,1]
[null,null,null,null,null,1,null,null,null,1,null,{"$f":"mergeValue(A23) &\".\"& mergeValue(B23)&\".\"& mergeValue(C23)&\".\"& mergeValue(D23)&\".\"&  mergeValue(F23)","v":"1.1.1.1.1"},"Группа потребителей",null,"прочие",null,null,null,null,null,null,null,null,null,null,null,null,null,null,"Указывается группа потребителей при наличии дифференциации тарифа по группам потребителей.\nЗначение выбирается из перечня:\n• Организации-перепродавцы;\n• Бюджетные организации;\n• Население;\n• Прочие;\n• Без дифференциации.\nВ случае дифференциации тарифов группам потребителей информация по ним указывается в отдельных строках.",null,{"$f":"strCheckUnique(AG23:AG26)","v":""}]
[null,null,null,null,null,null,1,null,null,null,1,{"$f":"mergeValue(A24) &\".\"& mergeValue(B24)&\".\"& mergeValue(C24)&\".\"& mergeValue(D24)&\".\"& mergeValue(F24)&\".\"& mergeValue(G24)","v":"1.1.1.1.1.1"},"горячая вода в системе централизованного теплоснабжения на отопление",null,530.26,null,null,"01.01.2020","да","30.06.2020","да",560.64,null,null,"01.07.2020","да","31.12.2020","нет",null,"В колонке «Параметр дифференциации тарифов» указывается вид теплоносителя.\nЗначение выбирается из перечня:\n• вода;\n• пар;\n• отборный пар, 1.2-2.5 кг/см2;\n• отборный пар, 2.5-7 кг/см2;\n• отборный пар, 7-13 кг/см2;\n• отборный пар, > 13 кг/см2;\n• острый и редуцированный пар;\n• горячая вода в системе централизованного теплоснабжения на отопление;\n• горячая вода в системе централизованного теплоснабжения на горячее водоснабжение;\n• прочее.\nПри утверждении двухставочного тарифа тариф колонка «Одноставочный тариф» не заполняется.\nПри подаче утверждении одноставочного тарифа колонки в блоке «Двухставочный тариф» не заполняются.\nИнформация в колонке «Двухставочный тариф» не указывается для тарифа на теплоноситель.\nДаты начала и окончания действия тарифов указываются в виде «ДД.ММ.ГГГГ».\nВ случае отсутствия даты окончания действия тарифа в колонке «Дата окончания» указывается «Нет».\nВ случае дифференциации тарифов по видам теплоносителя информация по ним указывается в отдельных строках.",{"$f":"strCheckDate(O25:AC25)","v":""},null,{"$f":"IF(M24=\"\",\"\",M24 )","v":"горячая вода в системе централизованного теплоснабжения на отопление"}]
[null,null,null,null,null,null,null,null,null,null,null,null,null,null,null,null,{"$f":"R24 & \"-\" & T24","v":"01.01.2020-30.06.2020"},null,null,null,null,null,null,{"$f":"Y24 & \"-\" & AA24","v":"01.07.2020-31.12.2020"}]
[null,null,null,null,null,null,null,null,null,null,null,null,"Добавить вид теплоносителя (параметры теплоносителя)"]
[null,null,null,null,null,null,null,null,null,null,null,null,"Добавить группу потребителей"]
[]
[]
[null,null,null,null,null,null,null,null,null,null,null,1,"Для каждого вида тарифа в сфере теплоснабжения форма заполняется отдельно. При размещении информации по данной форме дополнительно указывается дата подачи заявления об утверждении тарифа и его номер. При размещении информации по данной форме дополнительно указываются: наименование органа регулирования тарифов, принявшего решение об утверждении тарифа, дата и номер документа об утверждении тарифа, источник официального опубликования решения.\n\nПо данной форме раскрывается в том числе информация о тарифах на теплоноситель в виде воды, поставляемый единой теплоснабжающей организацией потребителям и теплоснабжающими организациями другим теплоснабжающим организациям с использованием открытых систем теплоснабжения (горячего водоснабжения), за исключением случая, предусмотренного пунктом 6 части 1 статьи 23.4 Федерального закона № 190-ФЗ.\n\nПо данной форме раскрывается в том числе информация о тарифах на теплоноситель в виде воды, поставляемый теплоснабжающей организаций, теплосетевой организацией в ценовых зонах теплоснабжения другим теплоснабжающим организациям с использованием открытых систем теплоснабжения (горячего водоснабжения), за исключением случая, предусмотренного пунктом 6 части 1 статьи 23.4 Федерального закона № 190-ФЗ."]

{"sheet":"Форма 1.0.1 | Т-передача ТН","index":23,"n_rows":19,"n_cols":10,"rows_kept":19,"cut":false,"hidden":true,"merged":[[18,6,18,7],[1,5,1,7],[3,5,3,7],[3,8,4,8],[7,0,15,0],[10,1,14,1],[11,2,13,2],[12,8,13,8]]}
["7"]
[null,null,null,null,null,"Форма 1.0.1 Основные параметры раскрываемой информации 1"]
[]
[null,null,null,null,null,"Параметры формы",null,null,"Описание параметров формы"]
[null,null,null,null,null,"№ п/п","Наименование параметра","Информация"]
[null,null,null,null,null,"1",2,3,4,4]
[null,null,null,null,null,1,"Дата заполнения/внесения изменений",{"$f":"IF(dateCh=\"\",\"\",dateCh)","v":"23.12.2019"},"Указывается календарная дата первичного заполнения или внесения изменений в форму в виде «ДД.ММ.ГГГГ»."]
[1,null,null,null,null,{"$f":"\"2.\" &mergeValue(A8)","v":"2.1"},"Наименование централизованной системы коммунальной инфраструктуры",null,"Указывается наименование централизованной системы холодного водоснабжения/горячего водоснабжения/водоотведения/теплоснабжения, к которой относится размещаемая информация.\nВ случае наличия нескольких централизованных систем коммунальной инфраструктуры, информация по каждой из них указывается в отдельной строке."]
[null,null,null,null,null,{"$f":"\"3.\" &mergeValue(A9)","v":"3.1"},"Наименование регулируемого вида деятельности",null,"Указывается наименование вида регулируемой деятельности."]
[null,null,null,null,null,{"$f":"\"4.\"&mergeValue(A10)","v":"4.1"},"Территория оказания услуги по регулируемому виду деятельности","x"]
[null,1,null,null,null,{"$f":"\"4.\"&mergeValue(A11) &\".\"&mergeValue(B11)","v":"4.1.1"},"Субъект Российской Федерации",{"$f":"IF(region_name=\"\",\"\",region_name)","v":"Республика Татарстан"},"Указывается наименование субъекта Российской Федерации"]
[null,null,1,null,null,{"$f":"\"4.\"&mergeValue(A12) &\".\"&mergeValue(B12)&\".\"&mergeValue(C12)","v":"4.1.1.1"},"муниципальный район",null,"Указывается наименование муниципального района, на территории которого организация оказывает услуги по регулируемому виду деятельности."]
[null,null,null,1,null,{"$f":"\"4.\"&mergeValue(A13) &\".\"&mergeValue(B13)&\".\"&mergeValue(C13)&\".\"&mergeValue(D13)","v":"4.1.1.1.1"},"муниципальное образование",null,"Указывается наименование и код муниципального района, муниципального образования в соответствии с Общероссийским классификатором территорий муниципальных образований (далее - ОКТМО), входящего в муниципальный район, на территории которого организация оказывает услуги по регулируемому виду деятельности.\nВ случае оказания услуг по регулируемому виду деятельности на территории нескольких муниципальных районов (муниципальных образований) данные по каждому их них указываются в отдельной строке."]
[null,null,null,null,null,null,"Добавить МО"]
[null,null,null,null,null,null,"Добавить МР"]
[null,null,null,null,null,null,"Добавить территорию"]
[null,null,null,null,null,null,"Добавить ЦС"]
[]
[null,null,null,null,null,null,"  1 Информация размещается при раскрытии информации по каждой из форм."]

{"sheet":"Форма 4.2.2 | Т-передача ТН","index":24,"n_rows":34,"n_cols":26,"rows_kept":34,"cut":false,"hidden":true,"merged":[[20,3,27,3],[4,11,4,19],[8,14,8,19],[9,14,9,19],[17,0,30,0],[17,14,17,21],[18,1,29,1],[18,14,18,21],[19,2,28,2],[20,14,20,21],[21,4,26,4],[21,8,26,8],[22,5,25,5],[22,9,25,9],[22,14,22,21],[23,17,24,17],[6,14,6,19],[7,14,7,19],[13,21,15,21],[12,11,12,21],[13,11,15,11],[13,12,15,12],[13,14,13,19],[13,20,15,20],[15,18,15,19],[11,14,11,20],[14,14,15,14],[14,15,14,16],[14,17,14,19],[12,22,15,22],[23,22,25,22],[33,12,33,22],[23,19,24,19],[23,20,24,20],[19,14,19,21],[23,18,24,18],[16,18,16,19]]}
[]
[]
[]
[]
[null,null,null,null,null,null,null,null,null,null,null,"Форма 4.2.2 Информация о величинах тарифов на теплоноситель, передачу тепловой энергии, теплоносителя1"]
[]
[null,null,null,null,null,null,null,null,null,null,null,null,"Наименование органа регулирования, принявшего решение об утверждении тарифов",null,{"$f":"IF(NameOrPr_ch=\"\",IF(NameOrPr=\"\",\"\",NameOrPr),NameOrPr_ch)","v":"Государственный комитет Республики Татарстан по тарифам"}]
[null,null,null,null,null,null,null,null,null,null,null,null,"Дата документа об утверждении тарифов",null,{"$f":"IF(datePr_ch=\"\",IF(datePr=\"\",\"\",datePr),datePr_ch)","v":"13.12.2019"}]
[null,null,null,null,null,null,null,null,null,null,null,null,"Номер документа об утверждении тарифов",null,{"$f":"IF(numberPr_ch=\"\",IF(numberPr=\"\",\"\",numberPr),numberPr_ch)","v":"№5-116/тэ"}]
[null,null,null,null,null,null,null,null,null,null,null,null,"Источник официального опубликования решения",null,{"$f":"IF(IstPub_ch=\"\",IF(IstPub=\"\",\"\",IstPub),IstPub_ch)","v":"Официальный сайт правовой информации Министерства юстиции РТ:  http//pravo.tatarstan.ru (регистрационный №6359 от 20.12.2019 г.)"}]
[null,null,null,null,null,null,null,null,null,null,null,null,null,null,null,null,null,null,null,null,"dp"]
[]
[null,null,null,null,null,null,null,null,null,null,null,"Параметры формы",null,null,null,null,null,null,null,null,null,null,"Описание параметров формы"]
[null,null,null,null,null,null,null,null,null,null,null,"№ п/п","Параметр дифференциации тарифа",null,"Период действия тарифа",null,null,null,null,null,"Наличие других периодов действия тарифа","Добавить период"]
[null,null,null,null,null,null,null,null,null,null,null,null,null,null,"Одноставочный тариф, руб./Гкал (руб./куб.м)","Двухставочный тариф",null,"Период действия"]
[null,null,null,null,null,null,null,null,null,null,null,null,null,null,null,"ставка за тепловую энергию, руб./Гкал","ставка за содержание тепловой мощности, тыс. руб./Гкал/ч/мес.","дата начала","дата окончания"]
[null,null,null,null,null,null,null,null,null,null,1,"1","2","2",{"$f":"OFFSET(O17,0,-1)+1","v":3},{"$f":"OFFSET(P17,0,-1)+1","v":4},{"$f":"OFFSET(Q17,0,-1)+1","v":5},{"$f":"OFFSET(R17,0,-1)+1","v":6},{"$f":"OFFSET(S17,0,-1)+1","v":7},null,{"$f":"OFFSET(U17,0,-2)+1","v":8},{"$f":"OFFSET(V17,0,-1)","v":8},{"$f":"OFFSET(W17,0,-1)+1","v":9}]
[1,null,null,null,null,null,null,null,null,null,null,{"$f":"mergeValue(A18)","v":1},"Наименование тарифа",null,null,null,null,null,null,null,null,null,"Указывается наименование тарифа в случае нескольких тарифов.\nВ случае наличия нескольких тарифов информация по ним указывается в отдельных строках."]
[null,1,null,null,null,null,null,null,null,null,null,{"$f":"mergeValue(A19) &\".\"& mergeValue(B19)","v":"1.1"},"Территория действия тарифа",null,null,null,null,null,null,null,null,null,"Указывается наименование территории действия тарифа при наличии дифференциации тарифа по территориальному признаку.\nВ случае дифференциации тарифов по территориальному признаку информация по ним указывается в отдельных строках."]
[null,null,1,null,null,null,null,null,null,null,null,{"$f":"mergeValue(A20) &\".\"& mergeValue(B20)&\".\"& mergeValue(C20)","v":"1.1.1"},"Наименование системы теплоснабжения ",null,null,null,null,null,null,null,null,null,"Указывается наименование системы теплоснабжения при наличии дифференциации тарифа по системам теплоснабжения.\nВ случае дифференциации тарифов по системам теплоснабжения информация по ним указывается в отдельных строках."]
[null,null,null,1,null,null,null,null,null,null,null,{"$f":"mergeValue(A21) &\".\"& mergeValue(B21)&\".\"& mergeValue(C21)&\".\"& mergeValue(D21)","v":"1.1.1.1"},"Источник тепловой энергии  ",null,null,null,null,null,null,null,null,null,"Указывается наименование источника тепловой энергии\nВ случае дифференциации тарифов по источникам тепловой энергии информация по ним указывается в отдельных строках."]
[null,null,null,null,1,null,null,1,1]
[null,null,null,null,null,1,null,null,null,1,null,{"$f":"mergeValue(A23) &\".\"& mergeValue(B23)&\".\"& mergeValue(C23)&\".\"& mergeValue(D23)&\".\"&  mergeValue(F23)","v":"1.1.1.1.1"},"Группа потребителей",null,null,null,null,null,null,null,null,null,"Указывается группа потребителей при наличии дифференциации тарифа по группам потребителей.\nЗначение выбирается из перечня:\n• Организации-перепродавцы;\n• Бюджетные организации;\n• Население;\n• Прочие;\n• Без дифференциации.\nВ случае дифференциации тарифов группам потребителей информация по ним указывается в отдельных строках.",null,{"$f":"strCheckUnique(Z23:Z26)","v":""}]
[null,null,null,null,null,null,1,null,null,null,1,{"$f":"mergeValue(A24) &\".\"& mergeValue(B24)&\".\"& mergeValue(C24)&\".\"& mergeValue(D24)&\".\"& mergeValue(F24)&\".\"& mergeValue(G24)","v":"1.1.1.1.1.1"},null,null,null,null,null,null,"да",null,"нет",null,"В колонке «Параметр дифференциации тарифов» указывается вид теплоносителя.\nЗначение выбирается из перечня:\n• вода;\n• пар;\n• отборный пар, 1.2-2.5 кг/см2;\n• отборный пар, 2.5-7 кг/см2;\n• отборный пар, 7-13 кг/см2;\n• отборный пар, > 13 кг/см2;\n• острый и редуцированный пар;\n• горячая вода в системе централизованного теплоснабжения на отопление;\n• горячая вода в системе централизованного теплоснабжения на горячее водоснабжение;\n• прочее.\nПри утверждении двухставочного тарифа тариф колонка «Одноставочный тариф» не заполняется.\nПри подаче утверждении одноставочного тарифа колонки в блоке «Двухставочный тариф» не заполняются.\nИнформация в колонке «Двухставочный тариф» не указывается для тарифа на теплоноситель.\nДаты начала и окончания действия тарифов указываются в виде «ДД.ММ.ГГГГ».\nВ случае отсутствия даты окончания действия тарифа в колонке «Дата окончания» указывается «Нет».\nВ случае дифференциации тарифов по видам теплоносителя информация по ним указывается в отдельных строках.",{"$f":"strCheckDate(O25:V25)","v":""},null,{"$f":"IF(M24=\"\",\"\",M24 )","v":""}]
[null,null,null,null,null,null,null,null,null,null,null,null,null,null,null,null,{"$f":"R24 & \"-\" & T24","v":"-"}]
[null,null,null,null,null,null,null,null,null,null,null,null,"Добавить вид теплоносителя (параметры теплоносителя)"]
[null,null,null,null,null,null,null,null,null,null,null,null,"Добавить группу потребителей"]
[]
[null,null,null,null,null,null,null,null,null,null,null,null,"Добавить источник тепловой энергии"]
[null,null,null,null,null,null,null,null,null,null,null,null,"Добавить наименование системы теплоснабжения"]
[null,null,null,null,null,null,null,null,null,null,null,null,"Добавить территорию действия тарифа"]
[null,null,null,null,null,null,null,null,null,null,null,null,"Добавить наименование тарифа"]
[]
[null,null,null,null,null,null,null,null,null,null,null,1,"Для каждого вида тарифа в сфере теплоснабжения форма заполняется отдельно. При размещении информации по данной форме дополнительно указывается дата подачи заявления об утверждении тарифа и его номер. При размещении информации по данной форме дополнительно указываются: наименование органа регулирования тарифов, принявшего решение об утверждении тарифа, дата и номер документа об утверждении тарифа, источник официального опубликования решения.\n\nПо данной форме раскрывается в том числе информация о тарифах на теплоноситель в виде воды, поставляемый единой теплоснабжающей организацией потребителям и теплоснабжающими организациями другим теплоснабжающим организациям с использованием открытых систем теплоснабжения (горячего водоснабжения), за исключением случая, предусмотренного пунктом 6 части 1 статьи 23.4 Федерального закона № 190-ФЗ.\n\nПо данной форме раскрывается в том числе информация о тарифах на теплоноситель в виде воды, поставляемый теплоснабжающей организаций, теплосетевой организацией в ценовых зонах теплоснабжения другим теплоснабжающим организациям с использованием открытых систем теплоснабжения (горячего водоснабжения), за исключением случая, предусмотренного пунктом 6 части 1 статьи 23.4 Федерального закона № 190-ФЗ."]

{"sheet":"Форма 1.0.1 | Т-гор.вода","index":25,"n_rows":19,"n_cols":10,"rows_kept":19,"cut":false,"hidden":true,"merged":[[18,6,18,7],[1,5,1,7],[3,5,3,7],[3,8,4,8],[7,0,15,0],[11,2,13,2],[12,8,13,8],[10,1,14,1]]}
["5"]
[null,null,null,null,null,"Форма 1.0.1 Основные параметры раскрываемой информации 1"]
[]
[null,null,null,null,null,"Параметры формы",null,null,"Описание параметров формы"]
[null,null,null,null,null,"№ п/п","Наименование параметра","Информация"]
[null,null,null,null,null,"1",2,3,4,4]
[null,null,null,null,null,1,"Дата заполнения/внесения изменений",{"$f":"IF(dateCh=\"\",\"\",dateCh)","v":"23.12.2019"},"Указывается календарная дата первичного заполнения или внесения изменений в форму в виде «ДД.ММ.ГГГГ»."]
[1,null,null,null,null,{"$f":"\"2.\" &mergeValue(A8)","v":"2.1"},"Наименование централизованной системы коммунальной инфраструктуры",null,"Указывается наименование централизованной системы холодного водоснабжения/горячего водоснабжения/водоотведения/теплоснабжения, к которой относится размещаемая информация.\nВ случае наличия нескольких централизованных систем коммунальной инфраструктуры, информация по каждой из них указывается в отдельной строке."]
[null,null,null,null,null,{"$f":"\"3.\" &mergeValue(A9)","v":"3.1"},"Наименование регулируемого вида деятельности",null,"Указывается наименование вида регулируемой деятельности."]
[null,null,null,null,null,{"$f":"\"4.\"&mergeValue(A10)","v":"4.1"},"Территория оказания услуги по регулируемому виду деятельности","x"]
[null,1,null,null,null,{"$f":"\"4.\"&mergeValue(A11) &\".\"&mergeValue(B11)","v":"4.1.1"},"Субъект Российской Федерации",{"$f":"IF(region_name=\"\",\"\",region_name)","v":"Республика Татарстан"},"Указывается наименование субъекта Российской Федерации"]
[null,null,1,null,null,{"$f":"\"4.\"&mergeValue(A12) &\".\"&mergeValue(B12)&\".\"&mergeValue(C12)","v":"4.1.1.1"},"муниципальный район",null,"Указывается наименование муниципального района, на территории которого организация оказывает услуги по регулируемому виду деятельности."]
[null,null,null,1,null,{"$f":"\"4.\"&mergeValue(A13) &\".\"&mergeValue(B13)&\".\"&mergeValue(C13)&\".\"&mergeValue(D13)","v":"4.1.1.1.1"},"муниципальное образование",null,"Указывается наименование и код муниципального района, муниципального образования в соответствии с Общероссийским классификатором территорий муниципальных образований (далее - ОКТМО), входящего в муниципальный район, на территории которого организация оказывает услуги по регулируемому виду деятельности.\nВ случае оказания услуг по регулируемому виду деятельности на территории нескольких муниципальных районов (муниципальных образований) данные по каждому их них указываются в отдельной строке."]
[null,null,null,null,null,null,"Добавить МО"]
[null,null,null,null,null,null,"Добавить МР"]
[null,null,null,null,null,null,"Добавить территорию"]
[null,null,null,null,null,null,"Добавить ЦС"]
[]
[null,null,null,null,null,null,"  1 Информация размещается при раскрытии информации по каждой из форм."]

{"sheet":"Форма 4.2.3 | Т-гор.вода","index":26,"n_rows":36,"n_cols":32,"rows_kept":36,"cut":false,"hidden":true,"merged":[[12,27,15,27],[15,23,15,24],[17,14,17,26],[18,14,18,26],[19,14,19,26],[23,25,25,25],[8,14,8,19],[9,14,9,19],[4,11,4,19],[6,14,6,19],[7,14,7,19],[11,14,11,25],[13,11,15,11],[12,11,12,26],[20,14,20,26],[22,14,22,26],[23,22,25,22],[23,23,25,23],[22,8,27,8],[23,9,26,9],[35,12,35,22],[24,27,26,27],[14,22,14,24],[14,19,14,20],[14,17,14,18],[14,14,15,14],[14,15,15,15],[14,16,15,16],[13,12,15,12],[13,25,15,25],[13,26,15,26],[13,14,13,24],[16,23,16,24],[23,24,25,24],[17,0,32,0],[18,1,31,1],[19,2,30,2],[20,3,28,3],[23,6,26,6],[21,4,28,4],[22,5,27,5]]}
[]
[]
[]
[]
[null,null,null,null,null,null,null,null,null,null,null,"Форма 4.2.3 Информация о величинах тарифов на горячую воду (в открытых системах)1"]
[]
[null,null,null,null,null,null,null,null,null,null,null,null,"Наименование органа регулирования, принявшего решение об утверждении тарифов",null,{"$f":"IF(NameOrPr_ch=\"\",IF(NameOrPr=\"\",\"\",NameOrPr),NameOrPr_ch)","v":"Государственный комитет Республики Татарстан по тарифам"}]
[null,null,null,null,null,null,null,null,null,null,null,null,"Дата документа об утверждении тарифов",null,{"$f":"IF(datePr_ch=\"\",IF(datePr=\"\",\"\",datePr),datePr_ch)","v":"13.12.2019"}]
[null,null,null,null,null,null,null,null,null,null,null,null,"Номер документа об утверждении тарифов",null,{"$f":"IF(numberPr_ch=\"\",IF(numberPr=\"\",\"\",numberPr),numberPr_ch)","v":"№5-116/тэ"}]
[null,null,null,null,null,null,null,null,null,null,null,null,"Источник официального опубликования решения",null,{"$f":"IF(IstPub_ch=\"\",IF(IstPub=\"\",\"\",IstPub),IstPub_ch)","v":"Официальный сайт правовой информации Министерства юстиции РТ:  http//pravo.tatarstan.ru (регистрационный №6359 от 20.12.2019 г.)"}]
[null,null,null,null,null,null,null,null,null,null,null,null,null,null,null,null,null,null,null,null,null,null,null,null,null,"dp"]
[]
[null,null,null,null,null,null,null,null,null,null,null,"Параметры формы",null,null,null,null,null,null,null,null,null,null,null,null,null,null,null,"Описание параметров формы"]
[null,null,null,null,null,null,null,null,null,null,null,"№ п/п","Параметр дифференциации тарифа",null,"Период действия тарифа",null,null,null,null,null,null,null,null,null,null,"Наличие других периодов действия тарифа","Добавить период"]
[null,null,null,null,null,null,null,null,null,null,null,null,null,null,"Компонент на теплоноситель, руб./куб.м","Одноставочный компонент на тепловую энергию, руб/Гкал","Одноставочный тариф, руб./куб.м","Двухставочный тариф",null,"Двухставочный тариф",null,null,"Период действия"]
[null,null,null,null,null,null,null,null,null,null,null,null,null,null,null,null,null,"ставка за потребление горячей воды, руб./куб.м","ставка за содержание системы ГВС, тыс.руб./куб.м/ч/мес","ставка за тепловую энергию в компоненте на тепловую энергию, руб/Гкал","ставка за содержание тепловой мощности в компоненте на тепловую энергию, тыс. руб./Гкал/ч в мес.",null,"дата начала","дата окончания"]
[null,null,null,null,null,null,null,null,null,null,1,"1","2","2",{"$f":"OFFSET(O17,0,-1)+1","v":3},{"$f":"OFFSET(P17,0,-1)+1","v":4},5,6,7,8,9,{"$f":"OFFSET(V17,0,-1)","v":9},10,{"$f":"OFFSET(X17,0,-1)+1","v":11},null,{"$f":"OFFSET(Z17,0,-2)+1","v":12},null,{"$f":"OFFSET(AB17,0,-2)+1","v":13}]
[1,null,null,null,null,null,null,null,null,null,null,{"$f":"mergeValue(A18)","v":1},"Наименование тарифа",null,null,null,null,null,null,null,null,null,null,null,null,null,null,"Указывается наименование тарифа в случае утверждения нескольких тарифов.\nВ случае наличия нескольких тарифов информация по ним указывается в отдельных строках."]
[null,1,null,null,null,null,null,null,null,null,null,{"$f":"mergeValue(A19) &\".\"& mergeValue(B19)","v":"1.1"},"Территория действия тарифа",null,null,null,null,null,null,null,null,null,null,null,null,null,null,"Указывается наименование территории действия тарифа при наличии дифференциации тарифа по территориальному признаку.\nВ случае дифференциации тарифов по территориальному признаку информация по ним указывается в отдельных строках."]
[null,null,1,null,null,null,null,null,null,null,null,{"$f":"mergeValue(A20) &\".\"& mergeValue(B20)&\".\"& mergeValue(C20)","v":"1.1.1"},"Наименование системы теплоснабжения ",null,null,null,null,null,null,null,null,null,null,null,null,null,null,"Указывается наименование системы теплоснабжения при наличии дифференциации тарифа по системам теплоснабжения.\nВ случае дифференциации тарифов по системам теплоснабжения информация по ним указывается в отдельных строках."]
[null,null,null,1,null,null,null,null,null,null,null,{"$f":"mergeValue(A21) &\".\"& mergeValue(B21)&\".\"& mergeValue(C21)&\".\"& mergeValue(D21)","v":"1.1.1.1"},"Источник тепловой энергии  ",null,null,null,null,null,null,null,null,null,null,null,null,null,null,"Указывается наименование источника тепловой энергии\nВ случае дифференциации тарифов по источникам тепловой энергии информация по ним указывается в отдельных строках."]
[null,null,null,null,1]
[null,null,null,null,null,1,null,null,null,null,null,{"$f":"mergeValue(A23) &\".\"& mergeValue(B23)&\".\"& mergeValue(C23)&\".\"& mergeValue(D23)&\".\"& mergeValue(F23)","v":"1.1.1.1.1"},"Группа потребителей",null,null,null,null,null,null,null,null,null,null,null,null,null,null,"Указывается группа потребителей при наличии дифференциации тарифа по группам потребителей.\nЗначение выбирается из перечня:\n• Организации-перепродавцы;\n• Бюджетные организации;\n• Население;\n• Прочие;\n• Без дифференциации.\nВ случае дифференциации тарифов группам потребителей информация по ним указывается в отдельных строках.",null,{"$f":"strCheckUnique(AE23:AE28)","v":""}]
[null,null,null,null,null,null,1,null,null,null,null,{"$f":"mergeValue(A24) &\".\"& mergeValue(B24)&\".\"& mergeValue(C24)&\".\"& mergeValue(D24)&\".\"& mergeValue(F24)&\".\"& mergeValue(G24)","v":"1.1.1.1.1.1"},"горячая вода в системе централизованного теплоснабжения на горячее водоснабжение",null,null,null,null,null,null,null,null,{"$f":"W24 & \"-\" & Y24","v":"-"},null,"да",null,"нет",null,"Указывается вид теплоносителя. Значение выбирается из перечня:\n• вода;\n• пар;\n• отборный пар, 1.2-2.5 кг/см2;\n• отборный пар, 2.5-7 кг/см2;\n• отборный пар, 7-13 кг/см2;\n• отборный пар, > 13 кг/см2;\n• острый и редуцированный пар;\n• горячая вода в системе централизованного теплоснабжения на отопление;\n• горячая вода в системе централизованного теплоснабжения на горячее водоснабжение;\n• прочее.\nВ случае дифференциации тарифов по видам теплоносителя информация по ним указывается в отдельных строках.",{"$f":"strCheckDate(O24:AA24)","v":""},null,{"$f":"IF(M24=\"\",\"\",M24 )","v":"горячая вода в системе централизованного теплоснабжения на горячее водоснабжение"}]
[null,null,null,null,null,null,null,1,null,null,null,{"$f":"mergeValue(A25) &\".\"& mergeValue(B25)&\".\"& mergeValue(C25)&\".\"& mergeValue(D25)&\".\"& mergeValue(F25)&\".\"& mergeValue(G25)&\".\"& mergeValue(H25)","v":"1.1.1.1.1.1.1"},null,null,null,null,null,null,null,null,null,{"$f":"W25 & \"-\" & Y25","v":"-"},null,null,null,null,null,"В колонке «Параметр дифференциации тарифов» указывается наименование поставщика в случае наличия дифференциации компонента двухставочного тарифа на горячую воду по поставщикам.\nПри утверждении двухставочного тарифа колонка «Одноставочный тариф» не заполняется.\nПри утверждении одноставочного тарифа колонки в блоке «Двухставочный тариф» не заполняются.\nВ случае отсутствия разбивки тарифа на компоненты колонки «Компонент на теплоноситель, руб./куб.м» и «Одноставочный компонент на тепловую энергию, руб/Гкал» не заполняются.\nДаты начала и окончания действия тарифов указываются в виде «ДД.ММ.ГГГГ».\nВ случае отсутствия даты окончания действия тарифа в колонке «Дата окончания» указывается «Нет».\nВ случае дифференциации тарифов по поставщикам информация по ним указывается в отдельных строках.\n",{"$f":"strCheckDate(O25:AA25)","v":""}]
[null,null,null,null,null,null,null,null,null,null,null,null,null,null,null,null,null,null,null,null,null,null,null,null,null,null,null,null,null,null,null,{"$f":"OFFSET(AF26,-1,0)","v":0}]
[null,null,null,null,null,null,null,null,null,null,null,null,"Добавить поставщика"]
[null,null,null,null,null,null,null,null,null,null,null,null,"Добавить вид теплоносителя (параметры теплоносителя)"]
[null,null,null,null,null,null,null,null,null,null,null,null,"Добавить группу потребителей"]
[]
[null,null,null,null,null,null,null,null,null,null,null,null,"Добавить источник тепловой энергии"]
[null,null,null,null,null,null,null,null,null,null,null,null,"Добавить наименование системы теплоснабжения"]
[null,null,null,null,null,null,null,null,null,null,null,null,"Добавить территорию действия тарифа"]
[null,null,null,null,null,null,null,null,null,null,null,null,"Добавить наименование тарифа"]
[]
[null,null,null,null,null,null,null,null,null,null,null,1,"При размещении информации по данной форме дополнительно указываются: наименование органа регулирования тарифов, принявшего решение об утверждении тарифа, дата и номер документа об утверждении тарифа, источник официального опубликования решения.\n\nПо данной форме раскрывается в том числе информация о тарифах на горячую воду, поставляемую единой теплоснабжающей организацией потребителям с использованием открытых систем теплоснабжения (горячего водоснабжения), установленных в виде формулы двухкомпонентного тарифа с использованием компонента на теплоноситель и компонента на тепловую энергию, в том числе о числовых значениях компонентов указанного тарифа.\n\nПо данной форме раскрывается в том числе информация о тарифах на товары (услуги) в сфере теплоснабжения в случаях, указанных в частях 12.1 - 12.4 статьи 10 Федерального закона № 190-ФЗ, теплоснабжающей организации, теплосетевой организации в ценовых зонах теплоснабжения."]

{"sheet":"Форма 1.0.1 | Т-подкл","index":27,"n_rows":19,"n_cols":10,"rows_kept":19,"cut":false,"hidden":true,"merged":[[18,6,18,7],[1,5,1,7],[3,5,3,7],[3,8,4,8],[7,0,15,0],[11,2,13,2],[12,8,13,8],[10,1,14,1]]}
["10"]
[null,null,null,null,null,"Форма 1.0.1 Основные параметры раскрываемой информации 1"]
[]
[null,null,null,null,null,"Параметры формы",null,null,"Описание параметров формы"]
[null,null,null,null,null,"№ п/п","Наименование параметра","Информация"]
[null,null,null,null,null,"1",2,3,4,4]
[null,null,null,null,null,1,"Дата заполнения/внесения изменений",{"$f":"IF(dateCh=\"\",\"\",dateCh)","v":"23.12.2019"},"Указывается календарная дата первичного заполнения или внесения изменений в форму в виде «ДД.ММ.ГГГГ»."]
[1,null,null,null,null,{"$f":"\"2.\" &mergeValue(A8)","v":"2.1"},"Наименование централизованной системы коммунальной инфраструктуры",null,"Указывается наименование централизованной системы холодного водоснабжения/горячего водоснабжения/водоотведения/теплоснабжения, к которой относится размещаемая информация.\nВ случае наличия нескольких централизованных систем коммунальной инфраструктуры, информация по каждой из них указывается в отдельной строке."]
[null,null,null,null,null,{"$f":"\"3.\" &mergeValue(A9)","v":"3.1"},"Наименование регулируемого вида деятельности",null,"Указывается наименование вида регулируемой деятельности."]
[null,null,null,null,null,{"$f":"\"4.\"&mergeValue(A10)","v":"4.1"},"Территория оказания услуги по регулируемому виду деятельности","x"]
[null,1,null,null,null,{"$f":"\"4.\"&mergeValue(A11) &\".\"&mergeValue(B11)","v":"4.1.1"},"Субъект Российской Федерации",{"$f":"IF(region_name=\"\",\"\",region_name)","v":"Республика Татарстан"},"Указывается наименование субъекта Российской Федерации"]
[null,null,1,null,null,{"$f":"\"4.\"&mergeValue(A12) &\".\"&mergeValue(B12)&\".\"&mergeValue(C12)","v":"4.1.1.1"},"муниципальный район",null,"Указывается наименование муниципального района, на территории которого организация оказывает услуги по регулируемому виду деятельности."]
[null,null,null,1,null,{"$f":"\"4.\"&mergeValue(A13) &\".\"&mergeValue(B13)&\".\"&mergeValue(C13)&\".\"&mergeValue(D13)","v":"4.1.1.1.1"},"муниципальное образование",null,"Указывается наименование и код муниципального района, муниципального образования в соответствии с Общероссийским классификатором территорий муниципальных образований (далее - ОКТМО), входящего в муниципальный район, на территории которого организация оказывает услуги по регулируемому виду деятельности.\nВ случае оказания услуг по регулируемому виду деятельности на территории нескольких муниципальных районов (муниципальных образований) данные по каждому их них указываются в отдельной строке."]
[null,null,null,null,null,null,"Добавить МО"]
[null,null,null,null,null,null,"Добавить МР"]
[null,null,null,null,null,null,"Добавить территорию"]
[null,null,null,null,null,null,"Добавить ЦС"]
[]
[null,null,null,null,null,null,"  1 Информация размещается при раскрытии информации по каждой из форм."]

{"sheet":"Форма 4.2.4 | Т-подкл","index":28,"n_rows":33,"n_cols":35,"rows_kept":33,"cut":false,"hidden":true,"merged":[[4,11,4,19],[6,13,6,19],[13,32,16,32],[14,25,14,29],[14,30,16,30],[14,31,16,31],[11,11,11,12],[11,14,11,19],[12,14,12,19],[12,25,12,30],[7,13,7,19],[8,13,8,19],[9,13,9,19],[13,11,13,31],[14,11,16,11],[14,12,16,12],[17,28,17,29],[17,13,17,16],[17,17,17,20],[18,0,29,0],[18,13,18,31],[19,1,28,1],[19,13,19,31],[20,2,27,2],[20,13,20,31],[21,3,26,3],[21,13,21,31],[22,20,23,20],[22,4,25,4],[22,10,25,10],[22,11,25,11],[22,12,25,12],[14,13,16,16],[14,17,16,20],[16,28,16,29],[14,21,16,24],[15,25,15,26],[15,27,15,29],[22,32,26,32],[32,12,32,32],[22,21,23,21],[22,27,23,27],[22,28,23,28],[22,29,23,29],[22,30,23,30],[22,15,24,15],[22,16,24,16],[22,17,24,17],[22,18,23,18],[22,19,23,19],[22,14,24,14],[22,13,25,13]]}
[]
[]
[]
[]
[null,null,null,null,null,null,null,null,null,null,null,"Форма 4.2.4 Информация о величинах тарифов на подключение к системе теплоснабжения1"]
[]
[null,null,null,null,null,null,null,null,null,null,null,null,"Наименование органа регулирования, принявшего решение об утверждении тарифов",{"$f":"IF(NameOrPr_ch=\"\",IF(NameOrPr=\"\",\"\",NameOrPr),NameOrPr_ch)","v":"Государственный комитет Республики Татарстан по тарифам"}]
[null,null,null,null,null,null,null,null,null,null,null,null,"Дата документа об утверждении тарифов",{"$f":"IF(datePr_ch=\"\",IF(datePr=\"\",\"\",datePr),datePr_ch)","v":"13.12.2019"}]
[null,null,null,null,null,null,null,null,null,null,null,null,"Номер документа об утверждении тарифов",{"$f":"IF(numberPr_ch=\"\",IF(numberPr=\"\",\"\",numberPr),numberPr_ch)","v":"№5-116/тэ"}]
[null,null,null,null,null,null,null,null,null,null,null,null,"Источник официального опубликования решения",{"$f":"IF(IstPub_ch=\"\",IF(IstPub=\"\",\"\",IstPub),IstPub_ch)","v":"Официальный сайт правовой информации Министерства юстиции РТ:  http//pravo.tatarstan.ru (регистрационный №6359 от 20.12.2019 г.)"}]
[null,null,null,null,null,null,null,null,null,null,null,null,null,null,null,null,null,null,null,null,null,null,null,null,null,"NDS","woNDS"]
[null,null,null,null,null,null,null,null,null,null,null,null,null,null,null,null,null,null,null,null,null,null,null,null,null,null,null,null,null,null,"dp"]
[]
[null,null,null,null,null,null,null,null,null,null,null,"Параметры формы",null,null,null,null,null,null,null,null,null,null,null,null,null,null,null,null,null,null,null,null,"Описание параметров формы"]
[null,null,null,null,null,null,null,null,null,null,null,"№ п/п","Параметр дифференциации тарифа/Заявитель","Подключаемая тепловая нагрузка, Гкал/ч",null,null,null,"Тип прокладки тепловых сетей",null,null,null,"Диаметр тепловых сетей",null,null,null,"Период действия тарифа",null,null,null,null,"Наличие других периодов действия тарифа","Добавить период"]
[null,null,null,null,null,null,null,null,null,null,null,null,null,null,null,null,null,null,null,null,null,null,null,null,null,"Плата за подключение (технологическое присоединение), тыс. руб./Гкал/ч (руб.)",null,"Период действия"]
[null,null,null,null,null,null,null,null,null,null,null,null,null,null,null,null,null,null,null,null,null,null,null,null,null,"с НДС","без НДС","дата начала","дата окончания"]
[null,null,null,null,null,null,null,null,null,null,1,"1","2",{"$f":"OFFSET(N18,0,-1)+1","v":3},null,null,null,{"$f":"OFFSET(N18,0,0)+1","v":4},null,null,null,null,null,null,{"$f":"OFFSET(R18,0,0)+1","v":5},{"$f":"OFFSET(Z18,0,-1)+1","v":6},{"$f":"OFFSET(AA18,0,-1)+1","v":7},{"$f":"OFFSET(AB18,0,-1)+1","v":8},{"$f":"OFFSET(AC18,0,-1)+1","v":9},null,{"$f":"OFFSET(AE18,0,-2)+1","v":10},null,{"$f":"OFFSET(AG18,0,-2)+1","v":11}]
[1,null,null,null,null,null,null,null,null,null,null,{"$f":"mergeValue(A19)","v":1},"Наименование тарифа",null,null,null,null,null,null,null,null,null,null,null,null,null,null,null,null,null,null,null,"Указывается наименование тарифа в случае утверждения нескольких тарифов.\nВ случае наличия нескольких тарифов информация по ним указывается в отдельных строках."]
[null,1,null,null,null,null,null,null,null,null,null,{"$f":"mergeValue(A20) &\".\"& mergeValue(B20)","v":"1.1"},"Территория действия тарифа",null,null,null,null,null,null,null,null,null,null,null,null,null,null,null,null,null,null,null,"Указывается наименование территории действия тарифа при наличии дифференциации тарифа по территориальному признаку.\nВ случае дифференциации тарифов по территориальному признаку информация по ним указывается в отдельных строках."]
[null,null,1,null,null,null,null,null,null,null,null,{"$f":"mergeValue(A21) &\".\"& mergeValue(B21)&\".\"& mergeValue(C21)","v":"1.1.1"},"Наименование системы теплоснабжения ",null,null,null,null,null,null,null,null,null,null,null,null,null,null,null,null,null,null,null,"Указывается наименование системы теплоснабжения при наличии дифференциации тарифа по системам теплоснабжения.\nВ случае дифференциации тарифов по системам теплоснабжения информация по ним указывается в отдельных строках."]
[null,null,null,1,null,null,null,null,null,null,null,{"$f":"mergeValue(A22) &\".\"& mergeValue(B22)&\".\"& mergeValue(C22)&\".\"& mergeValue(D22)","v":"1.1.1.1"},"Источник тепловой энергии  ",null,null,null,null,null,null,null,null,null,null,null,null,null,null,null,null,null,null,null,"Указывается наименование источника тепловой энергии"]
[null,null,null,null,1,null,null,null,null,null,null,{"$f":"mergeValue(A23) &\".\"& mergeValue(B23)&\".\"& mergeValue(C23)&\".\"& mergeValue(D23)&\".\"& mergeValue(E23)","v":"1.1.1.1.1"},null,"нет",null,1,null,"нет",null,1,null,"нет",null,1,null,null,null,null,"да",null,"нет",null,"В колодке «Параметр дифференциации тарифа/Заявитель» указывается наименование категории потребителей, к которой относится тариф.\nДаты начала и окончания указываются в виде «ДД.ММ.ГГГГ».\nВ случае отсутствия даты окончания тарифа в колонке «Дата окончания» указывается «Нет».\nВ случае наличия дифференциации по подключаемой нагрузке, диапазону диаметров, типу прокладки тепловых сетей, информация по ним указывается в отдельных строках.\nВ случае дифференциации тарифов по периодам действия тарифа информация по ним указывается в отдельных колонках.",{"$f":"strCheckDate(Z24:AF24)","v":""},{"$f":"IF(AND(COUNTIF(AJ18:AJ27,AJ23)>1,AJ23<>\"\"),\"ErrUnique:HasDoubleConn\",\"\")","v":""}]
[null,null,null,null,null,null,null,null,null,null,null,null,null,null,null,null,null,null,null,null,null,null,null,null,null,null,{"$f":"AB23 & \"-\" & AD23","v":"-"}]
[]
[]
[null,null,null,null,null,null,null,null,null,null,null,null,"Добавить строку"]
[null,null,null,null,null,null,null,null,null,null,null,null,"Добавить источник тепловой энергии"]
[null,null,null,null,null,null,null,null,null,null,null,null,"Добавить наименование системы теплоснабжения"]
[null,null,null,null,null,null,null,null,null,null,null,null,"Добавить территорию действия тарифа"]
[null,null,null,null,null,null,null,null,null,null,null,null,"Добавить наименование тарифа"]
[]
[null,null,null,null,null,null,null,null,null,null,null,1,"При размещении информации по данной форме дополнительно указываются: наименование органа регулирования тарифов, принявшего решение об утверждении тарифа, дата и номер документа об утверждении тарифа, источник официального опубликования решения.\n\nПо данной форме раскрывается в том числе информация о плате за подключение (технологическое присоединение) к системе теплоснабжения, применяемой в случае, установленном частью 9 статьи 23.4 Федерального закона 190-ФЗ.\n\nПо данной форме раскрывается в том числе информация о тарифах на товары (услуги) в сфере теплоснабжения в случаях, указанных в частях 12.1 - 12.4 статьи 10 Федерального закона № 190-ФЗ, теплоснабжающей организации, теплосетевой организации в ценовых зонах теплоснабжения."]

{"sheet":"Форма 1.0.1 | Т-подкл(инд)","index":29,"n_rows":19,"n_cols":10,"rows_kept":19,"cut":false,"hidden":true,"merged":[[18,6,18,7],[1,5,1,7],[3,5,3,7],[3,8,4,8],[7,0,15,0],[11,2,13,2],[12,8,13,8],[10,1,14,1]]}
["9"]
[null,null,null,null,null,"Форма 1.0.1 Основные параметры раскрываемой информации 1"]
[]
[null,null,null,null,null,"Параметры формы",null,null,"Описание параметров формы"]
[null,null,null,null,null,"№ п/п","Наименование параметра","Информация"]
[null,null,null,null,null,"1",2,3,4,4]
[null,null,null,null,null,1,"Дата заполнения/внесения изменений",{"$f":"IF(dateCh=\"\",\"\",dateCh)","v":"23.12.2019"},"Указывается календарная дата первичного заполнения или внесения изменений в форму в виде «ДД.ММ.ГГГГ»."]
[1,null,null,null,null,{"$f":"\"2.\" &mergeValue(A8)","v":"2.1"},"Наименование централизованной системы коммунальной инфраструктуры",null,"Указывается наименование централизованной системы холодного водоснабжения/горячего водоснабжения/водоотведения/теплоснабжения, к которой относится размещаемая информация.\nВ случае наличия нескольких централизованных систем коммунальной инфраструктуры, информация по каждой из них указывается в отдельной строке."]
[null,null,null,null,null,{"$f":"\"3.\" &mergeValue(A9)","v":"3.1"},"Наименование регулируемого вида деятельности",null,"Указывается наименование вида регулируемой деятельности."]
[null,null,null,null,null,{"$f":"\"4.\"&mergeValue(A10)","v":"4.1"},"Территория оказания услуги по регулируемому виду деятельности","x"]
[null,1,null,null,null,{"$f":"\"4.\"&mergeValue(A11) &\".\"&mergeValue(B11)","v":"4.1.1"},"Субъект Российской Федерации",{"$f":"IF(region_name=\"\",\"\",region_name)","v":"Республика Татарстан"},"Указывается наименование субъекта Российской Федерации"]
[null,null,1,null,null,{"$f":"\"4.\"&mergeValue(A12) &\".\"&mergeValue(B12)&\".\"&mergeValue(C12)","v":"4.1.1.1"},"муниципальный район",null,"Указывается наименование муниципального района, на территории которого организация оказывает услуги по регулируемому виду деятельности."]
[null,null,null,1,null,{"$f":"\"4.\"&mergeValue(A13) &\".\"&mergeValue(B13)&\".\"&mergeValue(C13)&\".\"&mergeValue(D13)","v":"4.1.1.1.1"},"муниципальное образование",null,"Указывается наименование и код муниципального района, муниципального образования в соответствии с Общероссийским классификатором территорий муниципальных образований (далее - ОКТМО), входящего в муниципальный район, на территории которого организация оказывает услуги по регулируемому виду деятельности.\nВ случае оказания услуг по регулируемому виду деятельности на территории нескольких муниципальных районов (муниципальных образований) данные по каждому их них указываются в отдельной строке."]
[null,null,null,null,null,null,"Добавить МО"]
[null,null,null,null,null,null,"Добавить МР"]
[null,null,null,null,null,null,"Добавить территорию"]
[null,null,null,null,null,null,"Добавить ЦС"]
[]
[null,null,null,null,null,null,"  1 Информация размещается при раскрытии информации по каждой из форм."]

{"sheet":"Форма 4.2.5 | Т-подкл(инд)","index":30,"n_rows":31,"n_cols":25,"rows_kept":31,"cut":false,"hidden":true,"merged":[[18,0,27,0],[18,14,18,22],[19,1,26,1],[19,14,19,22],[20,2,25,2],[21,3,24,3],[21,14,21,22],[4,11,4,19],[17,19,17,20],[14,21,16,21],[14,22,16,22],[14,11,16,11],[14,12,16,12],[14,14,16,14],[16,19,16,20],[11,11,11,12],[12,16,12,21],[8,14,8,19],[9,14,9,19],[30,12,30,23],[14,15,16,15],[13,11,13,22],[6,14,6,19],[7,14,7,19],[14,16,14,20],[15,18,15,20],[15,16,15,17],[20,14,20,22],[13,23,16,23],[22,23,24,23]]}
[]
[]
[]
[]
[null,null,null,null,null,null,null,null,null,null,null,"Форма 4.2.5 Информация о плате за подключение к системе теплоснабжения в индивидуальном порядке1"]
[]
[null,null,null,null,null,null,null,null,null,null,null,null,"Наименование органа регулирования, принявшего решение об утверждении тарифов",null,{"$f":"IF(NameOrPr_ch=\"\",IF(NameOrPr=\"\",\"\",NameOrPr),NameOrPr_ch)","v":"Государственный комитет Республики Татарстан по тарифам"}]
[null,null,null,null,null,null,null,null,null,null,null,null,"Дата документа об утверждении тарифов",null,{"$f":"IF(datePr_ch=\"\",IF(datePr=\"\",\"\",datePr),datePr_ch)","v":"13.12.2019"}]
[null,null,null,null,null,null,null,null,null,null,null,null,"Номер документа об утверждении тарифов",null,{"$f":"IF(numberPr_ch=\"\",IF(numberPr=\"\",\"\",numberPr),numberPr_ch)","v":"№5-116/тэ"}]
[null,null,null,null,null,null,null,null,null,null,null,null,"Источник официального опубликования решения",null,{"$f":"IF(IstPub_ch=\"\",IF(IstPub=\"\",\"\",IstPub),IstPub_ch)","v":"Официальный сайт правовой информации Министерства юстиции РТ:  http//pravo.tatarstan.ru (регистрационный №6359 от 20.12.2019 г.)"}]
[null,null,null,null,null,null,null,null,null,null,null,null,null,null,null,null,"NDS","woNDS"]
[null,null,null,null,null,null,null,null,null,null,null,null,null,null,null,null,null,null,null,null,null,"dp"]
[]
[null,null,null,null,null,null,null,null,null,null,null,"Параметры формы",null,null,null,null,null,null,null,null,null,null,null,"Описание параметров формы"]
[null,null,null,null,null,null,null,null,null,null,null,"№ п/п","Заявитель",null,"Наименование объекта, адрес","Подключаемая тепловая нагрузка, Гкал/ч","Период действия тарифа",null,null,null,null,"Наличие других периодов действия тарифа","Добавить период"]
[null,null,null,null,null,null,null,null,null,null,null,null,null,null,null,null,"Плата за подключение (технологическое присоединение), тыс. руб./Гкал/ч (руб.)",null,"Период действия"]
[null,null,null,null,null,null,null,null,null,null,null,null,null,null,null,null,"с НДС","без НДС","дата начала","дата окончания"]
[null,null,null,null,null,null,null,null,null,null,1,"1","2","2",{"$f":"OFFSET(O18,0,-1)+1","v":3},4,5,6,7,8,null,{"$f":"OFFSET(V18,0,-2)+1","v":9},null,{"$f":"OFFSET(X18,0,-2)+1","v":10}]
[1,null,null,null,null,null,null,null,null,null,null,{"$f":"mergeValue(A19)","v":1},"Наименование тарифа",null,null,null,null,null,null,null,null,null,null,"Указывается наименование тарифа в случае утверждения нескольких тарифов.\nВ случае наличия нескольких тарифов информация по ним указывается в отдельных строках."]
[null,1,null,null,null,null,null,null,null,null,null,{"$f":"mergeValue(A20) &\".\"& mergeValue(B20)","v":"1.1"},"Территория действия тарифа",null,null,null,null,null,null,null,null,null,null,"Указывается наименование территории действия тарифа при наличии дифференциации тарифа по территориальному признаку.\nВ случае дифференциации тарифов по территориальному признаку информация по ним указывается в отдельных строках."]
[null,null,1,null,null,null,null,null,null,null,null,{"$f":"mergeValue(A21) &\".\"& mergeValue(B21)&\".\"& mergeValue(C21)","v":"1.1.1"},"Наименование системы теплоснабжения ",null,null,null,null,null,null,null,null,null,null,"Указывается наименование системы теплоснабжения при наличии дифференциации тарифа по системам теплоснабжения.\nВ случае дифференциации тарифов по системам теплоснабжения информация по ним указывается в отдельных строках."]
[null,null,null,1,null,null,null,null,null,null,null,{"$f":"mergeValue(A22) &\".\"& mergeValue(B22)&\".\"& mergeValue(C22)&\".\"& mergeValue(D22)","v":"1.1.1.1"},"Источник тепловой энергии  ",null,null,null,null,null,null,null,null,null,null,"Указывается наименование источника тепловой энергии."]
[null,null,null,null,1,null,null,null,null,null,null,{"$f":"mergeValue(A23) &\".\"& mergeValue(B23)&\".\"& mergeValue(C23)&\".\"& mergeValue(D23)&\".\"& mergeValue(E23)","v":"1.1.1.1.1"},null,null,null,null,null,null,null,"нет",null,"нет",null,"В колонке «Заявитель» указывается наименование заявителя, к которой относится тариф.\nДаты начала и окончания указываются в виде «ДД.ММ.ГГГГ».\nВ случае отсутствия даты окончания тарифа в колонке «Дата окончания» указывается «Нет».\nВ случае наличия дифференциации по категориям потребителей/заявителям информация по ним указывается в отдельных строках.\nВ случае дифференциации по периодам действия тарифа информация по ним указывается в отдельных колонках.",{"$f":"strCheckDateTwo(N23:W23)","v":""}]
[null,null,null,null,null,null,null,null,null,null,null,null,null,null,null,null,null,{"$f":"S23 & \"-\" & U23","v":"-"}]
[null,null,null,null,null,null,null,null,null,null,null,null,"Добавить строку"]
[null,null,null,null,null,null,null,null,null,null,null,null,"Добавить источник тепловой энергии"]
[null,null,null,null,null,null,null,null,null,null,null,null,"Добавить наименование системы теплоснабжения"]
[null,null,null,null,null,null,null,null,null,null,null,null,"Добавить территорию действия тарифа"]
[null,null,null,null,null,null,null,null,null,null,null,null,"Добавить наименование тарифа"]
[]
[null,null,null,null,null,null,null,null,null,null,null,1,"При размещении информации по данной форме дополнительно указываются: наименование органа регулирования тарифов, принявшего решение об утверждении тарифа, дата и номер документа об утверждении тарифа, источник официального опубликования решения.\n\nПо данной форме раскрывается в том числе информация о тарифах на товары (услуги) в сфере теплоснабжения в случаях, указанных в частях 12.1 - 12.4 статьи 10 Федерального закона № 190-ФЗ, теплоснабжающей организации, теплосетевой организации в ценовых зонах теплоснабжения.\n"]

{"sheet":"Форма 1.0.1 | Форма 4.7","index":31,"n_rows":15,"n_cols":10,"rows_kept":15,"cut":false,"hidden":true,"merged":[[14,6,14,7],[1,5,1,7],[3,5,3,7],[3,8,4,8],[7,0,12,0],[10,1,12,1],[11,2,12,2]]}
["11"]
[null,null,null,null,null,"Форма 1.0.1 Основные параметры раскрываемой информации 1"]
[]
[null,null,null,null,null,"Параметры формы",null,null,"Описание параметров формы"]
[null,null,null,null,null,"№ п/п","Наименование параметра","Информация"]
[null,null,null,null,null,"1",2,3,4,4]
[null,null,null,null,null,1,"Дата заполнения/внесения изменений",{"$f":"IF(dateCh=\"\",\"\",dateCh)","v":"23.12.2019"},"Указывается календарная дата первичного заполнения или внесения изменений в форму в виде «ДД.ММ.ГГГГ»."]
[1,null,null,null,null,{"$f":"\"2.\" &mergeValue(A8)","v":"2.1"},"Наименование централизованной системы коммунальной инфраструктуры",{"$f":"IF('Перечень тарифов'!R21=\"\",\"наименование отсутствует\",\"\" & 'Перечень тарифов'!R21 & \"\")","v":"наименование отсутствует"},"Указывается наименование централизованной системы холодного водоснабжения/горячего водоснабжения/водоотведения/теплоснабжения, к которой относится размещаемая информация.\nВ случае наличия нескольких централизованных систем коммунальной инфраструктуры, информация по каждой из них указывается в отдельной строке."]
[null,null,null,null,null,{"$f":"\"3.\" &mergeValue(A9)","v":"3.1"},"Наименование регулируемого вида деятельности",{"$f":"IF('Перечень тарифов'!F21=\"\",\"наименование отсутствует\",\"\" & 'Перечень тарифов'!F21 & \"\")","v":"Передача. Тепловая энергия"},"Указывается наименование вида регулируемой деятельности."]
[null,null,null,null,null,{"$f":"\"4.\"&mergeValue(A10)","v":"4.1"},"Территория оказания услуги по регулируемому виду деятельности","x"]
[null,1,null,null,null,{"$f":"\"4.\"&mergeValue(A11) &\".\"&mergeValue(B11)","v":"4.1.1"},"Субъект Российской Федерации",{"$f":"IF(region_name=\"\",\"\",region_name)","v":"Республика Татарстан"},"Указывается наименование субъекта Российской Федерации"]
[null,null,1,null,null,{"$f":"\"4.\"&mergeValue(A12) &\".\"&mergeValue(B12)&\".\"&mergeValue(C12)","v":"4.1.1.1"},"муниципальный район",{"$f":"IF(Территории!H13=\"\",\"\",\"\" & Территории!H13 & \"\")","v":"Город Казань"},"Указывается наименование муниципального района, на территории которого организация оказывает услуги по регулируемому виду деятельности."]
[null,null,null,1,null,{"$f":"\"4.\"&mergeValue(A13) &\".\"&mergeValue(B13)&\".\"&mergeValue(C13)&\".\"&mergeValue(D13)","v":"4.1.1.1.1"},"муниципальное образование",{"$f":"IF(Территории!R14=\"\",\"\",\"\" & Территории!R14 & \"\")","v":"Город Казань (92701000)"},"Указывается наименование и код муниципального района, муниципального образования в соответствии с Общероссийским классификатором территорий муниципальных образований (далее - ОКТМО), входящего в муниципальный район, на территории которого организация оказывает услуги по регулируемому виду деятельности.\nВ случае оказания услуг по регулируемому виду деятельности на территории нескольких муниципальных районов (муниципальных образований) данные по каждому их них указываются в отдельной строке."]
[]
[null,null,null,null,null,null,"  1 Информация размещается при раскрытии информации по каждой из форм."]

{"sheet":"Форма 4.7","index":32,"n_rows":21,"n_cols":7,"rows_kept":21,"cut":false,"hidden":true,"merged":[[14,6,15,6],[6,3,6,5],[6,6,7,6],[11,6,12,6],[4,3,4,5]]}
[]
[]
[]
[]
[null,null,null,"Форма 4.7 Информация об условиях, на которых осуществляется поставка товаров и (или) оказание услуг*"]
[]
[null,null,null,"Параметры формы",null,null,"Описание параметров формы"]
[null,null,null,"№ п/п","Наименование параметра","Ссылка на документ"]
[null,null,null,"1","2","3","4"]
[null,null,null,1,"Сведения об условиях публичных договоров поставок товаров, оказания услуг, в том числе договоров о подключении к системе теплоснабжения","x"]
[null,null,null,"1.1","форма публичного договора поставки товаров, оказания услуг","x"]
[null,null,null,"1.1.1",null,null,"Указывается форма договора, используемая регулируемой организацией, в виде ссылки на документ, предварительно загруженный в хранилище файлов ФГИС ЕИАС.\nВ случае наличия нескольких форм таких договоров информация по каждой из них указывается в отдельной строке."]
[null,null,null,null,"Добавить сведения"]
[null,null,null,"1.2","договор о подключении к системе теплоснабжения","x"]
[null,null,null,"1.2.1",null,null,"Информация размещается в случае, если организация осуществляет услуги по подключению (технологическому присоединению) к системе теплоснабжения.\nУказывается ссылка на документ, предварительно загруженный в хранилище файлов ФГИС ЕИАС.\nВ случае наличия нескольких договоров о подключении к системе теплоснабжения информация по каждому из них указывается в отдельной строке."]
[null,null,null,null,"Добавить сведения"]
[null,null,null,"1.3","прочие договора","x"]
[null,null,null,"1.3.0"]
[null,null,null,null,"Добавить сведения"]
[]
[null,null,null,"*","Указывается информация в части поставки товаров (оказания услуг) по регулируемым ценам (тарифам)"]

{"sheet":"Форма 1.0.1 | Форма 4.8","index":33,"n_rows":15,"n_cols":10,"rows_kept":15,"cut":false,"hidden":false,"merged":[[14,6,14,7],[1,5,1,7],[3,5,3,7],[3,8,4,8],[7,0,12,0],[10,1,12,1],[11,2,12,2]]}
["11"]
[null,null,null,null,null,"Форма 1.0.1 Основные параметры раскрываемой информации 1"]
[]
[null,null,null,null,null,"Параметры формы",null,null,"Описание параметров формы"]
[null,null,null,null,null,"№ п/п","Наименование параметра","Информация"]
[null,null,null,null,null,"1",2,3,4,4]
[null,null,null,null,null,1,"Дата заполнения/внесения изменений",{"$f":"IF(dateCh=\"\",\"\",dateCh)","v":"23.12.2019"},"Указывается календарная дата первичного заполнения или внесения изменений в форму в виде «ДД.ММ.ГГГГ»."]
[1,null,null,null,null,{"$f":"\"2.\" &mergeValue(A8)","v":"2.1"},"Наименование централизованной системы коммунальной инфраструктуры",{"$f":"IF('Перечень тарифов'!R21=\"\",\"наименование отсутствует\",\"\" & 'Перечень тарифов'!R21 & \"\")","v":"наименование отсутствует"},"Указывается наименование централизованной системы холодного водоснабжения/горячего водоснабжения/водоотведения/теплоснабжения, к которой относится размещаемая информация.\nВ случае наличия нескольких централизованных систем коммунальной инфраструктуры, информация по каждой из них указывается в отдельной строке."]
[null,null,null,null,null,{"$f":"\"3.\" &mergeValue(A9)","v":"3.1"},"Наименование регулируемого вида деятельности",{"$f":"IF('Перечень тарифов'!F21=\"\",\"наименование отсутствует\",\"\" & 'Перечень тарифов'!F21 & \"\")","v":"Передача. Тепловая энергия"},"Указывается наименование вида регулируемой деятельности."]
[null,null,null,null,null,{"$f":"\"4.\"&mergeValue(A10)","v":"4.1"},"Территория оказания услуги по регулируемому виду деятельности","x"]
[null,1,null,null,null,{"$f":"\"4.\"&mergeValue(A11) &\".\"&mergeValue(B11)","v":"4.1.1"},"Субъект Российской Федерации",{"$f":"IF(region_name=\"\",\"\",region_name)","v":"Республика Татарстан"},"Указывается наименование субъекта Российской Федерации"]
[null,null,1,null,null,{"$f":"\"4.\"&mergeValue(A12) &\".\"&mergeValue(B12)&\".\"&mergeValue(C12)","v":"4.1.1.1"},"муниципальный район",{"$f":"IF(Территории!H13=\"\",\"\",\"\" & Территории!H13 & \"\")","v":"Город Казань"},"Указывается наименование муниципального района, на территории которого организация оказывает услуги по регулируемому виду деятельности."]
[null,null,null,1,null,{"$f":"\"4.\"&mergeValue(A13) &\".\"&mergeValue(B13)&\".\"&mergeValue(C13)&\".\"&mergeValue(D13)","v":"4.1.1.1.1"},"муниципальное образование",{"$f":"IF(Территории!R14=\"\",\"\",\"\" & Территории!R14 & \"\")","v":"Город Казань (92701000)"},"Указывается наименование и код муниципального района, муниципального образования в соответствии с Общероссийским классификатором территорий муниципальных образований (далее - ОКТМО), входящего в муниципальный район, на территории которого организация оказывает услуги по регулируемому виду деятельности.\nВ случае оказания услуг по регулируемому виду деятельности на территории нескольких муниципальных районов (муниципальных образований) данные по каждому их них указываются в отдельной строке."]
[]
[null,null,null,null,null,null,"  1 Информация размещается при раскрытии информации по каждой из форм."]

{"sheet":"Форма 4.8","index":34,"n_rows":38,"n_cols":12,"rows_kept":38,"cut":false,"hidden":false,"merged":[[37,4,37,8],[33,4,33,7],[24,4,24,7],[27,4,27,7],[30,4,30,7],[25,8,26,8],[28,8,29,8],[31,8,32,8],[34,8,35,8],[17,8,22,8],[23,4,23,7],[4,3,4,7],[6,3,6,7],[6,8,7,8],[9,4,9,7],[13,4,13,7],[14,8,15,8],[16,4,16,7]]}
[]
[]
[]
[]
[null,null,null,"Форма 4.8 Информация о порядке выполнения технологических, технических и других мероприятий, связанных с подключением к системе теплоснабжения1"]
[]
[null,null,null,"Параметры формы",null,null,null,null,"Описание параметров формы"]
[null,null,null,"№ п/п","Наименование параметра",null,"Информация","Ссылка на документ"]
[null,null,null,"1","2",null,"3","4","5"]
[null,null,null,1,"Информация о размещении данных на сайте регулируемой организации"]
[null,null,null,"1.1","дата размещения информации",null,"27.12.2019","x","Дата размещения информации указывается в виде «ДД.ММ.ГГГГ»."]
[null,null,null,"1.2","адрес страницы сайта в сети «Интернет» и ссылка на документ",null,"http://integration-ru.com/\n","https://portal.eias.ru/Portal/DownloadPage.aspx?type=12&guid=a5bbd18e-1c23-4634-a1d9-21e110c64146","В колонке «Информация» указывается адрес страницы сайта в сети «Интернет», на которой размещена информация.\nВ колонке «Ссылка на документ» указывается ссылка на скриншот страницы сайта в сети «Интернет», предварительно загруженный в хранилище файлов ФГИС ЕИАС, на которой размещена информация."]
[null,3,null,2,"Форма заявки о подключении к централизованной системе теплоснабжения",null,"x","https://portal.eias.ru/Portal/DownloadPage.aspx?type=12&guid=ac613910-c404-4214-9234-84de05afc648","Указывается ссылка на документ, предварительно загруженный в хранилище файлов ФГИС ЕИАС."]
[null,null,null,3,"Перечень документов и сведений, представляемых одновременно с заявкой о подключении к централизованной системе теплоснабжения, и указание на запрет требовать представления документов и сведений или осуществления действий, представление или осуществление которых не предусмотрено законодательством Российской Федерации о градостроительной деятельности и законодательством в сфере теплоснабжения"]
[null,null,null,"3.1","Приложение №1",null,"x","https://portal.eias.ru/Portal/DownloadPage.aspx?type=12&guid=f83a8261-3d38-462a-a543-d4e9e30e20d7","Указывается ссылка на документ, предварительно загруженный в хранилище файлов ФГИС ЕИАС.\nВ случае наличия дополнительных сведений информация по ним указывается в отдельных строках.\n"]
[null,null,null,null,"Добавить сведения"]
[null,3,null,4,"Реквизиты НПА, регламентирующих порядок действий заявителя и регулируемой организации при подаче, приеме, обработке заявки о подключении к централизованной системе теплоснабжения (в том числе в форме электронного документа), принятии решения и информировании о принятом по результатам рассмотрения указанной заявки решении (возврат документов, прилагаемых к заявке о подключении к централизованной системе теплоснабжения, либо направление подписанного проекта договора о подключении к централизованной системе теплоснабжения), основания для отказа в принятии к рассмотрению документов, прилагаемых к заявлению о подключении к централизованной системе теплоснабжения, в подписании договора о подключении к централизованной системе теплоснабжения"]
[null,null,null,"4.1","наименование НПА",null," \nФедеральный закон от 27.07.2010 N 190-ФЗ \"О теплоснабжении\"\n ","x","В колонке «Информация» указывается полное наименование и реквизиты НПА.\nВ случае наличия нескольких НПА каждое из них указывается в отдельной строке."]
[null,null,"О","4.2",{"$f":"E18","v":"наименование НПА"},"x","Постановление Правительства РФ от 18 ноября 2013 г. N 1034\n ","x"]
[null,null,"О","4.3",{"$f":"E19","v":"наименование НПА"},"x"," \nПостановление Правительства РФ от 8 августа 2012 г. N 808;\n ","x"]
[null,null,"О","4.4",{"$f":"E20","v":"наименование НПА"},"x"," \nПостановление Правительства РФ от 05.07.2018 N 787 \"О подключении (технологическом присоединении) к системам теплоснабжения...\"","x"]
[null,null,"О","4.5",{"$f":"E21","v":"наименование НПА"},"x"," \nПриказ от 24 марта 2003 г. N 115;\nПриказ Ростехнадзора от 25.03.2014 N 116;\n ","x"]
[null,null,null,null,"Добавить сведения"]
[null,3,null,5,"Телефоны, адреса и график работы службы, ответственной за прием и обработку заявок о подключении к централизованной системе теплоснабжения"]
[null,null,null,"5.1","телефоны службы, ответственной за прием и обработку заявок о подключении к централизованной системе теплоснабжения"]
[null,null,null,"5.1.1","контактный телефон службы",null,"Тел: 8(843)212-53-00, доб. 17199\nЕдиная диспетчесркая служба: 8 (843) 212-55-45","x","Указывается номер контактного телефона службы, ответственной за прием и обработку заявок о подключении к централизованной системе теплоснабжения. \nВ случае наличия нескольких служб и (или) номеров телефонов, информация по каждому из них указывается в отдельной строке."]
[null,null,null,null,"Добавить сведения"]
[null,null,null,"5.2","адреса службы, ответственной за прием и обработку заявок о подключении к централизованной системе теплоснабжения"]
[null,null,null,"5.2.1","адрес службы",null,"Казань, ул. Восстания 100, корп.287","x","Указывается наименование субъекта Российской Федерации, муниципального района, города, иного населенного пункта, улицы, номер дома, при необходимости указывается корпус, строение, литера или дополнительная территория. Данные указываются согласно наименованиям адресных объектов в ФИАС.\nВ случае наличия нескольких служб и (или) адресов, информация по каждому из них указывается в отдельной строке."]
[null,null,null,null,"Добавить сведения"]
[null,null,null,"5.3","график работы службы, ответственной за прием и обработку заявок о подключении к централизованной системе теплоснабжения"]
[null,null,null,"5.3.1","график работы службы",null,"пн-пт: c 08:00 до 17:00","x","Указывается график работы службы, ответственной за прием и обработку заявок о подключении к централизованной системе теплоснабжения. \nВ случае наличия нескольких служб и (или) графиков работы, информация по каждому из них указывается в отдельной строке.",null,"пн-пт","c 08:00 до 17:00"]
[null,null,null,null,"Добавить сведения"]
[null,3,null,"6","Регламент подключения к системе теплоснабжения, утверждаемый регулируемой организацией, включающий сроки, состав и последовательность действий при осуществлении подключения к системе теплоснабжения, сведения о размере платы за услуги по подключению к системе теплоснабжения, информацию о месте нахождения и графике работы, справочных телефонах, адресе официального сайта регулируемой организации в сети \"Интернет\" и блок-схему, отражающую графическое изображение последовательности действий, осуществляемых при подключении к системе теплоснабжения"]
[null,null,null,"6.1","Регламент подключения к системе теплоснабжения ",null,"x","https://portal.eias.ru/Portal/DownloadPage.aspx?type=12&guid=4bb3b0d6-256c-43d5-a3d9-d95065110775","Указывается ссылка на документ, предварительно загруженный в хранилище файлов ФГИС ЕИАС.\nВ случае наличия дополнительных сведений информация по ним указывается в отдельных строках."]
[null,null,null,null,"Добавить сведения"]
[]
[null,null,null,1,"Информация раскрывается в случае, если регулируемая организация осуществляет услуги по подключению (технологическому присоединению) к централизованной системе теплоснабжения."]

{"sheet":"Форма 1.0.2","index":35,"n_rows":15,"n_cols":13,"rows_kept":15,"cut":false,"hidden":true,"merged":[[4,3,4,9],[14,4,14,9],[11,10,12,10],[7,3,7,9],[8,4,8,5],[7,10,9,10],[8,6,8,9],[8,3,9,3]]}
[]
[]
[]
[]
[null,null,null,"Форма 1.0.2 Информация о публикации в печатных изданиях 2"]
[]
[]
[null,null,null,"Параметры формы",null,null,null,null,null,null,"Описание параметров формы"]
[null,null,null,"№ п/п","Форма публикации",null,"Официальное печатное издание"]
[null,null,null,null,"Номер","Наименование","Наименование","Номер","Дата выпуска","Ссылка на документ"]
[null,null,null,"1","2","3","4","5","6","7","8"]
["3","",null,"1",null,null,null,null,null,null,"В колонке «Дата выпуска» дата выпуска печатного издания указывается в виде «ДД.ММ.ГГГГ».\nВ колонке «Ссылка на документ» указывается ссылка на отсканированную копию печатного издания, предварительно загруженную в хранилище федеральной государственной информационной системы «Единая информационно-аналитическая система «Федеральный орган регулирования - региональные органы регулирования - субъекты регулирования» (далее – ФГИС ЕИАС), с опубликованной информацией.\nВ случае публикации информации в нескольких печатных изданиях информация по каждому из них указывается в отдельной строке.",null,{"$f":"IF(ISERROR(INDEX(kind_of_nameforms,MATCH(E12,kind_of_forms,0),1)),\"\",INDEX(kind_of_nameforms,MATCH(E12,kind_of_forms,0),1))","v":""}]
[null,null,null,null,"Добавить строку"]
[]
[null,null,null,null,"2 Размещается информация по каждой из форм раскрытия, данные в которой относятся к муниципальному образованию, в котором отсутствует доступ в сеть «Интернет»."]

{"sheet":"Сведения об изменении","index":36,"n_rows":15,"n_cols":5,"rows_kept":15,"cut":false,"hidden":true,"merged":[[6,3,6,4],[14,3,14,4]]}
[]
[]
[]
[]
[]
[]
[null,null,null,"Сведения об изменениях в первоначально опубликованной информации*"]
[]
[null,null,null,"№ п/п","Сведения"]
[null,null,null,"1","2"]
[null,null,null,0]
[null,null,null,1]
[null,null,null,null,"Добавить"]
[]
[null,null,null,"* Лист заполняется в случае, если на Титульном листе в поле \"Тип отчета\" выбрано значение «Изменения в раскрытой ранее информации»."]

{"sheet":"Комментарии","index":37,"n_rows":12,"n_cols":5,"rows_kept":12,"cut":false,"hidden":false,"merged":[[6,3,6,4]]}
[]
[]
[]
[]
[]
[]
[null,null,null,"Комментарии"]
[]
[null,null,null,"№ п/п","Комментарий"]
[null,null,null,"1","2"]
[null,null,null,0]
[null,null,null,null,"Добавить"]

{"sheet":"Проверка","index":38,"n_rows":4,"n_cols":4,"rows_kept":4,"cut":false,"hidden":false,"merged":[[1,1,1,3]]}
[]
[null,"Результат проверки"]
[]
[null,"Ссылка","Причина","Статус"]

{"sheet":"et_union_hor","index":39,"n_rows":346,"n_cols":35,"rows_kept":346,"cut":false,"hidden":true,"merged":[[69,14,69,21],[70,14,70,21],[71,14,71,21],[130,17,131,17],[72,17,73,17],[72,18,73,18],[72,19,73,19],[30,14,30,21],[31,14,31,21],[32,14,32,21],[33,14,33,21],[34,14,34,21],[35,14,35,21],[66,14,66,21],[67,14,67,21],[68,14,68,21],[48,14,48,21],[49,14,49,21],[50,14,50,21],[51,14,51,21],[52,14,52,21],[53,14,53,21],[69,3,76,3],[70,4,75,4],[84,0,97,0],[85,1,96,1],[86,2,95,2],[87,3,94,3],[88,4,93,4],[48,0,61,0],[49,1,60,1],[50,2,59,2],[51,3,58,3],[336,0,344,0],[340,2,342,2],[341,8,342,8],[301,7,302,7],[339,1,343,1],[296,2,297,2],[301,2,302,2],[301,5,302,5],[301,6,302,6],[130,29,132,29],[108,24,110,24],[210,19,211,19],[166,17,167,17],[166,19,167,19],[166,20,167,20],[219,14,219,21],[194,13,194,31],[195,13,195,31],[166,22,168,22],[192,13,192,31],[210,21,211,21],[206,16,208,16],[166,18,167,18],[178,14,178,22],[193,13,193,31],[206,20,207,20],[210,17,212,17],[210,13,213,13],[210,16,212,16],[210,14,212,14],[210,15,212,15],[210,20,211,20],[210,18,211,18],[108,9,111,9],[89,5,92,5],[89,9,92,9],[162,14,162,21],[163,14,163,21],[164,14,164,21],[165,14,165,21],[148,18,149,18],[160,14,160,21],[161,14,161,21],[165,5,168,5],[164,8,169,8],[165,9,168,9],[147,5,150,5],[146,8,151,8],[147,9,150,9],[102,14,102,26],[103,14,103,26],[104,14,104,26],[130,20,131,20],[130,18,131,18],[87,8,94,8],[108,6,111,6],[107,5,112,5],[30,0,43,0],[31,1,42,1],[32,2,41,2],[33,3,40,3],[296,3,297,3],[296,4,297,4],[160,0,173,0],[161,1,172,1],[162,2,171,2],[163,3,170,3],[164,4,169,4],[128,4,133,4],[143,1,154,1],[144,2,153,2],[145,3,152,3],[146,4,151,4],[124,0,137,0],[125,1,136,1],[126,2,135,2],[127,3,134,3],[52,4,57,4],[66,0,79,0],[67,1,78,1],[68,2,77,2],[8,12,10,12],[14,5,18,5],[8,6,12,6],[8,7,11,7],[14,6,18,6],[26,22,28,22],[36,17,37,17],[36,19,37,19],[27,15,27,16],[36,22,38,22],[27,14,28,14],[29,14,29,20],[26,20,28,20],[35,9,38,9],[35,5,38,5],[34,8,39,8],[36,20,37,20],[8,15,9,15],[8,16,9,16],[8,17,9,17],[8,18,9,18],[14,16,15,16],[14,17,15,17],[14,18,15,18],[8,3,12,3],[14,3,18,3],[36,18,37,18],[8,14,10,14],[26,17,27,19],[8,8,11,8],[14,7,17,7],[14,9,17,9],[14,10,17,10],[14,12,16,12],[14,14,16,14],[14,11,16,11],[26,14,26,16],[28,18,28,19],[8,11,10,11],[14,13,16,13],[8,4,12,4],[8,13,10,13],[8,10,11,10],[8,9,11,9],[8,5,12,5],[14,4,18,4],[14,8,17,8],[34,4,39,4],[109,27,111,27],[144,14,144,21],[142,14,142,21],[108,22,110,22],[108,23,110,23],[54,19,55,19],[54,20,55,20],[54,17,55,17],[54,18,55,18],[143,14,143,21],[90,17,91,17],[90,18,91,18],[90,19,91,19],[90,20,91,20],[90,22,92,22],[108,25,110,25],[54,22,56,22],[72,22,74,22],[105,14,105,26],[106,14,106,26],[107,14,107,26],[72,20,73,20],[130,24,131,24],[130,25,131,25],[196,32,200,32],[196,11,199,11],[196,12,199,12],[196,13,199,13],[196,14,198,14],[196,15,198,15],[196,16,198,16],[196,17,198,17],[196,18,197,18],[196,19,197,19],[196,21,197,21],[196,27,197,27],[196,28,197,28],[196,29,197,29],[196,30,197,30],[196,20,197,20],[220,14,220,21],[221,14,221,21],[222,14,222,21],[223,14,223,21],[224,14,224,21],[14,15,15,15],[219,0,232,0],[220,1,231,1],[221,2,230,2],[222,3,229,3],[223,4,228,4],[224,5,227,5],[225,17,226,17],[225,18,226,18],[53,5,56,5],[52,8,57,8],[53,9,56,9],[71,5,74,5],[71,9,74,9],[70,8,75,8],[129,5,132,5],[129,9,132,9],[128,8,133,8],[196,10,199,10],[107,8,112,8],[237,0,250,0],[238,1,249,1],[239,2,248,2],[240,3,247,3],[241,4,246,4],[241,8,246,8],[242,5,245,5],[106,4,113,4],[102,0,117,0],[103,1,116,1],[104,2,115,2],[105,3,113,3],[142,0,155,0],[178,0,187,0],[179,1,186,1],[180,2,185,2],[181,3,184,3],[192,0,203,0],[193,1,202,1],[194,2,201,2],[195,3,200,3],[196,4,199,4],[242,9,245,9],[224,9,227,9],[223,8,228,8],[243,22,245,22],[243,17,244,17],[243,18,244,18],[243,19,244,19],[243,20,244,20],[237,14,237,21],[238,14,238,21],[239,14,239,21],[240,14,240,21],[241,14,241,21],[242,14,242,21],[225,19,226,19],[225,22,227,22],[225,20,226,20],[84,14,84,21],[85,14,85,21],[86,14,86,21],[87,14,87,21],[88,14,88,21],[89,14,89,21],[130,19,131,19],[147,14,147,21],[148,19,149,19],[148,17,149,17],[148,20,149,20],[145,14,145,21],[130,26,131,26],[130,27,131,27],[124,14,124,28],[125,14,125,28],[126,14,126,28],[127,14,127,28],[128,14,128,28],[129,14,129,28],[181,14,181,22],[148,22,150,22],[179,14,179,22],[180,14,180,22]]}
[]
["et_Comm"]
[]
[]
[]
[]
["et_List02(_1,_2,_3)"]
[]
[null,null,null,1,null,null,"нет",null,1,null,"нет",null,"1",null,"нет",null,"1",null,"нет",null,"1"]
[null,null,null,null,null,null,null,null,null,null,null,null,null,null,null,null,null,null,null,null,null,"Добавить источник для дифференциации"]
[null,null,null,null,null,null,null,null,null,null,null,null,null,null,null,null,null,"Добавить СТ для дифференциации"]
[null,null,null,null,null,null,null,null,null,null,null,null,null,"Добавить территорию для дифференциации"]
[]
[]
[null,null,null,null,null,null,null,null,1,null,"нет",null,"1",null,"нет",null,"1",null,"нет",null,"1"]
[null,null,null,null,null,null,null,null,null,null,null,null,null,null,null,null,null,null,null,null,null,"Добавить источник для дифференциации"]
[null,null,null,null,null,null,null,null,null,null,null,null,null,null,null,null,null,"Добавить СТ для дифференциации"]
[null,null,null,null,null,null,null,null,null,null,null,null,null,"Добавить территорию для дифференциации"]
[]
[]
["et_List06(_1,_2,_3)",null,"1"]
[]
[]
[]
[]
[]
[null,null,null,null,null,null,null,null,null,null,null,null,null,null,"Величина установленного тарифа",null,null,"Срок действия цены (тарифа) на тепловую энергию (мощность)",null,null,"Наличие других периодов действия тарифа"]
[null,null,null,null,null,null,null,null,null,null,null,null,null,null,"Одноставочный тариф, руб./Гкал","Двухставочный тариф"]
[null,null,null,null,null,null,null,null,null,null,null,null,null,null,null,"ставка за тепловую  энергию, руб./Гкал","ставка за содержание тепловой мощности, тыс.руб./Гкал/ч/мес","дата начала","дата окончания"]
[null,null,null,null,null,null,null,null,null,null,null,null,"7"]
[1,null,null,null,null,null,null,null,null,null,null,{"$f":"mergeValue(A31)","v":1},"Наименование тарифа",null,null,null,null,null,null,null,null,null,"Указывается наименование тарифа в случае утверждения нескольких тарифов.\nВ случае наличия нескольких тарифов информация по ним указывается в отдельных строках.",null,null,{"$f":"IF(M31=\"\",\"\",M31 )","v":"Наименование тарифа"}]
[null,1,null,null,null,null,null,null,null,null,null,{"$f":"mergeValue(A32) &\".\"& mergeValue(B32)","v":"1.1"},"Территория действия тарифа",null,null,null,null,null,null,null,null,null,"Указывается наименование территории действия тарифа при наличии дифференциации тарифа по территориальному признаку.\nВ случае дифференциации тарифов по территориальному признаку информация по ним указывается в отдельных строках.",null,null,"Территория действия тарифа"]
[null,null,1,null,null,null,null,null,null,null,null,{"$f":"mergeValue(A33) &\".\"& mergeValue(B33)&\".\"& mergeValue(C33)","v":"1.1.1"},"Наименование системы теплоснабжения ",null,null,null,null,null,null,null,null,null,"Указывается наименование системы теплоснабжения при наличии дифференциации тарифа по системам теплоснабжения.\nВ случае дифференциации тарифов по системам теплоснабжения информация по ним указывается в отдельных строках.",null,null,"Наименование системы теплоснабжения "]
[null,null,null,1,null,null,null,null,null,null,null,{"$f":"mergeValue(A34) &\".\"& mergeValue(B34)&\".\"& mergeValue(C34)&\".\"& mergeValue(D34)","v":"1.1.1.1"},"Источник тепловой энергии  ",null,null,null,null,null,null,null,null,null,"Указывается наименование источника тепловой энергии\nВ случае дифференциации тарифов по источникам тепловой энергии информация по ним указывается в отдельных строках.",null,null,"Источник тепловой энергии  "]
[null,null,null,null,1,null,null,1,1,null,null,{"$f":"mergeValue(A35) &\".\"& mergeValue(B35)&\".\"& mergeValue(C35)&\".\"& mergeValue(D35)&\".\"& mergeValue(E35)","v":"1.1.1.1.1"},"Схема подключения теплопотребляющей установки к коллектору источника тепловой энергии",null,null,null,null,null,null,null,null,null,"Указывается схема подключения теплопотребляющей установки к коллектору источника тепловой энергии только для тарифов на тепловую энергию и за услуги по поддержанию резервной мощности \nЗначение выбирается из перечня:\n• без дифференциации;\n• к коллектору источника тепловой энергии;\n• к тепловой сети без дополнительного преобразования на тепловых пунктах, эксплуатируемых теплоснабжающей организацией;\n• к тепловой сети после тепловых пунктов (на тепловых пунктах), эксплуатируемых теплоснабжающей организацией.\nВ случае дифференциации тарифов по схемам подключения теплопотребляющей установки к коллектору источника тепловой энергии информация по ним указывается в отдельных строках.",null,null,"Схема подключения теплопотребляющей установки к коллектору источника тепловой энергии"]
[null,null,null,null,null,1,null,null,null,1,null,{"$f":"mergeValue(A36) &\".\"& mergeValue(B36)&\".\"& mergeValue(C36)&\".\"& mergeValue(D36)&\".\"& mergeValue(E36)&\".\"& mergeValue(F36)","v":"1.1.1.1.1.1"},"Группа потребителей",null,null,null,null,null,null,null,null,null,"Указывается группа потребителей при наличии дифференциации тарифа по группам потребителей.\nЗначение выбирается из перечня:\n• организации-перепродавцы;\n• бюджетные организации;\n• население;\n• прочие;\n• без дифференциации.\nВ случае дифференциации тарифов группам потребителей информация по ним указывается в отдельных строках.",null,null,"Группа потребителей"]
[null,null,null,null,null,null,1,null,null,null,1,{"$f":"mergeValue(A37) &\".\"& mergeValue(B37)&\".\"& mergeValue(C37)&\".\"& mergeValue(D37)&\".\"& mergeValue(E37)&\".\"& mergeValue(F37)&\".\"& mergeValue(G37)","v":"1.1.1.1.1.1.1"},null,null,null,null,null,null,"да",null,"да",null,"В колонке «Параметр дифференциации тарифов» указывается вид теплоносителя.\nЗначение выбирается из перечня:\n• вода;\n• пар;\n• отборный пар, 1.2-2.5 кг/см2;\n• отборный пар, 2.5-7 кг/см2;\n• отборный пар, 7-13 кг/см2;\n• отборный пар, > 13 кг/см2;\n• острый и редуцированный пар;\n• горячая вода в системе централизованного теплоснабжения на отопление;\n• горячая вода в системе централизованного теплоснабжения на горячее водоснабжение;\n• прочее.\nПри утверждении двухставочного тарифа колонка «Одноставочный тариф» не заполняется.\nПри утверждении одноставочного тарифа колонки в блоке «Двухставочный тариф» не заполняются.\nДаты начала и окончания действия тарифов указываются в виде «ДД.ММ.ГГГГ».\nВ случае отсутствия даты окончания действия тарифа в колонке «Дата окончания» указывается «Нет».\nВ случае дифференциации тарифов по периодам действия тарифа информация по ним указывается в отдельных колонках.\nВ случае дифференциации тарифов по видам теплоносителя информация по ним указывается в отдельных строках.",{"$f":"strCheckDate(O38:V38)","v":""},null,""]
[null,null,null,null,null,null,null,null,null,null,null,null,null,null,null,null,{"$f":"R37 & \"-\" & T37","v":"-"},null,null,null,null,null,null,null,null,""]
[null,null,null,null,null,null,null,null,null,null,null,null,"Добавить вид теплоносителя (параметры теплоносителя)",null,null,null,null,null,null,null,null,null,null,null,null,"Добавить вид теплоносителя (параметры теплоносителя)"]
[null,null,null,null,null,null,null,null,null,null,null,null,"Добавить группу потребителей",null,null,null,null,null,null,null,null,null,null,null,null,"Добавить группу потребителей"]
[null,null,null,null,null,null,null,null,null,null,null,null,"Добавить схему подключения",null,null,null,null,null,null,null,null,null,null,null,null,"Добавить схему подключения"]
[null,null,null,null,null,null,null,null,null,null,null,null,"Добавить источник тепловой энергии",null,null,null,null,null,null,null,null,null,null,null,null,"Добавить источник тепловой энергии"]
[null,null,null,null,null,null,null,null,null,null,null,null,"Добавить наименование системы теплоснабжения",null,null,null,null,null,null,null,null,null,null,null,null,"Добавить наименование системы теплоснабжения"]
[null,null,null,null,null,null,null,null,null,null,null,null,"Добавить территорию действия тарифа",null,null,null,null,null,null,null,null,null,null,null,null,"Добавить территорию действия тарифа"]
[null,null,null,null,null,null,null,null,null,null,null,null,"Добавить наименование тарифа"]
[]
["et_List06(_1,_2,_3)",null,"2"]
[]
[1,null,null,null,null,null,null,null,null,null,null,{"$f":"mergeValue(A49)","v":1},"Наименование тарифа",null,null,null,null,null,null,null,null,null,"Указывается наименование тарифа в случае утверждения нескольких тарифов.\nВ случае наличия нескольких тарифов информация по ним указывается в отдельных строках.",null,null,{"$f":"IF(M49=\"\",\"\",M49 )","v":"Наименование тарифа"}]
[null,1,null,null,null,null,null,null,null,null,null,{"$f":"mergeValue(A50) &\".\"& mergeValue(B50)","v":"1.1"},"Территория действия тарифа",null,null,null,null,null,null,null,null,null,"Указывается наименование территории действия тарифа при наличии дифференциации тарифа по территориальному признаку.\nВ случае дифференциации тарифов по территориальному признаку информация по ним указывается в отдельных строках.",null,null,"Территория действия тарифа"]
[null,null,1,null,null,null,null,null,null,null,null,{"$f":"mergeValue(A51) &\".\"& mergeValue(B51)&\".\"& mergeValue(C51)","v":"1.1.1"},"Наименование системы теплоснабжения ",null,null,null,null,null,null,null,null,null,"Указывается наименование системы теплоснабжения при наличии дифференциации тарифа по системам теплоснабжения.\nВ случае дифференциации тарифов по системам теплоснабжения информация по ним указывается в отдельных строках.",null,null,"Наименование системы теплоснабжения "]
[null,null,null,1,null,null,null,null,null,null,null,{"$f":"mergeValue(A52) &\".\"& mergeValue(B52)&\".\"& mergeValue(C52)&\".\"& mergeValue(D52)","v":"1.1.1.1"},"Источник тепловой энергии  ",null,null,null,null,null,null,null,null,null,"Указывается наименование источника тепловой энергии\nВ случае дифференциации тарифов по источникам тепловой энергии информация по ним указывается в отдельных строках.",null,null,"Источник тепловой энергии  "]
[null,null,null,null,1,null,null,1,1,null,null,{"$f":"mergeValue(A53) &\".\"& mergeValue(B53)&\".\"& mergeValue(C53)&\".\"& mergeValue(D53)&\".\"& mergeValue(E53)","v":"1.1.1.1.1"},"Схема подключения теплопотребляющей установки к коллектору источника тепловой энергии",null,null,null,null,null,null,null,null,null,"Указывается схема подключения теплопотребляющей установки к коллектору источника тепловой энергии только для тарифов на тепловую энергию и за услуги по поддержанию резервной мощности \nЗначение выбирается из перечня:\n• без дифференциации;\n• к коллектору источника тепловой энергии;\n• к тепловой сети без дополнительного преобразования на тепловых пунктах, эксплуатируемых теплоснабжающей организацией;\n• к тепловой сети после тепловых пунктов (на тепловых пунктах), эксплуатируемых теплоснабжающей организацией.\nВ случае дифференциации тарифов по схемам подключения теплопотребляющей установки к коллектору источника тепловой энергии информация по ним указывается в отдельных строках.",null,null,"Схема подключения теплопотребляющей установки к коллектору источника тепловой энергии"]
[null,null,null,null,null,1,null,null,null,1,null,{"$f":"mergeValue(A54) &\".\"& mergeValue(B54)&\".\"& mergeValue(C54)&\".\"& mergeValue(D54)&\".\"& mergeValue(E54)&\".\"& mergeValue(F54)","v":"1.1.1.1.1.1"},"Группа потребителей",null,null,null,null,null,null,null,null,null,"Указывается группа потребителей при наличии дифференциации тарифа по группам потребителей.\nЗначение выбирается из перечня:\n• организации-перепродавцы;\n• бюджетные организации;\n• население;\n• прочие;\n• без дифференциации.\nВ случае дифференциации тарифов группам потребителей информация по ним указывается в отдельных строках.",null,null,"Группа потребителей"]
[null,null,null,null,null,null,1,null,null,null,1,{"$f":"mergeValue(A55) &\".\"& mergeValue(B55)&\".\"& mergeValue(C55)&\".\"& mergeValue(D55)&\".\"& mergeValue(E55)&\".\"& mergeValue(F55)&\".\"& mergeValue(G55)","v":"1.1.1.1.1.1.1"},null,null,null,null,null,null,"да",null,"да",null,"В колонке «Параметр дифференциации тарифов» указывается вид теплоносителя.\nЗначение выбирается из перечня:\n• вода;\n• пар;\n• отборный пар, 1.2-2.5 кг/см2;\n• отборный пар, 2.5-7 кг/см2;\n• отборный пар, 7-13 кг/см2;\n• отборный пар, > 13 кг/см2;\n• острый и редуцированный пар;\n• горячая вода в системе централизованного теплоснабжения на отопление;\n• горячая вода в системе централизованного теплоснабжения на горячее водоснабжение;\n• прочее.\nПри утверждении двухставочного тарифа колонка «Одноставочный тариф» не заполняется.\nПри утверждении одноставочного тарифа колонки в блоке «Двухставочный тариф» не заполняются.\nДаты начала и окончания действия тарифов указываются в виде «ДД.ММ.ГГГГ».\nВ случае отсутствия даты окончания действия тарифа в колонке «Дата окончания» указывается «Нет».\nВ случае дифференциации тарифов по периодам действия тарифа информация по ним указывается в отдельных колонках.\nВ случае дифференциации тарифов по видам теплоносителя информация по ним указывается в отдельных строках.",{"$f":"strCheckDate(O56:V56)","v":""},null,""]
[null,null,null,null,null,null,null,null,null,null,null,null,null,null,null,null,{"$f":"R55 & \"-\" & T55","v":"-"},null,null,null,null,null,null,null,null,""]
[null,null,null,null,null,null,null,null,null,null,null,null,"Добавить вид теплоносителя (параметры теплоносителя)",null,null,null,null,null,null,null,null,null,null,null,null,"Добавить вид теплоносителя (параметры теплоносителя)"]
[null,null,null,null,null,null,null,null,null,null,null,null,"Добавить группу потребителей",null,null,null,null,null,null,null,null,null,null,null,null,"Добавить группу потребителей"]
[null,null,null,null,null,null,null,null,null,null,null,null,"Добавить схему подключения",null,null,null,null,null,null,null,null,null,null,null,null,"Добавить схему подключения"]
[null,null,null,null,null,null,null,null,null,null,null,null,"Добавить источник тепловой энергии",null,null,null,null,null,null,null,null,null,null,null,null,"Добавить источник тепловой энергии"]
[null,null,null,null,null,null,null,null,null,null,null,null,"Добавить наименование системы теплоснабжения",null,null,null,null,null,null,null,null,null,null,null,null,"Добавить наименование системы теплоснабжения"]
[null,null,null,null,null,null,null,null,null,null,null,null,"Добавить территорию действия тарифа",null,null,null,null,null,null,null,null,null,null,null,null,"Добавить территорию действия тарифа"]
[null,null,null,null,null,null,null,null,null,null,null,null,"Добавить наименование тарифа"]
[]
["et_List06(_1,_2,_3)",null,"3"]
[]
[1,null,null,null,null,null,null,null,null,null,null,{"$f":"mergeValue(A67)","v":1},"Наименование тарифа",null,null,null,null,null,null,null,null,null,"Указывается наименование тарифа в случае утверждения нескольких тарифов.\nВ случае наличия нескольких тарифов информация по ним указывается в отдельных строках.",null,null,{"$f":"IF(M67=\"\",\"\",M67 )","v":"Наименование тарифа"}]
[null,1,null,null,null,null,null,null,null,null,null,{"$f":"mergeValue(A68) &\".\"& mergeValue(B68)","v":"1.1"},"Территория действия тарифа",null,null,null,null,null,null,null,null,null,"Указывается наименование территории действия тарифа при наличии дифференциации тарифа по территориальному признаку.\nВ случае дифференциации тарифов по территориальному признаку информация по ним указывается в отдельных строках.",null,null,"Территория действия тарифа"]
[null,null,1,null,null,null,null,null,null,null,null,{"$f":"mergeValue(A69) &\".\"& mergeValue(B69)&\".\"& mergeValue(C69)","v":"1.1.1"},"Наименование системы теплоснабжения ",null,null,null,null,null,null,null,null,null,"Указывается наименование системы теплоснабжения при наличии дифференциации тарифа по системам теплоснабжения.\nВ случае дифференциации тарифов по системам теплоснабжения информация по ним указывается в отдельных строках.",null,null,"Наименование системы теплоснабжения "]
[null,null,null,1,null,null,null,null,null,null,null,{"$f":"mergeValue(A70) &\".\"& mergeValue(B70)&\".\"& mergeValue(C70)&\".\"& mergeValue(D70)","v":"1.1.1.1"},"Источник тепловой энергии  ",null,null,null,null,null,null,null,null,null,"Указывается наименование источника тепловой энергии\nВ случае дифференциации тарифов по источникам тепловой энергии информация по ним указывается в отдельных строках.",null,null,"Источник тепловой энергии  "]
[null,null,null,null,1,null,null,1,1,null,null,{"$f":"mergeValue(A71) &\".\"& mergeValue(B71)&\".\"& mergeValue(C71)&\".\"& mergeValue(D71)&\".\"& mergeValue(E71)","v":"1.1.1.1.1"},"Схема подключения теплопотребляющей установки к коллектору источника тепловой энергии",null,null,null,null,null,null,null,null,null,"Указывается схема подключения теплопотребляющей установки к коллектору источника тепловой энергии только для тарифов на тепловую энергию и за услуги по поддержанию резервной мощности \nЗначение выбирается из перечня:\n• без дифференциации;\n• к коллектору источника тепловой энергии;\n• к тепловой сети без дополнительного преобразования на тепловых пунктах, эксплуатируемых теплоснабжающей организацией;\n• к тепловой сети после тепловых пунктов (на тепловых пунктах), эксплуатируемых теплоснабжающей организацией.\nВ случае дифференциации тарифов по схемам подключения теплопотребляющей установки к коллектору источника тепловой энергии информация по ним указывается в отдельных строках.",null,null,"Схема подключения теплопотребляющей установки к коллектору источника тепловой энергии"]
[null,null,null,null,null,1,null,null,null,1,null,{"$f":"mergeValue(A72) &\".\"& mergeValue(B72)&\".\"& mergeValue(C72)&\".\"& mergeValue(D72)&\".\"& mergeValue(E72)&\".\"& mergeValue(F72)","v":"1.1.1.1.1.1"},"Группа потребителей",null,null,null,null,null,null,null,null,null,"Указывается группа потребителей при наличии дифференциации тарифа по группам потребителей.\nЗначение выбирается из перечня:\n• организации-перепродавцы;\n• бюджетные организации;\n• население;\n• прочие;\n• без дифференциации.\nВ случае дифференциации тарифов группам потребителей информация по ним указывается в отдельных строках.",null,null,"Группа потребителей"]
[null,null,null,null,null,null,1,null,null,null,1,{"$f":"mergeValue(A73) &\".\"& mergeValue(B73)&\".\"& mergeValue(C73)&\".\"& mergeValue(D73)&\".\"& mergeValue(E73)&\".\"& mergeValue(F73)&\".\"& mergeValue(G73)","v":"1.1.1.1.1.1.1"},null,null,null,null,null,null,"да",null,"да",null,"В колонке «Параметр дифференциации тарифов» указывается вид теплоносителя.\nЗначение выбирается из перечня:\n• вода;\n• пар;\n• отборный пар, 1.2-2.5 кг/см2;\n• отборный пар, 2.5-7 кг/см2;\n• отборный пар, 7-13 кг/см2;\n• отборный пар, > 13 кг/см2;\n• острый и редуцированный пар;\n• горячая вода в системе централизованного теплоснабжения на отопление;\n• горячая вода в системе централизованного теплоснабжения на горячее водоснабжение;\n• прочее.\nПри утверждении двухставочного тарифа колонка «Одноставочный тариф» не заполняется.\nПри утверждении одноставочного тарифа колонки в блоке «Двухставочный тариф» не заполняются.\nДаты начала и окончания действия тарифов указываются в виде «ДД.ММ.ГГГГ».\nВ случае отсутствия даты окончания действия тарифа в колонке «Дата окончания» указывается «Нет».\nВ случае дифференциации тарифов по периодам действия тарифа информация по ним указывается в отдельных колонках.\nВ случае дифференциации тарифов по видам теплоносителя информация по ним указывается в отдельных строках.",{"$f":"strCheckDate(O74:V74)","v":""},null,""]
[null,null,null,null,null,null,null,null,null,null,null,null,null,null,null,null,{"$f":"R73 & \"-\" & T73","v":"-"},null,null,null,null,null,null,null,null,""]
[null,null,null,null,null,null,null,null,null,null,null,null,"Добавить вид теплоносителя (параметры теплоносителя)",null,null,null,null,null,null,null,null,null,null,null,null,"Добавить вид теплоносителя (параметры теплоносителя)"]
[null,null,null,null,null,null,null,null,null,null,null,null,"Добавить группу потребителей",null,null,null,null,null,null,null,null,null,null,null,null,"Добавить группу потребителей"]
[null,null,null,null,null,null,null,null,null,null,null,null,"Добавить схему подключения",null,null,null,null,null,null,null,null,null,null,null,null,"Добавить схему подключения"]
[null,null,null,null,null,null,null,null,null,null,null,null,"Добавить источник тепловой энергии",null,null,null,null,null,null,null,null,null,null,null,null,"Добавить источник тепловой энергии"]
[null,null,null,null,null,null,null,null,null,null,null,null,"Добавить наименование системы теплоснабжения",null,null,null,null,null,null,null,null,null,null,null,null,"Добавить наименование системы теплоснабжения"]
[null,null,null,null,null,null,null,null,null,null,null,null,"Добавить территорию действия тарифа",null,null,null,null,null,null,null,null,null,null,null,null,"Добавить территорию действия тарифа"]
[null,null,null,null,null,null,null,null,null,null,null,null,"Добавить наименование тарифа"]
[]
["et_List06(_1,_2,_3)",null,"4"]
[]
[1,null,null,null,null,null,null,null,null,null,1,{"$f":"mergeValue(A85)","v":1},"Наименование тарифа",null,null,null,null,null,null,null,null,null,"Указывается наименование тарифа в случае нескольких тарифов.\nВ случае наличия нескольких тарифов информация по ним указывается в отдельных строках."]
[null,1,null,null,null,null,null,null,null,null,1,{"$f":"mergeValue(A86) &\".\"& mergeValue(B86)","v":"1.1"},"Территория действия тарифа",null,null,null,null,null,null,null,null,null,"Указывается наименование территории действия тарифа при наличии дифференциации тарифа по территориальному признаку.\nВ случае дифференциации тарифов по территориальному признаку информация по ним указывается в отдельных строках."]
[null,null,1,null,null,null,null,null,null,null,1,{"$f":"mergeValue(A87) &\".\"& mergeValue(B87)&\".\"& mergeValue(C87)","v":"1.1.1"},"Наименование системы теплоснабжения ",null,null,null,null,null,null,null,null,null,"Указывается наименование системы теплоснабжения при наличии дифференциации тарифа по системам теплоснабжения.\nВ случае дифференциации тарифов по системам теплоснабжения информация по ним указывается в отдельных строках."]
[null,null,null,1,null,null,null,null,1,null,1,{"$f":"mergeValue(A88) &\".\"& mergeValue(B88)&\".\"& mergeValue(C88)&\".\"& mergeValue(D88)","v":"1.1.1.1"},"Источник тепловой энергии  ",null,null,null,null,null,null,null,null,null,"Указывается наименование источника тепловой энергии\nВ случае дифференциации тарифов по источникам тепловой энергии информация по ним указывается в отдельных строках."]
[null,null,null,null,1,null,null,null,null,null,1]
[null,null,null,null,null,1,null,null,null,null,1,{"$f":"mergeValue(A90) &\".\"& mergeValue(B90)&\".\"& mergeValue(C90)&\".\"& mergeValue(D90)&\".\"&  mergeValue(F90)","v":"1.1.1.1.1"},"Группа потребителей",null,null,null,null,null,null,null,null,null,"Указывается группа потребителей при наличии дифференциации тарифа по группам потребителей.\nЗначение выбирается из перечня:\n• Организации-перепродавцы;\n• Бюджетные организации;\n• Население;\n• Прочие;\n• Без дифференциации.\nВ случае дифференциации тарифов группам потребителей информация по ним указывается в отдельных строках.",null,{"$f":"strCheckUnique(Z90:Z93)","v":""}]
[null,null,null,null,null,null,1,null,null,null,null,{"$f":"mergeValue(A91) &\".\"& mergeValue(B91)&\".\"& mergeValue(C91)&\".\"& mergeValue(D91)&\".\"&  mergeValue(F91)&\".\"&  mergeValue(G91)","v":"1.1.1.1.1.1"},null,null,null,null,null,null,"да",null,"да",null,"В колонке «Параметр дифференциации тарифов» указывается вид теплоносителя.\nЗначение выбирается из перечня:\n• вода;\n• пар;\n• отборный пар, 1.2-2.5 кг/см2;\n• отборный пар, 2.5-7 кг/см2;\n• отборный пар, 7-13 кг/см2;\n• отборный пар, > 13 кг/см2;\n• острый и редуцированный пар;\n• горячая вода в системе централизованного теплоснабжения на отопление;\n• горячая вода в системе централизованного теплоснабжения на горячее водоснабжение;\n• прочее.\nПри утверждении двухставочного тарифа тариф колонка «Одноставочный тариф» не заполняется.\nПри подаче утверждении одноставочного тарифа колонки в блоке «Двухставочный тариф» не заполняются.\nИнформация в колонке «Двухставочный тариф» не указывается для тарифа на теплоноситель.\nДаты начала и окончания действия тарифов указываются в виде «ДД.ММ.ГГГГ».\nВ случае отсутствия даты окончания действия тарифа в колонке «Дата окончания» указывается «Нет».\nВ случае дифференциации тарифов по видам теплоносителя информация по ним указывается в отдельных строках.",{"$f":"strCheckDate(O92:V92)","v":""},null,{"$f":"IF(M91=\"\",\"\",M91 )","v":""}]
[null,null,null,null,null,null,null,null,null,null,1,null,null,null,null,null,{"$f":"R91 & \"-\" & T91","v":"-"}]
[null,null,null,null,null,null,null,null,null,null,1,null,"Добавить вид теплоносителя (параметры теплоносителя)"]
[null,null,null,null,null,null,null,null,null,null,null,null,"Добавить группу потребителей"]
[]
[null,null,null,null,null,null,null,null,null,null,1,null,"Добавить источник тепловой энергии"]
[null,null,null,null,null,null,null,null,null,null,1,null,"Добавить наименование системы теплоснабжения"]
[null,null,null,null,null,null,null,null,null,null,1,null,"Добавить территорию действия тарифа"]
[null,null,null,null,null,null,null,null,null,null,null,null,"Добавить наименование тарифа"]
[]
[null,null,null,null,null,null,"et_List06(_1,_2,_3)",null,"5"]
[]
[1,null,null,null,null,null,null,null,null,null,null,{"$f":"mergeValue(A103)","v":1},"Наименование тарифа",null,null,null,null,null,null,null,null,null,null,null,null,null,null,"Указывается наименование тарифа в случае утверждения нескольких тарифов.\nВ случае наличия нескольких тарифов информация по ним указывается в отдельных строках."]
[null,1,null,null,null,null,null,null,null,null,null,{"$f":"mergeValue(A104) &\".\"& mergeValue(B104)","v":"1.1"},"Территория действия тарифа",null,null,null,null,null,null,null,null,null,null,null,null,null,null,"Указывается наименование территории действия тарифа при наличии дифференциации тарифа по территориальному признаку.\nВ случае дифференциации тарифов по территориальному признаку информация по ним указывается в отдельных строках."]
[null,null,1,null,null,null,null,null,null,null,null,{"$f":"mergeValue(A105) &\".\"& mergeValue(B105)&\".\"& mergeValue(C105)","v":"1.1.1"},"Наименование системы теплоснабжения ",null,null,null,null,null,null,null,null,null,null,null,null,null,null,"Указывается наименование системы теплоснабжения при наличии дифференциации тарифа по системам теплоснабжения.\nВ случае дифференциации тарифов по системам теплоснабжения информация по ним указывается в отдельных строках."]
[null,null,null,1,null,null,null,null,null,null,null,{"$f":"mergeValue(A106) &\".\"& mergeValue(B106)&\".\"& mergeValue(C106)&\".\"& mergeValue(D106)","v":"1.1.1.1"},"Источник тепловой энергии  ",null,null,null,null,null,null,null,null,null,null,null,null,null,null,"Указывается наименование источника тепловой энергии\nВ случае дифференциации тарифов по источникам тепловой энергии информация по ним указывается в отдельных строках."]
[null,null,null,null,1]
[null,null,null,null,null,1,null,null,null,null,null,{"$f":"mergeValue(A108) &\".\"& mergeValue(B108)&\".\"& mergeValue(C108)&\".\"& mergeValue(D108)&\".\"& mergeValue(F108)","v":"1.1.1.1.1"},"Группа потребителей",null,null,null,null,null,null,null,null,null,null,null,null,null,null,"Указывается группа потребителей при наличии дифференциации тарифа по группам потребителей.\nЗначение выбирается из перечня:\n• Организации-перепродавцы;\n• Бюджетные организации;\n• Население;\n• Прочие;\n• Без дифференциации.\nВ случае дифференциации тарифов группам потребителей информация по ним указывается в отдельных строках.",null,{"$f":"strCheckUnique(AE108:AE113)","v":""}]
[null,null,null,null,null,null,1,null,null,null,null,{"$f":"mergeValue(A109) &\".\"& mergeValue(B109)&\".\"& mergeValue(C109)&\".\"& mergeValue(D109)&\".\"& mergeValue(F109)&\".\"& mergeValue(G109)","v":"1.1.1.1.1.1"},"горячая вода в системе централизованного теплоснабжения на горячее водоснабжение",null,null,null,null,null,null,null,null,{"$f":"W109 & \"-\" & Y109","v":"-"},null,"да",null,"да",null,"Указывается вид теплоносителя. Значение выбирается из перечня:\n• вода;\n• пар;\n• отборный пар, 1.2-2.5 кг/см2;\n• отборный пар, 2.5-7 кг/см2;\n• отборный пар, 7-13 кг/см2;\n• отборный пар, > 13 кг/см2;\n• острый и редуцированный пар;\n• горячая вода в системе централизованного теплоснабжения на отопление;\n• горячая вода в системе централизованного теплоснабжения на горячее водоснабжение;\n• прочее.\nВ случае дифференциации тарифов по видам теплоносителя информация по ним указывается в отдельных строках.",{"$f":"strCheckDate(O109:AA109)","v":""},null,{"$f":"IF(M109=\"\",\"\",M109 )","v":"горячая вода в системе централизованного теплоснабжения на горячее водоснабжение"}]
[null,null,null,null,null,null,null,1,null,null,null,{"$f":"mergeValue(A110) &\".\"& mergeValue(B110)&\".\"& mergeValue(C110)&\".\"& mergeValue(D110)&\".\"& mergeValue(F110)&\".\"& mergeValue(G110)&\".\"& mergeValue(H110)","v":"1.1.1.1.1.1.1"},null,null,null,null,null,null,null,null,null,{"$f":"W110 & \"-\" & Y110","v":"-"},null,null,null,null,null,"В колонке «Параметр дифференциации тарифов» указывается наименование поставщика в случае наличия дифференциации компонента двухставочного тарифа на горячую воду по поставщикам.\nПри утверждении двухставочного тарифа колонка «Одноставочный тариф» не заполняется.\nПри утверждении одноставочного тарифа колонки в блоке «Двухставочный тариф» не заполняются.\nВ случае отсутствия разбивки тарифа на компоненты колонки «Компонент на теплоноситель, руб./куб.м» и «Одноставочный компонент на тепловую энергию, руб/Гкал» не заполняются.\nДаты начала и окончания действия тарифов указываются в виде «ДД.ММ.ГГГГ».\nВ случае отсутствия даты окончания действия тарифа в колонке «Дата окончания» указывается «Нет».\nВ случае дифференциации тарифов по поставщикам информация по ним указывается в отдельных строках.\n",{"$f":"strCheckDate(O110:AA110)","v":""}]
[null,null,null,null,null,null,null,null,null,null,null,null,null,null,null,null,null,null,null,null,null,null,null,null,null,null,null,null,null,null,null,{"$f":"OFFSET(AF111,-1,0)","v":0}]
[null,null,null,null,null,null,null,null,null,null,null,null,"Добавить поставщика"]
[null,null,null,null,null,null,null,null,null,null,null,null,"Добавить вид теплоносителя (параметры теплоносителя)"]
[null,null,null,null,null,null,null,null,null,null,null,null,"Добавить группу потребителей"]
[]
[null,null,null,null,null,null,null,null,null,null,null,null,"Добавить источник тепловой энергии"]
[null,null,null,null,null,null,null,null,null,null,null,null,"Добавить наименование системы теплоснабжения"]
[null,null,null,null,null,null,null,null,null,null,null,null,"Добавить территорию действия тарифа"]
[null,null,null,null,null,null,null,null,null,null,null,null,"Добавить наименование тарифа"]
[null,null,null,null,null,null,null,1,null,null,null,{"$f":"mergeValue(A120) &\".\"& mergeValue(B120)&\".\"& mergeValue(C120)&\".\"& mergeValue(D120)&\".\"& mergeValue(F120)&\".\"& mergeValue(G120)&\".\"& mergeValue(H120)","v":"......1"},null,null,null,null,null,null,null,null,null,{"$f":"W120 & \"-\" & Y120","v":"-"},null,"нет",null,"нет",null,null,{"$f":"strCheckDate(O120:AA120)","v":""}]
[]
[]
[null,null,null,null,null,null,"et_List06(_1,_2,_3)",null,"6"]
[]
[1,null,null,null,null,null,null,null,null,null,null,{"$f":"mergeValue(A125)","v":1},"Наименование тарифа",null,null,null,null,null,null,null,null,null,null,null,null,null,null,null,null,"Указывается наименование тарифа в случае нескольких тарифов.\nВ случае наличия нескольких тарифов информация по ним указывается в отдельных строках."]
[null,1,null,null,null,null,null,null,null,null,null,{"$f":"mergeValue(A126) &\".\"& mergeValue(B126)","v":"1.1"},"Территория действия тарифа",null,null,null,null,null,null,null,null,null,null,null,null,null,null,null,null,"Указывается наименование территории действия тарифа при наличии дифференциации тарифа по территориальному признаку.\nВ случае дифференциации тарифов по территориальному признаку информация по ним указывается в отдельных строках."]
[null,null,1,null,null,null,null,null,null,null,null,{"$f":"mergeValue(A127) &\".\"& mergeValue(B127)&\".\"& mergeValue(C127)","v":"1.1.1"},"Наименование системы теплоснабжения ",null,null,null,null,null,null,null,null,null,null,null,null,null,null,null,null,"Указывается наименование системы теплоснабжения при наличии дифференциации тарифа по системам теплоснабжения.\nВ случае дифференциации тарифов по системам теплоснабжения информация по ним указывается в отдельных строках."]
[null,null,null,1,null,null,null,null,null,null,null,{"$f":"mergeValue(A128) &\".\"& mergeValue(B128)&\".\"& mergeValue(C128)&\".\"& mergeValue(D128)","v":"1.1.1.1"},"Источник тепловой энергии  ",null,null,null,null,null,null,null,null,null,null,null,null,null,null,null,null,"Указывается наименование источника тепловой энергии\nВ случае дифференциации тарифов по источникам тепловой энергии информация по ним указывается в отдельных строках."]
[null,null,null,null,1,null,null,1,1]
[null,null,null,null,null,1,null,null,null,1,null,{"$f":"mergeValue(A130) &\".\"& mergeValue(B130)&\".\"& mergeValue(C130)&\".\"& mergeValue(D130)&\".\"&  mergeValue(F130)","v":"1.1.1.1.1"},"Группа потребителей",null,null,null,null,null,null,null,null,null,null,null,null,null,null,null,null,"Указывается группа потребителей при наличии дифференциации тарифа по группам потребителей.\nЗначение выбирается из перечня:\n• Организации-перепродавцы;\n• Бюджетные организации;\n• Население;\n• Прочие;\n• Без дифференциации.\nВ случае дифференциации тарифов группам потребителей информация по ним указывается в отдельных строках.",null,{"$f":"strCheckUnique(AG130:AG133)","v":""}]
[null,null,null,null,null,null,1,null,null,null,1,{"$f":"mergeValue(A131) &\".\"& mergeValue(B131)&\".\"& mergeValue(C131)&\".\"& mergeValue(D131)&\".\"& mergeValue(F131)&\".\"& mergeValue(G131)","v":"1.1.1.1.1.1"},null,null,null,null,null,null,"да",null,"да",null,null,null,null,"да",null,"нет",null,"В колонке «Параметр дифференциации тарифов» указывается вид теплоносителя.\nЗначение выбирается из перечня:\n• вода;\n• пар;\n• отборный пар, 1.2-2.5 кг/см2;\n• отборный пар, 2.5-7 кг/см2;\n• отборный пар, 7-13 кг/см2;\n• отборный пар, > 13 кг/см2;\n• острый и редуцированный пар;\n• горячая вода в системе централизованного теплоснабжения на отопление;\n• горячая вода в системе централизованного теплоснабжения на горячее водоснабжение;\n• прочее.\nПри утверждении двухставочного тарифа тариф колонка «Одноставочный тариф» не заполняется.\nПри подаче утверждении одноставочного тарифа колонки в блоке «Двухставочный тариф» не заполняются.\nИнформация в колонке «Двухставочный тариф» не указывается для тарифа на теплоноситель.\nДаты начала и окончания действия тарифов указываются в виде «ДД.ММ.ГГГГ».\nВ случае отсутствия даты окончания действия тарифа в колонке «Дата окончания» указывается «Нет».\nВ случае дифференциации тарифов по видам теплоносителя информация по ним указывается в отдельных строках.",{"$f":"strCheckDate(O132:AC132)","v":""},null,{"$f":"IF(M131=\"\",\"\",M131 )","v":""}]
[null,null,null,null,null,null,null,null,null,null,null,null,null,null,null,null,{"$f":"R131 & \"-\" & T131","v":"-"},null,null,null,null,null,null,{"$f":"Y131 & \"-\" & AA131","v":"-"}]
[null,null,null,null,null,null,null,null,null,null,null,null,"Добавить вид теплоносителя (параметры теплоносителя)"]
[null,null,null,null,null,null,null,null,null,null,null,null,"Добавить группу потребителей"]
[]
[null,null,null,null,null,null,null,null,null,null,null,null,"Добавить источник тепловой энергии"]
[null,null,null,null,null,null,null,null,null,null,null,null,"Добавить наименование системы теплоснабжения"]
[null,null,null,null,null,null,null,null,null,null,null,null,"Добавить территорию действия тарифа"]
[null,null,null,null,null,null,null,null,null,null,null,null,"Добавить наименование тарифа"]
[]
[null,null,null,null,null,null,"et_List06(_1,_2,_3)",null,"7"]
[]
[1,null,null,null,null,null,null,null,null,null,null,{"$f":"mergeValue(A143)","v":1},"Наименование тарифа",null,null,null,null,null,null,null,null,null,"Указывается наименование тарифа в случае нескольких тарифов.\nВ случае наличия нескольких тарифов информация по ним указывается в отдельных строках."]
[null,1,null,null,null,null,null,null,null,null,null,{"$f":"mergeValue(A144) &\".\"& mergeValue(B144)","v":"1.1"},"Территория действия тарифа",null,null,null,null,null,null,null,null,null,"Указывается наименование территории действия тарифа при наличии дифференциации тарифа по территориальному признаку.\nВ случае дифференциации тарифов по территориальному признаку информация по ним указывается в отдельных строках."]
[null,null,1,null,null,null,null,null,null,null,null,{"$f":"mergeValue(A145) &\".\"& mergeValue(B145)&\".\"& mergeValue(C145)","v":"1.1.1"},"Наименование системы теплоснабжения ",null,null,null,null,null,null,null,null,null,"Указывается наименование системы теплоснабжения при наличии дифференциации тарифа по системам теплоснабжения.\nВ случае дифференциации тарифов по системам теплоснабжения информация по ним указывается в отдельных строках."]
[null,null,null,1,null,null,null,null,null,null,null,{"$f":"mergeValue(A146) &\".\"& mergeValue(B146)&\".\"& mergeValue(C146)&\".\"& mergeValue(D146)","v":"1.1.1.1"},"Источник тепловой энергии  ",null,null,null,null,null,null,null,null,null,"Указывается наименование источника тепловой энергии\nВ случае дифференциации тарифов по источникам тепловой энергии информация по ним указывается в отдельных строках."]
[null,null,null,null,1,null,null,1,1]
[null,null,null,null,null,1,null,null,null,1,null,{"$f":"mergeValue(A148) &\".\"& mergeValue(B148)&\".\"& mergeValue(C148)&\".\"& mergeValue(D148)&\".\"&  mergeValue(F148)","v":"1.1.1.1.1"},"Группа потребителей",null,null,null,null,null,null,null,null,null,"Указывается группа потребителей при наличии дифференциации тарифа по группам потребителей.\nЗначение выбирается из перечня:\n• Организации-перепродавцы;\n• Бюджетные организации;\n• Население;\n• Прочие;\n• Без дифференциации.\nВ случае дифференциации тарифов группам потребителей информация по ним указывается в отдельных строках.",null,{"$f":"strCheckUnique(Z148:Z151)","v":""}]
[null,null,null,null,null,null,1,null,null,null,1,{"$f":"mergeValue(A149) &\".\"& mergeValue(B149)&\".\"& mergeValue(C149)&\".\"& mergeValue(D149)&\".\"& mergeValue(F149)&\".\"& mergeValue(G149)","v":"1.1.1.1.1.1"},null,null,null,null,null,null,"да",null,"нет",null,"В колонке «Параметр дифференциации тарифов» указывается вид теплоносителя.\nЗначение выбирается из перечня:\n• вода;\n• пар;\n• отборный пар, 1.2-2.5 кг/см2;\n• отборный пар, 2.5-7 кг/см2;\n• отборный пар, 7-13 кг/см2;\n• отборный пар, > 13 кг/см2;\n• острый и редуцированный пар;\n• горячая вода в системе централизованного теплоснабжения на отопление;\n• горячая вода в системе централизованного теплоснабжения на горячее водоснабжение;\n• прочее.\nПри утверждении двухставочного тарифа тариф колонка «Одноставочный тариф» не заполняется.\nПри подаче утверждении одноставочного тарифа колонки в блоке «Двухставочный тариф» не заполняются.\nИнформация в колонке «Двухставочный тариф» не указывается для тарифа на теплоноситель.\nДаты начала и окончания действия тарифов указываются в виде «ДД.ММ.ГГГГ».\nВ случае отсутствия даты окончания действия тарифа в колонке «Дата окончания» указывается «Нет».\nВ случае дифференциации тарифов по видам теплоносителя информация по ним указывается в отдельных строках.",{"$f":"strCheckDate(O150:V150)","v":""},null,{"$f":"IF(M149=\"\",\"\",M149 )","v":""}]
[null,null,null,null,null,null,null,null,null,null,null,null,null,null,null,null,{"$f":"R149 & \"-\" & T149","v":"-"}]
[null,null,null,null,null,null,null,null,null,null,null,null,"Добавить вид теплоносителя (параметры теплоносителя)"]
[null,null,null,null,null,null,null,null,null,null,null,null,"Добавить группу потребителей"]
[]
[null,null,null,null,null,null,null,null,null,null,null,null,"Добавить источник тепловой энергии"]
[null,null,null,null,null,null,null,null,null,null,null,null,"Добавить наименование системы теплоснабжения"]
[null,null,null,null,null,null,null,null,null,null,null,null,"Добавить территорию действия тарифа"]
[null,null,null,null,null,null,null,null,null,null,null,null,"Добавить наименование тарифа"]
[]
[null,null,null,null,null,null,"et_List06(_1,_2,_3)",null,"8"]
[]
[1,null,null,null,null,null,null,null,null,null,null,{"$f":"mergeValue(A161)","v":1},"Наименование тарифа",null,null,null,null,null,null,null,null,null,"Указывается наименование тарифа в случае утверждения нескольких тарифов.\nВ случае наличия нескольких тарифов информация по ним указывается в отдельных строках."]
[null,1,null,null,null,null,null,null,null,null,null,{"$f":"mergeValue(A162) &\".\"& mergeValue(B162)","v":"1.1"},"Территория действия тарифа",null,null,null,null,null,null,null,null,null,"Указывается наименование территории действия тарифа при наличии дифференциации тарифа по территориальному признаку.\nВ случае дифференциации тарифов по территориальному признаку информация по ним указывается в отдельных строках."]
[null,null,1,null,null,null,null,null,null,null,null,{"$f":"mergeValue(A163) &\".\"& mergeValue(B163)&\".\"& mergeValue(C163)","v":"1.1.1"},"Наименование системы теплоснабжения ",null,null,null,null,null,null,null,null,null,"Указывается наименование системы теплоснабжения при наличии дифференциации тарифа по системам теплоснабжения.\nВ случае дифференциации тарифов по системам теплоснабжения информация по ним указывается в отдельных строках."]
[null,null,null,1,null,null,null,null,null,null,null,{"$f":"mergeValue(A164) &\".\"& mergeValue(B164)&\".\"& mergeValue(C164)&\".\"& mergeValue(D164)","v":"1.1.1.1"},"Источник тепловой энергии  ",null,null,null,null,null,null,null,null,null,"Указывается наименование источника тепловой энергии\nВ случае дифференциации тарифов по источникам тепловой энергии информация по ним указывается в отдельных строках."]
[null,null,null,null,1,null,null,1,1,null,null,{"$f":"mergeValue(A165) &\".\"& mergeValue(B165)&\".\"& mergeValue(C165)&\".\"& mergeValue(D165)&\".\"& mergeValue(E165)","v":"1.1.1.1.1"},"Схема подключения теплопотребляющей установки к коллектору источника тепловой энергии",null,null,null,null,null,null,null,null,null,"Указывается схема подключения теплопотребляющей установки к коллектору источника тепловой энергии только для тарифов на тепловую энергию и за услуги по поддержанию резервной мощности \nЗначение выбирается из перечня:\n• без дифференциации;\n• к коллектору источника тепловой энергии;\n• к тепловой сети без дополнительного преобразования на тепловых пунктах, эксплуатируемых теплоснабжающей организацией;\n• к тепловой сети после тепловых пунктов (на тепловых пунктах), эксплуатируемых теплоснабжающей организацией.\nВ случае дифференциации тарифов по схемам подключения теплопотребляющей установки к коллектору источника тепловой энергии информация по ним указывается в отдельных строках."]
[null,null,null,null,null,1,null,null,null,1,null,{"$f":"mergeValue(A166) &\".\"& mergeValue(B166)&\".\"& mergeValue(C166)&\".\"& mergeValue(D166)&\".\"& mergeValue(E166)&\".\"& mergeValue(F166)","v":"1.1.1.1.1.1"},"Группа потребителей",null,null,null,null,null,null,null,null,null,"Указывается группа потребителей при наличии дифференциации тарифа по группам потребителей.\nЗначение выбирается из перечня:\n• организации-перепродавцы;\n• бюджетные организации;\n• население;\n• прочие;\n• без дифференциации.\nВ случае дифференциации тарифов группам потребителей информация по ним указывается в отдельных строках.",null,{"$f":"strCheckUnique(Z166:Z169)","v":""},null,{"$f":"IF(O166=\"\",\"\",O166 & \":_\")","v":""}]
[null,null,null,null,null,null,1,null,null,null,1,{"$f":"mergeValue(A167) &\".\"& mergeValue(B167)&\".\"& mergeValue(C167)&\".\"& mergeValue(D167)&\".\"& mergeValue(E167)&\".\"& mergeValue(F167)&\".\"& mergeValue(G167)","v":"1.1.1.1.1.1.1"},null,null,null,null,null,null,"да",null,"да",null,"В колонке «Параметр дифференциации тарифов» указывается вид теплоносителя.\nЗначение выбирается из перечня:\n• вода;\n• пар;\n• отборный пар, 1.2-2.5 кг/см2;\n• отборный пар, 2.5-7 кг/см2;\n• отборный пар, 7-13 кг/см2;\n• отборный пар, > 13 кг/см2;\n• острый и редуцированный пар;\n• горячая вода в системе централизованного теплоснабжения на отопление;\n• горячая вода в системе централизованного теплоснабжения на горячее водоснабжение;\n• прочее.\nДаты начала и окончания действия тарифов указываются в виде «ДД.ММ.ГГГГ».\nВ случае отсутствия даты окончания действия тарифа в колонке «Дата окончания» указывается «Нет».\nИнформация в колонке «Ставка за содержание тепловой мощности, тыс. руб./Гкал/ч/мес.» указывается только для тарифа по поддержанию резервной мощности. \nВ случае дифференциации тарифов по периодам действия тарифа информация по ним указывается в отдельных колонках.\nВ случае дифференциации тарифов по видам теплоносителя информация по ним указывается в отдельных строках.",{"$f":"strCheckDate(O168:V168)","v":""},null,{"$f":"IF(M167=\"\",\"\",M167 )","v":""}]
[null,null,null,null,null,null,null,null,null,null,null,null,null,null,null,null,{"$f":"R167 & \"-\" & T167","v":"-"}]
[null,null,null,null,null,null,null,null,null,null,null,null,"Добавить вид теплоносителя (параметры теплоносителя)"]
[null,null,null,null,null,null,null,null,null,null,null,null,"Добавить группу потребителей"]
[null,null,null,null,null,null,null,null,null,null,null,null,"Добавить схему подключения"]
[null,null,null,null,null,null,null,null,null,null,null,null,"Добавить источник тепловой энергии"]
[null,null,null,null,null,null,null,null,null,null,null,null,"Добавить наименование системы теплоснабжения"]
[null,null,null,null,null,null,null,null,null,null,null,null,"Добавить территорию действия тарифа"]
[null,null,null,null,null,null,null,null,null,null,null,null,"Добавить наименование тарифа"]
[]
[null,null,null,null,null,null,"et_List06(_1,_2,_3)",null,"9"]
[]
[1,null,null,null,null,null,null,null,null,null,null,{"$f":"mergeValue(A179)","v":1},"Наименование тарифа",null,null,null,null,null,null,null,null,null,null,"Указывается наименование тарифа в случае утверждения нескольких тарифов.\nВ случае наличия нескольких тарифов информация по ним указывается в отдельных строках."]
[null,1,null,null,null,null,null,null,null,null,null,{"$f":"mergeValue(A180) &\".\"& mergeValue(B180)","v":"1.1"},"Территория действия тарифа",null,null,null,null,null,null,null,null,null,null,"Указывается наименование территории действия тарифа при наличии дифференциации тарифа по территориальному признаку.\nВ случае дифференциации тарифов по территориальному признаку информация по ним указывается в отдельных строках."]
[null,null,1,null,null,null,null,null,null,null,null,{"$f":"mergeValue(A181) &\".\"& mergeValue(B181)&\".\"& mergeValue(C181)","v":"1.1.1"},"Наименование системы теплоснабжения ",null,null,null,null,null,null,null,null,null,null,"Указывается наименование системы теплоснабжения при наличии дифференциации тарифа по системам теплоснабжения.\nВ случае дифференциации тарифов по системам теплоснабжения информация по ним указывается в отдельных строках."]
[null,null,null,1,null,null,null,null,null,null,null,{"$f":"mergeValue(A182) &\".\"& mergeValue(B182)&\".\"& mergeValue(C182)&\".\"& mergeValue(D182)","v":"1.1.1.1"},"Источник тепловой энергии  ",null,null,null,null,null,null,null,null,null,null,"Указывается наименование источника тепловой энергии."]
[null,null,null,null,1,null,null,null,null,null,null,{"$f":"mergeValue(A183) &\".\"& mergeValue(B183)&\".\"& mergeValue(C183)&\".\"& mergeValue(D183)&\".\"& mergeValue(E183)","v":"1.1.1.1.1"},null,null,null,null,null,null,null,"да",null,"да",null,"В колонке «Заявитель» указывается наименование заявителя, к которой относится тариф.\nДаты начала и окончания указываются в виде «ДД.ММ.ГГГГ».\nВ случае отсутствия даты окончания тарифа в колонке «Дата окончания» указывается «Нет».\nВ случае наличия дифференциации по категориям потребителей/заявителям информация по ним указывается в отдельных строках.\nВ случае дифференциации по периодам действия тарифа информация по ним указывается в отдельных колонках.",{"$f":"strCheckDateTwo(N183:W183)","v":""}]
[null,null,null,null,null,null,null,null,null,null,null,null,null,null,null,null,null,{"$f":"S183 & \"-\" & U183","v":"-"}]
[null,null,null,null,null,null,null,null,null,null,null,null,"Добавить строку"]
[null,null,null,null,null,null,null,null,null,null,null,null,"Добавить источник тепловой энергии"]
[null,null,null,null,null,null,null,null,null,null,null,null,"Добавить наименование системы теплоснабжения"]
[null,null,null,null,null,null,null,null,null,null,null,null,"Добавить территорию действия тарифа"]
[null,null,null,null,null,null,null,null,null,null,null,null,"Добавить наименование тарифа"]
[]
[null,null,null,null,null,null,"et_List06(_1,_2,_3)",null,"10"]
[]
[1,null,null,null,null,null,null,null,null,null,null,{"$f":"mergeValue(A193)","v":1},"Наименование тарифа",null,null,null,null,null,null,null,null,null,null,null,null,null,null,null,null,null,null,null,"Указывается наименование тарифа в случае утверждения нескольких тарифов.\nВ случае наличия нескольких тарифов информация по ним указывается в отдельных строках."]
[null,1,null,null,null,null,null,null,null,null,null,{"$f":"mergeValue(A194) &\".\"& mergeValue(B194)","v":"1.1"},"Территория действия тарифа",null,null,null,null,null,null,null,null,null,null,null,null,null,null,null,null,null,null,null,"Указывается наименование территории действия тарифа при наличии дифференциации тарифа по территориальному признаку.\nВ случае дифференциации тарифов по территориальному признаку информация по ним указывается в отдельных строках."]
[null,null,1,null,null,null,null,null,null,null,null,{"$f":"mergeValue(A195) &\".\"& mergeValue(B195)&\".\"& mergeValue(C195)","v":"1.1.1"},"Наименование системы теплоснабжения ",null,null,null,null,null,null,null,null,null,null,null,null,null,null,null,null,null,null,null,"Указывается наименование системы теплоснабжения при наличии дифференциации тарифа по системам теплоснабжения.\nВ случае дифференциации тарифов по системам теплоснабжения информация по ним указывается в отдельных строках."]
[null,null,null,1,null,null,null,null,null,null,null,{"$f":"mergeValue(A196) &\".\"& mergeValue(B196)&\".\"& mergeValue(C196)&\".\"& mergeValue(D196)","v":"1.1.1.1"},"Источник тепловой энергии  ",null,null,null,null,null,null,null,null,null,null,null,null,null,null,null,null,null,null,null,"Указывается наименование источника тепловой энергии"]
[null,null,null,null,1,null,null,null,null,null,null,{"$f":"mergeValue(A197) &\".\"& mergeValue(B197)&\".\"& mergeValue(C197)&\".\"& mergeValue(D197)&\".\"& mergeValue(E197)","v":"1.1.1.1.1"},null,"нет",null,1,null,"нет",null,1,null,"нет",null,1,null,null,null,null,"да",null,"да",null,"В колодке «Параметр дифференциации тарифа/Заявитель» указывается наименование категории потребителей, к которой относится тариф.\nДаты начала и окончания указываются в виде «ДД.ММ.ГГГГ».\nВ случае отсутствия даты окончания тарифа в колонке «Дата окончания» указывается «Нет».\nВ случае наличия дифференциации по подключаемой нагрузке, диапазону диаметров, типу прокладки тепловых сетей, информация по ним указывается в отдельных строках.\nВ случае дифференциации тарифов по периодам действия тарифа информация по ним указывается в отдельных колонках.",{"$f":"strCheckDate(Z198:AF198)","v":""},{"$f":"IF(AND(COUNTIF(AJ192:AJ192,AJ197)>1,AJ197<>\"\"),\"ErrUnique:HasDoubleConn\",\"\")","v":""}]
[null,null,null,null,null,null,null,null,null,null,null,null,null,null,null,null,null,null,null,null,null,null,null,null,null,null,{"$f":"AB197 & \"-\" & AD197","v":"-"}]
[]
[]
[null,null,null,null,null,null,null,null,null,null,null,null,"Добавить строку"]
[null,null,null,null,null,null,null,null,null,null,null,null,"Добавить источник тепловой энергии"]
[null,null,null,null,null,null,null,null,null,null,null,null,"Добавить наименование системы теплоснабжения"]
[null,null,null,null,null,null,null,null,null,null,null,null,"Добавить территорию действия тарифа"]
[null,null,null,null,null,null,null,null,null,null,null,null,"Добавить наименование тарифа"]
[]
[]
[]
[]
[]
[null,null,null,null,null,null,null,null,null,null,null,null,null,"нет",null,1,null,"да",null,1,null,"да",null,1]
[null,null,null,null,null,null,null,null,null,null,null,null,null,null,null,null,null,null,null,null,null,null,null,null,"Добавить диапазон диаметров тепловых сетей"]
[null,null,null,null,null,null,null,null,null,null,null,null,null,null,null,null,null,null,null,null,"Добавить тип прокладки тепловых сетей"]
[]
[]
[]
[]
[null,null,null,null,null,null,"et_List06(_1,_2,_3)",null,"3_i"]
[]
[1,null,null,null,null,null,null,null,null,null,null,{"$f":"mergeValue(A220)","v":1},"Наименование тарифа",null,null,null,null,null,null,null,null,null,"Указывается наименование тарифа в случае утверждения нескольких тарифов.\nВ случае наличия нескольких тарифов информация по ним указывается в отдельных строках.",null,null,{"$f":"IF(M220=\"\",\"\",M220 )","v":"Наименование тарифа"}]
[null,1,null,null,null,null,null,null,null,null,null,{"$f":"mergeValue(A221) &\".\"& mergeValue(B221)","v":"1.1"},"Территория действия тарифа",null,null,null,null,null,null,null,null,null,"Указывается наименование территории действия тарифа при наличии дифференциации тарифа по территориальному признаку.\nВ случае дифференциации тарифов по территориальному признаку информация по ним указывается в отдельных строках.",null,null,"Территория действия тарифа"]
[null,null,1,null,null,null,null,null,null,null,null,{"$f":"mergeValue(A222) &\".\"& mergeValue(B222)&\".\"& mergeValue(C222)","v":"1.1.1"},"Наименование системы теплоснабжения ",null,null,null,null,null,null,null,null,null,"Указывается наименование системы теплоснабжения при наличии дифференциации тарифа по системам теплоснабжения.\nВ случае дифференциации тарифов по системам теплоснабжения информация по ним указывается в отдельных строках.",null,null,"Наименование системы теплоснабжения "]
[null,null,null,1,null,null,null,null,null,null,null,{"$f":"mergeValue(A223) &\".\"& mergeValue(B223)&\".\"& mergeValue(C223)&\".\"& mergeValue(D223)","v":"1.1.1.1"},"Источник тепловой энергии  ",null,null,null,null,null,null,null,null,null,"Указывается наименование источника тепловой энергии\nВ случае дифференциации тарифов по источникам тепловой энергии информация по ним указывается в отдельных строках.",null,null,"Источник тепловой энергии  "]
[null,null,null,null,1,null,null,1,1,null,null,{"$f":"mergeValue(A224) &\".\"& mergeValue(B224)&\".\"& mergeValue(C224)&\".\"& mergeValue(D224)&\".\"& mergeValue(E224)","v":"1.1.1.1.1"},"Схема подключения теплопотребляющей установки к коллектору источника тепловой энергии",null,null,null,null,null,null,null,null,null,"Указывается схема подключения теплопотребляющей установки к коллектору источника тепловой энергии только для тарифов на тепловую энергию и за услуги по поддержанию резервной мощности \nЗначение выбирается из перечня:\n• без дифференциации;\n• к коллектору источника тепловой энергии;\n• к тепловой сети без дополнительного преобразования на тепловых пунктах, эксплуатируемых теплоснабжающей организацией;\n• к тепловой сети после тепловых пунктов (на тепловых пунктах), эксплуатируемых теплоснабжающей организацией.\nВ случае дифференциации тарифов по схемам подключения теплопотребляющей установки к коллектору источника тепловой энергии информация по ним указывается в отдельных строках.",null,null,"Схема подключения теплопотребляющей установки к коллектору источника тепловой энергии"]
[null,null,null,null,null,1,null,null,null,1,null,{"$f":"mergeValue(A225) &\".\"& mergeValue(B225)&\".\"& mergeValue(C225)&\".\"& mergeValue(D225)&\".\"& mergeValue(E225)&\".\"& mergeValue(F225)","v":"1.1.1.1.1.1"},"Группа потребителей",null,null,null,null,null,null,null,null,null,"Указывается группа потребителей при наличии дифференциации тарифа по группам потребителей.\nЗначение выбирается из перечня:\n• организации-перепродавцы;\n• бюджетные организации;\n• население;\n• прочие;\n• без дифференциации.\nВ случае дифференциации тарифов группам потребителей информация по ним указывается в отдельных строках.",null,null,"Группа потребителей"]
[null,null,null,null,null,null,1,null,null,null,1,{"$f":"mergeValue(A226) &\".\"& mergeValue(B226)&\".\"& mergeValue(C226)&\".\"& mergeValue(D226)&\".\"& mergeValue(E226)&\".\"& mergeValue(F226)&\".\"& mergeValue(G226)","v":"1.1.1.1.1.1.1"},null,null,null,null,null,null,"да",null,"да",null,"В колонке «Параметр дифференциации тарифов» указывается вид теплоносителя.\nЗначение выбирается из перечня:\n• вода;\n• пар;\n• отборный пар, 1.2-2.5 кг/см2;\n• отборный пар, 2.5-7 кг/см2;\n• отборный пар, 7-13 кг/см2;\n• отборный пар, > 13 кг/см2;\n• острый и редуцированный пар;\n• горячая вода в системе централизованного теплоснабжения на отопление;\n• горячая вода в системе централизованного теплоснабжения на горячее водоснабжение;\n• прочее.\nПри утверждении двухставочного тарифа колонка «Одноставочный тариф» не заполняется.\nПри утверждении одноставочного тарифа колонки в блоке «Двухставочный тариф» не заполняются.\nДаты начала и окончания действия тарифов указываются в виде «ДД.ММ.ГГГГ».\nВ случае отсутствия даты окончания действия тарифа в колонке «Дата окончания» указывается «Нет».\nВ случае дифференциации тарифов по периодам действия тарифа информация по ним указывается в отдельных колонках.\nВ случае дифференциации тарифов по видам теплоносителя информация по ним указывается в отдельных строках.",{"$f":"strCheckDate(O227:V227)","v":""},null,""]
[null,null,null,null,null,null,null,null,null,null,null,null,null,null,null,null,{"$f":"R226 & \"-\" & T226","v":"-"},null,null,null,null,null,null,null,null,""]
[null,null,null,null,null,null,null,null,null,null,null,null,"Добавить вид теплоносителя (параметры теплоносителя)",null,null,null,null,null,null,null,null,null,null,null,null,"Добавить вид теплоносителя (параметры теплоносителя)"]
[null,null,null,null,null,null,null,null,null,null,null,null,"Добавить группу потребителей",null,null,null,null,null,null,null,null,null,null,null,null,"Добавить группу потребителей"]
[null,null,null,null,null,null,null,null,null,null,null,null,"Добавить схему подключения",null,null,null,null,null,null,null,null,null,null,null,null,"Добавить схему подключения"]
[null,null,null,null,null,null,null,null,null,null,null,null,"Добавить источник тепловой энергии",null,null,null,null,null,null,null,null,null,null,null,null,"Добавить источник тепловой энергии"]
[null,null,null,null,null,null,null,null,null,null,null,null,"Добавить наименование системы теплоснабжения",null,null,null,null,null,null,null,null,null,null,null,null,"Добавить наименование системы теплоснабжения"]
[null,null,null,null,null,null,null,null,null,null,null,null,"Добавить территорию действия тарифа",null,null,null,null,null,null,null,null,null,null,null,null,"Добавить территорию действия тарифа"]
[null,null,null,null,null,null,null,null,null,null,null,null,"Добавить наименование тарифа"]
[]
[null,null,null,null,null,null,"et_List06(_1,_2,_3)",null,"13"]
[]
[1,null,null,null,null,null,null,null,null,null,null,{"$f":"mergeValue(A238)","v":1},"Наименование тарифа",null,null,null,null,null,null,null,null,null,"Указывается наименование тарифа в случае утверждения нескольких тарифов.\nВ случае наличия нескольких тарифов информация по ним указывается в отдельных строках.",null,null,{"$f":"IF(M238=\"\",\"\",M238 )","v":"Наименование тарифа"}]
[null,1,null,null,null,null,null,null,null,null,null,{"$f":"mergeValue(A239) &\".\"& mergeValue(B239)","v":"1.1"},"Территория действия тарифа",null,null,null,null,null,null,null,null,null,"Указывается наименование территории действия тарифа при наличии дифференциации тарифа по территориальному признаку.\nВ случае дифференциации тарифов по территориальному признаку информация по ним указывается в отдельных строках.",null,null,"Территория действия тарифа"]
[null,null,1,null,null,null,null,null,null,null,null,{"$f":"mergeValue(A240) &\".\"& mergeValue(B240)&\".\"& mergeValue(C240)","v":"1.1.1"},"Наименование системы теплоснабжения ",null,null,null,null,null,null,null,null,null,"Указывается наименование системы теплоснабжения при наличии дифференциации тарифа по системам теплоснабжения.\nВ случае дифференциации тарифов по системам теплоснабжения информация по ним указывается в отдельных строках.",null,null,"Наименование системы теплоснабжения "]
[null,null,null,1,null,null,null,null,null,null,null,{"$f":"mergeValue(A241) &\".\"& mergeValue(B241)&\".\"& mergeValue(C241)&\".\"& mergeValue(D241)","v":"1.1.1.1"},"Источник тепловой энергии  ",null,null,null,null,null,null,null,null,null,"Указывается наименование источника тепловой энергии\nВ случае дифференциации тарифов по источникам тепловой энергии информация по ним указывается в отдельных строках.",null,null,"Источник тепловой энергии  "]
[null,null,null,null,1,null,null,1,1,null,null,{"$f":"mergeValue(A242) &\".\"& mergeValue(B242)&\".\"& mergeValue(C242)&\".\"& mergeValue(D242)&\".\"& mergeValue(E242)","v":"1.1.1.1.1"},"Схема подключения теплопотребляющей установки к коллектору источника тепловой энергии",null,null,null,null,null,null,null,null,null,"Указывается схема подключения теплопотребляющей установки к коллектору источника тепловой энергии только для тарифов на тепловую энергию и за услуги по поддержанию резервной мощности \nЗначение выбирается из перечня:\n• без дифференциации;\n• к коллектору источника тепловой энергии;\n• к тепловой сети без дополнительного преобразования на тепловых пунктах, эксплуатируемых теплоснабжающей организацией;\n• к тепловой сети после тепловых пунктов (на тепловых пунктах), эксплуатируемых теплоснабжающей организацией.\nВ случае дифференциации тарифов по схемам подключения теплопотребляющей установки к коллектору источника тепловой энергии информация по ним указывается в отдельных строках.",null,null,"Схема подключения теплопотребляющей установки к коллектору источника тепловой энергии"]
[null,null,null,null,null,1,null,null,null,1,null,{"$f":"mergeValue(A243) &\".\"& mergeValue(B243)&\".\"& mergeValue(C243)&\".\"& mergeValue(D243)&\".\"& mergeValue(E243)&\".\"& mergeValue(F243)","v":"1.1.1.1.1.1"},"Группа потребителей",null,null,null,null,null,null,null,null,null,"Указывается группа потребителей при наличии дифференциации тарифа по группам потребителей.\nЗначение выбирается из перечня:\n• организации-перепродавцы;\n• бюджетные организации;\n• население;\n• прочие;\n• без дифференциации.\nВ случае дифференциации тарифов группам потребителей информация по ним указывается в отдельных строках.",null,null,"Группа потребителей"]
[null,null,null,null,null,null,1,null,null,null,1,{"$f":"mergeValue(A244) &\".\"& mergeValue(B244)&\".\"& mergeValue(C244)&\".\"& mergeValue(D244)&\".\"& mergeValue(E244)&\".\"& mergeValue(F244)&\".\"& mergeValue(G244)","v":"1.1.1.1.1.1.1"},null,null,null,null,null,null,"да",null,"да",null,"В колонке «Параметр дифференциации тарифов» указывается вид теплоносителя.\nЗначение выбирается из перечня:\n• вода;\n• пар;\n• отборный пар, 1.2-2.5 кг/см2;\n• отборный пар, 2.5-7 кг/см2;\n• отборный пар, 7-13 кг/см2;\n• отборный пар, > 13 кг/см2;\n• острый и редуцированный пар;\n• горячая вода в системе централизованного теплоснабжения на отопление;\n• горячая вода в системе централизованного теплоснабжения на горячее водоснабжение;\n• прочее.\nПри утверждении двухставочного тарифа колонка «Одноставочный тариф» не заполняется.\nПри утверждении одноставочного тарифа колонки в блоке «Двухставочный тариф» не заполняются.\nДаты начала и окончания действия тарифов указываются в виде «ДД.ММ.ГГГГ».\nВ случае отсутствия даты окончания действия тарифа в колонке «Дата окончания» указывается «Нет».\nВ случае дифференциации тарифов по периодам действия тарифа информация по ним указывается в отдельных колонках.\nВ случае дифференциации тарифов по видам теплоносителя информация по ним указывается в отдельных строках.",{"$f":"strCheckDate(O245:V245)","v":""},null,""]
[null,null,null,null,null,null,null,null,null,null,null,null,null,null,null,null,{"$f":"R244 & \"-\" & T244","v":"-"},null,null,null,null,null,null,null,null,""]
[null,null,null,null,null,null,null,null,null,null,null,null,"Добавить вид теплоносителя (параметры теплоносителя)",null,null,null,null,null,null,null,null,null,null,null,null,"Добавить вид теплоносителя (параметры теплоносителя)"]
[null,null,null,null,null,null,null,null,null,null,null,null,"Добавить группу потребителей",null,null,null,null,null,null,null,null,null,null,null,null,"Добавить группу потребителей"]
[null,null,null,null,null,null,null,null,null,null,null,null,"Добавить схему подключения",null,null,null,null,null,null,null,null,null,null,null,null,"Добавить схему подключения"]
[null,null,null,null,null,null,null,null,null,null,null,null,"Добавить источник тепловой энергии",null,null,null,null,null,null,null,null,null,null,null,null,"Добавить источник тепловой энергии"]
[null,null,null,null,null,null,null,null,null,null,null,null,"Добавить наименование системы теплоснабжения",null,null,null,null,null,null,null,null,null,null,null,null,"Добавить наименование системы теплоснабжения"]
[null,null,null,null,null,null,null,null,null,null,null,null,"Добавить территорию действия тарифа",null,null,null,null,null,null,null,null,null,null,null,null,"Добавить территорию действия тарифа"]
[null,null,null,null,null,null,null,null,null,null,null,null,"Добавить наименование тарифа"]
[]
["et_List07"]
[]
[]
[]
["et_List06"]
[]
[null,null,null,null,1]
[]
["et_List07"]
[]
[null,null,null,null,"1"]
[]
["et_List08"]
[]
[null,null,null,null,"1"]
[]
["et_List00_01","et_List00_02","et_List00_03"]
[]
[null,null,null,null,null,"Адрес регулируемой организации"]
[null,null,null,null,"Юридический адрес"]
[null,null,null,null,"Почтовый адрес"]
[]
[null,null,null,null,null,"Руководитель"]
[null,null,null,null,"Фамилия, имя, отчество"]
[null,null,null,null,"(код) номер телефона"]
[]
[null,null,null,null,null,"Главный бухгалтер"]
[null,null,null,null,"Фамилия, имя, отчество"]
[null,null,null,null,"(код) номер телефона"]
[]
[null,null,null,null,null,"Должностное лицо, ответственное за составление формы"]
[null,null,null,null,"Фамилия, имя, отчество"]
[null,null,null,null,"Должность"]
[null,null,null,null,"(код) номер телефона"]
[null,null,null,null,"e-mail"]
[]
["et_List03"]
[]
["3","",null,null,null,null,null,null,null,null,null,null,{"$f":"IF(ISERROR(INDEX(kind_of_nameforms,MATCH(E292,kind_of_forms,0),1)),\"\",INDEX(kind_of_nameforms,MATCH(E292,kind_of_forms,0),1))","v":""}]
[]
[]
["et_List01_0"]
[]
[null,"auto",null,1,null,null,0,null,null,"0",null,null,{"$f":"mergeValue(H297)","v":0},null,null,{"$f":"IF(ISERROR(MATCH(Q297,MODesc,0)),\"n\",\"y\")","v":"n"},null,{"$f":"K297&\"(\"&L297&\")\"","v":"()"}]
[null,null,null,null,null,null,null,"Добавить МР"]
[]
["et_List01_1"]
[]
[null,"auto",null,null,null,null,0,null,null,"0",null,null,{"$f":"mergeValue(H302)","v":0},null,null,null,null,{"$f":"K302&\"(\"&L302&\")\"","v":"()"}]
[null,null,null,null,null,null,null,null,null,null,"Добавить МО"]
[]
["et_List01_2"]
[]
[null,"auto",null,null,null,null,null,null,null,0,null,null,{"$f":"mergeValue(H307)","v":0},null,null,null,null,{"$f":"K307&\" (\"&L307&\")\"","v":" ()"}]
[]
[]
["et_List11_1"]
[]
[]
[]
[]
["et_List12_1"]
[]
[null,null,null,null,null,"x","x"]
[]
[]
["et_List12_2"]
[]
[null,null,null,null,null,"x",null,"x"]
[]
[]
["et_List12_3"]
[]
[null,null,null,null,{"$f":"E326","v":0},"x",null,"x"]
[]
[]
["et_List12_4"]
[]
[null,null,null,null,{"$f":"E331","v":0},"x",null,"x"]
[]
[]
["et_List05(_1,_2,_3,_4)"]
[]
[1,null,null,null,null,{"$f":"\"2.\" &mergeValue(A337)","v":"2.1"},"Наименование централизованной системы коммунальной инфраструктуры",null,"Указывается наименование централизованной системы холодного водоснабжения/горячего водоснабжения/водоотведения/теплоснабжения, к которой относится размещаемая информация.\nВ случае наличия нескольких централизованных систем коммунальной инфраструктуры, информация по каждой из них указывается в отдельной строке."]
[null,null,null,null,null,{"$f":"\"3.\" &mergeValue(A338)","v":"3.1"},"Наименование регулируемого вида деятельности",null,"Указывается наименование вида регулируемой деятельности."]
[null,null,null,null,null,{"$f":"\"4.\"&mergeValue(A339)","v":"4.1"},"Территория оказания услуги по регулируемому виду деятельности","x"]
[null,1,null,null,null,{"$f":"\"4.\"&mergeValue(A340) &\".\"&mergeValue(B340)","v":"4.1.1"},"Субъект Российской Федерации",{"$f":"IF(region_name=\"\",\"\",region_name)","v":"Республика Татарстан"},"Указывается наименование субъекта Российской Федерации"]
[null,null,1,null,null,{"$f":"\"4.\"&mergeValue(A341) &\".\"&mergeValue(B341)&\".\"&mergeValue(C341)","v":"4.1.1.1"},"муниципальный район",null,"Указывается наименование муниципального района, на территории которого организация оказывает услуги по регулируемому виду деятельности."]
[null,null,null,1,null,{"$f":"\"4.\"&mergeValue(A342) &\".\"&mergeValue(B342)&\".\"&mergeValue(C342)&\".\"&mergeValue(D342)","v":"4.1.1.1.1"},"муниципальное образование",null,"Указывается наименование и код муниципального района, муниципального образования в соответствии с Общероссийским классификатором территорий муниципальных образований (далее - ОКТМО), входящего в муниципальный район, на территории которого организация оказывает услуги по регулируемому виду деятельности.\nВ случае оказания услуг по регулируемому виду деятельности на территории нескольких муниципальных районов (муниципальных образований) данные по каждому их них указываются в отдельной строке."]
[null,null,null,null,null,null,"Добавить МО"]
[null,null,null,null,null,null,"Добавить МР"]
[null,null,null,null,null,null,"Добавить территорию"]
[null,null,null,null,null,null,"Добавить ЦС"]

{"sheet":"TEHSHEET","index":40,"n_rows":87,"n_cols":55,"rows_kept":87,"cut":false,"hidden":true,"merged":[[0,51,0,52]]}
["REGION","year_list1","year_list","logical","Месяц\n(MONTH)","Квартал\n(QUARTER)","Месяц\n(kind_of_publication)","НДС\n/kind_of_NDS/","Номер СЦХВ(СЦВО)\n/SKI_number/","Единица измерения объема оказываемых услуг ГВС\n/kind_of_unit_GVS/","Метод регулирования\n/kind_of_control_method/",null,null,"Вид деятельности, на которую установлен тариф /kind_of_activity_WARM/","Вид теплоносителя\n(kind_of_heat_transfer)","Тип данных\n(kind_of_data_type)","Схема подключения\n(kind_of_scheme_in)\n(kind_of_scheme_in2)","Группы потребителей\n(kind_of_cons)","Тип прокладки тепловых сетей\n(kind_of_nets)","Диапазаны диаметров тепловых сетей\n(kind_of_diameters)","Подключаемая тепловая нагрузка\n(kind_of_load)",null,"Форма 2, таблица Х","виды тарифа\n/kind_group_rates/","Заголовок таблицы",null,"name_rates_4",null,"name_rates_8",null,null,"Подключаемая тепловая нагрузка\n(kind_of_load3)",null,"Вид теплоносителя\n(kind_of_heat_transfer2)","Вид теплоносителя\n(kind_of_heat_transfer3)",null,"Вид топлива\n(kind_of_fuel)",null,"Способ закупки товаров\n(kind_of_zak)",null,null,"виды тарифа\n/kind_group_rates_load/","виды тарифа\n/kind_group_rates_load_filter/",null,"виды признаков дифференциации\n/kind_of_diff/",null,"Диапазаны диаметров водопроводных сетей\n(kind_of_diameters2)",null,"List_H","List_M",null,"Перечень форм\n(kind_of_forms)",null,null,"Тип организации\nkind_of_org_type"]
["Алтайский край",2000,2013,"да","январь","I квартал","На официальном сайте организации","общий","1","тыс.куб.м/сутки","метод экономически обоснованных расходов (затрат)","метод экономически обоснованных расходов (затрат)",1,"Передача+Сбыт","вода","первичное раскрытие информации","без дифференциации","организации-перепродавцы","надземная (наземная)","50 - 250 мм","не превышает 0,1 Гкал/ч",1,null,"Тарифы на тепловую энергию (мощность), производимую в режиме комбинированной выработки электрической и тепловой энергии источниками тепловой энергии с установленной генерирующей мощностью производства электрической энергии 25 мегаватт и более, в соответствии с установленными федеральным органом исполнительной власти в области государственного регулирования тарифов в сфере теплоснабжения предельными (минимальным и (или) максимальным) уровнями указанных тарифов","Форма 4.2.1 Информация о величинах тарифов на тепловую энергию, поддержанию резервной тепловой мощности",null,"Тариф на теплоноситель, поставляемый потребителям","Тариф на теплоноситель, поставляемый потребителям","Плата за услуги по поддержанию резервной тепловой мощности при отсутствии потребления тепловой энергии для отдельных категорий (групп) социально значимых потребителей","Плата за услуги по поддержанию резервной тепловой мощности при отсутствии потребления тепловой энергии для отдельных категорий (групп) социально значимых потребителей",null,"не превышает 0,1 Гкал/ч",null,"Вода","Вода",null,"Газ природный по регулируемой цене",null,"Конкурс",null,null,"Тарифы на тепловую энергию (мощность), производимую в режиме комбинированной выработки электрической и тепловой энергии источниками тепловой энергии с установленной генерирующей мощностью производства электрической энергии 25 мегаватт и более, в соответствии с установленными федеральным органом исполнительной власти в области государственного регулирования тарифов в сфере теплоснабжения предельными (минимальным и (или) максимальным) уровнями указанных тарифов","Тарифы на услуги по передаче теплоносителя",null,"объемы потребления воды абонентами",null,"40 мм и менее",null,"00","00",null,"Форма 1.0.1","Основные параметры раскрываемой информации",null,"Регулируемая организация"]
["Амурская область",2001,2014,"нет","февраль","II квартал","На сайте регулирующего органа","общий с учетом освобождения от уплаты НДС","2","Гкал/ч","метод индексации установленных тарифов","метод индексации установленных тарифов",2,"Передача","пар","изменения в раскрытой ранее информации","к коллектору источника тепловой энергии","бюджетные организации","подземная (канальная)","251 - 400 мм","более 0,1 Гкал/ч и не превышает 1,5 Гкал/ч",2,null,"Тарифы на тепловую энергию (мощность), поставляемую другим теплоснабжающим организациям теплоснабжающими организациями","Форма 4.2.1 Информация о величинах тарифов на тепловую энергию, поддержанию резервной тепловой мощности",null,"Тариф на теплоноситель, поставляемый теплоснабжающей организацией, владеющей источником (источниками) тепловой энергии, на котором производится теплоноситель","Тариф на теплоноситель, поставляемый теплоснабжающей организацией, владеющей источником (источниками) тепловой энергии, на котором производится теплоноситель","Плата за услуги по поддержанию резервной тепловой мощности, оказываемые регулируемой организацией, мощность источников тепловой энергии которой используется для поддержания резервной мощности в соответствии со схемой теплоснабжения","Плата за услуги по поддержанию резервной тепловой мощности, оказываемые регулируемой организацией, мощность источников тепловой энергии которой используется для поддержания резервной мощности в соответствии со схемой теплоснабжения",null,"более 0,1 Гкал/ч и не превышает 1,5 Гкал/ч",null,"Отборный пар, 1,2-2,5 кг/см2","Пар",null,"Газ природный по нерегулируемой цене",null,"Аукцион",null,null,"Тарифы на тепловую энергию (мощность), поставляемую потребителям теплоснабжающими организациями в соответствии с установленными предельными (минимальными и (или) максимальными) уровнями указанных тарифов","Плата за подключение к системе теплоснабжения",null,"соответствие качества питьевой воды и горячей воды требованиям, установленным санитарными нормами и правилами",null,"от 41 мм до 70 мм включительно",null,"01","01",null,"Форма 4.2.1","Информация о величинах тарифов на тепловую энергию, поддержанию резервной тепловой мощности",null,"Единая теплоснабжающая организация"]
["Архангельская область",2002,2015,null,"март","III квартал",null,"специальный (упрощенная система налогообложения, система налогообложения для сельскохозяйственных производителей)","3","куб.м/ч","метод обеспечения доходности инвестированного капитала","метод обеспечения доходности инвестированного капитала",3,"производство комбинированная выработка","отборный пар, 1.2-2.5 кг/см2",null,"к тепловой сети без дополнительного преобразования на тепловых пунктах, эксплуатируемых теплоснабжающей организацией","население и приравненные категории","подземная (бесканальная)","401 - 550 мм","превышает 1,5 Гкал/ч при наличии технической возможности подключения",3,null,"Предельный уровнь цены на тепловую энергию (мощность), поставляемую теплоснабжающими организациями потребителям","Форма 4.2.1 Информация о величинах тарифов на тепловую энергию, поддержанию резервной тепловой мощности",null,null,null,"Плата за услуги по поддержанию резервной тепловой мощности, оказываемые регулируемой организацией, мощность тепловых сетей которой используется для поддержания резервной мощности в соответствии со схемой теплоснабжения","Плата за услуги по поддержанию резервной тепловой мощности, оказываемые регулируемой организацией, мощность тепловых сетей которой используется для поддержания резервной мощности в соответствии со схемой теплоснабжения",null,"превышает 1,5 Гкал/ч при наличии технической возможности подключения",null,"Отборный пар, 2,5-7 кг/см2",null,null,"Уголь",null,"Аукцион в электронной форме",null,null,"Тарифы на тепловую энергию (мощность), поставляемую другим теплоснабжающим организациям теплоснабжающими организациями","Плата за подключение к системе теплоснабжения (индивидуальная)",null,"иное",null,"от 71 мм до 100 мм включительно",null,"02","02",null,"Форма 4.2.2","Информация о величинах тарифов на теплоноситель, передачу тепловой энергии, теплоносителя",null,"Теплоснабжающая организация в ценовой зоне теплоснабжения"]
["Астраханская область",2003,2016,null,"апрель","IV квартал",null,null,"4",null,"метод сравнения аналогов","метод сравнения аналогов",4,"производство (некомбинированная выработка)+передача+сбыт","отборный пар, 2.5-7 кг/см2",null,"к тепловой сети после тепловых пунктов (на тепловых пунктах), эксплуатируемых теплоснабжающей организацией","прочие",null,"551 - 700 мм","превышает 1,5 Гкал/ч при отсутствии технической возможности подключения",4,null,"Тарифы на теплоноситель, поставляемый теплоснабжающими организациями потребителям, другим теплоснабжающим организациям","Форма 4.2.2 Информация о величинах тарифов на теплоноситель, передачу тепловой энергии, теплоносителя",1,null,null,null,null,null,"не известна",null,"Отборный пар, 7-13 кг/см2",null,null,"Мазут",null,"Запрос котировок",null,null,"Тарифы на теплоноситель, поставляемый теплоснабжающими организациями потребителям, другим теплоснабжающим организациям","Плата за услуги по поддержанию резервной тепловой мощности при отсутствии потребления тепловой энергии",null,null,null,"от 101 мм до 150 мм включительно",null,"03","03",null,"Форма 4.2.3","Информация о величинах тарифов на горячую воду (в открытых системах)",null,"Теплосетевая организация в ценовой зоне теплоснабжения"]
["Белгородская область",2004,2017,null,"май",null,"НДС общий\n/kind_of_NDS_tariff/","НДС\n/kind_of_NDS_tariff/","5","Вид тарифа на передачу тепловой энергии /kind_of_tariff_unit/",null,null,null,"производство (некомбинированная выработка)+передача","отборный пар, 7-13 кг/см2",null,null,"без дифференциации",null,"701 мм и выше","не известна",5,null,"Тарифы на горячую воду, поставляемую теплоснабжающими организациями потребителям, другим теплоснабжающим организациям с использованием открытых систем теплоснабжения (горячего водоснабжения)","Форма 4.2.3 Информация о величинах тарифов на горячую воду (в открытых системах)",null,null,null,null,null,null,null,null,"Отборный пар, > 13 кг/см2",null,null,"Дизельное топливо",null,"Единственный поставщик",null,null,"Тарифы на горячую воду, поставляемую теплоснабжающими организациями потребителям, другим теплоснабжающим организациям с использованием открытых систем теплоснабжения (горячего водоснабжения)","Тарифы на тепловую энергию (мощность), производимую в режиме комбинированной выработки электрической и тепловой энергии источниками тепловой энергии с установленной генерирующей мощностью производства электрической энергии 25 мегаватт и более, в соответствии с установленными федеральным органом исполнительной власти в области государственного регулирования тарифов в сфере теплоснабжения предельными (минимальным и (или) максимальным) уровнями указанных тарифов",null,null,null,"от 151 мм до 200 мм включительно",null,"04","04",null,"Форма 4.2.4","Информация о величинах тарифов на подключение к системе теплоснабжения"]
["Брянская область",2005,null,null,"июнь",null,"тариф указан с НДС для плательщиков НДС","тариф для организаций не являющихся плательщиками НДС","6","руб./Гкал/ч/мес",null,null,null,"производство (некомбинированная выработка)+сбыт","отборный пар, > 13 кг/см2",null,null,null,null,null,"нет","6",null,"Тарифы на услуги по передаче тепловой энергии","Форма 4.2.2 Информация о величинах тарифов на теплоноситель, передачу тепловой энергии, теплоносителя",null,null,null,null,null,null,null,null,"Острый и редуцированный пар",null,null,"Дрова",null,"Иное",null,null,"Предельный уровнь цены на тепловую энергию (мощность), поставляемую теплоснабжающими организациями потребителям","Тарифы на тепловую энергию (мощность), поставляемую потребителям теплоснабжающими организациями в соответствии с установленными предельными (минимальными и (или) максимальными) уровнями указанных тарифов",null,null,null,"от 201 мм до 250 мм включительно",null,"05","05",null,"Форма 4.2.5","Информация о плате за подключение к системе теплоснабжения в индивидуальном порядке"]
["Владимирская область",2006,null,null,"июль",null,"тариф указан без НДС для плательщиков НДС","тариф не утверждался","7","руб./Гкал",null,null,null,"производство (некомбинированная выработка)","острый и редуцированный пар",null,null,null,null,null,null,"7",null,"Тарифы на услуги по передаче теплоносителя","Форма 4.2.2 Информация о величинах тарифов на теплоноситель, передачу тепловой энергии, теплоносителя",null,null,null,null,null,null,null,null,null,null,null,"Электроэнергия",null,null,null,null,"Тарифы на услуги по передаче тепловой энергии","Тарифы на тепловую энергию (мощность), поставляемую другим теплоснабжающим организациям теплоснабжающими организациями",null,null,null,"от 250  мм и более",null,"06","06",null,"Форма 4.7","Информация об условиях, на которых осуществляется поставка товаров и (или) оказание услуг"]
["Волгоградская область",2007,null,null,"август",null,"тариф не утверждался",null,"8",null,null,null,null,null,"горячая вода в системе централизованного теплоснабжения на отопление",null,null,null,null,null,null,"8",null,"Плата за услуги по поддержанию резервной тепловой мощности при отсутствии потребления тепловой энергии","Форма 4.2.1 Информация о величинах тарифов на тепловую энергию, поддержанию резервной тепловой мощности",1,null,null,null,null,null,null,null,null,null,null,"Прочее",null,null,null,null,"Тарифы на услуги по передаче теплоносителя","Тарифы на теплоноситель, поставляемый теплоснабжающими организациями потребителям, другим теплоснабжающим организациям",null,null,null,null,null,"07","07",null,"Форма 4.8","Информация о порядке выполнения технологических, технических и других мероприятий, связанных с подключением к централизованной системе горячего водоснабжения"]
["Вологодская область",2008,null,null,"сентябрь",null,null,null,"9",null,null,null,null,null,"горячая вода в системе централизованного теплоснабжения на горячее водоснабжение",null,null,null,null,null,null,"9",null,"Плата за подключение к системе теплоснабжения (индивидуальная)","Форма 4.2.5 Информация о плате за подключение к системе теплоснабжения в индивидуальном порядке",null,null,null,null,null,null,null,null,null,null,null,null,null,null,null,null,"Плата за подключение к системе теплоснабжения","Тарифы на горячую воду, поставляемую теплоснабжающими организациями потребителям, другим теплоснабжающим организациям с использованием открытых систем теплоснабжения (горячего водоснабжения)",null,null,null,null,null,"08","08"]
["Воронежская область",2009,null,null,"октябрь",null,null,null,"10",null,null,null,null,null,"прочее",null,null,null,null,null,null,"10",null,"Плата за подключение к системе теплоснабжения","Форма 4.2.4 Информация о величинах тарифов на подключение к системе теплоснабжения",null,null,null,null,null,null,null,null,null,null,null,null,null,null,null,null,"Плата за подключение к системе теплоснабжения (индивидуальная)","Предельный уровнь цены на тепловую энергию (мощность), поставляемую теплоснабжающими организациями потребителям",null,null,null,null,null,"09","09"]
["г.Байконур",2010,null,null,"ноябрь",null,"НДС общий люди\n/kind_of_NDS_tariff_people/","НДС\n/kind_of_NDS_tariff_people/","11",null,null,null,null,null,"без дифференциации",null,null,null,null,null,null,"11",null,"Предельный уровнь цены на тепловую энергию (мощность), поставляемую теплоснабжающими организациями потребителям. Индикативы","Форма 4.2.1 Информация о величинах тарифов на тепловую энергию, поддержанию резервной тепловой мощности",null,null,null,null,null,null,null,null,null,null,null,null,null,null,null,null,"Плата за услуги по поддержанию резервной тепловой мощности при отсутствии потребления тепловой энергии",null,null,null,null,null,null,"10","10"]
["г. Москва",2011,null,null,"декабрь",null,"тариф с НДС организаций-плательщиков НДС","тариф организаций не являющихся плательщиками НДС","12",null,null,null,null,null,null,null,null,null,null,null,null,"12",null,null,null,null,null,null,null,null,null,null,null,null,null,null,null,null,null,null,null,null,null,null,null,null,null,null,"11","11"]
["г.Санкт-Петербург",2012,null,null,null,null,"тариф не утверждался","тариф не утверждался","13",null,null,null,null,"Вид деятельности /kind_of_activity/",null,null,null,null,null,null,null,13,null,"Тарифы на тепловую энергию (мощность), поставляемую потребителям теплоснабжающими организациями в соответствии с установленными предельными (минимальными и (или) максимальными) уровнями указанных тарифов","Форма 4.2.1 Информация о величинах тарифов на тепловую энергию, поддержанию резервной тепловой мощности",null,null,null,null,null,null,null,null,null,null,null,null,null,null,null,null,null,null,null,null,null,null,null,"12","12"]
["г.Севастополь",2013,null,null,null,null,null,null,"14",null,null,null,null,"производство тепловой энергии (мощности) в режиме комбинированной выработки электрической и тепловой энергии источниками тепловой энергии с установленной генерирующей мощностью производства электрической энергии 25 МВт и более",null,null,null,null,null,null,null,null,null,null,null,null,null,null,null,null,null,null,null,null,null,null,null,null,null,null,null,null,null,null,null,null,null,null,"13","13"]
["Еврейская автономная область",2014,null,null,null,null,null,null,"15",null,null,null,null,"производство тепловой энергии (мощности) в режиме комбинированной выработки электрической и тепловой энергии источниками тепловой энергии с установленной генерирующей мощностью производства электрической энергии менее 25 МВт",null,null,null,null,null,null,null,null,null,null,null,null,null,null,null,null,null,null,null,null,null,null,null,null,null,null,null,null,null,null,null,null,null,null,"14","14"]
["Забайкальский край",2015,null,null,null,null,null,null,"16",null,null,null,null,"производство тепловой энергии (мощности) не в режиме комбинированной выработки электрической и тепловой энергии источниками тепловой энергии",null,null,null,null,null,null,null,null,null,null,null,null,null,null,null,null,null,null,null,null,null,null,null,null,null,null,null,null,null,null,null,null,null,null,"15","15"]
["Ивановская область",2016,null,null,null,null,null,null,"17",null,null,null,null,"производство теплоносителя",null,null,null,null,null,null,null,null,null,null,null,null,null,null,null,null,null,null,null,null,null,null,null,null,null,null,null,null,null,null,null,null,null,null,"16","16"]
["Иркутская область",2017,null,null,null,null,null,null,"18",null,null,null,null,"передача тепловой энергии и теплоносителя",null,null,null,null,null,null,null,null,null,null,null,null,null,null,null,null,null,null,null,null,null,null,null,null,null,null,null,null,null,null,null,null,null,null,"17","17"]
["Кабардино-Балкарская республика",2018,null,null,null,null,null,null,"19",null,null,null,null,"сбыт тепловой энергии и теплоносителя",null,null,null,null,null,null,null,null,null,null,null,null,null,null,null,null,null,null,null,null,null,null,null,null,null,null,null,null,null,null,null,null,null,null,"18","18"]
["Калининградская область",2019,null,null,null,null,null,null,"20",null,null,null,null,"подключение к системе теплоснабжения",null,null,null,null,null,null,null,null,null,null,null,null,null,null,null,null,null,null,null,null,null,null,null,null,null,null,null,null,null,null,null,null,null,null,"19","19"]
["Калужская область",2020,null,null,null,null,null,null,null,null,null,null,null,"поддержание резервной тепловой мощности при отсутствии потребления тепловой энергии",null,null,null,null,null,null,null,null,null,null,null,null,null,null,null,null,null,null,null,null,null,null,null,null,null,null,null,null,null,null,null,null,null,null,"20","20"]
["Камчатский край",2021,null,null,null,null,null,null,null,null,null,null,null,null,null,null,null,null,null,null,null,null,null,null,null,null,null,null,null,null,null,null,null,null,null,null,null,null,null,null,null,null,null,null,null,null,null,null,"21","21"]
["Карачаево-Черкесская республика",2022,null,null,null,null,null,null,null,null,null,null,null,null,null,null,null,null,null,null,null,null,null,null,null,null,null,null,null,null,null,null,null,null,null,null,null,null,null,null,null,null,null,null,null,null,null,null,"22","22"]
["Кемеровская область",2023,null,null,null,null,null,null,null,null,null,null,null,null,null,null,null,null,null,null,null,null,null,null,null,null,null,null,null,null,null,null,null,null,null,null,null,null,null,null,null,null,null,null,null,null,null,null,"23","23"]
["Кировская область",2024,null,null,null,null,null,null,null,null,null,null,null,null,null,null,null,null,null,null,null,null,null,null,null,null,null,null,null,null,null,null,null,null,null,null,null,null,null,null,null,null,null,null,null,null,null,null,null,"24"]
["Костромская область",2025,null,null,null,null,null,null,null,null,null,null,null,null,null,null,null,null,null,null,null,null,null,null,null,null,null,null,null,null,null,null,null,null,null,null,null,null,null,null,null,null,null,null,null,null,null,null,null,"25"]
["Краснодарский край",null,null,null,null,null,null,"Текущая дата",null,null,null,null,null,null,null,null,null,null,null,null,null,null,null,null,null,null,null,null,null,null,null,null,null,null,null,null,null,null,null,null,null,null,null,null,null,null,null,null,null,"26"]
["Красноярский край",null,null,"Организация",{"$f":"IF(periodStart = \"\",\"\", periodStart)","v":"01.01.2020"},{"$f":"IF(periodEnd = \"\",\"\", periodEnd)","v":"31.12.2020"},null,"30.12.2019 21:36:37",null,null,null,null,null,null,null,null,null,null,null,null,null,null,null,null,null,null,null,null,null,null,null,null,null,null,null,null,null,null,null,null,null,null,null,null,null,null,null,null,null,"27"]
["Курганская область",null,null,null,null,null,null,null,null,null,null,null,null,null,null,null,null,null,null,null,null,null,null,null,null,null,null,null,null,null,null,null,null,null,null,null,null,null,null,null,null,null,null,null,null,null,null,null,null,"28"]
["Курская область",null,null,null,null,null,null,null,null,null,null,null,null,null,null,null,null,null,null,null,null,null,null,null,null,null,null,null,null,null,null,null,null,null,null,null,null,null,null,null,null,null,null,null,null,null,null,null,null,"29"]
["Ленинградская область",null,null,"Виды деятельности",null,null,null,"https://appsrv.regportal-tariff.ru/procwsxls/",null,null,null,null,null,null,"вода",null,null,null,null,null,null,null,null,null,null,null,null,null,null,null,null,null,null,null,null,null,null,null,null,null,null,null,null,null,null,null,null,null,null,"30"]
["Липецкая область",null,null,null,null,null,null,null,null,null,null,null,null,null,"пар",null,null,null,null,null,null,null,null,null,null,null,null,null,null,null,null,null,null,null,null,null,null,null,null,null,null,null,null,null,null,null,null,null,null,"31"]
["Магаданская область",null,null,null,null,null,null,null,null,null,null,null,null,null,"отборный пар, 1.2-2.5 кг/см2",null,null,null,null,null,null,null,null,null,null,null,null,null,null,null,null,null,null,null,null,null,null,null,null,null,null,null,null,null,null,null,null,null,null,"32"]
["Московская область",null,null,null,null,null,null,null,null,null,null,null,null,null,"отборный пар, 2.5-7 кг/см2",null,null,null,null,null,null,null,null,null,null,null,null,null,null,null,null,null,null,null,null,null,null,null,null,null,null,null,null,null,null,null,null,null,null,"33"]
["Мурманская область",null,null,null,null,null,null,null,null,null,null,null,null,null,"отборный пар, 7-13 кг/см2",null,null,null,null,null,null,null,null,null,null,null,null,null,null,null,null,null,null,null,null,null,null,null,null,null,null,null,null,null,null,null,null,null,null,"34"]
["Ненецкий автономный округ",null,null,null,null,null,null,null,null,null,null,null,null,null,"отборный пар, > 13 кг/см2",null,null,null,null,null,null,null,null,null,null,null,null,null,null,null,null,null,null,null,null,null,null,null,null,null,null,null,null,null,null,null,null,null,null,"35"]
["Нижегородская область",null,null,null,null,null,null,null,null,null,null,null,null,null,"острый и редуцированный пар",null,null,null,null,null,null,null,null,null,null,null,null,null,null,null,null,null,null,null,null,null,null,null,null,null,null,null,null,null,null,null,null,null,null,"36"]
["Новгородская область",null,null,null,null,null,null,null,null,null,null,null,null,null,"горячая вода в системе централизованного теплоснабжения на отопление",null,null,null,null,null,null,null,null,null,null,null,null,null,null,null,null,null,null,null,null,null,null,null,null,null,null,null,null,null,null,null,null,null,null,"37"]
["Новосибирская область",null,null,null,null,null,null,null,null,null,null,null,null,null,"горячая вода в системе централизованного теплоснабжения на горячее водоснабжение",null,null,null,null,null,null,null,null,null,null,null,null,null,null,null,null,null,null,null,null,null,null,null,null,null,null,null,null,null,null,null,null,null,null,"38"]
["Омская область",null,null,null,null,null,null,null,null,null,null,null,null,null,"прочее",null,null,null,null,null,null,null,null,null,null,null,null,null,null,null,null,null,null,null,null,null,null,null,null,null,null,null,null,null,null,null,null,null,null,"39"]
["Оренбургская область",null,null,null,null,null,null,null,null,null,null,null,null,null,null,null,null,null,null,null,null,null,null,null,null,null,null,null,null,null,null,null,null,null,null,null,null,null,null,null,null,null,null,null,null,null,null,null,null,"40"]
["Орловская область",null,null,null,null,null,null,null,null,null,null,null,null,null,null,null,null,null,null,null,null,null,null,null,null,null,null,null,null,null,null,null,null,null,null,null,null,null,null,null,null,null,null,null,null,null,null,null,null,"41"]
["Пензенская область",null,null,null,null,null,null,null,null,null,null,null,null,null,null,null,null,null,null,null,null,null,null,null,null,null,null,null,null,null,null,null,null,null,null,null,null,null,null,null,null,null,null,null,null,null,null,null,null,"42"]
["Пермский край",null,null,null,null,null,null,null,null,null,null,null,null,null,null,null,null,null,null,null,null,null,null,null,null,null,null,null,null,null,null,null,null,null,null,null,null,null,null,null,null,null,null,null,null,null,null,null,null,"43"]
["Приморский край",null,null,null,null,null,null,null,null,null,null,null,null,null,null,null,null,null,null,null,null,null,null,null,null,null,null,null,null,null,null,null,null,null,null,null,null,null,null,null,null,null,null,null,null,null,null,null,null,"44"]
["Псковская область",null,null,null,null,null,null,null,null,null,null,null,null,null,null,null,null,null,null,null,null,null,null,null,null,null,null,null,null,null,null,null,null,null,null,null,null,null,null,null,null,null,null,null,null,null,null,null,null,"45"]
["Республика Адыгея",null,null,null,null,null,null,null,null,null,null,null,null,null,null,null,null,null,null,null,null,null,null,null,null,null,null,null,null,null,null,null,null,null,null,null,null,null,null,null,null,null,null,null,null,null,null,null,null,"46"]
["Республика Алтай",null,null,null,null,null,null,null,null,null,null,null,null,null,null,null,null,null,null,null,null,null,null,null,null,null,null,null,null,null,null,null,null,null,null,null,null,null,null,null,null,null,null,null,null,null,null,null,null,"47"]
["Республика Башкортостан",null,null,null,null,null,null,null,null,null,null,null,null,null,null,null,null,null,null,null,null,null,null,null,null,null,null,null,null,null,null,null,null,null,null,null,null,null,null,null,null,null,null,null,null,null,null,null,null,"48"]
["Республика Бурятия",null,null,null,null,null,null,null,null,null,null,null,null,null,null,null,null,null,null,null,null,null,null,null,null,null,null,null,null,null,null,null,null,null,null,null,null,null,null,null,null,null,null,null,null,null,null,null,null,"49"]
["Республика Дагестан",null,null,null,null,null,null,null,null,null,null,null,null,null,null,null,null,null,null,null,null,null,null,null,null,null,null,null,null,null,null,null,null,null,null,null,null,null,null,null,null,null,null,null,null,null,null,null,null,"50"]
["Республика Ингушетия",null,null,null,null,null,null,null,null,null,null,null,null,null,null,null,null,null,null,null,null,null,null,null,null,null,null,null,null,null,null,null,null,null,null,null,null,null,null,null,null,null,null,null,null,null,null,null,null,"51"]
["Республика Калмыкия",null,null,null,null,null,null,null,null,null,null,null,null,null,null,null,null,null,null,null,null,null,null,null,null,null,null,null,null,null,null,null,null,null,null,null,null,null,null,null,null,null,null,null,null,null,null,null,null,"52"]
["Республика Карелия",null,null,null,null,null,null,null,null,null,null,null,null,null,null,null,null,null,null,null,null,null,null,null,null,null,null,null,null,null,null,null,null,null,null,null,null,null,null,null,null,null,null,null,null,null,null,null,null,"53"]
["Республика Коми",null,null,null,null,null,null,null,null,null,null,null,null,null,null,null,null,null,null,null,null,null,null,null,null,null,null,null,null,null,null,null,null,null,null,null,null,null,null,null,null,null,null,null,null,null,null,null,null,"54"]
["Республика Крым",null,null,null,null,null,null,null,null,null,null,null,null,null,null,null,null,null,null,null,null,null,null,null,null,null,null,null,null,null,null,null,null,null,null,null,null,null,null,null,null,null,null,null,null,null,null,null,null,"55"]
["Республика Марий Эл",null,null,null,null,null,null,null,null,null,null,null,null,null,null,null,null,null,null,null,null,null,null,null,null,null,null,null,null,null,null,null,null,null,null,null,null,null,null,null,null,null,null,null,null,null,null,null,null,"56"]
["Республика Мордовия",null,null,null,null,null,null,null,null,null,null,null,null,null,null,null,null,null,null,null,null,null,null,null,null,null,null,null,null,null,null,null,null,null,null,null,null,null,null,null,null,null,null,null,null,null,null,null,null,"57"]
["Республика Саха (Якутия)",null,null,null,null,null,null,null,null,null,null,null,null,null,null,null,null,null,null,null,null,null,null,null,null,null,null,null,null,null,null,null,null,null,null,null,null,null,null,null,null,null,null,null,null,null,null,null,null,"58"]
["Республика Северная Осетия-Алания",null,null,null,null,null,null,null,null,null,null,null,null,null,null,null,null,null,null,null,null,null,null,null,null,null,null,null,null,null,null,null,null,null,null,null,null,null,null,null,null,null,null,null,null,null,null,null,null,"59"]
["Республика Татарстан"]
["Республика Тыва"]
["Республика Хакасия"]
["Ростовская область"]
["Рязанская область"]
["Самарская область"]
["Саратовская область"]
["Сахалинская область"]
["Свердловская область"]
["Смоленская область"]
["Ставропольский край"]
["Тамбовская область"]
["Тверская область"]
["Томская область"]
["Тульская область"]
["Тюменская область"]
["Удмуртская республика"]
["Ульяновская область"]
["Хабаровский край"]
["Ханты-Мансийский автономный округ"]
["Челябинская область"]
["Чеченская республика"]
["Чувашская республика"]
["Чукотский автономный округ"]
["Ямало-Ненецкий автономный округ"]
["Ярославская область"]

{"sheet":"modListTempFilter","index":41,"n_rows":0,"n_cols":0,"rows_kept":0,"cut":false,"hidden":true,"merged":[]}

{"sheet":"modCheckCyan","index":42,"n_rows":126,"n_cols":1,"rows_kept":126,"cut":false,"hidden":true,"merged":[]}
[{"$f":"IF('Форма 4.2.1 | Т-ТЭ | >=25МВт'!$O$22=\"\",1,0)","v":1}]
[{"$f":"IF('Форма 4.2.1 | Т-ТЭ | >=25МВт'!$O$23=\"\",1,0)","v":1}]
[{"$f":"IF('Форма 4.2.1 | Т-ТЭ | >=25МВт'!$M$24=\"\",1,0)","v":1}]
[{"$f":"IF('Форма 4.2.1 | Т-ТЭ | >=25МВт'!$R$24=\"\",1,0)","v":1}]
[{"$f":"IF('Форма 4.2.1 | Т-ТЭ | >=25МВт'!$T$24=\"\",1,0)","v":1}]
[{"$f":"IF('Форма 4.2.1 | Т-ТЭ | >=25МВт'!$S$24=\"\",1,0)","v":0}]
[{"$f":"IF('Форма 4.2.1 | Т-ТЭ | >=25МВт'!$U$24=\"\",1,0)","v":0}]
[{"$f":"IF('Форма 4.2.1 | Т-ТЭ | ТСО'!$O$22=\"\",1,0)","v":1}]
[{"$f":"IF('Форма 4.2.1 | Т-ТЭ | ТСО'!$O$23=\"\",1,0)","v":1}]
[{"$f":"IF('Форма 4.2.1 | Т-ТЭ | ТСО'!$M$24=\"\",1,0)","v":1}]
[{"$f":"IF('Форма 4.2.1 | Т-ТЭ | ТСО'!$R$24=\"\",1,0)","v":1}]
[{"$f":"IF('Форма 4.2.1 | Т-ТЭ | ТСО'!$T$24=\"\",1,0)","v":1}]
[{"$f":"IF('Форма 4.2.1 | Т-ТЭ | ТСО'!$S$24=\"\",1,0)","v":0}]
[{"$f":"IF('Форма 4.2.1 | Т-ТЭ | ТСО'!$U$24=\"\",1,0)","v":0}]
[{"$f":"IF('Форма 4.2.1 | Т-ТЭ | потр'!$O$22=\"\",1,0)","v":1}]
[{"$f":"IF('Форма 4.2.1 | Т-ТЭ | потр'!$O$23=\"\",1,0)","v":1}]
[{"$f":"IF('Форма 4.2.1 | Т-ТЭ | потр'!$M$24=\"\",1,0)","v":1}]
[{"$f":"IF('Форма 4.2.1 | Т-ТЭ | потр'!$R$24=\"\",1,0)","v":1}]
[{"$f":"IF('Форма 4.2.1 | Т-ТЭ | потр'!$T$24=\"\",1,0)","v":1}]
[{"$f":"IF('Форма 4.2.1 | Т-ТЭ | потр'!$S$24=\"\",1,0)","v":0}]
[{"$f":"IF('Форма 4.2.1 | Т-ТЭ | потр'!$U$24=\"\",1,0)","v":0}]
[{"$f":"IF('Форма 4.2.1 | Т-ТЭ | предел'!$O$24=\"\",1,0)","v":1}]
[{"$f":"IF('Форма 4.2.1 | Т-ТЭ | предел'!$O$25=\"\",1,0)","v":1}]
[{"$f":"IF('Форма 4.2.1 | Т-ТЭ | предел'!$M$26=\"\",1,0)","v":1}]
[{"$f":"IF('Форма 4.2.1 | Т-ТЭ | предел'!$R$26=\"\",1,0)","v":1}]
[{"$f":"IF('Форма 4.2.1 | Т-ТЭ | предел'!$T$26=\"\",1,0)","v":1}]
[{"$f":"IF('Форма 4.2.1 | Т-ТЭ | предел'!$O$7=\"\",1,0)","v":0}]
[{"$f":"IF('Форма 4.2.1 | Т-ТЭ | предел'!$S$26=\"\",1,0)","v":0}]
[{"$f":"IF('Форма 4.2.1 | Т-ТЭ | предел'!$U$26=\"\",1,0)","v":0}]
[{"$f":"IF('Форма 4.2.1 | Т-ТЭ | индикат'!$O$7=\"\",1,0)","v":1}]
[{"$f":"IF('Форма 4.2.1 | Т-ТЭ | индикат'!$O$24=\"\",1,0)","v":1}]
[{"$f":"IF('Форма 4.2.1 | Т-ТЭ | индикат'!$O$25=\"\",1,0)","v":1}]
[{"$f":"IF('Форма 4.2.1 | Т-ТЭ | индикат'!$M$26=\"\",1,0)","v":1}]
[{"$f":"IF('Форма 4.2.1 | Т-ТЭ | индикат'!$R$26=\"\",1,0)","v":1}]
[{"$f":"IF('Форма 4.2.1 | Т-ТЭ | индикат'!$T$26=\"\",1,0)","v":1}]
[{"$f":"IF('Форма 4.2.1 | Т-ТЭ | индикат'!$S$26=\"\",1,0)","v":0}]
[{"$f":"IF('Форма 4.2.1 | Т-ТЭ | индикат'!$U$26=\"\",1,0)","v":0}]
[{"$f":"IF('Форма 4.2.1 | Резерв мощности'!$O$22=\"\",1,0)","v":1}]
[{"$f":"IF('Форма 4.2.1 | Резерв мощности'!$O$23=\"\",1,0)","v":1}]
[{"$f":"IF('Форма 4.2.1 | Резерв мощности'!$M$24=\"\",1,0)","v":1}]
[{"$f":"IF('Форма 4.2.1 | Резерв мощности'!$O$24=\"\",1,0)","v":1}]
[{"$f":"IF('Форма 4.2.1 | Резерв мощности'!$R$24=\"\",1,0)","v":1}]
[{"$f":"IF('Форма 4.2.1 | Резерв мощности'!$T$24=\"\",1,0)","v":1}]
[{"$f":"IF('Форма 4.2.1 | Резерв мощности'!$S$24=\"\",1,0)","v":0}]
[{"$f":"IF('Форма 4.2.1 | Резерв мощности'!$U$24=\"\",1,0)","v":0}]
[{"$f":"IF('Форма 4.2.2 | Т-ТН'!$O$23=\"\",1,0)","v":1}]
[{"$f":"IF('Форма 4.2.2 | Т-ТН'!$M$24=\"\",1,0)","v":1}]
[{"$f":"IF('Форма 4.2.2 | Т-ТН'!$R$24=\"\",1,0)","v":1}]
[{"$f":"IF('Форма 4.2.2 | Т-ТН'!$T$24=\"\",1,0)","v":1}]
[{"$f":"IF('Форма 4.2.2 | Т-ТН'!$S$24=\"\",1,0)","v":0}]
[{"$f":"IF('Форма 4.2.2 | Т-ТН'!$U$24=\"\",1,0)","v":0}]
[{"$f":"IF('Форма 4.2.2 | Т-передача ТЭ'!$O$23=\"\",1,0)","v":0}]
[{"$f":"IF('Форма 4.2.2 | Т-передача ТЭ'!$M$24=\"\",1,0)","v":0}]
[{"$f":"IF('Форма 4.2.2 | Т-передача ТЭ'!$R$24=\"\",1,0)","v":0}]
[{"$f":"IF('Форма 4.2.2 | Т-передача ТЭ'!$T$24=\"\",1,0)","v":0}]
[{"$f":"IF('Форма 4.2.2 | Т-передача ТЭ'!$S$24=\"\",1,0)","v":0}]
[{"$f":"IF('Форма 4.2.2 | Т-передача ТЭ'!$U$24=\"\",1,0)","v":0}]
[{"$f":"IF('Форма 4.2.2 | Т-передача ТН'!$O$23=\"\",1,0)","v":1}]
[{"$f":"IF('Форма 4.2.2 | Т-передача ТН'!$M$24=\"\",1,0)","v":1}]
[{"$f":"IF('Форма 4.2.2 | Т-передача ТН'!$R$24=\"\",1,0)","v":1}]
[{"$f":"IF('Форма 4.2.2 | Т-передача ТН'!$T$24=\"\",1,0)","v":1}]
[{"$f":"IF('Форма 4.2.2 | Т-передача ТН'!$S$24=\"\",1,0)","v":0}]
[{"$f":"IF('Форма 4.2.2 | Т-передача ТН'!$U$24=\"\",1,0)","v":0}]
[{"$f":"IF('Форма 4.2.3 | Т-гор.вода'!$O$23=\"\",1,0)","v":1}]
[{"$f":"IF('Форма 4.2.3 | Т-гор.вода'!$M$24=\"\",1,0)","v":0}]
[{"$f":"IF('Форма 4.2.3 | Т-гор.вода'!$W$24=\"\",1,0)","v":1}]
[{"$f":"IF('Форма 4.2.3 | Т-гор.вода'!$Y$24=\"\",1,0)","v":1}]
[{"$f":"IF('Форма 4.2.3 | Т-гор.вода'!$M$25=\"\",1,0)","v":1}]
[{"$f":"IF('Форма 4.2.3 | Т-гор.вода'!$X$24=\"\",1,0)","v":0}]
[{"$f":"IF('Форма 4.2.3 | Т-гор.вода'!$Z$24=\"\",1,0)","v":0}]
[{"$f":"IF('Форма 4.2.4 | Т-подкл'!$AB$23=\"\",1,0)","v":1}]
[{"$f":"IF('Форма 4.2.4 | Т-подкл'!$AD$23=\"\",1,0)","v":1}]
[{"$f":"IF('Форма 4.2.4 | Т-подкл'!$N$23=\"\",1,0)","v":0}]
[{"$f":"IF('Форма 4.2.4 | Т-подкл'!$R$23=\"\",1,0)","v":0}]
[{"$f":"IF('Форма 4.2.4 | Т-подкл'!$V$23=\"\",1,0)","v":0}]
[{"$f":"IF('Форма 4.2.4 | Т-подкл'!$AC$23=\"\",1,0)","v":0}]
[{"$f":"IF('Форма 4.2.4 | Т-подкл'!$AE$23=\"\",1,0)","v":0}]
[{"$f":"IF('Форма 4.2.5 | Т-подкл(инд)'!$M$23=\"\",1,0)","v":1}]
[{"$f":"IF('Форма 4.2.5 | Т-подкл(инд)'!$P$23=\"\",1,0)","v":1}]
[{"$f":"IF('Форма 4.2.5 | Т-подкл(инд)'!$Q$23=\"\",1,0)","v":1}]
[{"$f":"IF('Форма 4.2.5 | Т-подкл(инд)'!$R$23=\"\",1,0)","v":1}]
[{"$f":"IF('Форма 4.2.5 | Т-подкл(инд)'!$S$23=\"\",1,0)","v":1}]
[{"$f":"IF('Форма 4.2.5 | Т-подкл(инд)'!$T$23=\"\",1,0)","v":0}]
[{"$f":"IF('Форма 4.2.5 | Т-подкл(инд)'!$V$23=\"\",1,0)","v":0}]
[{"$f":"IF('Форма 4.7'!$E$12=\"\",1,0)","v":1}]
[{"$f":"IF('Форма 4.7'!$F$12=\"\",1,0)","v":1}]
[{"$f":"IF('Форма 4.8'!$G$11=\"\",1,0)","v":0}]
[{"$f":"IF('Форма 4.8'!$G$12=\"\",1,0)","v":0}]
[{"$f":"IF('Форма 4.8'!$H$12=\"\",1,0)","v":0}]
[{"$f":"IF('Форма 4.8'!$H$13=\"\",1,0)","v":0}]
[{"$f":"IF('Форма 4.8'!$E$15=\"\",1,0)","v":0}]
[{"$f":"IF('Форма 4.8'!$H$15=\"\",1,0)","v":0}]
[{"$f":"IF('Форма 4.8'!$G$18=\"\",1,0)","v":0}]
[{"$f":"IF('Форма 4.8'!$G$26=\"\",1,0)","v":0}]
[{"$f":"IF('Форма 4.8'!$G$29=\"\",1,0)","v":0}]
[{"$f":"IF('Форма 4.8'!$E$35=\"\",1,0)","v":0}]
[{"$f":"IF('Форма 4.8'!$H$35=\"\",1,0)","v":0}]
[{"$f":"IF('Форма 4.8'!$G$32=\"\",1,0)","v":0}]
[{"$f":"IF('Форма 1.0.2'!$E$12=\"\",1,0)","v":1}]
[{"$f":"IF('Форма 1.0.2'!$F$12=\"\",1,0)","v":1}]
[{"$f":"IF('Форма 1.0.2'!$G$12=\"\",1,0)","v":1}]
[{"$f":"IF('Форма 1.0.2'!$H$12=\"\",1,0)","v":1}]
[{"$f":"IF('Форма 1.0.2'!$I$12=\"\",1,0)","v":1}]
[{"$f":"IF('Форма 1.0.2'!$J$12=\"\",1,0)","v":1}]
[{"$f":"IF('Сведения об изменении'!$E$12=\"\",1,0)","v":1}]
[{"$f":"IF('Форма 4.2.4 | Т-подкл'!$AA$23=\"\",1,0)","v":1}]
[{"$f":"IF('Форма 4.2.4 | Т-подкл'!$Z$23=\"\",1,0)","v":1}]
[{"$f":"IF('Форма 4.7'!$F$15=\"\",1,0)","v":1}]
[{"$f":"IF('Форма 4.7'!$E$15=\"\",1,0)","v":1}]
[{"$f":"IF(Территории!$E$12=\"\",1,0)","v":0}]
[{"$f":"IF('Перечень тарифов'!$E$21=\"\",1,0)","v":0}]
[{"$f":"IF('Перечень тарифов'!$F$21=\"\",1,0)","v":0}]
[{"$f":"IF('Перечень тарифов'!$K$21=\"\",1,0)","v":0}]
[{"$f":"IF('Перечень тарифов'!$O$21=\"\",1,0)","v":0}]
[{"$f":"IF('Перечень тарифов'!$S$21=\"\",1,0)","v":0}]
[{"$f":"IF('Перечень тарифов'!$G$21=\"\",1,0)","v":0}]
[{"$f":"IF('Форма 4.8'!$G$19=\"\",1,0)","v":0}]
[{"$f":"IF('Форма 4.8'!$G$20=\"\",1,0)","v":0}]
[{"$f":"IF('Форма 4.8'!$G$21=\"\",1,0)","v":0}]
[{"$f":"IF('Форма 4.8'!$G$22=\"\",1,0)","v":0}]
[{"$f":"IF('Форма 4.2.2 | Т-передача ТЭ'!$O$24=\"\",1,0)","v":0}]
[{"$f":"IF('Форма 4.2.2 | Т-передача ТЭ'!$Y$24=\"\",1,0)","v":0}]
[{"$f":"IF('Форма 4.2.2 | Т-передача ТЭ'!$AA$24=\"\",1,0)","v":0}]
[{"$f":"IF('Форма 4.2.2 | Т-передача ТЭ'!$V$24=\"\",1,0)","v":0}]
[{"$f":"IF('Форма 4.2.2 | Т-передача ТЭ'!$Z$24=\"\",1,0)","v":0}]
[{"$f":"IF('Форма 4.2.2 | Т-передача ТЭ'!$AB$24=\"\",1,0)","v":0}]

{"sheet":"REESTR_LINK","index":43,"n_rows":3,"n_cols":3,"rows_kept":3,"cut":false,"hidden":true,"merged":[]}
["ID","LINK_NAME","REGION"]
[4189678,"https://portal.eias.ru/Portal/DownloadPage.aspx?type=12&guid=????????-????-????-????-????????????","ALL"]
[4190415,"https://eias.fstrf.ru/disclo/get_file?p_guid=????????-????-????-????-????????????","ALL"]

{"sheet":"REESTR_DS","index":44,"n_rows":6,"n_cols":2,"rows_kept":6,"cut":false,"hidden":true,"merged":[]}
[]
[]
[null,"Город Казань, Город Казань (92701000);"]
[null,"территория 2"]
[null,"территория 3"]
[null,"территория 4"]

{"sheet":"modHTTP","index":45,"n_rows":0,"n_cols":0,"rows_kept":0,"cut":false,"hidden":true,"merged":[]}

{"sheet":"modfrmRezimChoose","index":46,"n_rows":0,"n_cols":0,"rows_kept":0,"cut":false,"hidden":true,"merged":[]}

{"sheet":"modSheetMain","index":47,"n_rows":1,"n_cols":2,"rows_kept":1,"cut":false,"hidden":true,"merged":[]}
["Форма","Листы"]

{"sheet":"REESTR_VT","index":48,"n_rows":12,"n_cols":2,"rows_kept":12,"cut":false,"hidden":true,"merged":[]}
["ID_TARIFF_NAME","TARIFF_NAME"]
[4213775,"Тарифы на тепловую энергию (мощность), производимую в режиме комбинированной выработки электрической и тепловой энергии источниками тепловой энергии с установленной генерирующей мощностью производства электрической энергии 25 мегаватт и более, в соответствии с установленными федеральным органом исполнительной власти в области государственного регулирования тарифов в сфере теплоснабжения предельными (минимальным и (или) максимальным) уровнями указанных тарифов"]
[4213784,"Тарифы на тепловую энергию (мощность), поставляемую потребителям теплоснабжающими организациями в соответствии с установленными предельными (минимальными и (или) максимальными) уровнями указанных тарифов"]
[4213781,"Тарифы на тепловую энергию (мощность), поставляемую другим теплоснабжающим организациям теплоснабжающими организациями"]
[4213776,"Тарифы на теплоноситель, поставляемый теплоснабжающими организациями потребителям, другим теплоснабжающим организациям"]
[4213777,"Тарифы на горячую воду, поставляемую теплоснабжающими организациями потребителям, другим теплоснабжающим организациям с использованием открытых систем теплоснабжения (горячего водоснабжения)"]
[4238670,"Предельный уровнь цены на тепловую энергию (мощность), поставляемую теплоснабжающими организациями потребителям"]
[4213778,"Тарифы на услуги по передаче тепловой энергии"]
[4213780,"Тарифы на услуги по передаче теплоносителя"]
[4213779,"Плата за подключение к системе теплоснабжения"]
[4213783,"Плата за подключение к системе теплоснабжения (индивидуальная)"]
[4213782,"Плата за услуги по поддержанию резервной тепловой мощности при отсутствии потребления тепловой энергии"]

{"sheet":"REESTR_VED","index":49,"n_rows":11,"n_cols":2,"rows_kept":11,"cut":false,"hidden":true,"merged":[]}
["ID_TARIFF_NAME","VED_NAME"]
[4190064,"Производство тепловой энергии. Некомбинированная выработка"]
[4190065,"Производство тепловой энергии. Комбинированная выработка с уст. мощностью производства электрической энергии менее 25 МВт"]
[4190066,"Производство тепловой энергии. Комбинированная выработка с уст. мощностью производства электрической энергии 25 МВт и более"]
[4190067,"Производство. Теплоноситель"]
[4190068,"Передача. Тепловая энергия"]
[4190069,"Передача. Теплоноситель"]
[4190070,"Сбыт. Тепловая энергия"]
[4190071,"Сбыт. Теплоноситель"]
[4190072,"Подключение (технологическое присоединение) к системе теплоснабжения"]
[4190073,"Поддержание резервной тепловой мощности при отсутствии потребления тепловой энергии"]

{"sheet":"modfrmReestrObj","index":50,"n_rows":0,"n_cols":0,"rows_kept":0,"cut":false,"hidden":true,"merged":[]}

{"sheet":"AllSheetsInThisWorkbook","index":51,"n_rows":42,"n_cols":2,"rows_kept":42,"cut":false,"hidden":true,"merged":[]}
["Расчетные листы","Скрытые листы"]
["Instruction","modList00"]
["modUpdTemplLogger","TSH_et_union_hor"]
["List00","TEHSHEET"]
["List01","modListTempFilter"]
["List02","modCheckCyan"]
["List05_1","REESTR_LINK"]
["List06_1","REESTR_DS"]
["List05_2","modHTTP"]
["List06_2","modfrmRezimChoose"]
["List05_13","modSheetMain"]
["List06_13","REESTR_VT"]
["List05_3","REESTR_VED"]
["List06_3","modfrmReestrObj"]
["List05_3_i","AllSheetsInThisWorkbook"]
["List06_3_i","TSH_et_union_vert"]
["List05_8","modInstruction"]
["List06_8","modRegion"]
["List05_4","modReestr"]
["List06_4","modfrmReestr"]
["List05_6","modUpdTemplMain"]
["List06_6","TSH_REESTR_ORG"]
["List05_7","modClassifierValidate"]
["List06_7","modProv"]
["List05_5","modHyp"]
["List06_5","modServiceModule"]
["List05_10","modList01"]
["List06_10","modList02"]
["List05_9","modList03"]
["List06_9","TSH_REESTR_MO_FILTER"]
["List05_11","TSH_REESTR_MO"]
["List11","modInfo"]
["List12","modList05"]
["List03","modList06"]
["List07","modList07"]
["ListComm","modList11"]
["ListCheck","modList12"]
[null,"modfrmDateChoose"]
[null,"modComm"]
[null,"modThisWorkbook"]
[null,"modfrmReestrMR"]
[null,"modfrmCheckUpdates"]

{"sheet":"et_union_vert","index":52,"n_rows":0,"n_cols":0,"rows_kept":0,"cut":false,"hidden":true,"merged":[]}

{"sheet":"modInstruction","index":53,"n_rows":0,"n_cols":0,"rows_kept":0,"cut":false,"hidden":true,"merged":[]}

{"sheet":"modRegion","index":54,"n_rows":0,"n_cols":0,"rows_kept":0,"cut":false,"hidden":true,"merged":[]}

{"sheet":"modReestr","index":55,"n_rows":0,"n_cols":0,"rows_kept":0,"cut":false,"hidden":true,"merged":[]}

{"sheet":"modfrmReestr","index":56,"n_rows":0,"n_cols":0,"rows_kept":0,"cut":false,"hidden":true,"merged":[]}

{"sheet":"modUpdTemplMain","index":57,"n_rows":0,"n_cols":0,"rows_kept":0,"cut":false,"hidden":true,"merged":[]}

{"sheet":"REESTR_ORG","index":58,"n_rows":209,"n_cols":10,"rows_kept":209,"cut":false,"hidden":true,"merged":[]}
["№","REGION_ID","REGION_NAME","RST_ORG_ID","ORG_NAME","INN_NAME","KPP_NAME","ORG_START_DATE","ORG_END_DATE"]
[1,"2642","Республика Татарстан","28980879","АО \"АППАРТ-ОТЕЛЬ\"","1655149370","165501001",null,null,"WARM"]
[2,"2642","Республика Татарстан","26354394","АО \"АПТС\"","1644035607","164401001",null,null,"WARM"]
[3,"2642","Республика Татарстан","28493154","АО \"Азнакаевское ПТС\"","1643013463","164301001",null,null,"WARM"]
[4,"2642","Республика Татарстан","28500498","АО \"Альметьевский завод \"Радиоприбор\"","1644018390","164401001",null,null,"WARM"]
[5,"2642","Республика Татарстан","30364005","АО \"Аммоний\"","1627005779","997550001",null,null,"WARM"]
[6,"2642","Республика Татарстан","26354328","АО \"Балтасинское МПП ЖКХ\"","1612005906","161201001",null,null,"WARM"]
[7,"2642","Республика Татарстан","26354330","АО \"Буинское предприятие тепловых сетей\"","1614008074","161401001",null,null,"WARM"]
[8,"2642","Республика Татарстан","26354423","АО \"Водопроводно-канализационное и энергетическое хозяйство\"","1651035245","165101001",null,null,"WARM"]
[9,"2642","Республика Татарстан","26354332","АО \"Высокогорские коммунальные сети\"","1616016031","161601001",null,null,"WARM"]
[10,"2642","Республика Татарстан","30791606","АО \"ГУ ЖКХ\"","5116000922","166045001",null,null,"WARM"]
[11,"2642","Республика Татарстан","26560525","АО \"ГУ ЖКХ\"","5116000922","511601001","13-05-2009 00:00:00",null,"WARM"]
[12,"2642","Республика Татарстан","30335229","АО \"ГУ ЖКХ\"","5116000922","770401001",null,null,"WARM"]
[13,"2642","Республика Татарстан","26354399","АО \"Елабужское предприятие тепловых сетей\"","1646020589","164601001",null,null,"WARM"]
[14,"2642","Республика Татарстан","26603751","АО \"Завод Элекон\"","1657032272","165701001",null,null,"WARM"]
[15,"2642","Республика Татарстан","28421604","АО \"Зеленодольский молочноперерабатывающий комбинат\"","1648033456","164801001",null,null,"WARM"]
[16,"2642","Республика Татарстан","26354405","АО \"Зеленодольское ПТС\"","1648017567","164801001",null,null,"WARM"]
[17,"2642","Республика Татарстан","26354450","АО \"КЗМА\"","1656000729","165601001",null,null,"WARM"]
[18,"2642","Республика Татарстан","26322532","АО \"КМПО\"","1657005416","166101001",null,null,"WARM"]
[19,"2642","Республика Татарстан","26406031","АО \"Казанский жировой комбинат\"","1624004583","162401001",null,null,"WARM"]
[20,"2642","Республика Татарстан","26508783","АО \"Казанский оптико-механический завод\"","1660004229","168150001",null,null,"WARM"]
[21,"2642","Республика Татарстан","28494222","АО \"Казэнерго\"","1659143468","165901001",null,null,"WARM"]
[22,"2642","Республика Татарстан","26402595","АО \"Коммунальные сети Мензелинского района\"","1628006905","162801001",null,null,"WARM"]
[23,"2642","Республика Татарстан","28891799","АО \"Кулонэнергомаш\"","1660030035","166001001",null,null,"WARM"]
[24,"2642","Республика Татарстан","26354351","АО \"Мамадышские тепловые сети\"","1626009805","164601001",null,null,"WARM"]
[25,"2642","Республика Татарстан","26322533","АО \"Международный аэропорт \"Казань\"","1660000344","162401001",null,null,"WARM"]
[26,"2642","Республика Татарстан","26354354","АО \"Муслюмовские инженерные сети\"","1629003801","162901001",null,null,"WARM"]
[27,"2642","Республика Татарстан","26354470","АО \"НИИнефтепромхим\"","1660000129","166001001",null,null,"WARM"]
[28,"2642","Республика Татарстан","26510829","АО \"НПО \"Радиоэлектроника\" им. В.И.Шимко\"","1660155764","168150001",null,null,"WARM"]
[29,"2642","Республика Татарстан","26354356","АО \"Нурлатские тепловые сети\"","1632009786","163201001",null,null,"WARM"]
[30,"2642","Республика Татарстан","30353826","АО \"ОЭЗ \"Иннополис\"","1655265698","161501001",null,null,"WARM"]
[31,"2642","Республика Татарстан","26322562","АО \"ОЭЗ ППТ \"Алабуга\"","1646019914","164601001",null,null,"WARM"]
[32,"2642","Республика Татарстан","26354409","АО \"Осиновские инженерные сети\"","1648018708","164801001",null,null,"WARM"]
[33,"2642","Республика Татарстан","27908518","АО \"ПОЗиС","1648032420","168150001","19-12-2011 00:00:00",null,"WARM"]
[34,"2642","Республика Татарстан","27556424","АО \"РПО \"Таткоммунэнерго\"","1660093204","166001001",null,null,"WARM"]
[35,"2642","Республика Татарстан","26322556","АО \"СК \"Энерготехника\"","1660110837","166001001",null,null,"WARM"]
[36,"2642","Республика Татарстан","26354361","АО \"Сабинское МПП ЖКХ\"","1635005846","163501001",null,null,"WARM"]
[37,"2642","Республика Татарстан","26601772","АО \"Судоходная компания \"Татфлот\"","1655063726","161501001",null,null,"WARM"]
[38,"2642","Республика Татарстан","28427136","АО \"ТАНЕКО\"","1651044095","997250001",null,null,"WARM"]
[39,"2642","Республика Татарстан","26541828","АО \"ТГК-16\"","1655189422","785150001",null,null,"WARM"]
[40,"2642","Республика Татарстан","26489288","АО \"Татэнерго\"","1657036630","165501001","01-02-2009 00:00:00",null,"WARM"]
[41,"2642","Республика Татарстан","26405819","АО \"Теплоконтроль\"","1659041868","165901001",null,null,"WARM"]
[42,"2642","Республика Татарстан","28953157","АО \"Транснефть-Прикамье\"","1645000340","165501001",null,null,"WARM"]
[43,"2642","Республика Татарстан","28822219","АО \"Энергоцентр \"Майский\"","1648028150","164801001",null,null,"WARM"]
[44,"2642","Республика Татарстан","27567057","Акционерное общество \"Ремонтно-эксплуатационное управление\" филиал \"Екатеринбургский\", г. Екатеринбург","7714783092","667243001",null,null,"WARM"]
[45,"2642","Республика Татарстан","26813977","Альметьевское РНУ - филиал АО \"Транснефть-Прикамье\"","1645000340","164402001",null,null,"WARM"]
[46,"2642","Республика Татарстан","30346083","Вагонный участок Казань Горьковского филиала АО \"ФПК\"","7708709686","165545002",null,null,"WARM"]
[47,"2642","Республика Татарстан","30980907","ГАУ \"МЦ \"Волга\"","1624012802","162401001",null,null,"WARM"]
[48,"2642","Республика Татарстан","28817309","ГБУ \"Управление материального обеспечения\"","1660050458","166001001",null,null,"WARM"]
[49,"2642","Республика Татарстан","26354433","ГУ \"Музей-заповедник \"Казанский Кремль\"","1654004781","165501001",null,null,"WARM"]
[50,"2642","Республика Татарстан","26808802","Горьковская дирекция по тепловодоснабжению структурное подразделение Центральной дирекции по тепловодоснабжению - филиала ОАО \"РЖД\"","7708503727","525745041",null,null,"WARM"]
[51,"2642","Республика Татарстан","26807718","Елабужская ТЭЦ - филиал ОАО \"Генерирующая компания\"","1657036630","164602001",null,null,"WARM"]
[52,"2642","Республика Татарстан","26885259","ЗАО \"Бугульминский КХП №1\"","1645014575","164501001",null,null,"WARM"]
[53,"2642","Республика Татарстан","27656185","ЗАО \"Татгазэнерго\"","1655098239","162702001",null,null,"WARM"]
[54,"2642","Республика Татарстан","30478706","ЗАО «РБФ им. Куйбышева»","1622001940","162201001",null,null,"WARM"]
[55,"2642","Республика Татарстан","26354468","Индивидуальный предприниматель Шаматов И.К.","165900594501","отсутствует",null,null,"WARM"]
[56,"2642","Республика Татарстан","26354437","КГАСУ","1655018025","165501001",null,null,"WARM"]
[57,"2642","Республика Татарстан","26807701","Казанская ТЭЦ-1 - филиал АО \"Татэнерго\"","1657036630","165902001",null,null,"WARM"]
[58,"2642","Республика Татарстан","26807704","Казанская ТЭЦ-2 - филиал АО \"Татэнерго\"","1657036630","166102001",null,null,"WARM"]
[59,"2642","Республика Татарстан","28449469","Казанская ТЭЦ-3 - филиал ОАО \"ТГК-16\"","1655189422","165843001",null,null,"WARM"]
[60,"2642","Республика Татарстан","26813966","Казанское РНУ - филиал АО \"Транснефть-Прикамье\"","1645000340","165543001",null,null,"WARM"]
[61,"2642","Республика Татарстан","26812367","Куйбышевская дирекция  по тепловодоснабжению структурное подразделение Центральной дирекции по тепловодоснабжению филиала ПАО «РЖД»","7708503727","631145034",null,null,"WARM"]
[62,"2642","Республика Татарстан","26354341","Лечебно - профилактическое частное учреждение профсоюзов санаторий \"Васильевский\"","1620000411","162001001",null,null,"WARM"]
[63,"2642","Республика Татарстан","26354350","Лечебно-профилактическое частное учреждение профсоюзов Санаторий \"Бакирово\"","1625000119","164901001",null,null,"WARM"]
[64,"2642","Республика Татарстан","26354352","Лечебно-профилактическое частное учреждение профсоюзов санаторий \"Шифалы су (целебная вода) - Ижминводы\"","1627000509","162701001",null,null,"WARM"]
[65,"2642","Республика Татарстан","26354325","МУП \"Атнинское ЖКХ\"","1610002473","161001001",null,null,"WARM"]
[66,"2642","Республика Татарстан","26405877","МУП \"Водоканал\"","1653006666","166001001",null,null,"WARM"]
[67,"2642","Республика Татарстан","26354344","МУП \"Кайбицкое ЖКХ\"","1621000252","162101001",null,null,"WARM"]
[68,"2642","Республика Татарстан","28794019","МУП \"Коммунальные сети Черемшанского района\"","1640006796","164001001",null,null,"WARM"]
[69,"2642","Республика Татарстан","26354343","МУП \"Нурлатское МПП ЖКХ\"","1620002144","162001001",null,null,"WARM"]
[70,"2642","Республика Татарстан","31354688","МУП \"Пестречинские коммунальные сети\"","1633009669","163301001",null,null,"WARM"]
[71,"2642","Республика Татарстан","28819417","МУП \"Прогресс\"","1617004310","161701001",null,null,"WARM"]
[72,"2642","Республика Татарстан","26354392","МУП \"Светсервис\"","1644031761","164401001",null,null,"WARM"]
[73,"2642","Республика Татарстан","26354376","МУП \"Сельхозжилсервис\"","1643006561","164301001",null,null,"WARM"]
[74,"2642","Республика Татарстан","26354371","МУП \"Теплосервис\"","1642004226","164201001",null,null,"WARM"]
[75,"2642","Республика Татарстан","28983667","МУП \"Теплоэнергосервис\"","1634009125","163401001",null,null,"WARM"]
[76,"2642","Республика Татарстан","27556428","МУП \"Тюлячинские тепловые сети\"","1619005510","161901001",null,null,"WARM"]
[77,"2642","Республика Татарстан","26807712","Набережночелнинская ТЭЦ - филиал АО \"Татэнерго\"","1657036630","165002002",null,null,"WARM"]
[78,"2642","Республика Татарстан","28449529","Нижнекамская ТЭЦ (ПТК-1) -филиал ОАО \"ТГК-16\"","1655189422","165143001",null,null,"WARM"]
[79,"2642","Республика Татарстан","26407190","ОАО \"Алабуга Соте\"","1646013662","164601001",null,null,"WARM"]
[80,"2642","Республика Татарстан","26354397","ОАО \"Бугульминское предприятие тепловых сетей\"","1645021727","164501001",null,null,"WARM"]
[81,"2642","Республика Татарстан","28492948","ОАО \"Зеленодольский завод имени А.М.Горького\" Санаторий-профилакторий \"Дельфин\"","1648013442","168150001",null,null,"WARM"]
[82,"2642","Республика Татарстан","26467125","ОАО \"Казанский завод Медтехника\"","1660008880","166001001",null,null,"WARM"]
[83,"2642","Республика Татарстан","26322530","ОАО \"Казанькомпрессормаш\"","1660004878","166001001",null,null,"WARM"]
[84,"2642","Республика Татарстан","28031957","ОАО \"Казанькомпрессормаш\"","1660004878","168150001",null,null,"WARM"]
[85,"2642","Республика Татарстан","30354432","ОАО \"Казтрансстрой\"","1655023882","165501001",null,null,"WARM"]
[86,"2642","Республика Татарстан","26354346","ОАО \"Камско-Устьинские коммунальные сети\"","1622005013","162201001",null,null,"WARM"]
[87,"2642","Республика Татарстан","26354329","ОАО \"Киятское МПП ЖКХ\"","1614007507","161401001",null,null,"WARM"]
[88,"2642","Республика Татарстан","26354431","ОАО \"Коммунальные сети Черемшанского района\"","1640004157","164001001",null,null,"WARM"]
[89,"2642","Республика Татарстан","26405761","ОАО \"Куйбышевско-Затонские коммунальные сети\"","1622005020","162201001",null,null,"WARM"]
[90,"2642","Республика Татарстан","26354323","ОАО \"Новокинерское МПП ЖКХ\"","1609009347","160901001",null,null,"WARM"]
[91,"2642","Республика Татарстан","26354439","ОАО \"Обувная фабрика \"Спартак\"","1655022254","165501001",null,null,"WARM"]
[92,"2642","Республика Татарстан","26354326","ОАО \"Райсервис\"","1611006826","161101001",null,null,"WARM"]
[93,"2642","Республика Татарстан","26354443","ОАО \"Таткоммунпромкомплект\"","1655063645","165501001",null,null,"WARM"]
[94,"2642","Республика Татарстан","26516084","ОАО \"Таттеплосбыт\"","1657092881","168150001","01-04-2010 00:00:00",null,"WARM"]
[95,"2642","Республика Татарстан","26354365","ОАО \"Тетюшское предприятие тепловых сетей\"","1638004921","163801001",null,null,"WARM"]
[96,"2642","Республика Татарстан","30842616","ОАО \"Челны Холод\"","1650079031","168150001",null,null,"WARM"]
[97,"2642","Республика Татарстан","26354428","ОАО \"Чистопольское предприятие тепловых сетей\"","1652011455","165201001",null,null,"WARM"]
[98,"2642","Республика Татарстан","26354360","ОАО \"Шеморданское МПП ЖКХ Сабинского района\"","1635005684","163501001",null,null,"WARM"]
[99,"2642","Республика Татарстан","26354398","ООО \"Альгазтранс-Елабуга\"","1646016889","164601001",null,null,"WARM"]
[100,"2642","Республика Татарстан","26354391","ООО \"Альтехносервис\"","1644023351","164401001",null,null,"WARM"]
[101,"2642","Республика Татарстан","26402600","ООО \"БРИГ\"","1651046871","165101001",null,null,"WARM"]
[102,"2642","Республика Татарстан","26405822","ООО \"ВодоТехноСервис\"","1623010400","162301001",null,null,"WARM"]
[103,"2642","Республика Татарстан","31310231","ООО \"ГК Транзит\"","1660259717","165801001",null,null,"WARM"]
[104,"2642","Республика Татарстан","28902265","ООО \"Газпром теплоэнерго Казань\"","1655317579","165501001","12-01-2015 00:00:00",null,"WARM"]
[105,"2642","Республика Татарстан","26467133","ООО \"Дирекция муниципальных проектов\"","1624008891","162401001",null,null,"WARM"]
[106,"2642","Республика Татарстан","26466891","ООО \"Жилбытсервис-М\"","1644039023","164401001",null,null,"WARM"]
[107,"2642","Республика Татарстан","27746036","ООО \"Жилищно-коммунальные услуги\"","1648028858","164801001","12-06-2012 00:00:00",null,"WARM"]
[108,"2642","Республика Татарстан","30797842","ООО \"ЗЖБИИК \"Элеваторстрой\"","1659165373","165901001",null,null,"WARM"]
[109,"2642","Республика Татарстан","28954060","ООО \"Завод ЖБИ Элеваторстой\"","1659118246","165901001",null,null,"WARM"]
[110,"2642","Республика Татарстан","26354358","ООО \"Инженерные сети Кощаковские\"","1633006160","163301001",null,null,"WARM"]
[111,"2642","Республика Татарстан","26354320","ООО \"Инженерные сети\"","1605004563","160501001",null,null,"WARM"]
[112,"2642","Республика Татарстан","26405671","ООО \"Инженерные сети\"","1623009998","162301001",null,null,"WARM"]
[113,"2642","Республика Татарстан","30814015","ООО \"Интеграция\"","1658191691","165801001",null,null,"WARM"]
[114,"2642","Республика Татарстан","26322541","ООО \"КАМАЗ-Энерго\"","1650157635","168150001",null,null,"WARM"]
[115,"2642","Республика Татарстан","26354348","ООО \"КАРСАР\"","1624004368","168150001",null,null,"WARM"]
[116,"2642","Республика Татарстан","26467129","ООО \"КВОТА завода газовой аппаратуры\"","1660042721","166001001",null,null,"WARM"]
[117,"2642","Республика Татарстан","31193752","ООО \"КЭР - Генерация\"","1655229925","166101001","12-09-2018 00:00:00",null,"WARM"]
[118,"2642","Республика Татарстан","27661382","ООО \"Казанская строительно-сервисная компания\"","1659067697","165501001",null,null,"WARM"]
[119,"2642","Республика Татарстан","30940313","ООО \"Казанский молочный комбинат\"","1660297582","166001001",null,null,"WARM"]
[120,"2642","Республика Татарстан","26824663","ООО \"КамгэсЗЯБ\"","1650220799","165001001","11-01-2011 00:00:00",null,"WARM"]
[121,"2642","Республика Татарстан","26467112","ООО \"Карат\"","1655072671","165501001",null,null,"WARM"]
[122,"2642","Республика Татарстан","26354369","ООО \"Коммунальные сети - Бетьки\"","1639035143","163901001",null,null,"WARM"]
[123,"2642","Республика Татарстан","26354368","ООО \"Коммунальные сети - Татарстан\"","1639035055","163901001",null,null,"WARM"]
[124,"2642","Республика Татарстан","26412782","ООО \"Коммунальные сети Дрожжаное\"","1617004014","161701001",null,null,"WARM"]
[125,"2642","Республика Татарстан","26405825","ООО \"Лаишевский Коммунальный Сервис\"","1624010851","162401001",null,null,"WARM"]
[126,"2642","Республика Татарстан","30346024","ООО \"Лениногорские тепловые сети\"","1649022584","164901001",null,null,"WARM"]
[127,"2642","Республика Татарстан","28272949","ООО \"МЁША\"","1619006218","161901001","23-08-2013 00:00:00",null,"WARM"]
[128,"2642","Республика Татарстан","26508778","ООО \"Менделеевсказот\"","1627005000","168150001",null,null,"WARM"]
[129,"2642","Республика Татарстан","31222118","ООО \"НПП \"Тасма\"","1658105396","165801001",null,null,"WARM"]
[130,"2642","Республика Татарстан","26418533","ООО \"Нармонский Коммунальный Сервис\"","1624011615","162401001",null,null,"WARM"]
[131,"2642","Республика Татарстан","26405806","ООО \"Нижневязовской жилкомсервис\"","1648043158","164801001",null,null,"WARM"]
[132,"2642","Республика Татарстан","26542465","ООО \"Нижнекамская ТЭЦ\"","1651057954","165101001",null,null,"WARM"]
[133,"2642","Республика Татарстан","26354355","ООО \"Новошешминское МПП ЖКХ\"","1631003213","163101001",null,null,"WARM"]
[134,"2642","Республика Татарстан","26354477","ООО \"Оризонт\"","1660085901","166001001",null,null,"WARM"]
[135,"2642","Республика Татарстан","30802655","ООО \"Осиновская теплоснабжающая компания\"","1648041792","164801001",null,null,"WARM"]
[136,"2642","Республика Татарстан","28830173","ООО \"ПСК XXI век\"","1655094562","165501001",null,null,"WARM"]
[137,"2642","Республика Татарстан","26793317","ООО \"ПЭСТ\"","1651057270","165501001",null,null,"WARM"]
[138,"2642","Республика Татарстан","28828300","ООО \"РСК\"","1660200738","166001001",null,null,"WARM"]
[139,"2642","Республика Татарстан","26405826","ООО \"РСК\" Инженерные Технологии\"","1624010844","162401001",null,null,"WARM"]
[140,"2642","Республика Татарстан","30948950","ООО \"РСС-Комфорт\"","1616025290","161601001",null,null,"WARM"]
[141,"2642","Республика Татарстан","30846953","ООО \"РСУ\"","1655337110","165501001",null,null,"WARM"]
[142,"2642","Республика Татарстан","30847997","ООО \"Родник\"","1601009169","160101001",null,null,"WARM"]
[143,"2642","Республика Татарстан","31243870","ООО \"СК-16\"","1658159338","165801001","01-10-2014 00:00:00",null,"WARM"]
[144,"2642","Республика Татарстан","26354446","ООО \"СКП \"Татнефть-Ак Барс\"","1655085014","165501001",null,null,"WARM"]
[145,"2642","Республика Татарстан","26354364","ООО \"Спасские коммунальные сети\"","1637005369","163701001",null,null,"WARM"]
[146,"2642","Республика Татарстан","31317287","ООО \"ТЕПЛОГАРАНТ\"","1655418400","165501001",null,null,"WARM"]
[147,"2642","Республика Татарстан","31293680","ООО \"ТТК\"","1659186172","165901001",null,null,"WARM"]
[148,"2642","Республика Татарстан","31060076","ООО \"Татинтек\"","1644055843","168150001",null,null,"WARM"]
[149,"2642","Республика Татарстан","26354324","ООО \"Тепло-Сервис\"","1609010695","160901001",null,null,"WARM"]
[150,"2642","Республика Татарстан","26354393","ООО \"Тепло-Энергосервис\"","1644032236","164401001",null,null,"WARM"]
[151,"2642","Республика Татарстан","28423143","ООО \"Тепло-Энергосервис+\"","1644067711","164401001",null,null,"WARM"]
[152,"2642","Республика Татарстан","28014421","ООО \"ТеплоСервис\"","1651067938","165101001",null,null,"WARM"]
[153,"2642","Республика Татарстан","31322071","ООО \"ТеплоЭнергоСнабжение\"","1660326233","166001001",null,null,"WARM"]
[154,"2642","Республика Татарстан","31319208","ООО \"Тепловик 2\"","1646046925","164601001",null,null,"WARM"]
[155,"2642","Республика Татарстан","26466929","ООО \"Тепловик\"","1646025594","164601001",null,null,"WARM"]
[156,"2642","Республика Татарстан","26463919","ООО \"Тепловые сети\"","1636005895","163601001",null,null,"WARM"]
[157,"2642","Республика Татарстан","30941215","ООО \"Теплокоминвест\"","1660294817","166001001",null,null,"WARM"]
[158,"2642","Республика Татарстан","31189349","ООО \"Теплокоминвест+\"","1616031470","161601001",null,null,"WARM"]
[159,"2642","Республика Татарстан","26322549","ООО \"Теплосервис\"","1604005405","160401001",null,null,"WARM"]
[160,"2642","Республика Татарстан","26354337","ООО \"Теплосервис\"","1617002835","161701001",null,null,"WARM"]
[161,"2642","Республика Татарстан","26407393","ООО \"Теплосервис\"","1647013601","164701001",null,null,"WARM"]
[162,"2642","Республика Татарстан","28458306","ООО \"Теплосервис\"","1651067744","165101001",null,null,"WARM"]
[163,"2642","Республика Татарстан","26354413","ООО \"Теплоснаб\"","1649011913","164901001",null,null,"WARM"]
[164,"2642","Республика Татарстан","30941221","ООО \"Теплоснабинвест\"","1660294768","166001001",null,null,"WARM"]
[165,"2642","Республика Татарстан","28266282","ООО \"Теплоснабсервис\"","1655256968","165501001",null,null,"WARM"]
[166,"2642","Республика Татарстан","26511105","ООО \"Теплострой\"","1633606560","163301001",null,null,"WARM"]
[167,"2642","Республика Татарстан","30851416","ООО \"Тукай Тепло-Газ\"","1639056739","163901001",null,null,"WARM"]
[168,"2642","Республика Татарстан","26628367","ООО \"УК \"ВОТ-Комфорт\"","1658105572","165801001","01-04-2010 00:00:00",null,"WARM"]
[169,"2642","Республика Татарстан","30852111","ООО \"УК \"Тепло\"","1660274539","166001001",null,null,"WARM"]
[170,"2642","Республика Татарстан","31204808","ООО \"УК Доверие\"","1639047773","163901001",null,null,"WARM"]
[171,"2642","Республика Татарстан","27544484","ООО \"Управляющая компания \"Индустриальный парк - Сервис\"","1651063644","165101001",null,null,"WARM"]
[172,"2642","Республика Татарстан","26406006","ООО \"Ципьинское МПП ЖКХ\"","1612006787","161201001",null,null,"WARM"]
[173,"2642","Республика Татарстан","26405734","ООО \"Шереметьевский ЖилСтройСервис\"","1651045420","165101001",null,null,"WARM"]
[174,"2642","Республика Татарстан","30852067","ООО \"Шугуровские сети\"","1649036361","164901001",null,null,"WARM"]
[175,"2642","Республика Татарстан","26354435","ООО \"ЭПЗ ВКНИИВОЛТ\"","1655186862","165501001",null,null,"WARM"]
[176,"2642","Республика Татарстан","26800847","ООО \"Электротранспорт\"","1650073760","165001001",null,null,"WARM"]
[177,"2642","Республика Татарстан","30798857","ООО \"Энергоресурс\"","1660252694","166001001",null,null,"WARM"]
[178,"2642","Республика Татарстан","28422713","ООО \"Энергосистема\"","1655137329","165501001",null,null,"WARM"]
[179,"2642","Республика Татарстан","28871089","ООО \"Энерготранзит\"","1657142324","165701001",null,null,"WARM"]
[180,"2642","Республика Татарстан","28032062","ООО \"Энергошинсервис\"","1651061372","165101001",null,null,"WARM"]
[181,"2642","Республика Татарстан","26383226","ООО «Газпром трансгаз Казань»","1600000036","168150001",null,null,"WARM"]
[182,"2642","Республика Татарстан","30431529","ООО «ТАТКОММУНПРОМКОМПЛЕКТ»","1648009630","164801001",null,null,"WARM"]
[183,"2642","Республика Татарстан","30844960","ООО «УК «ЖК«Видный»","1661046221","166101001",null,null,"WARM"]
[184,"2642","Республика Татарстан","26466903","ООО НПП \"Балкыш\"","1645005813","164501001",null,null,"WARM"]
[185,"2642","Республика Татарстан","26354427","ООО ПКФ \"Восток-Энерго\"","1652007515","165201001",null,null,"WARM"]
[186,"2642","Республика Татарстан","28141600","ООО ПО \"Коммунсервис-Актаныш\"","1604009537","160401001",null,null,"WARM"]
[187,"2642","Республика Татарстан","31156389","Общество с ограниченной ответственностью \"Тепловые сети западного вывода\"","1650353407","165001001",null,null,"WARM"]
[188,"2642","Республика Татарстан","27996020","ПАО \"ЗФЗ\"","1648010787","164801001",null,null,"WARM"]
[189,"2642","Республика Татарстан","28903507","ПАО \"Казанский вертолетный завод\"","1656002652","997450001",null,null,"WARM"]
[190,"2642","Республика Татарстан","27623195","ПАО \"Казаньоргсинтез\"","1658008723","165801001",null,null,"WARM"]
[191,"2642","Республика Татарстан","27664844","ПАО \"Казаньоргсинтез\"","1658008723","997550001",null,null,"WARM"]
[192,"2642","Республика Татарстан","26322515","ПАО \"Нижнекамскнефтехим\"","1651000010","997550001",null,null,"WARM"]
[193,"2642","Республика Татарстан","28465468","Пассажирское вагонное депо Юдино Горьковского филиала АО \"Федеральная пассажирская компания\"","7708709686","525743001",null,null,"WARM"]
[194,"2642","Республика Татарстан","27958444","Раифское СУВУ","1620001863","164801001",null,null,"WARM"]
[195,"2642","Республика Татарстан","26354436","ФГАОУ ВО \"Казанский (Приволжский) федеральный университет\"","1655018018","165401001",null,null,"WARM"]
[196,"2642","Республика Татарстан","28815892","ФГБНУ \"ТатНИИСХ\"","1659034966","165901001",null,null,"WARM"]
[197,"2642","Республика Татарстан","26354438","ФГБОУ ВО \"КНИТУ\"","1655018804","165501001",null,null,"WARM"]
[198,"2642","Республика Татарстан","26467089","ФГБОУ ВО \"Казанский национальный исследовательский технический университет им. А.Н.Туполева\"","1654003114","165501001",null,null,"WARM"]
[199,"2642","Республика Татарстан","26509753","ФГБОУ ВО Казанская ГАВМ","1660007935","166001001",null,null,"WARM"]
[200,"2642","Республика Татарстан","30903763","ФГБУ \"ЦЖКУ\" МИНОБОРОНЫ РОССИИ","7729314745","770101001",null,null,"WARM"]
[201,"2642","Республика Татарстан","26354459","ФКП \"Казанский государственный казенный пороховой завод\"","1656025681","165601001",null,null,"WARM"]
[202,"2642","Республика Татарстан","29648390","Федеральное государственное бюджетное учреждение науки \"Федеральный исследовательский центр \" Казанский научный центр Российской академии наук (ФИЦ КазНЦ РАН)","1655022127","165501001",null,null,"WARM"]
[203,"2642","Республика Татарстан","26354430","Филиал \"Казаньнефтепродукт\" АО Холдинговая Компания \"Татнефтепродукт\"","1653016921","165902002",null,null,"WARM"]
[204,"2642","Республика Татарстан","31307235","Филиал АО \"АБ ИнБев Эфес\" в г.Казань","5020037784","165945003",null,null,"WARM"]
[205,"2642","Республика Татарстан","27539502","Филиал ЗАО \"Пивоварня Москва-Эфес\" в г.Казань","7726260234","165902001","28-04-2012 00:00:00",null,"WARM"]
[206,"2642","Республика Татарстан","26405874","Филиал ФГБОУ ВПО \"Камская государственная инженерно-экономическая академия\"","1650037345","165202001",null,null,"WARM"]
[207,"2642","Республика Татарстан","30914574","Филиал ФГБУ \"ЦЖКУ\" МИНОБОРОНЫ РОССИИ (по ЦВО)","7729314745","667043001",null,null,"WARM"]
[208,"2642","Республика Татарстан","26467064","Челнинский филиал ООО \"Татнефть-АЗС Центр\"","1644040195","163943001",null,null,"WARM"]

{"sheet":"modClassifierValidate","index":59,"n_rows":0,"n_cols":0,"rows_kept":0,"cut":false,"hidden":true,"merged":[]}

{"sheet":"modProv","index":60,"n_rows":0,"n_cols":0,"rows_kept":0,"cut":false,"hidden":true,"merged":[]}

{"sheet":"modHyp","index":61,"n_rows":0,"n_cols":0,"rows_kept":0,"cut":false,"hidden":true,"merged":[]}

{"sheet":"modServiceModule","index":62,"n_rows":0,"n_cols":0,"rows_kept":0,"cut":false,"hidden":true,"merged":[]}

{"sheet":"modList01","index":63,"n_rows":0,"n_cols":0,"rows_kept":0,"cut":false,"hidden":true,"merged":[]}

{"sheet":"modList03","index":64,"n_rows":0,"n_cols":0,"rows_kept":0,"cut":false,"hidden":true,"merged":[]}

{"sheet":"REESTR_MO_FILTER","index":65,"n_rows":0,"n_cols":0,"rows_kept":0,"cut":false,"hidden":true,"merged":[]}

{"sheet":"REESTR_MO","index":66,"n_rows":957,"n_cols":4,"rows_kept":957,"cut":false,"hidden":true,"merged":[]}
["№","МР","МО","МО_ОКТМО"]
[1,"Агрызский муниципальный район","Агрызский муниципальный район","92601000"]
[2,"Агрызский муниципальный район","Азевское","92601405"]
[3,"Агрызский муниципальный район","Бимское","92601410"]
[4,"Агрызский муниципальный район","Город Агрыз","92601101"]
[5,"Агрызский муниципальный район","Девятернинское","92601425"]
[6,"Агрызский муниципальный район","Иж-Бобьинское","92601430"]
[7,"Агрызский муниципальный район","Исенбаевское","92601435"]
[8,"Агрызский муниципальный район","Кадряковское","92601438"]
[9,"Агрызский муниципальный район","Кадыбашское","92601440"]
[10,"Агрызский муниципальный район","Кичкетанское","92601415"]
[11,"Агрызский муниципальный район","Красноборское","92601445"]
[12,"Агрызский муниципальный район","Крындинское","92601449"]
[13,"Агрызский муниципальный район","Кудашевское","92601454"]
[14,"Агрызский муниципальный район","Кулегашское","92601420"]
[15,"Агрызский муниципальный район","Кучуковское","92601458"]
[16,"Агрызский муниципальный район","Новобизякинское","92601463"]
[17,"Агрызский муниципальный район","Салаушское","92601468"]
[18,"Агрызский муниципальный район","Сарсак-Омгинское","92601472"]
[19,"Агрызский муниципальный район","Старосляковское","92601477"]
[20,"Агрызский муниципальный район","Старочекалдинское","92601481"]
[21,"Агрызский муниципальный район","Табарлинское","92601486"]
[22,"Агрызский муниципальный район","Терсинское","92601491"]
[23,"Агрызский муниципальный район","Шаршадинское","92601496"]
[24,"Азнакаевский муниципальный район","Агерзинское","92602404"]
[25,"Азнакаевский муниципальный район","Азнакаевский муниципальный район","92602000"]
[26,"Азнакаевский муниципальный район","Алькеевское","92602408"]
[27,"Азнакаевский муниципальный район","Асеевское","92602412"]
[28,"Азнакаевский муниципальный район","Балтачевское","92602416"]
[29,"Азнакаевский муниципальный район","Бирючевское","92602418"]
[30,"Азнакаевский муниципальный район","Вахитовское","92602420"]
[31,"Азнакаевский муниципальный район","Верхнестярлинское","92602424"]
[32,"Азнакаевский муниципальный район","Город Азнакаево","92602101"]
[33,"Азнакаевский муниципальный район","Ильбяковское","92602427"]
[34,"Азнакаевский муниципальный район","Какре-Елгинское","92602428"]
[35,"Азнакаевский муниципальный район","Карамалинское","92602432"]
[36,"Азнакаевский муниципальный район","Мальбагушское","92602436"]
[37,"Азнакаевский муниципальный район","Масягутовское","92602440"]
[38,"Азнакаевский муниципальный район","Микулинское","92602444"]
[39,"Азнакаевский муниципальный район","Сапеевское","92602448"]
[40,"Азнакаевский муниципальный район","Сарлинское","92602452"]
[41,"Азнакаевский муниципальный район","Сухояшское","92602456"]
[42,"Азнакаевский муниципальный район","Татарско-Шуганское","92602458"]
[43,"Азнакаевский муниципальный район","Тойкинское","92602459"]
[44,"Азнакаевский муниципальный район","Тумутукское","92602460"]
[45,"Азнакаевский муниципальный район","Уразаевское","92602462"]
[46,"Азнакаевский муниципальный район","Урманаевское","92602464"]
[47,"Азнакаевский муниципальный район","Урсаевское","92602468"]
[48,"Азнакаевский муниципальный район","Учаллинское","92602472"]
[49,"Азнакаевский муниципальный район","Чалпинское","92602476"]
[50,"Азнакаевский муниципальный район","Чемодуровское","92602480"]
[51,"Азнакаевский муниципальный район","Чубар-Абдулловское","92602484"]
[52,"Азнакаевский муниципальный район","поселок городского типа Актюбинский","92602157"]
[53,"Аксубаевский муниципальный район","Аксубаевский муниципальный район","92604000"]
[54,"Аксубаевский муниципальный район","Беловское","92604410"]
[55,"Аксубаевский муниципальный район","Емелькинское","92604413"]
[56,"Аксубаевский муниципальный район","Карасинское","92604414"]
[57,"Аксубаевский муниципальный район","Кривоозерское","92604415"]
[58,"Аксубаевский муниципальный район","Мюдовское","92604420"]
[59,"Аксубаевский муниципальный район","Новоаксубаевское","92604425"]
[60,"Аксубаевский муниципальный район","Новоибрайкинское","92604430"]
[61,"Аксубаевский муниципальный район","Новокиреметское","92604435"]
[62,"Аксубаевский муниципальный район","Саврушское","92604445"]
[63,"Аксубаевский муниципальный район","Староибрайкинское","92604450"]
[64,"Аксубаевский муниципальный район","Староильдеряковское","92604455"]
[65,"Аксубаевский муниципальный район","Старокиреметское","92604460"]
[66,"Аксубаевский муниципальный район","Старокиязлинское","92604465"]
[67,"Аксубаевский муниципальный район","Старотатарско-Адамское","92604468"]
[68,"Аксубаевский муниципальный район","Старотимошкинское","92604470"]
[69,"Аксубаевский муниципальный район","Староузеевское","92604475"]
[70,"Аксубаевский муниципальный район","Сунчелеевское","92604480"]
[71,"Аксубаевский муниципальный район","Трудолюбовское","92604485"]
[72,"Аксубаевский муниципальный район","Урмандеевское","92604490"]
[73,"Аксубаевский муниципальный район","Щербенское","92604493"]
[74,"Аксубаевский муниципальный район","поселок городского типа Аксубаево","92604151"]
[75,"Актанышский муниципальный район","Аишевское","92605402"]
[76,"Актанышский муниципальный район","Аккузовское","92605404"]
[77,"Актанышский муниципальный район","Актанышбашское","92605408"]
[78,"Актанышский муниципальный район","Актанышский муниципальный район","92605000"]
[79,"Актанышский муниципальный район","Актанышское","92605409"]
[80,"Актанышский муниципальный район","Атясевское","92605411"]
[81,"Актанышский муниципальный район","Верхнеяхшеевское","92605415"]
[82,"Актанышский муниципальный район","Казкеевское","92605419"]
[83,"Актанышский муниципальный район","Кировское","92605423"]
[84,"Актанышский муниципальный район","Кузякинское","92605427"]
[85,"Актанышский муниципальный район","Масадинское","92605438"]
[86,"Актанышский муниципальный район","Новоалимовское","92605434"]
[87,"Актанышский муниципальный район","Поисевское","92605441"]
[88,"Актанышский муниципальный район","Староаймановское","92605445"]
[89,"Актанышский муниципальный район","Старобайсаровское","92605448"]
[90,"Актанышский муниципальный район","Старобугадинское","92605451"]
[91,"Актанышский муниципальный район","Старокурмашевское","92605454"]
[92,"Актанышский муниципальный район","Старосафаровское","92605457"]
[93,"Актанышский муниципальный район","Такталачукское","92605464"]
[94,"Актанышский муниципальный район","Татарско-Суксинское","92605470"]
[95,"Актанышский муниципальный район","Татарско-Ямалинское","92605473"]
[96,"Актанышский муниципальный район","Тлякеевское","92605477"]
[97,"Актанышский муниципальный район","Тюковское","92605481"]
[98,"Актанышский муниципальный район","Уразаевское","92605430"]
[99,"Актанышский муниципальный район","Усинское","92605432"]
[100,"Актанышский муниципальный район","Чалманаратское","92605485"]
[101,"Актанышский муниципальный район","Чуракаевское","92605493"]
[102,"Алексеевский муниципальный район","Алексеевский муниципальный район","92606000"]
[103,"Алексеевский муниципальный район","Билярское","92606405"]
[104,"Алексеевский муниципальный район","Большеполянское","92606410"]
[105,"Алексеевский муниципальный район","Большетиганское","92606415"]
[106,"Алексеевский муниципальный район","Бутлеровское","92606420"]
[107,"Алексеевский муниципальный район","Войкинское","92606425"]
[108,"Алексеевский муниципальный район","Ерыклинское","92606435"]
[109,"Алексеевский муниципальный район","Куркульское","92606440"]
[110,"Алексеевский муниципальный район","Курналинское","92606442"]
[111,"Алексеевский муниципальный район","Лебединское","92606445"]
[112,"Алексеевский муниципальный район","Лебяжинское","92606450"]
[113,"Алексеевский муниципальный район","Левашевское","92606455"]
[114,"Алексеевский муниципальный район","Майнское","92606460"]
[115,"Алексеевский муниципальный район","Подлесно-Шенталинское","92606470"]
[116,"Алексеевский муниципальный район","Родниковское","92606475"]
[117,"Алексеевский муниципальный район","Ромодановское","92606476"]
[118,"Алексеевский муниципальный район","Сахаровское","92606478"]
[119,"Алексеевский муниципальный район","Среднетиганское","92606480"]
[120,"Алексеевский муниципальный район","Степношенталинское","92606490"]
[121,"Алексеевский муниципальный район","Ялкынское","92606495"]
[122,"Алексеевский муниципальный район","поселок городского типа Алексеевское","92606151"]
[123,"Алькеевский муниципальный район","Алькеевский муниципальный район","92607000"]
[124,"Алькеевский муниципальный район","Аппаковское","92607404"]
[125,"Алькеевский муниципальный район","Базарно-Матакское","92607408"]
[126,"Алькеевский муниципальный район","Борискинское","92607412"]
[127,"Алькеевский муниципальный район","Верхнеколчуринское","92607416"]
[128,"Алькеевский муниципальный район","Каргопольское","92607420"]
[129,"Алькеевский муниципальный район","Кошкинское","92607424"]
[130,"Алькеевский муниципальный район","Нижнеалькеевское","92607428"]
[131,"Алькеевский муниципальный район","Нижнекачеевское","92607432"]
[132,"Алькеевский муниципальный район","Новоургагарское","92607440"]
[133,"Алькеевский муниципальный район","Салманское","92607444"]
[134,"Алькеевский муниципальный район","Староалпаровское","92607448"]
[135,"Алькеевский муниципальный район","Старокамкинское","92607452"]
[136,"Алькеевский муниципальный район","Староматакское","92607456"]
[137,"Алькеевский муниципальный район","Старосалмановское","92607460"]
[138,"Алькеевский муниципальный район","Старохурадинское","92607464"]
[139,"Алькеевский муниципальный район","Старочелнинское","92607468"]
[140,"Алькеевский муниципальный район","Тяжбердинское","92607470"]
[141,"Алькеевский муниципальный район","Чувашско-Бродское","92607472"]
[142,"Алькеевский муниципальный район","Чувашско-Бурнаевское","92607476"]
[143,"Алькеевский муниципальный район","Шибашинское","92607484"]
[144,"Алькеевский муниципальный район","Юхмачинское","92607488"]
[145,"Альметьевский муниципальный район","Абдрахмановское","92608403"]
[146,"Альметьевский муниципальный район","Альметьевский муниципальный район","92608000"]
[147,"Альметьевский муниципальный район","Альметьевское","92608404"]
[148,"Альметьевский муниципальный район","Аппаковское","92608424"]
[149,"Альметьевский муниципальный район","Багряж-Никольское","92608406"]
[150,"Альметьевский муниципальный район","Бишмунчинское","92608409"]
[151,"Альметьевский муниципальный район","Борискинское","92608412"]
[152,"Альметьевский муниципальный район","Бутинское","92608413"]
[153,"Альметьевский муниципальный район","Васильевское","92608416"]
[154,"Альметьевский муниципальный район","Верхнеакташское","92608418"]
[155,"Альметьевский муниципальный район","Верхнемактаминское","92608419"]
[156,"Альметьевский муниципальный район","Город Альметьевск","92608101"]
[157,"Альметьевский муниципальный район","Елховское","92608421"]
[158,"Альметьевский муниципальный район","Ерсубайкинское","92608422"]
[159,"Альметьевский муниципальный район","Калейкинское","92608427"]
[160,"Альметьевский муниципальный район","Кама-Исмагиловское","92608428"]
[161,"Альметьевский муниципальный район","Кичуйское","92608433"]
[162,"Альметьевский муниципальный район","Кичучатовское","92608434"]
[163,"Альметьевский муниципальный район","Клементейкинское","92608436"]
[164,"Альметьевский муниципальный район","Кузайкинское","92608439"]
[165,"Альметьевский муниципальный район","Кульшариповское","92608440"]
[166,"Альметьевский муниципальный район","Лесно-Калейкинское","92608441"]
[167,"Альметьевский муниципальный район","Маметьевское","92608442"]
[168,"Альметьевский муниципальный район","Миннибаевское","92608445"]
[169,"Альметьевский муниципальный район","Нижнеабдулловское","92608447"]
[170,"Альметьевский муниципальный район","Новокашировское","92608448"]
[171,"Альметьевский муниципальный район","Новонадыровское","92608451"]
[172,"Альметьевский муниципальный район","Новоникольское","92608454"]
[173,"Альметьевский муниципальный район","Новотроицкое","92608457"]
[174,"Альметьевский муниципальный район","Русско-Акташское","92608459"]
[175,"Альметьевский муниципальный район","Сиренькинское","92608430"]
[176,"Альметьевский муниципальный район","Старомихайловское","92608460"]
[177,"Альметьевский муниципальный район","Старосуркинское","92608415"]
[178,"Альметьевский муниципальный район","Сулеевское","92608463"]
[179,"Альметьевский муниципальный район","Тайсугановское","92608464"]
[180,"Альметьевский муниципальный район","Ямашинское","92608469"]
[181,"Альметьевский муниципальный район","Ямашское","92608472"]
[182,"Альметьевский муниципальный район","поселок городского типа Нижняя Мактама","92608105"]
[183,"Апастовский муниципальный район","Альмендеровское","92610403"]
[184,"Апастовский муниципальный район","Апастовский муниципальный район","92610000"]
[185,"Апастовский муниципальный район","Бакрчинское","92610410"]
[186,"Апастовский муниципальный район","Бишевское","92610412"]
[187,"Апастовский муниципальный район","Большеболгоярское","92610415"]
[188,"Апастовский муниципальный район","Большекокузское","92610417"]
[189,"Апастовский муниципальный район","Булым-Булыхчинское","92610425"]
[190,"Апастовский муниципальный район","Верхнеаткозинское","92610430"]
[191,"Апастовский муниципальный район","Верхнеиндырчинское","92610433"]
[192,"Апастовский муниципальный район","Деушевское","92610436"]
[193,"Апастовский муниципальный район","Ишеевское","92610439"]
[194,"Апастовский муниципальный район","Каратунское","92610444"]
[195,"Апастовский муниципальный район","Кзыл-Тауское","92610442"]
[196,"Апастовский муниципальный район","Куштовское","92610448"]
[197,"Апастовский муниципальный район","Сатламышевское","92610456"]
[198,"Апастовский муниципальный район","Среднебалтаевское","92610459"]
[199,"Апастовский муниципальный район","Староюмралинское","92610462"]
[200,"Апастовский муниципальный район","Табар-Черкийское","92610453"]
[201,"Апастовский муниципальный район","Тутаевское","92610455"]
[202,"Апастовский муниципальный район","Черемшанское","92610474"]
[203,"Апастовский муниципальный район","Чуру-Барышевское","92610477"]
[204,"Апастовский муниципальный район","Шамбулыхчинское","92610483"]
[205,"Апастовский муниципальный район","поселок городского типа Апастово","92610151"]
[206,"Арский муниципальный район","Апазовское","92612403"]
[207,"Арский муниципальный район","Арский муниципальный район","92612000"]
[208,"Арский муниципальный район","Город Арск","92612151"]
[209,"Арский муниципальный район","Качелинское","92612422"]
[210,"Арский муниципальный район","Наласинское","92612442"]
[211,"Арский муниципальный район","Новокинерское","92612450"]
[212,"Арский муниципальный район","Новокишитское","92612452"]
[213,"Арский муниципальный район","Новокырлайское","92612454"]
[214,"Арский муниципальный район","Сизинское","92612462"]
[215,"Арский муниципальный район","Среднеатынское","92612465"]
[216,"Арский муниципальный район","Среднекорсинское","92612415"]
[217,"Арский муниципальный район","Старокырлайское","92612439"]
[218,"Арский муниципальный район","Старочурилинское","92612474"]
[219,"Арский муниципальный район","Ташкичинское","92612480"]
[220,"Арский муниципальный район","Урнякское","92612406"]
[221,"Арский муниципальный район","Утар-Атынское","92612486"]
[222,"Арский муниципальный район","Шушмабашское","92612496"]
[223,"Арский муниципальный район","Янга-Салское","92612498"]
[224,"Атнинский муниципальный район","Атнинский муниципальный район","92613000"]
[225,"Атнинский муниципальный район","Большеатнинское","92613408"]
[226,"Атнинский муниципальный район","Большеменгерское","92613410"]
[227,"Атнинский муниципальный район","Верхнесердинское","92613415"]
[228,"Атнинский муниципальный район","Коморгузинское","92613425"]
[229,"Атнинский муниципальный район","Кубянское","92613430"]
[230,"Атнинский муниципальный район","Кулле-Киминское","92613434"]
[231,"Атнинский муниципальный район","Кунгерское","92613437"]
[232,"Атнинский муниципальный район","Кшкловское","92613440"]
[233,"Атнинский муниципальный район","Нижнеберескинское","92613445"]
[234,"Атнинский муниципальный район","Нижнекуюкское","92613447"]
[235,"Атнинский муниципальный район","Новошашинское","92613457"]
[236,"Атнинский муниципальный район","Узюмское","92613470"]
[237,"Бавлинский муниципальный район","Александровское","92614404"]
[238,"Бавлинский муниципальный район","Бавлинский муниципальный район","92614000"]
[239,"Бавлинский муниципальный район","Город Бавлы","92614101"]
[240,"Бавлинский муниципальный район","Исергаповское","92614424"]
[241,"Бавлинский муниципальный район","Кзыл-Ярское","92614432"]
[242,"Бавлинский муниципальный район","Крым-Сарайское","92614436"]
[243,"Бавлинский муниципальный район","Новозареченское","92614416"]
[244,"Бавлинский муниципальный район","Покровско-Урустамакское","92614440"]
[245,"Бавлинский муниципальный район","Поповское","92614444"]
[246,"Бавлинский муниципальный район","Потапово-Тумбарлинское","92614448"]
[247,"Бавлинский муниципальный район","Салиховское","92614452"]
[248,"Бавлинский муниципальный район","Татарско-Кандызское","92614460"]
[249,"Бавлинский муниципальный район","Тумбарлинское","92614468"]
[250,"Бавлинский муниципальный район","Удмуртско-Ташлинское","92614472"]
[251,"Бавлинский муниципальный район","Шалтинское","92614480"]
[252,"Балтасинский муниципальный район","Балтасинский муниципальный район","92615000"]
[253,"Балтасинский муниципальный район","Бурбашское","92615407"]
[254,"Балтасинский муниципальный район","Бурнакское","92615408"]
[255,"Балтасинский муниципальный район","Верхнесубашское","92615415"]
[256,"Балтасинский муниципальный район","Карадуванское","92615425"]
[257,"Балтасинский муниципальный район","Кугунурское","92615420"]
[258,"Балтасинский муниципальный район","Малолызинское","92615428"]
[259,"Балтасинский муниципальный район","Норминское","92615430"]
[260,"Балтасинский муниципальный район","Нуринерское","92615435"]
[261,"Балтасинский муниципальный район","Пижмарское","92615440"]
[262,"Балтасинский муниципальный район","Салаусское","92615445"]
[263,"Балтасинский муниципальный район","Смаильское","92615410"]
[264,"Балтасинский муниципальный район","Сосновское","92615450"]
[265,"Балтасинский муниципальный район","Среднекушкетское","92615455"]
[266,"Балтасинский муниципальный район","Ципьинское","92615465"]
[267,"Балтасинский муниципальный район","Шишинерское","92615460"]
[268,"Балтасинский муниципальный район","Шубанское","92615470"]
[269,"Балтасинский муниципальный район","Янгуловское","92615475"]
[270,"Балтасинский муниципальный район","поселок городского типа Балтаси","92615151"]
[271,"Бугульминский муниципальный район","Акбашское","92617405"]
[272,"Бугульминский муниципальный район","Березовское","92617460"]
[273,"Бугульминский муниципальный район","Большефедоровское","92617410"]
[274,"Бугульминский муниципальный район","Бугульминский муниципальный район","92617000"]
[275,"Бугульминский муниципальный район","Восточное","92617412"]
[276,"Бугульминский муниципальный район","Вязовское","92617425"]
[277,"Бугульминский муниципальный район","Город Бугульма","92617101"]
[278,"Бугульминский муниципальный район","Зеленорощинское","92617415"]
[279,"Бугульминский муниципальный район","Ключевское","92617420"]
[280,"Бугульминский муниципальный район","Кудашевское","92617430"]
[281,"Бугульминский муниципальный район","Малобугульминское","92617435"]
[282,"Бугульминский муниципальный район","Наратлинское","92617440"]
[283,"Бугульминский муниципальный район","Новоалександровское","92617445"]
[284,"Бугульминский муниципальный район","Новосумароковское","92617450"]
[285,"Бугульминский муниципальный район","Петровское","92617452"]
[286,"Бугульминский муниципальный район","Подгорненское","92617455"]
[287,"Бугульминский муниципальный район","Спасское","92617465"]
[288,"Бугульминский муниципальный район","Староисаковское","92617470"]
[289,"Бугульминский муниципальный район","Татарско-Дымское","92617475"]
[290,"Бугульминский муниципальный район","поселок городского типа Карабаш","92617155"]
[291,"Буинский муниципальный район","Адав-Тулумбаевское","92618404"]
[292,"Буинский муниципальный район","Аксунское","92618407"]
[293,"Буинский муниципальный район","Альшеевское","92618408"]
[294,"Буинский муниципальный район","Альшиховское","92618411"]
[295,"Буинский муниципальный район","Бик-Утеевское","92618415"]
[296,"Буинский муниципальный район","Большефроловское","92618419"]
[297,"Буинский муниципальный район","Буинский муниципальный район","92618000"]
[298,"Буинский муниципальный район","Бюрганское","92618423"]
[299,"Буинский муниципальный район","Верхнелащинское","92618427"]
[300,"Буинский муниципальный район","Город Буинск","92618101"]
[301,"Буинский муниципальный район","Исаковское","92618431"]
[302,"Буинский муниципальный район","Кайбицкое","92618435"]
[303,"Буинский муниципальный район","Киятское","92618439"]
[304,"Буинский муниципальный район","Кошки-Теняковское","92618438"]
[305,"Буинский муниципальный район","Кошки-Шемякинское","92618440"]
[306,"Буинский муниципальный район","Малобуинковское","92618441"]
[307,"Буинский муниципальный район","Мещеряковское","92618442"]
[308,"Буинский муниципальный район","Мокросавалеевское","92618443"]
[309,"Буинский муниципальный район","Нижненаратбашское","92618447"]
[310,"Буинский муниципальный район","Новотинчалинское","92618451"]
[311,"Буинский муниципальный район","Новочечкабское","92618454"]
[312,"Буинский муниципальный район","Нурлатское","92618455"]
[313,"Буинский муниципальный район","Рунгинское","92618458"]
[314,"Буинский муниципальный район","Сорок-Сайдакское","92618462"]
[315,"Буинский муниципальный район","Старостуденецкое","92618469"]
[316,"Буинский муниципальный район","Старотинчалинское","92618472"]
[317,"Буинский муниципальный район","Тимбаевское","92618476"]
[318,"Буинский муниципальный район","Черки-Гришинское","92618480"]
[319,"Буинский муниципальный район","Черки-Кильдуразское","92618483"]
[320,"Буинский муниципальный район","Чувашско-Кищаковское","92618487"]
[321,"Буинский муниципальный район","Энтуганское","92618491"]
[322,"Буинский муниципальный район","Яшевское","92618495"]
[323,"Верхнеуслонский муниципальный район","Большемеминское","92620403"]
[324,"Верхнеуслонский муниципальный район","Бурнашевское","92620405"]
[325,"Верхнеуслонский муниципальный район","Вахитовское","92620408"]
[326,"Верхнеуслонский муниципальный район","Введенско-Слободское","92620410"]
[327,"Верхнеуслонский муниципальный район","Верхнеуслонский муниципальный район","92620000"]
[328,"Верхнеуслонский муниципальный район","Верхнеуслонское","92620415"]
[329,"Верхнеуслонский муниципальный район","Канашское","92620420"]
[330,"Верхнеуслонский муниципальный район","Кильдеевское","92620425"]
[331,"Верхнеуслонский муниципальный район","Коргузинское","92620435"]
[332,"Верхнеуслонский муниципальный район","Кураловское","92620440"]
[333,"Верхнеуслонский муниципальный район","Майданское","92620445"]
[334,"Верхнеуслонский муниципальный район","Макуловское","92620450"]
[335,"Верхнеуслонский муниципальный район","Набережно-Морквашское","92620460"]
[336,"Верхнеуслонский муниципальный район","Нижнеуслонское","92620465"]
[337,"Верхнеуслонский муниципальный район","Новорусско-Маматкозинское","92620470"]
[338,"Верхнеуслонский муниципальный район","Октябрьское","92620472"]
[339,"Верхнеуслонский муниципальный район","Печищинское","92620473"]
[340,"Верхнеуслонский муниципальный район","Соболевское","92620474"]
[341,"Верхнеуслонский муниципальный район","Шеланговское","92620475"]
[342,"Верхнеуслонский муниципальный район","Ямбулатовское","92620478"]
[343,"Верхнеуслонский муниципальный район","город Иннополис","92620109"]
[344,"Высокогорский муниципальный район","Айбашское","92622403"]
[345,"Высокогорский муниципальный район","Алан-Бексерское","92622406"]
[346,"Высокогорский муниципальный район","Альдермышское","92622409"]
[347,"Высокогорский муниципальный район","Березкинское","92622411"]
[348,"Высокогорский муниципальный район","Бирюлинское","92622412"]
[349,"Высокогорский муниципальный район","Большебитаманское","92622415"]
[350,"Высокогорский муниципальный район","Большековалинское","92622421"]
[351,"Высокогорский муниципальный район","Высокогорский муниципальный район","92622000"]
[352,"Высокогорский муниципальный район","Высокогорское","92622427"]
[353,"Высокогорский муниципальный район","Дачное","92622429"]
[354,"Высокогорский муниципальный район","Дубъязское","92622430"]
[355,"Высокогорский муниципальный район","Иске-Казанское","92622431"]
[356,"Высокогорский муниципальный район","Казакларское","92622434"]
[357,"Высокогорский муниципальный район","Красносельское","92622440"]
[358,"Высокогорский муниципальный район","Куркачинское","92622441"]
[359,"Высокогорский муниципальный район","Мемдельское","92622443"]
[360,"Высокогорский муниципальный район","Мульминское","92622446"]
[361,"Высокогорский муниципальный район","Село-Алатское","92622455"]
[362,"Высокогорский муниципальный район","Семиозерское","92622458"]
[363,"Высокогорский муниципальный район","Суксинское","92622462"]
[364,"Высокогорский муниципальный район","Ташлы-Ковалинское","92622464"]
[365,"Высокогорский муниципальный район","Усадское","92622467"]
[366,"Высокогорский муниципальный район","Чепчуговское","92622473"]
[367,"Высокогорский муниципальный район","Чернышевское","92622474"]
[368,"Высокогорский муниципальный район","Шапшинское","92622479"]
[369,"Высокогорский муниципальный район","Ямашурминское","92622485"]
[370,"Город Казань","Город Казань","92701000"]
[371,"Город Набережные Челны","Город Набережные Челны","92730000"]
[372,"Дрожжановский муниципальный район","Алешкин-Саплыкское","92624405"]
[373,"Дрожжановский муниципальный район","Большеаксинское","92624410"]
[374,"Дрожжановский муниципальный район","Большецильнинское","92624415"]
[375,"Дрожжановский муниципальный район","Городищенское","92624420"]
[376,"Дрожжановский муниципальный район","Дрожжановский муниципальный район","92624000"]
[377,"Дрожжановский муниципальный район","Звездинское","92624425"]
[378,"Дрожжановский муниципальный район","Малоцильнинское","92624430"]
[379,"Дрожжановский муниципальный район","Марсовское","92624435"]
[380,"Дрожжановский муниципальный район","Матакское","92624440"]
[381,"Дрожжановский муниципальный район","Нижнечекурское","92624445"]
[382,"Дрожжановский муниципальный район","Новобурундуковское","92624450"]
[383,"Дрожжановский муниципальный район","Новоильмовское","92624455"]
[384,"Дрожжановский муниципальный район","Новоишлинское","92624460"]
[385,"Дрожжановский муниципальный район","Село-Убейское","92624465"]
[386,"Дрожжановский муниципальный район","Стародрожжановское","92624470"]
[387,"Дрожжановский муниципальный район","Старокакерлинское","92624475"]
[388,"Дрожжановский муниципальный район","Старочукалинское","92624480"]
[389,"Дрожжановский муниципальный район","Старошаймурзинское","92624485"]
[390,"Дрожжановский муниципальный район","Чувашско-Дрожжановское","92624490"]
[391,"Дрожжановский муниципальный район","Шланговское","92624495"]
[392,"Елабужский муниципальный район","Альметьевское","92626401"]
[393,"Елабужский муниципальный район","Бехтеревское","92626404"]
[394,"Елабужский муниципальный район","Большееловское","92626412"]
[395,"Елабужский муниципальный район","Большекачкинское","92626416"]
[396,"Елабужский муниципальный район","Большешурнякское","92626420"]
[397,"Елабужский муниципальный район","Город Елабуга","92626101"]
[398,"Елабужский муниципальный район","Елабужский муниципальный район","92626000"]
[399,"Елабужский муниципальный район","Костенеевское","92626432"]
[400,"Елабужский муниципальный район","Лекаревское","92626436"]
[401,"Елабужский муниципальный район","Мортовское","92626444"]
[402,"Елабужский муниципальный район","Мурзихинское","92626448"]
[403,"Елабужский муниципальный район","Поспеловское","92626456"]
[404,"Елабужский муниципальный район","Старокуклюкское","92626468"]
[405,"Елабужский муниципальный район","Староюрашское","92626472"]
[406,"Елабужский муниципальный район","Танайское","92626476"]
[407,"Елабужский муниципальный район","Татарско-Дюм-Дюмское","92626478"]
[408,"Елабужский муниципальный район","Яковлевское","92626492"]
[409,"Заинский муниципальный район","Аксаринское","92627484"]
[410,"Заинский муниципальный район","Александро-Слободское","92627405"]
[411,"Заинский муниципальный район","Багряжское","92627415"]
[412,"Заинский муниципальный район","Бегишевское","92627420"]
[413,"Заинский муниципальный район","Бухарайское","92627425"]
[414,"Заинский муниципальный район","Верхненалимское","92627430"]
[415,"Заинский муниципальный район","Верхнепинячинское","92627432"]
[416,"Заинский муниципальный район","Верхнешипкинское","92627434"]
[417,"Заинский муниципальный район","Город Заинск","92627101"]
[418,"Заинский муниципальный район","Гулькинское","92627435"]
[419,"Заинский муниципальный район","Дуртмунчинское","92627444"]
[420,"Заинский муниципальный район","Заинский муниципальный район","92627000"]
[421,"Заинский муниципальный район","Кадыровское","92627410"]
[422,"Заинский муниципальный район","Нижнебишевское","92627454"]
[423,"Заинский муниципальный район","Новоспасское","92627459"]
[424,"Заинский муниципальный район","Поповское","92627464"]
[425,"Заинский муниципальный район","Поручиковское","92627466"]
[426,"Заинский муниципальный район","Савалеевское","92627468"]
[427,"Заинский муниципальный район","Сармаш-Башское","92627476"]
[428,"Заинский муниципальный район","Светлоозерское","92627480"]
[429,"Заинский муниципальный район","Старо-Мавринское","92627481"]
[430,"Заинский муниципальный район","Тюгеевское","92627488"]
[431,"Заинский муниципальный район","Урсаевское","92627489"]
[432,"Заинский муниципальный район","Чубуклинское","92627490"]
[433,"Зеленодольский муниципальный район","Айшинское","92628404"]
[434,"Зеленодольский муниципальный район","Акзигитовское","92628408"]
[435,"Зеленодольский муниципальный район","Бишнинское","92628416"]
[436,"Зеленодольский муниципальный район","Большеачасырское","92628412"]
[437,"Зеленодольский муниципальный район","Большеключинское","92628420"]
[438,"Зеленодольский муниципальный район","Большекургузинское","92628424"]
[439,"Зеленодольский муниципальный район","Большеширданское","92628432"]
[440,"Зеленодольский муниципальный район","Большеякинское","92628488"]
[441,"Зеленодольский муниципальный район","Город Зеленодольск","92628101"]
[442,"Зеленодольский муниципальный район","Зеленодольский муниципальный район","92628000"]
[443,"Зеленодольский муниципальный район","Кугеевское","92628442"]
[444,"Зеленодольский муниципальный район","Кугушевское","92628444"]
[445,"Зеленодольский муниципальный район","Мамадыш-Акиловское","92628448"]
[446,"Зеленодольский муниципальный район","Молвинское","92628454"]
[447,"Зеленодольский муниципальный район","Нижнеураспугинское","92628456"]
[448,"Зеленодольский муниципальный район","Новопольское","92628460"]
[449,"Зеленодольский муниципальный район","Нурлатское","92628464"]
[450,"Зеленодольский муниципальный район","Октябрьское","92628468"]
[451,"Зеленодольский муниципальный район","Осиновское","92628472"]
[452,"Зеленодольский муниципальный район","Раифское","92628474"]
[453,"Зеленодольский муниципальный район","Русско-Азелеевское","92628476"]
[454,"Зеленодольский муниципальный район","Свияжское","92628477"]
[455,"Зеленодольский муниципальный район","Утяшкинское","92628436"]
[456,"Зеленодольский муниципальный район","поселок городского типа Васильево","92628155"]
[457,"Зеленодольский муниципальный район","поселок городского типа Нижние Вязовые","92628162"]
[458,"Кайбицкий муниципальный район","Багаевское","92629405"]
[459,"Кайбицкий муниципальный район","Большекайбицкое","92629408"]
[460,"Кайбицкий муниципальный район","Большеподберезинское","92629409"]
[461,"Кайбицкий муниципальный район","Большерусаковское","92629410"]
[462,"Кайбицкий муниципальный район","Бурундуковское","92629412"]
[463,"Кайбицкий муниципальный район","Кайбицкий муниципальный район","92629000"]
[464,"Кайбицкий муниципальный район","Кулангинское","92629423"]
[465,"Кайбицкий муниципальный район","Кушманское","92629426"]
[466,"Кайбицкий муниципальный район","Маломеминское","92629428"]
[467,"Кайбицкий муниципальный район","Молькеевское","92629430"]
[468,"Кайбицкий муниципальный район","Муралинское","92629432"]
[469,"Кайбицкий муниципальный район","Надеждинское","92629435"]
[470,"Кайбицкий муниципальный район","Старотябердинское","92629445"]
[471,"Кайбицкий муниципальный район","Ульянковское","92629447"]
[472,"Кайбицкий муниципальный район","Федоровское","92629450"]
[473,"Кайбицкий муниципальный район","Хозесановское","92629455"]
[474,"Кайбицкий муниципальный район","Чутеевское","92629460"]
[475,"Кайбицкий муниципальный район","Эбалаковское","92629465"]
[476,"Камско-Устьинский муниципальный район","Балтачевское","92630403"]
[477,"Камско-Устьинский муниципальный район","Большебуртасское","92630405"]
[478,"Камско-Устьинский муниципальный район","Большекармалинское","92630410"]
[479,"Камско-Устьинский муниципальный район","Большекляринское","92630415"]
[480,"Камско-Устьинский муниципальный район","Большесалтыковское","92630420"]
[481,"Камско-Устьинский муниципальный район","Варваринское","92630425"]
[482,"Камско-Устьинский муниципальный район","Камско-Устьинский муниципальный район","92630000"]
[483,"Камско-Устьинский муниципальный район","Кирельское","92630430"]
[484,"Камско-Устьинский муниципальный район","Клянчеевское","92630435"]
[485,"Камско-Устьинский муниципальный район","Красновидовское","92630440"]
[486,"Камско-Устьинский муниципальный район","Малосалтыковское","92630445"]
[487,"Камско-Устьинский муниципальный район","Осинниковское","92630447"]
[488,"Камско-Устьинский муниципальный район","Старобарышевское","92630450"]
[489,"Камско-Устьинский муниципальный район","Староказеевское","92630455"]
[490,"Камско-Устьинский муниципальный район","Сюкеевское","92630460"]
[491,"Камско-Устьинский муниципальный район","Теньковское","92630465"]
[492,"Камско-Устьинский муниципальный район","Уразлинское","92630470"]
[493,"Камско-Устьинский муниципальный район","Янгасалское","92630475"]
[494,"Камско-Устьинский муниципальный район","поселок городского типа Камское Устье","92630151"]
[495,"Камско-Устьинский муниципальный район","поселок городского типа Куйбышевский Затон","92630157"]
[496,"Камско-Устьинский муниципальный район","поселок городского типа Тенишево","92630165"]
[497,"Кукморский муниципальный район","Байлянгарское","92633404"]
[498,"Кукморский муниципальный район","Березнякское","92633408"]
[499,"Кукморский муниципальный район","Большекукморское","92633412"]
[500,"Кукморский муниципальный район","Большесардекское","92633416"]
[501,"Кукморский муниципальный район","Важашурское","92633420"]
[502,"Кукморский муниципальный район","Каенсарское","92633423"]
[503,"Кукморский муниципальный район","Каркаусское","92633424"]
[504,"Кукморский муниципальный район","Кошкинское","92633428"]
[505,"Кукморский муниципальный район","Кукморский муниципальный район","92633000"]
[506,"Кукморский муниципальный район","Лельвижское","92633429"]
[507,"Кукморский муниципальный район","Лубянское","92633434"]
[508,"Кукморский муниципальный район","Мамаширское","92633430"]
[509,"Кукморский муниципальный район","Манзарасское","92633432"]
[510,"Кукморский муниципальный район","Нижнеискубашское","92633436"]
[511,"Кукморский муниципальный район","Нижнерусское","92633440"]
[512,"Кукморский муниципальный район","Ныртинское","92633444"]
[513,"Кукморский муниципальный район","Нырьинское","92633448"]
[514,"Кукморский муниципальный район","Олуязское","92633452"]
[515,"Кукморский муниципальный район","Ошторма-Юмьинское","92633456"]
[516,"Кукморский муниципальный район","Починок-Кучуковское","92633460"]
[517,"Кукморский муниципальный район","Псякское","92633464"]
[518,"Кукморский муниципальный район","Сардекбашское","92633468"]
[519,"Кукморский муниципальный район","Село-Чуринское","92633472"]
[520,"Кукморский муниципальный район","Среднекуморское","92633476"]
[521,"Кукморский муниципальный район","Туембашское","92633477"]
[522,"Кукморский муниципальный район","Уркушское","92633478"]
[523,"Кукморский муниципальный район","Чарлинское","92633480"]
[524,"Кукморский муниципальный район","Ядыгерьское","92633484"]
[525,"Кукморский муниципальный район","Яныльское","92633488"]
[526,"Кукморский муниципальный район","Ятмас-Дусаевское","92633490"]
[527,"Кукморский муниципальный район","город Кукмор","92633101"]
[528,"Лаишевский муниципальный район","Александровское","92634404"]
[529,"Лаишевский муниципальный район","Атабаевское","92634408"]
[530,"Лаишевский муниципальный район","Большекабанское","92634412"]
[531,"Лаишевский муниципальный район","Габишевское","92634414"]
[532,"Лаишевский муниципальный район","Город Лаишево","92634101"]
[533,"Лаишевский муниципальный район","Державинское","92634415"]
[534,"Лаишевский муниципальный район","Егорьевское","92634416"]
[535,"Лаишевский муниципальный район","Кирбинское","92634428"]
[536,"Лаишевский муниципальный район","Куюковское","92634432"]
[537,"Лаишевский муниципальный район","Лаишевский муниципальный район","92634000"]
[538,"Лаишевский муниципальный район","Макаровское","92634436"]
[539,"Лаишевский муниципальный район","Малоелгинское","92634440"]
[540,"Лаишевский муниципальный район","Матюшинское","92634442"]
[541,"Лаишевский муниципальный район","Нармонское","92634444"]
[542,"Лаишевский муниципальный район","Никольское","92634448"]
[543,"Лаишевский муниципальный район","Орловское","92634484"]
[544,"Лаишевский муниципальный район","Пелевское","92634452"]
[545,"Лаишевский муниципальный район","Песчано-Ковалинское","92634456"]
[546,"Лаишевский муниципальный район","Рождественское","92634460"]
[547,"Лаишевский муниципальный район","Сокуровское","92634468"]
[548,"Лаишевский муниципальный район","Среднедевятовское","92634472"]
[549,"Лаишевский муниципальный район","Столбищенское","92634480"]
[550,"Лаишевский муниципальный район","Татарско-Сараловское","92634486"]
[551,"Лаишевский муниципальный район","Татарско-Янтыкское","92634488"]
[552,"Лаишевский муниципальный район","Чирповское","92634492"]
[553,"Лениногорский муниципальный район","Глазовское","92636405"]
[554,"Лениногорский муниципальный район","Город Лениногорск","92636101"]
[555,"Лениногорский муниципальный район","Зай-Каратайское","92636410"]
[556,"Лениногорский муниципальный район","Зеленорощинское","92636412"]
[557,"Лениногорский муниципальный район","Ивановское","92636415"]
[558,"Лениногорский муниципальный район","Каркалинское","92636418"]
[559,"Лениногорский муниципальный район","Кармалкинское","92636419"]
[560,"Лениногорский муниципальный район","Керлигачское","92636420"]
[561,"Лениногорский муниципальный район","Куакбашское","92636425"]
[562,"Лениногорский муниципальный район","Лениногорский муниципальный район","92636000"]
[563,"Лениногорский муниципальный район","Мичуринское","92636435"]
[564,"Лениногорский муниципальный район","Мукмин-Каратайское","92636437"]
[565,"Лениногорский муниципальный район","Нижнечершилинское","92636440"]
[566,"Лениногорский муниципальный район","Новоиштерякское","92636445"]
[567,"Лениногорский муниципальный район","Новочершилинское","92636447"]
[568,"Лениногорский муниципальный район","Письмянское","92636450"]
[569,"Лениногорский муниципальный район","Сарабикуловское","92636455"]
[570,"Лениногорский муниципальный район","Староиштерякское","92636460"]
[571,"Лениногорский муниципальный район","Старокувакское","92636465"]
[572,"Лениногорский муниципальный район","Старошугуровское","92636470"]
[573,"Лениногорский муниципальный район","Сугушлинское","92636475"]
[574,"Лениногорский муниципальный район","Тимяшевское","92636480"]
[575,"Лениногорский муниципальный район","Туктарово-Урдалинское","92636485"]
[576,"Лениногорский муниципальный район","Урмышлинское","92636490"]
[577,"Лениногорский муниципальный район","Федотовское","92636495"]
[578,"Лениногорский муниципальный район","Шугуровское","92636497"]
[579,"Мамадышский муниципальный район","Албайское","92638403"]
[580,"Мамадышский муниципальный район","Верхнеошминское","92638406"]
[581,"Мамадышский муниципальный район","Город Мамадыш","92638101"]
[582,"Мамадышский муниципальный район","Дюсьметьевское","92638415"]
[583,"Мамадышский муниципальный район","Ишкеевское","92638418"]
[584,"Мамадышский муниципальный район","Катмышское","92638421"]
[585,"Мамадышский муниципальный район","Кемеш-Кульское","92638424"]
[586,"Мамадышский муниципальный район","Кляушское","92638427"]
[587,"Мамадышский муниципальный район","Красногорское","92638430"]
[588,"Мамадышский муниципальный район","Куюк-Ерыксинское","92638436"]
[589,"Мамадышский муниципальный район","Малокирменское","92638442"]
[590,"Мамадышский муниципальный район","Мамадышский муниципальный район","92638000"]
[591,"Мамадышский муниципальный район","Нижнеошминское","92638448"]
[592,"Мамадышский муниципальный район","Нижнесуньское","92638451"]
[593,"Мамадышский муниципальный район","Нижнетаканышское","92638454"]
[594,"Мамадышский муниципальный район","Нижнешандерское","92638457"]
[595,"Мамадышский муниципальный район","Никифоровское","92638460"]
[596,"Мамадышский муниципальный район","Олуязское","92638463"]
[597,"Мамадышский муниципальный район","Омарское","92638466"]
[598,"Мамадышский муниципальный район","Отарское","92638469"]
[599,"Мамадышский муниципальный район","Сокольское","92638475"]
[600,"Мамадышский муниципальный район","Среднекирменское","92638478"]
[601,"Мамадышский муниципальный район","Суньское","92638480"]
[602,"Мамадышский муниципальный район","Тавельское","92638481"]
[603,"Мамадышский муниципальный район","Уразбахтинское","92638484"]
[604,"Мамадышский муниципальный район","Урманчеевское","92638487"]
[605,"Мамадышский муниципальный район","Усалинское","92638490"]
[606,"Мамадышский муниципальный район","Шадчинское","92638493"]
[607,"Мамадышский муниципальный район","Шемяковское","92638495"]
[608,"Мамадышский муниципальный район","Якинское","92638498"]
[609,"Менделеевский муниципальный район","Абалачевское","92639403"]
[610,"Менделеевский муниципальный район","Бизякинское","92639410"]
[611,"Менделеевский муниципальный район","Брюшлинское","92639415"]
[612,"Менделеевский муниципальный район","Город Менделеевск","92639101"]
[613,"Менделеевский муниципальный район","Енабердинское","92639418"]
[614,"Менделеевский муниципальный район","Ижевское","92639423"]
[615,"Менделеевский муниципальный район","Камаевское","92639428"]
[616,"Менделеевский муниципальный район","Менделеевский муниципальный район","92639000"]
[617,"Менделеевский муниципальный район","Монашевское","92639440"]
[618,"Менделеевский муниципальный район","Мунайкинское","92639441"]
[619,"Менделеевский муниципальный район","Псеевское","92639443"]
[620,"Менделеевский муниципальный район","Старогришкинское","92639464"]
[621,"Менделеевский муниципальный район","Татарско-Челнинское","92639480"]
[622,"Менделеевский муниципальный район","Тихоновское","92639483"]
[623,"Менделеевский муниципальный район","Тойгузинское","92639485"]
[624,"Менделеевский муниципальный район","Тураевское","92639488"]
[625,"Мензелинский муниципальный район","Атряклинское","92640404"]
[626,"Мензелинский муниципальный район","Аюское","92640408"]
[627,"Мензелинский муниципальный район","Бикбуловское","92640412"]
[628,"Мензелинский муниципальный район","Верхнетакерменское","92640416"]
[629,"Мензелинский муниципальный район","Город Мензелинск","92640101"]
[630,"Мензелинский муниципальный район","Иркеняшское","92640428"]
[631,"Мензелинский муниципальный район","Кадряковское","92640432"]
[632,"Мензелинский муниципальный район","Коноваловское","92640440"]
[633,"Мензелинский муниципальный район","Кузембетьевское","92640444"]
[634,"Мензелинский муниципальный район","Мензелинский муниципальный район","92640000"]
[635,"Мензелинский муниципальный район","Наратлы-Кичуское","92640455"]
[636,"Мензелинский муниципальный район","Николаевское","92640457"]
[637,"Мензелинский муниципальный район","Новомазинское","92640459"]
[638,"Мензелинский муниципальный район","Новомелькенское","92640461"]
[639,"Мензелинский муниципальный район","Подгорно-Байларское","92640463"]
[640,"Мензелинский муниципальный район","Старомазинское","92640478"]
[641,"Мензелинский муниципальный район","Староматвеевское","92640481"]
[642,"Мензелинский муниципальный район","Урусовское","92640492"]
[643,"Мензелинский муниципальный район","Юртовское","92640494"]
[644,"Мензелинский муниципальный район","Юшадинское","92640496"]
[645,"Мензелинский муниципальный район","им Воровского","92640424"]
[646,"Муслюмовский муниципальный район","Амикеевское","92642405"]
[647,"Муслюмовский муниципальный район","Баланнинское","92642410"]
[648,"Муслюмовский муниципальный район","Баюковское","92642415"]
[649,"Муслюмовский муниципальный район","Большечекмакское","92642416"]
[650,"Муслюмовский муниципальный район","Варяш-Башское","92642417"]
[651,"Муслюмовский муниципальный район","Исансуповское","92642420"]
[652,"Муслюмовский муниципальный район","Кряш-Шуранское","92642425"]
[653,"Муслюмовский муниципальный район","Мелля-Тамакское","92642430"]
[654,"Муслюмовский муниципальный район","Митряевское","92642435"]
[655,"Муслюмовский муниципальный район","Михайловское","92642440"]
[656,"Муслюмовский муниципальный район","Муслюмовский муниципальный район","92642000"]
[657,"Муслюмовский муниципальный район","Муслюмовское","92642443"]
[658,"Муслюмовский муниципальный район","Нижнетабынское","92642450"]
[659,"Муслюмовский муниципальный район","Новоусинское","92642455"]
[660,"Муслюмовский муниципальный район","Октябрьское","92642460"]
[661,"Муслюмовский муниципальный район","Семяковское","92642465"]
[662,"Муслюмовский муниципальный район","Старокарамалинское","92642470"]
[663,"Муслюмовский муниципальный район","Тойгильдинское","92642475"]
[664,"Муслюмовский муниципальный район","Уразметьевское","92642480"]
[665,"Муслюмовский муниципальный район","Шуганское","92642485"]
[666,"Нижнекамский муниципальный район","Афанасовское","92644405"]
[667,"Нижнекамский муниципальный район","Город Нижнекамск","92644101"]
[668,"Нижнекамский муниципальный район","Елантовское","92644407"]
[669,"Нижнекамский муниципальный район","Каенлинское","92644410"]
[670,"Нижнекамский муниципальный район","Кармалинское","92644412"]
[671,"Нижнекамский муниципальный район","Краснокадкинское","92644420"]
[672,"Нижнекамский муниципальный район","Красноключинское","92644415"]
[673,"Нижнекамский муниципальный район","Майскогорское","92644423"]
[674,"Нижнекамский муниципальный район","Макаровское","92644425"]
[675,"Нижнекамский муниципальный район","Нижнекамский муниципальный район","92644000"]
[676,"Нижнекамский муниципальный район","Нижнеуратьминское","92644430"]
[677,"Нижнекамский муниципальный район","Простинское","92644433"]
[678,"Нижнекамский муниципальный район","Сосновское","92644434"]
[679,"Нижнекамский муниципальный район","Старошешминское","92644435"]
[680,"Нижнекамский муниципальный район","Сухаревское","92644440"]
[681,"Нижнекамский муниципальный район","Шереметьевское","92644445"]
[682,"Нижнекамский муниципальный район","Шингальчинское","92644450"]
[683,"Нижнекамский муниципальный район","поселок городского типа Камские Поляны","92644156"]
[684,"Новошешминский муниципальный район","Азеевское","92645401"]
[685,"Новошешминский муниципальный район","Акбуринское","92645440"]
[686,"Новошешминский муниципальный район","Архангельское","92645402"]
[687,"Новошешминский муниципальный район","Буревестниковское","92645405"]
[688,"Новошешминский муниципальный район","Екатерининское","92645412"]
[689,"Новошешминский муниципальный район","Зиреклинское","92645419"]
[690,"Новошешминский муниципальный район","Краснооктябрьское","92645425"]
[691,"Новошешминский муниципальный район","Ленинское","92645428"]
[692,"Новошешминский муниципальный район","Новошешминский муниципальный район","92645000"]
[693,"Новошешминский муниципальный район","Новошешминское","92645432"]
[694,"Новошешминский муниципальный район","Петропавловское","92645436"]
[695,"Новошешминский муниципальный район","Тубылгытауское","92645438"]
[696,"Новошешминский муниципальный район","Утяшкинское","92645444"]
[697,"Новошешминский муниципальный район","Чебоксарское","92645447"]
[698,"Новошешминский муниципальный район","Черемуховское","92645450"]
[699,"Новошешминский муниципальный район","Шахмайкинское","92645453"]
[700,"Нурлатский муниципальный район","Амзинское","92646408"]
[701,"Нурлатский муниципальный район","Андреевское","92646412"]
[702,"Нурлатский муниципальный район","Ахметовское","92646448"]
[703,"Нурлатский муниципальный район","Бикуловское","92646449"]
[704,"Нурлатский муниципальный район","Биляр-Озерское","92646416"]
[705,"Нурлатский муниципальный район","Богдашкинское","92646420"]
[706,"Нурлатский муниципальный район","Бурметьевское","92646424"]
[707,"Нурлатский муниципальный район","Гайтанкинское","92646427"]
[708,"Нурлатский муниципальный район","Город Нурлат","92646101"]
[709,"Нурлатский муниципальный район","Егоркинское","92646428"]
[710,"Нурлатский муниципальный район","Елаурское","92646432"]
[711,"Нурлатский муниципальный район","Зареченское","92646436"]
[712,"Нурлатский муниципальный район","Кичкальнинское","92646442"]
[713,"Нурлатский муниципальный район","Кульбаево-Марасинское","92646444"]
[714,"Нурлатский муниципальный район","Мамыковское","92646452"]
[715,"Нурлатский муниципальный район","Новоиглайкинское","92646460"]
[716,"Нурлатский муниципальный район","Новотумбинское","92646462"]
[717,"Нурлатский муниципальный район","Нурлатский муниципальный район","92646000"]
[718,"Нурлатский муниципальный район","Селенгушское","92646464"]
[719,"Нурлатский муниципальный район","Среднекамышлинское","92646468"]
[720,"Нурлатский муниципальный район","Староальметьевское","92646472"]
[721,"Нурлатский муниципальный район","Старочелнинское","92646476"]
[722,"Нурлатский муниципальный район","Степноозерское","92646480"]
[723,"Нурлатский муниципальный район","Тимерлекское","92646484"]
[724,"Нурлатский муниципальный район","Тюрнясевское","92646486"]
[725,"Нурлатский муниципальный район","Фомкинское","92646488"]
[726,"Нурлатский муниципальный район","Чулпановское","92646490"]
[727,"Нурлатский муниципальный район","Якушкинское","92646492"]
[728,"Пестречинский муниципальный район","Белкинское","92648405"]
[729,"Пестречинский муниципальный район","Богородское","92648410"]
[730,"Пестречинский муниципальный район","Екатериновское","92648415"]
[731,"Пестречинский муниципальный район","Кибячинское","92648425"]
[732,"Пестречинский муниципальный район","Кобяковское","92648427"]
[733,"Пестречинский муниципальный район","Ковалинское","92648428"]
[734,"Пестречинский муниципальный район","Конское","92648430"]
[735,"Пестречинский муниципальный район","Кощаковское","92648435"]
[736,"Пестречинский муниципальный район","Кряш-Сердинское","92648440"]
[737,"Пестречинский муниципальный район","Кулаевское","92648445"]
[738,"Пестречинский муниципальный район","Ленино-Кокушкинское","92648450"]
[739,"Пестречинский муниципальный район","Надеждинское","92648452"]
[740,"Пестречинский муниципальный район","Отар-Дубровское","92648453"]
[741,"Пестречинский муниципальный район","Пановское","92648454"]
[742,"Пестречинский муниципальный район","Пестречинский муниципальный район","92648000"]
[743,"Пестречинский муниципальный район","Пестречинское","92648455"]
[744,"Пестречинский муниципальный район","Пимерское","92648457"]
[745,"Пестречинский муниципальный район","Татарско-Ходяшевское","92648465"]
[746,"Пестречинский муниципальный район","Читинское","92648467"]
[747,"Пестречинский муниципальный район","Шалинское","92648470"]
[748,"Пестречинский муниципальный район","Шигалеевское","92648475"]
[749,"Пестречинский муниципальный район","Янцеварское","92648480"]
[750,"Рыбно-Слободский муниципальный район","Анатышское","92650404"]
[751,"Рыбно-Слободский муниципальный район","Балыклы-Чукаевское","92650408"]
[752,"Рыбно-Слободский муниципальный район","Бетьковское","92650412"]
[753,"Рыбно-Слободский муниципальный район","Биектауское","92650416"]
[754,"Рыбно-Слободский муниципальный район","Большеелгинское","92650420"]
[755,"Рыбно-Слободский муниципальный район","Большекульгинское","92650424"]
[756,"Рыбно-Слободский муниципальный район","Большемашлякское","92650428"]
[757,"Рыбно-Слободский муниципальный район","Большеошнякское","92650432"]
[758,"Рыбно-Слободский муниципальный район","Большесалтанское","92650436"]
[759,"Рыбно-Слободский муниципальный район","Козяково-Челнинское","92650440"]
[760,"Рыбно-Слободский муниципальный район","Корноуховское","92650444"]
[761,"Рыбно-Слободский муниципальный район","Кугарчинское","92650448"]
[762,"Рыбно-Слободский муниципальный район","Кукеевское","92650450"]
[763,"Рыбно-Слободский муниципальный район","Кутлу-Букашское","92650452"]
[764,"Рыбно-Слободский муниципальный район","Масловское","92650454"]
[765,"Рыбно-Слободский муниципальный район","Нижнетимерлекское","92650456"]
[766,"Рыбно-Слободский муниципальный район","Новоарышское","92650460"]
[767,"Рыбно-Слободский муниципальный район","Полянское","92650462"]
[768,"Рыбно-Слободский муниципальный район","Русско-Ошнякское","92650464"]
[769,"Рыбно-Слободский муниципальный район","Рыбно-Слободский муниципальный район","92650000"]
[770,"Рыбно-Слободский муниципальный район","Троицко-Урайское","92650472"]
[771,"Рыбно-Слободский муниципальный район","Урахчинское","92650476"]
[772,"Рыбно-Слободский муниципальный район","Шеморбашское","92650480"]
[773,"Рыбно-Слободский муниципальный район","Шетнево-Тулушское","92650484"]
[774,"Рыбно-Слободский муниципальный район","Шумбутское","92650488"]
[775,"Рыбно-Слободский муниципальный район","Шумковское","92650492"]
[776,"Рыбно-Слободский муниципальный район","Юлсубинское","92650496"]
[777,"Рыбно-Слободский муниципальный район","поселок городского типа Рыбная Слобода","92650151"]
[778,"Сабинский муниципальный район","Арташское","92652404"]
[779,"Сабинский муниципальный район","Большекибячинское","92652409"]
[780,"Сабинский муниципальный район","Большеныртинское","92652417"]
[781,"Сабинский муниципальный район","Большешинарское","92652423"]
[782,"Сабинский муниципальный район","Верхнесиметское","92652431"]
[783,"Сабинский муниципальный район","Евлаштауское","92652432"]
[784,"Сабинский муниципальный район","Изминское","92652434"]
[785,"Сабинский муниципальный район","Иштуганское","92652436"]
[786,"Сабинский муниципальный район","Кильдебякское","92652442"]
[787,"Сабинский муниципальный район","Корсабашское","92652430"]
[788,"Сабинский муниципальный район","Мешинское","92652452"]
[789,"Сабинский муниципальный район","Мичанское","92652454"]
[790,"Сабинский муниципальный район","Нижнешитцинское","92652450"]
[791,"Сабинский муниципальный район","Сабинский муниципальный район","92652000"]
[792,"Сабинский муниципальный район","Сатышевское","92652462"]
[793,"Сабинский муниципальный район","Староикшурминское","92652473"]
[794,"Сабинский муниципальный район","Тимершикское","92652481"]
[795,"Сабинский муниципальный район","Шеморданское","92652494"]
[796,"Сабинский муниципальный район","Шикшинское","92652495"]
[797,"Сабинский муниципальный район","Юлбатское","92652498"]
[798,"Сабинский муниципальный район","поселок городского типа Богатые Сабы","92652151"]
[799,"Сармановский муниципальный район","Азалаковское","92653404"]
[800,"Сармановский муниципальный район","Александровское","92653408"]
[801,"Сармановский муниципальный район","Альметьевское","92653409"]
[802,"Сармановский муниципальный район","Большенуркеевское","92653412"]
[803,"Сармановский муниципальный район","Верхне-Чершилинское","92653415"]
[804,"Сармановский муниципальный район","Иляксазское","92653420"]
[805,"Сармановский муниципальный район","Кавзияковское","92653424"]
[806,"Сармановский муниципальный район","Карашай-Сакловское","92653428"]
[807,"Сармановский муниципальный район","Лешев-Тамакское","92653432"]
[808,"Сармановский муниципальный район","Лякинское","92653436"]
[809,"Сармановский муниципальный район","Муртыш-Тамакское","92653440"]
[810,"Сармановский муниципальный район","Новоимянское","92653444"]
[811,"Сармановский муниципальный район","Петровско-Заводское","92653448"]
[812,"Сармановский муниципальный район","Рангазарское","92653452"]
[813,"Сармановский муниципальный район","Саклов-Башское","92653456"]
[814,"Сармановский муниципальный район","Сармановский муниципальный район","92653000"]
[815,"Сармановский муниципальный район","Сармановское","92653460"]
[816,"Сармановский муниципальный район","Старо-Имянское","92653470"]
[817,"Сармановский муниципальный район","Старокаширское","92653468"]
[818,"Сармановский муниципальный район","Старомензелябашское","92653472"]
[819,"Сармановский муниципальный район","Чукмарлинское","92653480"]
[820,"Сармановский муниципальный район","Шарлиареминское","92653482"]
[821,"Сармановский муниципальный район","Янурусовское","92653484"]
[822,"Сармановский муниципальный район","поселок городского типа Джалиль","92653155"]
[823,"Спасский муниципальный район","Аграмаковское","92632405"]
[824,"Спасский муниципальный район","Антоновское","92632410"]
[825,"Спасский муниципальный район","Бураковское","92632415"]
[826,"Спасский муниципальный район","Город Болгар","92632101"]
[827,"Спасский муниципальный район","Измерское","92632420"]
[828,"Спасский муниципальный район","Иске-Рязапское","92632425"]
[829,"Спасский муниципальный район","Кимовское","92632430"]
[830,"Спасский муниципальный район","Краснослободское","92632435"]
[831,"Спасский муниципальный район","Кузнечихинское","92632440"]
[832,"Спасский муниципальный район","Кураловское","92632445"]
[833,"Спасский муниципальный район","Никольское","92632450"]
[834,"Спасский муниципальный район","Полянское","92632460"]
[835,"Спасский муниципальный район","Приволжское","92632462"]
[836,"Спасский муниципальный район","Спасский муниципальный район","92632000"]
[837,"Спасский муниципальный район","Среднеюрткульское","92632465"]
[838,"Спасский муниципальный район","Трехозерское","92632470"]
[839,"Спасский муниципальный район","Чэчэклинское","92632455"]
[840,"Спасский муниципальный район","Ямбухтинское","92632475"]
[841,"Тетюшский муниципальный район","Алабердинское","92655403"]
[842,"Тетюшский муниципальный район","Байрашевское","92655408"]
[843,"Тетюшский муниципальный район","Бакрчинское","92655412"]
[844,"Тетюшский муниципальный район","Беденьгинское","92655416"]
[845,"Тетюшский муниципальный район","Бессоновское","92655417"]
[846,"Тетюшский муниципальный район","Большеатрясское","92655420"]
[847,"Тетюшский муниципальный район","Большетарханское","92655424"]
[848,"Тетюшский муниципальный район","Большетурминское","92655428"]
[849,"Тетюшский муниципальный район","Большешемякинское","92655432"]
[850,"Тетюшский муниципальный район","Город Тетюши","92655101"]
[851,"Тетюшский муниципальный район","Жуковское","92655436"]
[852,"Тетюшский муниципальный район","Кильдюшевское","92655438"]
[853,"Тетюшский муниципальный район","Киртелинское","92655440"]
[854,"Тетюшский муниципальный район","Кляшевское","92655444"]
[855,"Тетюшский муниципальный район","Кошки-Новотимбаевское","92655448"]
[856,"Тетюшский муниципальный район","Льяшевское","92655456"]
[857,"Тетюшский муниципальный район","Монастырское","92655464"]
[858,"Тетюшский муниципальный район","Нармонское","92655468"]
[859,"Тетюшский муниципальный район","Сюндюковское","92655476"]
[860,"Тетюшский муниципальный район","Тетюшский муниципальный район","92655000"]
[861,"Тетюшский муниципальный район","Урюмское","92655480"]
[862,"Тетюшский муниципальный район","Федоровское","92655484"]
[863,"Тукаевский муниципальный район","Азьмушкинское","92657405"]
[864,"Тукаевский муниципальный район","Бетькинское","92657410"]
[865,"Тукаевский муниципальный район","Биклянское","92657415"]
[866,"Тукаевский муниципальный район","Биюрганское","92657426"]
[867,"Тукаевский муниципальный район","Бурдинское","92657425"]
[868,"Тукаевский муниципальный район","Иштеряковское","92657428"]
[869,"Тукаевский муниципальный район","Калмашское","92657430"]
[870,"Тукаевский муниципальный район","Калмиинское","92657431"]
[871,"Тукаевский муниципальный район","Князевское","92657435"]
[872,"Тукаевский муниципальный район","Комсомольское","92657437"]
[873,"Тукаевский муниципальный район","Круглопольское","92657433"]
[874,"Тукаевский муниципальный район","Кузкеевское","92657438"]
[875,"Тукаевский муниципальный район","Малошильнинское","92657439"]
[876,"Тукаевский муниципальный район","Мелекесское","92657440"]
[877,"Тукаевский муниципальный район","Мусабай-Заводское","92657445"]
[878,"Тукаевский муниципальный район","Нижнесуыксинское","92657450"]
[879,"Тукаевский муниципальный район","Новотроицкое","92657455"]
[880,"Тукаевский муниципальный район","Семекеевское","92657465"]
[881,"Тукаевский муниципальный район","Староабдуловское","92657469"]
[882,"Тукаевский муниципальный район","Стародрюшское","92657471"]
[883,"Тукаевский муниципальный район","Тлянче-Тамакское","92657474"]
[884,"Тукаевский муниципальный район","Тукаевский муниципальный район","92657000"]
[885,"Тукаевский муниципальный район","Шильнебашское","92657483"]
[886,"Тукаевский муниципальный район","Яна-Булякское","92657492"]
[887,"Тюлячинский муниципальный район","Абдинское","92656403"]
[888,"Тюлячинский муниципальный район","Айдаровское","92656404"]
[889,"Тюлячинский муниципальный район","Аланское","92656405"]
[890,"Тюлячинский муниципальный район","Баландышское","92656410"]
[891,"Тюлячинский муниципальный район","Большеметескинское","92656413"]
[892,"Тюлячинский муниципальный район","Большемешское","92656415"]
[893,"Тюлячинский муниципальный район","Большенырсинское","92656418"]
[894,"Тюлячинский муниципальный район","Верхнекибякозинское","92656425"]
[895,"Тюлячинский муниципальный район","Малокибякозинское","92656435"]
[896,"Тюлячинский муниципальный район","Старозюринское","92656440"]
[897,"Тюлячинский муниципальный район","Тюлячинский муниципальный район","92656000"]
[898,"Тюлячинский муниципальный район","Тюлячинское","92656445"]
[899,"Тюлячинский муниципальный район","Узякское","92656450"]
[900,"Тюлячинский муниципальный район","Шадкинское","92656455"]
[901,"Черемшанский муниципальный район","Беркет-Ключевское","92658405"]
[902,"Черемшанский муниципальный район","Верхнекаменское","92658410"]
[903,"Черемшанский муниципальный район","Ивашкинское","92658415"]
[904,"Черемшанский муниципальный район","Карамышевское","92658420"]
[905,"Черемшанский муниципальный район","Кутеминское","92658422"]
[906,"Черемшанский муниципальный район","Лашманское","92658430"]
[907,"Черемшанский муниципальный район","Мордовско-Афонькинское","92658435"]
[908,"Черемшанский муниципальный район","Нижнекаменское","92658438"]
[909,"Черемшанский муниципальный район","Нижнекармалкинское","92658440"]
[910,"Черемшанский муниципальный район","Новоильмовское","92658445"]
[911,"Черемшанский муниципальный район","Новокадеевское","92658450"]
[912,"Черемшанский муниципальный район","Старокадеевское","92658455"]
[913,"Черемшанский муниципальный район","Старокутушское","92658425"]
[914,"Черемшанский муниципальный район","Староутямышское","92658460"]
[915,"Черемшанский муниципальный район","Туйметкинское","92658462"]
[916,"Черемшанский муниципальный район","Ульяновское","92658465"]
[917,"Черемшанский муниципальный район","Черемшанский муниципальный район","92658000"]
[918,"Черемшанский муниципальный район","Черемшанское","92658470"]
[919,"Черемшанский муниципальный район","Шешминское","92658475"]
[920,"Чистопольский муниципальный район","Адельшинское","92659403"]
[921,"Чистопольский муниципальный район","Большетолкишское","92659409"]
[922,"Чистопольский муниципальный район","Булдырское","92659412"]
[923,"Чистопольский муниципальный район","Верхнекондратинское","92659414"]
[924,"Чистопольский муниципальный район","Город Чистополь","92659101"]
[925,"Чистопольский муниципальный район","Данауровское","92659418"]
[926,"Чистопольский муниципальный район","Исляйкинское","92659423"]
[927,"Чистопольский муниципальный район","Каргалинское","92659430"]
[928,"Чистопольский муниципальный район","Кубасское","92659438"]
[929,"Чистопольский муниципальный район","Кутлушкинское","92659441"]
[930,"Чистопольский муниципальный район","Малотолкишское","92659447"]
[931,"Чистопольский муниципальный район","Муслюмкинское","92659450"]
[932,"Чистопольский муниципальный район","Нарат-Елгинское","92659453"]
[933,"Чистопольский муниципальный район","Нижнекондратинское","92659455"]
[934,"Чистопольский муниципальный район","Совхозно-Галактионовское","92659462"]
[935,"Чистопольский муниципальный район","Староромашкинское","92659468"]
[936,"Чистопольский муниципальный район","Татарско-Баганинское","92659471"]
[937,"Чистопольский муниципальный район","Татарско-Елтанское","92659474"]
[938,"Чистопольский муниципальный район","Татарско-Сарсазское","92659475"]
[939,"Чистопольский муниципальный район","Татарско-Толкишское","92659477"]
[940,"Чистопольский муниципальный район","Четырчинское","92659486"]
[941,"Чистопольский муниципальный район","Чистопольский муниципальный район","92659000"]
[942,"Чистопольский муниципальный район","Чистопольско-Высельское","92659492"]
[943,"Чистопольский муниципальный район","Чистопольское","92659489"]
[944,"Чистопольский муниципальный район","Чувашско-Елтанское","92659495"]
[945,"Ютазинский муниципальный район","Абсалямовское","92654401"]
[946,"Ютазинский муниципальный район","Акбашское","92654402"]
[947,"Ютазинский муниципальный район","Байряки-Тамакское","92654408"]
[948,"Ютазинский муниципальный район","Байрякинское","92654405"]
[949,"Ютазинский муниципальный район","Дым-Тамакское","92654412"]
[950,"Ютазинский муниципальный район","Каракашлинское","92654420"]
[951,"Ютазинский муниципальный район","Старокаразерикское","92654435"]
[952,"Ютазинский муниципальный район","Ташкичуйское","92654440"]
[953,"Ютазинский муниципальный район","Уруссинское","92654445"]
[954,"Ютазинский муниципальный район","Ютазинский муниципальный район","92654000"]
[955,"Ютазинский муниципальный район","Ютазинское","92654455"]
[956,"Ютазинский муниципальный район","поселок городского типа Уруссу","92654151"]

{"sheet":"modInfo","index":67,"n_rows":36,"n_cols":2,"rows_kept":36,"cut":false,"hidden":true,"merged":[]}
[null,"Титульный"]
[null,"Для выбора того или иного источника публикации выполните двойной щелчок по синей ячейке напротив соответствующего источника.\nВНИМАНИЕ! Если Вы снимаете галочку с пункта, то будут скрыты и очищены соответствующие строки на листе \"Форма 1.0.2\"!\n\nОпубликование перечисленных в шаблоне показателей на сайте организации в сети Интернет и в печатных изданиях не обязательно, если данный шаблон предоставлен по системе ЕИАС (региональный сегмент)."]
[null,"Обязательное опубликование на официальном сайте органа исполнительной власти субъекта Российской Федерации в области государственного регулирования цен (тарифов), и (или) на официальном сайте органа местного самоуправления поселения или городского округа в случае их наделения в соответствии с законом субъекта Российской Федерации полномочиями по государственному регулированию цен (тарифов)предусмотрено пунктом 3 (а) постановления Правительства №6 от 17.01.2013г."]
[null,"Задайте период регулирования, выбрав даты начала и окончания периода регулирования из календаря (иконка справа от указанной ячейки), либо введите дату непосредственно в ячейку в формате - 'ДД.ММ.ГГГГ'"]
[null,"Шаблон заполняется раздельно по каждому виду тарифа"]
[null,"В зависимости от указанного вида деятельности будут доступны для заполнения поля 'Производство', 'Передача' и 'Сбыт'"]
[null,"Если выбрано 'да', на листах с разбивкой по потребителям доступны для заполнения графы для двухставочного ставочного тарифа по группам потребителей"]
[null,"Если выбрано 'да', значения тарифов для групп потребителей на листах с разбивкой по потребителям заполнятся автоматически значениями первой группы"]
[null,"Если выбрано значение «да» - в шаблоне будет сформирован лист «Форма 1.0.2» для уведомления органа регулирования о публикации информации в печатных изданиях"]
[null,"По умолчанию установлено значение «первичное раскрытие информации» Это означает, что информация раскрывается в соответствии с установленными сроком и периодичностью. В случае если в уже отправленном шаблоне обнаружена ошибка или произошло изменение информации, исправленный шаблон необходимо отправить с типом отчета «изменения в раскрытой ранее информации». "]
[null,"Укажите является ли данное юридическое лицо подразделением(филиалом) другой организации"]
[null,"Ссылки на публикации"]
[null,"Вводите адрес сайта, не нарушая цвет ячейки /если копируете гиперссылку из браузера, то выполните двойной щелчок по ячейке и только после этого можете вставить скопированный элемент/"]
[null,"Обосновывающие материалы необходимо загружать с помощью \"ЕИАС Мониторинг\". Ссылка на инструкцию по загрузке обосновывающих материалов расположена на листе 'Инструкция' в п.'Методология заполнения'.\n\nВвводите ссылку, не нарушая цвет ячейки /если копируете гиперссылку из браузера, то выполните двойной щелчок по ячейке и только после этого можете вставить скопированный элемент/."]
[null,"Если для какого-либо пункта графы 'Наименование источника (сайта или печатного издания)' информация не раскрывалась, то в соответствующем поле укажите - 'не раскрывалась'"]
[null,"Список МО"]
[null,"В случае, если тариф не дифференцируется по системам теплоснабжения, перечислите все муниципальные районы, в которых организация осуществляет услуги теплоснабжения и сфере оказания услуг по передаче тепловой энергии"]
[null,"В случае, если тариф не дифференцируется по системам теплоснабжения, перечислите все муниципальные образования, в которых организация осуществляет услуги теплоснабжения и сфере оказания услуг по передаче тепловой энергии"]
[null,"Признак дифференциации тарифа"]
[null,"В случае, если тариф не дифференцируется по системам теплоснабжения, укажите \"1\".\nВведите значение от 1 до 100, чтобы указать очередной условный порядковый номер системы теплоснабжения"]
[null,"Стандарты"]
[null,"В качестве примечания Вы можете указать единицу измерения"]
[]
[null,"Для корректного формирования Таблицы 25 Формы 1.10 необходимо задать разбивку по диаметрам и способу прокладки тепловых сетей"]
[]
[null,"Перечень тарифов"]
[null,"Указывается наименование тарифа в случае утверждения нескольких тарифов.\nВ случае наличия нескольких тарифов информация по ним указывается в отдельных строках."]
[null,"Укажите «Да» в поле «Да/Нет», если дифференциация используется.\nВ поле «Описание» указывается наименование территории действия тарифа при наличии дифференциации тарифа по территориальному признаку.\nВ случае дифференциации тарифов по территориальному признаку информация по ним указывается в отдельных строках."]
[null,"Признаки дифференциации указываются в соответствии с п.6 ст.32 ФЗ РФ от 07.12.2011 №416-ФЗ"]
[null,"Укажите «Да» в поле «Да/Нет», если дифференциация используется. В поле «Описание» укажите название ЦС ГВС или любое другое описание"]
[]
[null,"Территории"]
[1,"Наименование территории действия тарифа для целей идентификации"]
[2,"Муниципальные районы и муниципальные образования, на территории которых действует тариф"]
[null,"Инструкция"]
[null,"Нет доступных обновлений, версия отчёта актуальна"]

{"sheet":"modList05","index":68,"n_rows":0,"n_cols":0,"rows_kept":0,"cut":false,"hidden":true,"merged":[]}

{"sheet":"modList06","index":69,"n_rows":0,"n_cols":0,"rows_kept":0,"cut":false,"hidden":true,"merged":[]}

{"sheet":"modList07","index":70,"n_rows":0,"n_cols":0,"rows_kept":0,"cut":false,"hidden":true,"merged":[]}

{"sheet":"modList11","index":71,"n_rows":0,"n_cols":0,"rows_kept":0,"cut":false,"hidden":true,"merged":[]}

{"sheet":"modList12","index":72,"n_rows":0,"n_cols":0,"rows_kept":0,"cut":false,"hidden":true,"merged":[]}

{"sheet":"modfrmDateChoose","index":73,"n_rows":0,"n_cols":0,"rows_kept":0,"cut":false,"hidden":true,"merged":[]}

{"sheet":"modComm","index":74,"n_rows":0,"n_cols":0,"rows_kept":0,"cut":false,"hidden":true,"merged":[]}

{"sheet":"modThisWorkbook","index":75,"n_rows":0,"n_cols":0,"rows_kept":0,"cut":false,"hidden":true,"merged":[]}

{"sheet":"modfrmReestrMR","index":76,"n_rows":0,"n_cols":0,"rows_kept":0,"cut":false,"hidden":true,"merged":[]}

{"sheet":"modfrmCheckUpdates","index":77,"n_rows":0,"n_cols":0,"rows_kept":0,"cut":false,"hidden":true,"merged":[]}